Workbook

Sheet Hitters
A1: Name | B1: ELG | C1: FPTS | D1: PPPA | E1: PPG | F1: G | G1: PA | H1: AB | I1: H | J1: 1B | K1: 2B | L1: 3B | M1: HR | N1: RBI | O1: R | P1: BB | Q1: SO | R1: SB | S1: CS | T1: SF | U1: HBP | V1: AVG | W1: K/BB | X1: TB | Y1: OBP | Z1: SLG | AA1: OPS | AB1: LG | AC1: PlayerID | AD1: Pos | AE1: Drafted
A2: Mookie Betts | B2: OF | C2: =(G2*'Points System'!$B$16)+(H2*'Points System'!$B$17)+(I2*'Points System'!$B$15)+(J2*'Points System'!$B$2)+(K2*'Points System'!$B$3)+(L2*'Points System'!$B$4)+(M2*'Points System'!$B$5)+(N2*'Points System'!$B$6)+(O2*'Points System'!$B$7)+(P2*'Points System'!$B$8)+(Q2*'Points System'!$B$9)+(R2*'Points System'!$B$10)+(S2*'Points System'!$B$11)+(T2*'Points System'!$B$13)+(U2*'Points System'!$B$12)+(X2*'Points System'!$B$14) -> 747.955 | D2: =C2/G2 -> 1.098899565 | E2: =C2/F2 -> 4.891792021 | F2: 152.9 | G2: 680.64 | H2: 591.27 | I2: 181.57 | J2: 104.13 | K2: 43.93 | L2: 3.87 | M2: 29.81 | N2: 92.5 | O2: 116.56 | P2: 79.07 | Q2: 93.46 | R2: 26.44 | S2: 5.69 | T2: 5.5 | U2: 5.33 | V2: 0.307 | W2: 1.182 | X2: 322.84 | Y2: 0.39 | Z2: 0.546 | AA2: 0.936 | AB2: AL | AC2: 605141 | AD2: RF | AE2: =IF(ISNA(VLOOKUP(A2,Rankings!$B$2:$H$659,7,FALSE)),"-",VLOOKUP(A2,Rankings!$B$2:$H$659,7,FALSE)) -> 0
A3: Mike Trout | B3: OF | C3: =(G3*'Points System'!$B$16)+(H3*'Points System'!$B$17)+(I3*'Points System'!$B$15)+(J3*'Points System'!$B$2)+(K3*'Points System'!$B$3)+(L3*'Points System'!$B$4)+(M3*'Points System'!$B$5)+(N3*'Points System'!$B$6)+(O3*'Points System'!$B$7)+(P3*'Points System'!$B$8)+(Q3*'Points System'!$B$9)+(R3*'Points System'!$B$10)+(S3*'Points System'!$B$11)+(T3*'Points System'!$B$13)+(U3*'Points System'!$B$12)+(X3*'Points System'!$B$14) -> 728.455 | D3: =C3/G3 -> 1.116953908 | E3: =C3/F3 -> 4.888959732 | F3: 149 | G3: 652.18 | H3: 519.6 | I3: 159.36 | J3: 87.53 | K3: 28.8 | L3: 4.47 | M3: 38.75 | N3: 98.56 | O3: 113.75 | P3: 122.86 | Q3: 129.46 | R3: 23.44 | S3: 4.69 | T3: 4.5 | U3: 10.11 | V3: 0.307 | W3: 1.054 | X3: 313.54 | Y3: 0.445 | Z3: 0.603 | AA3: 1.048 | AB3: AL | AC3: 545361 | AD3: CF | AE3: =IF(ISNA(VLOOKUP(A3,Rankings!$B$2:$H$659,7,FALSE)),"-",VLOOKUP(A3,Rankings!$B$2:$H$659,7,FALSE)) -> 0
A4: Jose Ramirez | B4: 3B | C4: =(G4*'Points System'!$B$16)+(H4*'Points System'!$B$17)+(I4*'Points System'!$B$15)+(J4*'Points System'!$B$2)+(K4*'Points System'!$B$3)+(L4*'Points System'!$B$4)+(M4*'Points System'!$B$5)+(N4*'Points System'!$B$6)+(O4*'Points System'!$B$7)+(P4*'Points System'!$B$8)+(Q4*'Points System'!$B$9)+(R4*'Points System'!$B$10)+(S4*'Points System'!$B$11)+(T4*'Points System'!$B$13)+(U4*'Points System'!$B$12)+(X4*'Points System'!$B$14) -> 720.47 | D4: =C4/G4 -> 1.076051079 | E4: =C4/F4 -> 4.660219922 | F4: 154.6 | G4: 669.55 | H4: 576.2 | I4: 165.71 | J4: 88.8 | K4: 41.67 | L4: 4.13 | M4: 30.25 | N4: 96.25 | O4: 101.19 | P4: 83.86 | Q4: 77.92 | R4: 24.69 | S4: 6.31 | T4: 5.5 | U4: 6 | V4: 0.288 | W4: 0.929 | X4: 305.53 | Y4: 0.381 | Z4: 0.53 | AA4: 0.911 | AB4: AL | AC4: 608070 | AD4: 3B | AE4: =IF(ISNA(VLOOKUP(A4,Rankings!$B$2:$H$659,7,FALSE)),"-",VLOOKUP(A4,Rankings!$B$2:$H$659,7,FALSE)) -> 0
A5: Nolan Arenado | B5: 3B | C5: =(G5*'Points System'!$B$16)+(H5*'Points System'!$B$17)+(I5*'Points System'!$B$15)+(J5*'Points System'!$B$2)+(K5*'Points System'!$B$3)+(L5*'Points System'!$B$4)+(M5*'Points System'!$B$5)+(N5*'Points System'!$B$6)+(O5*'Points System'!$B$7)+(P5*'Points System'!$B$8)+(Q5*'Points System'!$B$9)+(R5*'Points System'!$B$10)+(S5*'Points System'!$B$11)+(T5*'Points System'!$B$13)+(U5*'Points System'!$B$12)+(X5*'Points System'!$B$14) -> 683.11 | D5: =C5/G5 -> 1.029912404 | E5: =C5/F5 -> 4.410006456 | F5: 154.9 | G5: 663.27 | H5: 589.93 | I5: 171.36 | J5: 93.13 | K5: 37.73 | L5: 3.67 | M5: 37.31 | N5: 112.5 | O5: 98.56 | P5: 67.71 | Q5: 116.54 | R5: 2.63 | S5: 1.92 | T5: 6 | U5: 3.33 | V5: 0.29 | W5: 1.721 | X5: 328.84 | Y5: 0.363 | Z5: 0.557 | AA5: 0.92 | AB5: NL | AC5: 571448 | AD5: 3B | AE5: =IF(ISNA(VLOOKUP(A5,Rankings!$B$2:$H$659,7,FALSE)),"-",VLOOKUP(A5,Rankings!$B$2:$H$659,7,FALSE)) -> 0
A6: Alex Bregman | B6: SS/3B | C6: =(G6*'Points System'!$B$16)+(H6*'Points System'!$B$17)+(I6*'Points System'!$B$15)+(J6*'Points System'!$B$2)+(K6*'Points System'!$B$3)+(L6*'Points System'!$B$4)+(M6*'Points System'!$B$5)+(N6*'Points System'!$B$6)+(O6*'Points System'!$B$7)+(P6*'Points System'!$B$8)+(Q6*'Points System'!$B$9)+(R6*'Points System'!$B$10)+(S6*'Points System'!$B$11)+(T6*'Points System'!$B$13)+(U6*'Points System'!$B$12)+(X6*'Points System'!$B$14) -> 671.83 | D6: =C6/G6 -> 1.001371272 | E6: =C6/F6 -> 4.385313316 | F6: 153.2 | G6: 670.91 | H6: 574.33 | I6: 164.14 | J6: 91.6 | K6: 42.4 | L6: 2.6 | M6: 27.63 | N6: 95.13 | O6: 99.06 | P6: 80.43 | Q6: 87.85 | R6: 11.13 | S6: 4.31 | T6: 3.5 | U6: 9.33 | V6: 0.286 | W6: 1.092 | X6: 294.72 | Y6: 0.38 | Z6: 0.513 | AA6: 0.893 | AB6: AL | AC6: 608324 | AD6: 3B | AE6: =IF(ISNA(VLOOKUP(A6,Rankings!$B$2:$H$659,7,FALSE)),"-",VLOOKUP(A6,Rankings!$B$2:$H$659,7,FALSE)) -> 0
A7: Jose Altuve | B7: 2B | C7: =(G7*'Points System'!$B$16)+(H7*'Points System'!$B$17)+(I7*'Points System'!$B$15)+(J7*'Points System'!$B$2)+(K7*'Points System'!$B$3)+(L7*'Points System'!$B$4)+(M7*'Points System'!$B$5)+(N7*'Points System'!$B$6)+(O7*'Points System'!$B$7)+(P7*'Points System'!$B$8)+(Q7*'Points System'!$B$9)+(R7*'Points System'!$B$10)+(S7*'Points System'!$B$11)+(T7*'Points System'!$B$13)+(U7*'Points System'!$B$12)+(X7*'Points System'!$B$14) -> 654.19 | D7: =C7/G7 -> 0.9969672956 | E7: =C7/F7 -> 4.361266667 | F7: 150 | G7: 656.18 | H7: 587 | I7: 186 | J7: 129.53 | K7: 34.87 | L7: 3.67 | M7: 17.94 | N7: 79.31 | O7: 94.56 | P7: 57.43 | Q7: 82 | R7: 22.38 | S7: 5.69 | T7: 2 | U7: 7.67 | V7: 0.317 | W7: 1.428 | X7: 282.04 | Y7: 0.384 | Z7: 0.48 | AA7: 0.864 | AB7: AL | AC7: 514888 | AD7: 2B | AE7: =IF(ISNA(VLOOKUP(A7,Rankings!$B$2:$H$659,7,FALSE)),"-",VLOOKUP(A7,Rankings!$B$2:$H$659,7,FALSE)) -> 0
A8: Francisco Lindor | B8: SS | C8: =(G8*'Points System'!$B$16)+(H8*'Points System'!$B$17)+(I8*'Points System'!$B$15)+(J8*'Points System'!$B$2)+(K8*'Points System'!$B$3)+(L8*'Points System'!$B$4)+(M8*'Points System'!$B$5)+(N8*'Points System'!$B$6)+(O8*'Points System'!$B$7)+(P8*'Points System'!$B$8)+(Q8*'Points System'!$B$9)+(R8*'Points System'!$B$10)+(S8*'Points System'!$B$11)+(T8*'Points System'!$B$13)+(U8*'Points System'!$B$12)+(X8*'Points System'!$B$14) -> 651.07 | D8: =C8/G8 -> 1.001368852 | E8: =C8/F8 -> 4.447199454 | F8: 146.4 | G8: 650.18 | H8: 578.2 | I8: 163.79 | J8: 96.07 | K8: 36.13 | L8: 2.8 | M8: 29.5 | N8: 85.31 | O8: 102.63 | P8: 60.86 | Q8: 92.46 | R8: 18.56 | S8: 6.38 | T8: 3.5 | U8: 5.44 | V8: 0.283 | W8: 1.519 | X8: 294.73 | Y8: 0.355 | Z8: 0.51 | AA8: 0.865 | AB8: AL | AC8: 596019 | AD8: SS | AE8: =IF(ISNA(VLOOKUP(A8,Rankings!$B$2:$H$659,7,FALSE)),"-",VLOOKUP(A8,Rankings!$B$2:$H$659,7,FALSE)) -> 0
A9: J.D. Martinez | B9: OF | C9: =(G9*'Points System'!$B$16)+(H9*'Points System'!$B$17)+(I9*'Points System'!$B$15)+(J9*'Points System'!$B$2)+(K9*'Points System'!$B$3)+(L9*'Points System'!$B$4)+(M9*'Points System'!$B$5)+(N9*'Points System'!$B$6)+(O9*'Points System'!$B$7)+(P9*'Points System'!$B$8)+(Q9*'Points System'!$B$9)+(R9*'Points System'!$B$10)+(S9*'Points System'!$B$11)+(T9*'Points System'!$B$13)+(U9*'Points System'!$B$12)+(X9*'Points System'!$B$14) -> 646.21 | D9: =C9/G9 -> 1.032878333 | E9: =C9/F9 -> 4.429129541 | F9: 145.9 | G9: 625.64 | H9: 549.6 | I9: 168.14 | J9: 93.27 | K9: 33.47 | L9: 2 | M9: 39.38 | N9: 115.38 | O9: 98.63 | P9: 65.07 | Q9: 149.77 | R9: 4.38 | S9: 1.23 | T9: 6 | U9: 3.11 | V9: 0.306 | W9: 2.302 | X9: 323.73 | Y9: 0.379 | Z9: 0.589 | AA9: 0.968 | AB9: AL | AC9: 502110 | AD9: LF | AE9: =IF(ISNA(VLOOKUP(A9,Rankings!$B$2:$H$659,7,FALSE)),"-",VLOOKUP(A9,Rankings!$B$2:$H$659,7,FALSE)) -> 0
A10: Christian Yelich | B10: OF | C10: =(G10*'Points System'!$B$16)+(H10*'Points System'!$B$17)+(I10*'Points System'!$B$15)+(J10*'Points System'!$B$2)+(K10*'Points System'!$B$3)+(L10*'Points System'!$B$4)+(M10*'Points System'!$B$5)+(N10*'Points System'!$B$6)+(O10*'Points System'!$B$7)+(P10*'Points System'!$B$8)+(Q10*'Points System'!$B$9)+(R10*'Points System'!$B$10)+(S10*'Points System'!$B$11)+(T10*'Points System'!$B$13)+(U10*'Points System'!$B$12)+(X10*'Points System'!$B$14) -> 645.9 | D10: =C10/G10 -> 0.9789033373 | E10: =C10/F10 -> 4.26055409 | F10: 151.6 | G10: 659.82 | H10: 579.8 | I10: 174.57 | J10: 107.73 | K10: 35.33 | L10: 4.27 | M10: 27.56 | N10: 95.31 | O10: 103 | P10: 72.5 | Q10: 136.77 | R10: 17.38 | S10: 4 | T10: 2.5 | U10: 5.89 | V10: 0.301 | W10: 1.886 | X10: 301.44 | Y10: 0.383 | Z10: 0.52 | AA10: 0.903 | AB10: NL | AC10: 592885 | AD10: LF | AE10: =IF(ISNA(VLOOKUP(A10,Rankings!$B$2:$H$659,7,FALSE)),"-",VLOOKUP(A10,Rankings!$B$2:$H$659,7,FALSE)) -> 0
A11: Manny Machado | B11: SS/3B | C11: =(G11*'Points System'!$B$16)+(H11*'Points System'!$B$17)+(I11*'Points System'!$B$15)+(J11*'Points System'!$B$2)+(K11*'Points System'!$B$3)+(L11*'Points System'!$B$4)+(M11*'Points System'!$B$5)+(N11*'Points System'!$B$6)+(O11*'Points System'!$B$7)+(P11*'Points System'!$B$8)+(Q11*'Points System'!$B$9)+(R11*'Points System'!$B$10)+(S11*'Points System'!$B$11)+(T11*'Points System'!$B$13)+(U11*'Points System'!$B$12)+(X11*'Points System'!$B$14) -> 636.075 | D11: =C11/G11 -> 0.9703661327 | E11: =C11/F11 -> 4.151383631 | F11: 153.22 | G11: 655.5 | H11: 590.15 | I11: 165.92 | J11: 99.62 | K11: 32.31 | L11: 2.69 | M11: 32.71 | N11: 95.79 | O11: 87.71 | P11: 60.23 | Q11: 105.08 | R11: 10 | S11: 3 | T11: 5 | U11: 2.25 | V11: 0.281 | W11: 1.745 | X11: 303.15 | Y11: 0.347 | Z11: 0.514 | AA11: 0.861 | AB11: NL | AC11: 592518 | AD11: SS | AE11: =IF(ISNA(VLOOKUP(A11,Rankings!$B$2:$H$659,7,FALSE)),"-",VLOOKUP(A11,Rankings!$B$2:$H$659,7,FALSE)) -> 0
A12: Anthony Rizzo | B12: 1B | C12: =(G12*'Points System'!$B$16)+(H12*'Points System'!$B$17)+(I12*'Points System'!$B$15)+(J12*'Points System'!$B$2)+(K12*'Points System'!$B$3)+(L12*'Points System'!$B$4)+(M12*'Points System'!$B$5)+(N12*'Points System'!$B$6)+(O12*'Points System'!$B$7)+(P12*'Points System'!$B$8)+(Q12*'Points System'!$B$9)+(R12*'Points System'!$B$10)+(S12*'Points System'!$B$11)+(T12*'Points System'!$B$13)+(U12*'Points System'!$B$12)+(X12*'Points System'!$B$14) -> 634.125 | D12: =C12/G12 -> 0.96092649 | E12: =C12/F12 -> 4.150032723 | F12: 152.8 | G12: 659.91 | H12: 563.47 | I12: 157.07 | J12: 94.27 | K12: 32.33 | L12: 2.13 | M12: 28.75 | N12: 99.75 | O12: 87.75 | P12: 75.93 | Q12: 87.77 | R12: 6.88 | S12: 3.62 | T12: 7 | U12: 18.78 | V12: 0.279 | W12: 1.156 | X12: 280.32 | Y12: 0.379 | Z12: 0.497 | AA12: 0.876 | AB12: NL | AC12: 519203 | AD12: 1B | AE12: =IF(ISNA(VLOOKUP(A12,Rankings!$B$2:$H$659,7,FALSE)),"-",VLOOKUP(A12,Rankings!$B$2:$H$659,7,FALSE)) -> 0
A13: Freddie Freeman | B13: 1B | C13: =(G13*'Points System'!$B$16)+(H13*'Points System'!$B$17)+(I13*'Points System'!$B$15)+(J13*'Points System'!$B$2)+(K13*'Points System'!$B$3)+(L13*'Points System'!$B$4)+(M13*'Points System'!$B$5)+(N13*'Points System'!$B$6)+(O13*'Points System'!$B$7)+(P13*'Points System'!$B$8)+(Q13*'Points System'!$B$9)+(R13*'Points System'!$B$10)+(S13*'Points System'!$B$11)+(T13*'Points System'!$B$13)+(U13*'Points System'!$B$12)+(X13*'Points System'!$B$14) -> 630.39 | D13: =C13/G13 -> 0.9580395137 | E13: =C13/F13 -> 4.106775244 | F13: 153.5 | G13: 658 | H13: 575.2 | I13: 171.86 | J13: 102.6 | K13: 39.87 | L13: 3.6 | M13: 26.75 | N13: 94.81 | O13: 93 | P13: 77.43 | Q13: 129.46 | R13: 8.31 | S13: 3.23 | T13: 5 | U13: 7.56 | V13: 0.299 | W13: 1.672 | X13: 300.14 | Y13: 0.386 | Z13: 0.522 | AA13: 0.908 | AB13: NL | AC13: 518692 | AD13: 1B | AE13: =IF(ISNA(VLOOKUP(A13,Rankings!$B$2:$H$659,7,FALSE)),"-",VLOOKUP(A13,Rankings!$B$2:$H$659,7,FALSE)) -> 0
A14: Charlie Blackmon | B14: OF | C14: =(G14*'Points System'!$B$16)+(H14*'Points System'!$B$17)+(I14*'Points System'!$B$15)+(J14*'Points System'!$B$2)+(K14*'Points System'!$B$3)+(L14*'Points System'!$B$4)+(M14*'Points System'!$B$5)+(N14*'Points System'!$B$6)+(O14*'Points System'!$B$7)+(P14*'Points System'!$B$8)+(Q14*'Points System'!$B$9)+(R14*'Points System'!$B$10)+(S14*'Points System'!$B$11)+(T14*'Points System'!$B$13)+(U14*'Points System'!$B$12)+(X14*'Points System'!$B$14) -> 621.995 | D14: =C14/G14 -> 0.9382797061 | E14: =C14/F14 -> 4.132857143 | F14: 150.5 | G14: 662.91 | H14: 592.13 | I14: 175.36 | J14: 110.27 | K14: 30.67 | L14: 7.13 | M14: 27.81 | N14: 77.31 | O14: 107.81 | P14: 56 | Q14: 125.46 | R14: 11.94 | S14: 5.08 | T14: 2 | U14: 9 | V14: 0.296 | W14: 2.24 | X14: 304.24 | Y14: 0.365 | Z14: 0.514 | AA14: 0.879 | AB14: NL | AC14: 453568 | AD14: CF | AE14: =IF(ISNA(VLOOKUP(A14,Rankings!$B$2:$H$659,7,FALSE)),"-",VLOOKUP(A14,Rankings!$B$2:$H$659,7,FALSE)) -> 0
A15: Andrew Benintendi | B15: OF | C15: =(G15*'Points System'!$B$16)+(H15*'Points System'!$B$17)+(I15*'Points System'!$B$15)+(J15*'Points System'!$B$2)+(K15*'Points System'!$B$3)+(L15*'Points System'!$B$4)+(M15*'Points System'!$B$5)+(N15*'Points System'!$B$6)+(O15*'Points System'!$B$7)+(P15*'Points System'!$B$8)+(Q15*'Points System'!$B$9)+(R15*'Points System'!$B$10)+(S15*'Points System'!$B$11)+(T15*'Points System'!$B$13)+(U15*'Points System'!$B$12)+(X15*'Points System'!$B$14) -> 616.29 | D15: =C15/G15 -> 0.9229628742 | E15: =C15/F15 -> 4.105862758 | F15: 150.1 | G15: 667.73 | H15: 584.2 | I15: 166.5 | J15: 104 | K15: 38.53 | L15: 5.13 | M15: 18.81 | N15: 82.38 | O15: 99.25 | P15: 69.79 | Q15: 107 | R15: 19.31 | S15: 4.69 | T15: 6.5 | U15: 3.89 | V15: 0.285 | W15: 1.533 | X15: 271.69 | Y15: 0.362 | Z15: 0.465 | AA15: 0.827 | AB15: AL | AC15: 643217 | AD15: LF | AE15: =IF(ISNA(VLOOKUP(A15,Rankings!$B$2:$H$659,7,FALSE)),"-",VLOOKUP(A15,Rankings!$B$2:$H$659,7,FALSE)) -> 0
A16: Juan Soto | B16: OF | C16: =(G16*'Points System'!$B$16)+(H16*'Points System'!$B$17)+(I16*'Points System'!$B$15)+(J16*'Points System'!$B$2)+(K16*'Points System'!$B$3)+(L16*'Points System'!$B$4)+(M16*'Points System'!$B$5)+(N16*'Points System'!$B$6)+(O16*'Points System'!$B$7)+(P16*'Points System'!$B$8)+(Q16*'Points System'!$B$9)+(R16*'Points System'!$B$10)+(S16*'Points System'!$B$11)+(T16*'Points System'!$B$13)+(U16*'Points System'!$B$12)+(X16*'Points System'!$B$14) -> 616.175 | D16: =C16/G16 -> 0.9558435716 | E16: =C16/F16 -> 4.072538004 | F16: 151.3 | G16: 644.64 | H16: 543.93 | I16: 157.86 | J16: 95.93 | K16: 30.07 | L16: 2.6 | M16: 29.19 | N16: 95.56 | O16: 94.44 | P16: 93.57 | Q16: 128.15 | R16: 7.06 | S16: 2.92 | T16: 0 | U16: 0.89 | V16: 0.29 | W16: 1.37 | X16: 280.63 | Y16: 0.395 | Z16: 0.516 | AA16: 0.911 | AB16: NL | AC16: 665742 | AD16: LF | AE16: =IF(ISNA(VLOOKUP(A16,Rankings!$B$2:$H$659,7,FALSE)),"-",VLOOKUP(A16,Rankings!$B$2:$H$659,7,FALSE)) -> 0
A17: Anthony Rendon | B17: 3B | C17: =(G17*'Points System'!$B$16)+(H17*'Points System'!$B$17)+(I17*'Points System'!$B$15)+(J17*'Points System'!$B$2)+(K17*'Points System'!$B$3)+(L17*'Points System'!$B$4)+(M17*'Points System'!$B$5)+(N17*'Points System'!$B$6)+(O17*'Points System'!$B$7)+(P17*'Points System'!$B$8)+(Q17*'Points System'!$B$9)+(R17*'Points System'!$B$10)+(S17*'Points System'!$B$11)+(T17*'Points System'!$B$13)+(U17*'Points System'!$B$12)+(X17*'Points System'!$B$14) -> 613.08 | D17: =C17/G17 -> 0.9736992567 | E17: =C17/F17 -> 4.204938272 | F17: 145.8 | G17: 629.64 | H17: 550.47 | I17: 161.64 | J17: 94.87 | K17: 41 | L17: 2 | M17: 24 | N17: 93.31 | O17: 87.94 | P17: 66.21 | Q17: 92.31 | R17: 5 | S17: 2.08 | T17: 7.5 | U17: 6.22 | V17: 0.294 | W17: 1.394 | X17: 278.87 | Y17: 0.371 | Z17: 0.507 | AA17: 0.878 | AB17: NL | AC17: 543685 | AD17: 3B | AE17: =IF(ISNA(VLOOKUP(A17,Rankings!$B$2:$H$659,7,FALSE)),"-",VLOOKUP(A17,Rankings!$B$2:$H$659,7,FALSE)) -> 0
A18: Paul Goldschmidt | B18: 1B | C18: =(G18*'Points System'!$B$16)+(H18*'Points System'!$B$17)+(I18*'Points System'!$B$15)+(J18*'Points System'!$B$2)+(K18*'Points System'!$B$3)+(L18*'Points System'!$B$4)+(M18*'Points System'!$B$5)+(N18*'Points System'!$B$6)+(O18*'Points System'!$B$7)+(P18*'Points System'!$B$8)+(Q18*'Points System'!$B$9)+(R18*'Points System'!$B$10)+(S18*'Points System'!$B$11)+(T18*'Points System'!$B$13)+(U18*'Points System'!$B$12)+(X18*'Points System'!$B$14) -> 604.125 | D18: =C18/G18 -> 0.9090738093 | E18: =C18/F18 -> 3.917801556 | F18: 154.2 | G18: 664.55 | H18: 570.27 | I18: 162.14 | J18: 98.6 | K18: 31.33 | L18: 2.8 | M18: 30.19 | N18: 95.81 | O18: 97.38 | P18: 90.93 | Q18: 159.46 | R18: 10.44 | S18: 3.85 | T18: 1 | U18: 6.33 | V18: 0.284 | W18: 1.754 | X18: 290.42 | Y18: 0.388 | Z18: 0.509 | AA18: 0.897 | AB18: NL | AC18: 502671 | AD18: 1B | AE18: =IF(ISNA(VLOOKUP(A18,Rankings!$B$2:$H$659,7,FALSE)),"-",VLOOKUP(A18,Rankings!$B$2:$H$659,7,FALSE)) -> 0
A19: Trea Turner | B19: SS | C19: =(G19*'Points System'!$B$16)+(H19*'Points System'!$B$17)+(I19*'Points System'!$B$15)+(J19*'Points System'!$B$2)+(K19*'Points System'!$B$3)+(L19*'Points System'!$B$4)+(M19*'Points System'!$B$5)+(N19*'Points System'!$B$6)+(O19*'Points System'!$B$7)+(P19*'Points System'!$B$8)+(Q19*'Points System'!$B$9)+(R19*'Points System'!$B$10)+(S19*'Points System'!$B$11)+(T19*'Points System'!$B$13)+(U19*'Points System'!$B$12)+(X19*'Points System'!$B$14) -> 602.765 | D19: =C19/G19 -> 0.9070273117 | E19: =C19/F19 -> 3.978646865 | F19: 151.5 | G19: 664.55 | H19: 599.67 | I19: 168.36 | J19: 114.47 | K19: 29.47 | L19: 7 | M19: 18.13 | N19: 70.56 | O19: 97.13 | P19: 56.36 | Q19: 121.08 | R19: 43.06 | S19: 9.15 | T19: 0.5 | U19: 4.56 | V19: 0.281 | W19: 2.148 | X19: 266.93 | Y19: 0.347 | Z19: 0.445 | AA19: 0.792 | AB19: NL | AC19: 607208 | AD19: SS | AE19: =IF(ISNA(VLOOKUP(A19,Rankings!$B$2:$H$659,7,FALSE)),"-",VLOOKUP(A19,Rankings!$B$2:$H$659,7,FALSE)) -> 0
A20: Bryce Harper | B20: OF | C20: =(G20*'Points System'!$B$16)+(H20*'Points System'!$B$17)+(I20*'Points System'!$B$15)+(J20*'Points System'!$B$2)+(K20*'Points System'!$B$3)+(L20*'Points System'!$B$4)+(M20*'Points System'!$B$5)+(N20*'Points System'!$B$6)+(O20*'Points System'!$B$7)+(P20*'Points System'!$B$8)+(Q20*'Points System'!$B$9)+(R20*'Points System'!$B$10)+(S20*'Points System'!$B$11)+(T20*'Points System'!$B$13)+(U20*'Points System'!$B$12)+(X20*'Points System'!$B$14) -> 600.215 | D20: =C20/G20 -> 0.9400391543 | E20: =C20/F20 -> 4.086152904 | F20: 146.89 | G20: 638.5 | H20: 516.46 | I20: 137.08 | J20: 72.92 | K20: 29.23 | L20: 1.23 | M20: 34.14 | N20: 100.79 | O20: 99.14 | P20: 111.69 | Q20: 150 | R20: 11.21 | S20: 4 | T20: 6 | U20: 4 | V20: 0.265 | W20: 1.343 | X20: 271.63 | Y20: 0.396 | Z20: 0.526 | AA20: 0.922 | AB20: NL | AC20: 547180 | AD20: RF | AE20: =IF(ISNA(VLOOKUP(A20,Rankings!$B$2:$H$659,7,FALSE)),"-",VLOOKUP(A20,Rankings!$B$2:$H$659,7,FALSE)) -> 0
A21: Joey Votto | B21: 1B | C21: =(G21*'Points System'!$B$16)+(H21*'Points System'!$B$17)+(I21*'Points System'!$B$15)+(J21*'Points System'!$B$2)+(K21*'Points System'!$B$3)+(L21*'Points System'!$B$4)+(M21*'Points System'!$B$5)+(N21*'Points System'!$B$6)+(O21*'Points System'!$B$7)+(P21*'Points System'!$B$8)+(Q21*'Points System'!$B$9)+(R21*'Points System'!$B$10)+(S21*'Points System'!$B$11)+(T21*'Points System'!$B$13)+(U21*'Points System'!$B$12)+(X21*'Points System'!$B$14) -> 597.275 | D21: =C21/G21 -> 0.924703132 | E21: =C21/F21 -> 3.989812959 | F21: 149.7 | G21: 645.91 | H21: 534.8 | I21: 154 | J21: 100.87 | K21: 29.93 | L21: 2.07 | M21: 21.56 | N21: 82.5 | O21: 85 | P21: 110.29 | Q21: 103.23 | R21: 3.63 | S21: 0.69 | T21: 3.5 | U21: 7.44 | V21: 0.288 | W21: 0.936 | X21: 253.18 | Y21: 0.414 | Z21: 0.473 | AA21: 0.887 | AB21: NL | AC21: 458015 | AD21: 1B | AE21: =IF(ISNA(VLOOKUP(A21,Rankings!$B$2:$H$659,7,FALSE)),"-",VLOOKUP(A21,Rankings!$B$2:$H$659,7,FALSE)) -> 0
A22: Ronald Acuna | B22: OF | C22: =(G22*'Points System'!$B$16)+(H22*'Points System'!$B$17)+(I22*'Points System'!$B$15)+(J22*'Points System'!$B$2)+(K22*'Points System'!$B$3)+(L22*'Points System'!$B$4)+(M22*'Points System'!$B$5)+(N22*'Points System'!$B$6)+(O22*'Points System'!$B$7)+(P22*'Points System'!$B$8)+(Q22*'Points System'!$B$9)+(R22*'Points System'!$B$10)+(S22*'Points System'!$B$11)+(T22*'Points System'!$B$13)+(U22*'Points System'!$B$12)+(X22*'Points System'!$B$14) -> 592.755 | D22: =C22/G22 -> 0.9053150057 | E22: =C22/F22 -> 3.807766429 | F22: 155.67 | G22: 654.75 | H22: 586.71 | I22: 164 | J22: 98.5 | K22: 33 | L22: 4.67 | M22: 30.43 | N22: 89.43 | O22: 97.86 | P22: 61.5 | Q22: 163.67 | R22: 23.86 | S22: 7.6 | T22: 3.5 | U22: 6.33 | V22: 0.28 | W22: 2.661 | X22: 300.23 | Y22: 0.352 | Z22: 0.512 | AA22: 0.864 | AB22: NL | AC22: 660670 | AD22: LF | AE22: =IF(ISNA(VLOOKUP(A22,Rankings!$B$2:$H$659,7,FALSE)),"-",VLOOKUP(A22,Rankings!$B$2:$H$659,7,FALSE)) -> 0
A23: Xander Bogaerts | B23: SS | C23: =(G23*'Points System'!$B$16)+(H23*'Points System'!$B$17)+(I23*'Points System'!$B$15)+(J23*'Points System'!$B$2)+(K23*'Points System'!$B$3)+(L23*'Points System'!$B$4)+(M23*'Points System'!$B$5)+(N23*'Points System'!$B$6)+(O23*'Points System'!$B$7)+(P23*'Points System'!$B$8)+(Q23*'Points System'!$B$9)+(R23*'Points System'!$B$10)+(S23*'Points System'!$B$11)+(T23*'Points System'!$B$13)+(U23*'Points System'!$B$12)+(X23*'Points System'!$B$14) -> 586.095 | D23: =C23/G23 -> 0.9107217776 | E23: =C23/F23 -> 3.920367893 | F23: 149.5 | G23: 643.55 | H23: 572.6 | I23: 164.64 | J23: 101.47 | K23: 38.53 | L23: 3.4 | M23: 21.06 | N23: 91.94 | O23: 87.13 | P23: 58.14 | Q23: 112.85 | R23: 10.81 | S23: 2.62 | T23: 5.5 | U23: 6.11 | V23: 0.288 | W23: 1.941 | X23: 272.97 | Y23: 0.356 | Z23: 0.477 | AA23: 0.833 | AB23: AL | AC23: 593428 | AD23: SS | AE23: =IF(ISNA(VLOOKUP(A23,Rankings!$B$2:$H$659,7,FALSE)),"-",VLOOKUP(A23,Rankings!$B$2:$H$659,7,FALSE)) -> 0
A24: Rhys Hoskins | B24: OF | C24: =(G24*'Points System'!$B$16)+(H24*'Points System'!$B$17)+(I24*'Points System'!$B$15)+(J24*'Points System'!$B$2)+(K24*'Points System'!$B$3)+(L24*'Points System'!$B$4)+(M24*'Points System'!$B$5)+(N24*'Points System'!$B$6)+(O24*'Points System'!$B$7)+(P24*'Points System'!$B$8)+(Q24*'Points System'!$B$9)+(R24*'Points System'!$B$10)+(S24*'Points System'!$B$11)+(T24*'Points System'!$B$13)+(U24*'Points System'!$B$12)+(X24*'Points System'!$B$14) -> 580.83 | D24: =C24/G24 -> 0.8903519529 | E24: =C24/F24 -> 3.783908795 | F24: 153.5 | G24: 652.36 | H24: 557.27 | I24: 139.36 | J24: 70.87 | K24: 31.93 | L24: 1.13 | M24: 35.88 | N24: 105.13 | O24: 92.56 | P24: 84.79 | Q24: 145.62 | R24: 4.94 | S24: 2.38 | T24: 4.5 | U24: 8.67 | V24: 0.25 | W24: 1.717 | X24: 281.64 | Y24: 0.355 | Z24: 0.505 | AA24: 0.86 | AB24: NL | AC24: 656555 | AD24: LF | AE24: =IF(ISNA(VLOOKUP(A24,Rankings!$B$2:$H$659,7,FALSE)),"-",VLOOKUP(A24,Rankings!$B$2:$H$659,7,FALSE)) -> 0
A25: Giancarlo Stanton | B25: OF | C25: =(G25*'Points System'!$B$16)+(H25*'Points System'!$B$17)+(I25*'Points System'!$B$15)+(J25*'Points System'!$B$2)+(K25*'Points System'!$B$3)+(L25*'Points System'!$B$4)+(M25*'Points System'!$B$5)+(N25*'Points System'!$B$6)+(O25*'Points System'!$B$7)+(P25*'Points System'!$B$8)+(Q25*'Points System'!$B$9)+(R25*'Points System'!$B$10)+(S25*'Points System'!$B$11)+(T25*'Points System'!$B$13)+(U25*'Points System'!$B$12)+(X25*'Points System'!$B$14) -> 573.165 | D25: =C25/G25 -> 0.8978711072 | E25: =C25/F25 -> 3.864902225 | F25: 148.3 | G25: 638.36 | H25: 560.73 | I25: 148.57 | J25: 78.07 | K25: 28.07 | L25: 0.93 | M25: 42.44 | N25: 108.81 | O25: 97.75 | P25: 68.29 | Q25: 182.85 | R25: 3.69 | S25: 0.92 | T25: 7.5 | U25: 7 | V25: 0.265 | W25: 2.678 | X25: 306.76 | Y25: 0.348 | Z25: 0.547 | AA25: 0.895 | AB25: AL | AC25: 519317 | AD25: RF | AE25: =IF(ISNA(VLOOKUP(A25,Rankings!$B$2:$H$659,7,FALSE)),"-",VLOOKUP(A25,Rankings!$B$2:$H$659,7,FALSE)) -> 0
A26: Kris Bryant | B26: 3B/OF | C26: =(G26*'Points System'!$B$16)+(H26*'Points System'!$B$17)+(I26*'Points System'!$B$15)+(J26*'Points System'!$B$2)+(K26*'Points System'!$B$3)+(L26*'Points System'!$B$4)+(M26*'Points System'!$B$5)+(N26*'Points System'!$B$6)+(O26*'Points System'!$B$7)+(P26*'Points System'!$B$8)+(Q26*'Points System'!$B$9)+(R26*'Points System'!$B$10)+(S26*'Points System'!$B$11)+(T26*'Points System'!$B$13)+(U26*'Points System'!$B$12)+(X26*'Points System'!$B$14) -> 571.6 | D26: =C26/G26 -> 0.8751033406 | E26: =C26/F26 -> 3.831099196 | F26: 149.2 | G26: 653.18 | H26: 559.53 | I26: 155.71 | J26: 89.8 | K26: 35.6 | L26: 3.53 | M26: 27.44 | N26: 84.25 | O26: 97.06 | P26: 78 | Q26: 143 | R26: 5.88 | S26: 4.31 | T26: 4.5 | U26: 17.11 | V26: 0.278 | W26: 1.833 | X26: 281.35 | Y26: 0.381 | Z26: 0.503 | AA26: 0.884 | AB26: NL | AC26: 592178 | AD26: 3B | AE26: =IF(ISNA(VLOOKUP(A26,Rankings!$B$2:$H$659,7,FALSE)),"-",VLOOKUP(A26,Rankings!$B$2:$H$659,7,FALSE)) -> 0
A27: Jean Segura | B27: SS | C27: =(G27*'Points System'!$B$16)+(H27*'Points System'!$B$17)+(I27*'Points System'!$B$15)+(J27*'Points System'!$B$2)+(K27*'Points System'!$B$3)+(L27*'Points System'!$B$4)+(M27*'Points System'!$B$5)+(N27*'Points System'!$B$6)+(O27*'Points System'!$B$7)+(P27*'Points System'!$B$8)+(Q27*'Points System'!$B$9)+(R27*'Points System'!$B$10)+(S27*'Points System'!$B$11)+(T27*'Points System'!$B$13)+(U27*'Points System'!$B$12)+(X27*'Points System'!$B$14) -> 567.47 | D27: =C27/G27 -> 0.8801668916 | E27: =C27/F27 -> 3.834256757 | F27: 148 | G27: 644.73 | H27: 596.13 | I27: 174.57 | J27: 127.73 | K27: 30.8 | L27: 3.27 | M27: 13.63 | N27: 65 | O27: 89.75 | P27: 35.64 | Q27: 82.08 | R27: 22.13 | S27: 9.08 | T27: 4.5 | U27: 6.33 | V27: 0.293 | W27: 2.303 | X27: 253.66 | Y27: 0.337 | Z27: 0.426 | AA27: 0.763 | AB27: NL | AC27: 516416 | AD27: SS | AE27: =IF(ISNA(VLOOKUP(A27,Rankings!$B$2:$H$659,7,FALSE)),"-",VLOOKUP(A27,Rankings!$B$2:$H$659,7,FALSE)) -> 0
A28: Daniel Murphy | B28: 2B | C28: =(G28*'Points System'!$B$16)+(H28*'Points System'!$B$17)+(I28*'Points System'!$B$15)+(J28*'Points System'!$B$2)+(K28*'Points System'!$B$3)+(L28*'Points System'!$B$4)+(M28*'Points System'!$B$5)+(N28*'Points System'!$B$6)+(O28*'Points System'!$B$7)+(P28*'Points System'!$B$8)+(Q28*'Points System'!$B$9)+(R28*'Points System'!$B$10)+(S28*'Points System'!$B$11)+(T28*'Points System'!$B$13)+(U28*'Points System'!$B$12)+(X28*'Points System'!$B$14) -> 565.035 | D28: =C28/G28 -> 0.998612633 | E28: =C28/F28 -> 4.197882615 | F28: 134.6 | G28: 565.82 | H28: 516.07 | I28: 160.21 | J28: 101.4 | K28: 34.53 | L28: 2.73 | M28: 21.19 | N28: 78.06 | O28: 77.81 | P28: 39.86 | Q28: 70.15 | R28: 4.06 | S28: 0.85 | T28: 4 | U28: 3.44 | V28: 0.31 | W28: 1.76 | X28: 263.41 | Y28: 0.361 | Z28: 0.51 | AA28: 0.871 | AB28: NL | AC28: 502517 | AD28: 2B | AE28: =IF(ISNA(VLOOKUP(A28,Rankings!$B$2:$H$659,7,FALSE)),"-",VLOOKUP(A28,Rankings!$B$2:$H$659,7,FALSE)) -> 0
A29: Whit Merrifield | B29: 2B/OF | C29: =(G29*'Points System'!$B$16)+(H29*'Points System'!$B$17)+(I29*'Points System'!$B$15)+(J29*'Points System'!$B$2)+(K29*'Points System'!$B$3)+(L29*'Points System'!$B$4)+(M29*'Points System'!$B$5)+(N29*'Points System'!$B$6)+(O29*'Points System'!$B$7)+(P29*'Points System'!$B$8)+(Q29*'Points System'!$B$9)+(R29*'Points System'!$B$10)+(S29*'Points System'!$B$11)+(T29*'Points System'!$B$13)+(U29*'Points System'!$B$12)+(X29*'Points System'!$B$14) -> 563.93 | D29: =C29/G29 -> 0.8625156771 | E29: =C29/F29 -> 3.73216413 | F29: 151.1 | G29: 653.82 | H29: 596.47 | I29: 169.79 | J29: 116.2 | K29: 37.6 | L29: 3.73 | M29: 13 | N29: 64.75 | O29: 83.38 | P29: 48.93 | Q29: 106.54 | R29: 33.94 | S29: 8.38 | T29: 5.5 | U29: 5.33 | V29: 0.285 | W29: 2.177 | X29: 254.59 | Y29: 0.341 | Z29: 0.427 | AA29: 0.768 | AB29: AL | AC29: 593160 | AD29: 2B | AE29: =IF(ISNA(VLOOKUP(A29,Rankings!$B$2:$H$659,7,FALSE)),"-",VLOOKUP(A29,Rankings!$B$2:$H$659,7,FALSE)) -> 0
A30: Carlos Santana | B30: 1B | C30: =(G30*'Points System'!$B$16)+(H30*'Points System'!$B$17)+(I30*'Points System'!$B$15)+(J30*'Points System'!$B$2)+(K30*'Points System'!$B$3)+(L30*'Points System'!$B$4)+(M30*'Points System'!$B$5)+(N30*'Points System'!$B$6)+(O30*'Points System'!$B$7)+(P30*'Points System'!$B$8)+(Q30*'Points System'!$B$9)+(R30*'Points System'!$B$10)+(S30*'Points System'!$B$11)+(T30*'Points System'!$B$13)+(U30*'Points System'!$B$12)+(X30*'Points System'!$B$14) -> 560.43 | D30: =C30/G30 -> 0.8725769536 | E30: =C30/F30 -> 3.684615385 | F30: 152.1 | G30: 642.27 | H30: 540.13 | I30: 132.93 | J30: 78.33 | K30: 29.47 | L30: 2.13 | M30: 23.88 | N30: 84.81 | O30: 82.19 | P30: 96.5 | Q30: 91 | R30: 3.56 | S30: 1.46 | T30: 6.5 | U30: 2.89 | V30: 0.246 | W30: 0.943 | X30: 239.18 | Y30: 0.36 | Z30: 0.443 | AA30: 0.803 | AB30: AL | AC30: 467793 | AD30: 1B | AE30: =IF(ISNA(VLOOKUP(A30,Rankings!$B$2:$H$659,7,FALSE)),"-",VLOOKUP(A30,Rankings!$B$2:$H$659,7,FALSE)) -> 0
A31: Trevor Story | B31: SS | C31: =(G31*'Points System'!$B$16)+(H31*'Points System'!$B$17)+(I31*'Points System'!$B$15)+(J31*'Points System'!$B$2)+(K31*'Points System'!$B$3)+(L31*'Points System'!$B$4)+(M31*'Points System'!$B$5)+(N31*'Points System'!$B$6)+(O31*'Points System'!$B$7)+(P31*'Points System'!$B$8)+(Q31*'Points System'!$B$9)+(R31*'Points System'!$B$10)+(S31*'Points System'!$B$11)+(T31*'Points System'!$B$13)+(U31*'Points System'!$B$12)+(X31*'Points System'!$B$14) -> 559.65 | D31: =C31/G31 -> 0.8896183376 | E31: =C31/F31 -> 3.76108871 | F31: 148.8 | G31: 629.09 | H31: 568.6 | I31: 155 | J31: 80.67 | K31: 36.67 | L31: 4.67 | M31: 33 | N31: 98.94 | O31: 85.81 | P31: 50.21 | Q31: 169.92 | R31: 18.88 | S31: 5.23 | T31: 3 | U31: 5.44 | V31: 0.273 | W31: 3.384 | X31: 300.02 | Y31: 0.336 | Z31: 0.528 | AA31: 0.864 | AB31: NL | AC31: 596115 | AD31: SS | AE31: =IF(ISNA(VLOOKUP(A31,Rankings!$B$2:$H$659,7,FALSE)),"-",VLOOKUP(A31,Rankings!$B$2:$H$659,7,FALSE)) -> 0
A32: Aaron Judge | B32: OF | C32: =(G32*'Points System'!$B$16)+(H32*'Points System'!$B$17)+(I32*'Points System'!$B$15)+(J32*'Points System'!$B$2)+(K32*'Points System'!$B$3)+(L32*'Points System'!$B$4)+(M32*'Points System'!$B$5)+(N32*'Points System'!$B$6)+(O32*'Points System'!$B$7)+(P32*'Points System'!$B$8)+(Q32*'Points System'!$B$9)+(R32*'Points System'!$B$10)+(S32*'Points System'!$B$11)+(T32*'Points System'!$B$13)+(U32*'Points System'!$B$12)+(X32*'Points System'!$B$14) -> 557.365 | D32: =C32/G32 -> 0.8812791525 | E32: =C32/F32 -> 3.835960083 | F32: 145.3 | G32: 632.45 | H32: 527.13 | I32: 140.71 | J32: 76.93 | K32: 24.4 | L32: 1.2 | M32: 38.5 | N32: 96.63 | O32: 102.75 | P32: 98 | Q32: 190.77 | R32: 7.13 | S32: 3.23 | T32: 5.5 | U32: 5.67 | V32: 0.267 | W32: 1.947 | X32: 283.33 | Y32: 0.384 | Z32: 0.537 | AA32: 0.921 | AB32: AL | AC32: 592450 | AD32: RF | AE32: =IF(ISNA(VLOOKUP(A32,Rankings!$B$2:$H$659,7,FALSE)),"-",VLOOKUP(A32,Rankings!$B$2:$H$659,7,FALSE)) -> 0
A33: Javier Baez | B33: 2B/SS/3B | C33: =(G33*'Points System'!$B$16)+(H33*'Points System'!$B$17)+(I33*'Points System'!$B$15)+(J33*'Points System'!$B$2)+(K33*'Points System'!$B$3)+(L33*'Points System'!$B$4)+(M33*'Points System'!$B$5)+(N33*'Points System'!$B$6)+(O33*'Points System'!$B$7)+(P33*'Points System'!$B$8)+(Q33*'Points System'!$B$9)+(R33*'Points System'!$B$10)+(S33*'Points System'!$B$11)+(T33*'Points System'!$B$13)+(U33*'Points System'!$B$12)+(X33*'Points System'!$B$14) -> 555 | D33: =C33/G33 -> 0.8721478408 | E33: =C33/F33 -> 3.660949868 | F33: 151.6 | G33: 636.36 | H33: 588.53 | I33: 163.36 | J33: 94.2 | K33: 33.33 | L33: 5.8 | M33: 30.5 | N33: 97.19 | O33: 89 | P33: 33.21 | Q33: 163.23 | R33: 17.56 | S33: 6.38 | T33: 3.5 | U33: 5.56 | V33: 0.278 | W33: 4.915 | X33: 300.26 | Y33: 0.32 | Z33: 0.51 | AA33: 0.83 | AB33: NL | AC33: 595879 | AD33: 2B | AE33: =IF(ISNA(VLOOKUP(A33,Rankings!$B$2:$H$659,7,FALSE)),"-",VLOOKUP(A33,Rankings!$B$2:$H$659,7,FALSE)) -> 0
A34: George Springer | B34: OF | C34: =(G34*'Points System'!$B$16)+(H34*'Points System'!$B$17)+(I34*'Points System'!$B$15)+(J34*'Points System'!$B$2)+(K34*'Points System'!$B$3)+(L34*'Points System'!$B$4)+(M34*'Points System'!$B$5)+(N34*'Points System'!$B$6)+(O34*'Points System'!$B$7)+(P34*'Points System'!$B$8)+(Q34*'Points System'!$B$9)+(R34*'Points System'!$B$10)+(S34*'Points System'!$B$11)+(T34*'Points System'!$B$13)+(U34*'Points System'!$B$12)+(X34*'Points System'!$B$14) -> 554.2 | D34: =C34/G34 -> 0.8562114728 | E34: =C34/F34 -> 3.808934708 | F34: 145.5 | G34: 647.27 | H34: 568.2 | I34: 152 | J34: 96.4 | K34: 27.8 | L34: 1.27 | M34: 26.75 | N34: 77.88 | O34: 103.25 | P34: 67.57 | Q34: 128.69 | R34: 7.13 | S34: 4.69 | T34: 2.5 | U34: 7.56 | V34: 0.268 | W34: 1.905 | X34: 262.81 | Y34: 0.352 | Z34: 0.463 | AA34: 0.815 | AB34: AL | AC34: 543807 | AD34: CF | AE34: =IF(ISNA(VLOOKUP(A34,Rankings!$B$2:$H$659,7,FALSE)),"-",VLOOKUP(A34,Rankings!$B$2:$H$659,7,FALSE)) -> 0
A35: Marcell Ozuna | B35: OF | C35: =(G35*'Points System'!$B$16)+(H35*'Points System'!$B$17)+(I35*'Points System'!$B$15)+(J35*'Points System'!$B$2)+(K35*'Points System'!$B$3)+(L35*'Points System'!$B$4)+(M35*'Points System'!$B$5)+(N35*'Points System'!$B$6)+(O35*'Points System'!$B$7)+(P35*'Points System'!$B$8)+(Q35*'Points System'!$B$9)+(R35*'Points System'!$B$10)+(S35*'Points System'!$B$11)+(T35*'Points System'!$B$13)+(U35*'Points System'!$B$12)+(X35*'Points System'!$B$14) -> 553.125 | D35: =C35/G35 -> 0.8862904389 | E35: =C35/F35 -> 3.734807562 | F35: 148.1 | G35: 624.09 | H35: 575.6 | I35: 163.5 | J35: 110 | K35: 24.47 | L35: 2.93 | M35: 26.81 | N35: 94.94 | O35: 78.56 | P35: 46.07 | Q35: 120.62 | R35: 2.56 | S35: 1.54 | T35: 3.5 | U35: 2.67 | V35: 0.284 | W35: 2.618 | X35: 274.97 | Y35: 0.338 | Z35: 0.478 | AA35: 0.816 | AB35: NL | AC35: 542303 | AD35: LF | AE35: =IF(ISNA(VLOOKUP(A35,Rankings!$B$2:$H$659,7,FALSE)),"-",VLOOKUP(A35,Rankings!$B$2:$H$659,7,FALSE)) -> 0
A36: Nelson Cruz | B36: DH | C36: =(G36*'Points System'!$B$16)+(H36*'Points System'!$B$17)+(I36*'Points System'!$B$15)+(J36*'Points System'!$B$2)+(K36*'Points System'!$B$3)+(L36*'Points System'!$B$4)+(M36*'Points System'!$B$5)+(N36*'Points System'!$B$6)+(O36*'Points System'!$B$7)+(P36*'Points System'!$B$8)+(Q36*'Points System'!$B$9)+(R36*'Points System'!$B$10)+(S36*'Points System'!$B$11)+(T36*'Points System'!$B$13)+(U36*'Points System'!$B$12)+(X36*'Points System'!$B$14) -> 552.685 | D36: =C36/G36 -> 0.9155871049 | E36: =C36/F36 -> 3.8568388 | F36: 143.3 | G36: 603.64 | H36: 529.6 | I36: 145.57 | J36: 85.07 | K36: 23.27 | L36: 1 | M36: 35.25 | N36: 103.25 | O36: 82.44 | P36: 57.29 | Q36: 130.46 | R36: 1.06 | S36: 0.23 | T36: 3.5 | U36: 12.11 | V36: 0.275 | W36: 2.277 | X36: 275.61 | Y36: 0.357 | Z36: 0.52 | AA36: 0.877 | AB36: AL | AC36: 443558 | AD36: DH | AE36: =IF(ISNA(VLOOKUP(A36,Rankings!$B$2:$H$659,7,FALSE)),"-",VLOOKUP(A36,Rankings!$B$2:$H$659,7,FALSE)) -> 0
A37: Cody Bellinger | B37: 1B/OF | C37: =(G37*'Points System'!$B$16)+(H37*'Points System'!$B$17)+(I37*'Points System'!$B$15)+(J37*'Points System'!$B$2)+(K37*'Points System'!$B$3)+(L37*'Points System'!$B$4)+(M37*'Points System'!$B$5)+(N37*'Points System'!$B$6)+(O37*'Points System'!$B$7)+(P37*'Points System'!$B$8)+(Q37*'Points System'!$B$9)+(R37*'Points System'!$B$10)+(S37*'Points System'!$B$11)+(T37*'Points System'!$B$13)+(U37*'Points System'!$B$12)+(X37*'Points System'!$B$14) -> 552.535 | D37: =C37/G37 -> 0.881362556 | E37: =C37/F37 -> 3.639888011 | F37: 151.8 | G37: 626.91 | H37: 549.6 | I37: 144.14 | J37: 79.93 | K37: 28 | L37: 5.27 | M37: 31.13 | N37: 92.5 | O37: 87.56 | P37: 69.71 | Q37: 149.23 | R37: 12.38 | S37: 2.54 | T37: 3 | U37: 3.11 | V37: 0.262 | W37: 2.141 | X37: 276.26 | Y37: 0.347 | Z37: 0.503 | AA37: 0.85 | AB37: NL | AC37: 641355 | AD37: 1B | AE37: =IF(ISNA(VLOOKUP(A37,Rankings!$B$2:$H$659,7,FALSE)),"-",VLOOKUP(A37,Rankings!$B$2:$H$659,7,FALSE)) -> 0
A38: Ozzie Albies | B38: 2B | C38: =(G38*'Points System'!$B$16)+(H38*'Points System'!$B$17)+(I38*'Points System'!$B$15)+(J38*'Points System'!$B$2)+(K38*'Points System'!$B$3)+(L38*'Points System'!$B$4)+(M38*'Points System'!$B$5)+(N38*'Points System'!$B$6)+(O38*'Points System'!$B$7)+(P38*'Points System'!$B$8)+(Q38*'Points System'!$B$9)+(R38*'Points System'!$B$10)+(S38*'Points System'!$B$11)+(T38*'Points System'!$B$13)+(U38*'Points System'!$B$12)+(X38*'Points System'!$B$14) -> 551.855 | D38: =C38/G38 -> 0.8534192132 | E38: =C38/F38 -> 3.633015142 | F38: 151.9 | G38: 646.64 | H38: 593.47 | I38: 160.36 | J38: 100.13 | K38: 34.47 | L38: 6.4 | M38: 20.19 | N38: 73.56 | O38: 87.56 | P38: 40.21 | Q38: 109.31 | R38: 16.44 | S38: 4.31 | T38: 3 | U38: 5.22 | V38: 0.27 | W38: 2.718 | X38: 269.03 | Y38: 0.321 | Z38: 0.453 | AA38: 0.774 | AB38: NL | AC38: 645277 | AD38: 2B | AE38: =IF(ISNA(VLOOKUP(A38,Rankings!$B$2:$H$659,7,FALSE)),"-",VLOOKUP(A38,Rankings!$B$2:$H$659,7,FALSE)) -> 0
A39: Robinson Cano | B39: 2B | C39: =(G39*'Points System'!$B$16)+(H39*'Points System'!$B$17)+(I39*'Points System'!$B$15)+(J39*'Points System'!$B$2)+(K39*'Points System'!$B$3)+(L39*'Points System'!$B$4)+(M39*'Points System'!$B$5)+(N39*'Points System'!$B$6)+(O39*'Points System'!$B$7)+(P39*'Points System'!$B$8)+(Q39*'Points System'!$B$9)+(R39*'Points System'!$B$10)+(S39*'Points System'!$B$11)+(T39*'Points System'!$B$13)+(U39*'Points System'!$B$12)+(X39*'Points System'!$B$14) -> 550.605 | D39: =C39/G39 -> 0.9211600555 | E39: =C39/F39 -> 3.893953324 | F39: 141.4 | G39: 597.73 | H39: 557.53 | I39: 155.93 | J39: 103.67 | K39: 31.67 | L39: 0.87 | M39: 21.63 | N39: 84.31 | O39: 76.69 | P39: 51 | Q39: 85 | R39: 0.94 | S39: 0.69 | T39: 3.5 | U39: 5.44 | V39: 0.28 | W39: 1.667 | X39: 256.14 | Y39: 0.344 | Z39: 0.459 | AA39: 0.803 | AB39: NL | AC39: 429664 | AD39: 2B | AE39: =IF(ISNA(VLOOKUP(A39,Rankings!$B$2:$H$659,7,FALSE)),"-",VLOOKUP(A39,Rankings!$B$2:$H$659,7,FALSE)) -> 0
A40: Eddie Rosario | B40: OF | C40: =(G40*'Points System'!$B$16)+(H40*'Points System'!$B$17)+(I40*'Points System'!$B$15)+(J40*'Points System'!$B$2)+(K40*'Points System'!$B$3)+(L40*'Points System'!$B$4)+(M40*'Points System'!$B$5)+(N40*'Points System'!$B$6)+(O40*'Points System'!$B$7)+(P40*'Points System'!$B$8)+(Q40*'Points System'!$B$9)+(R40*'Points System'!$B$10)+(S40*'Points System'!$B$11)+(T40*'Points System'!$B$13)+(U40*'Points System'!$B$12)+(X40*'Points System'!$B$14) -> 548.89 | D40: =C40/G40 -> 0.8798852233 | E40: =C40/F40 -> 3.731407206 | F40: 147.1 | G40: 623.82 | H40: 579.73 | I40: 162.64 | J40: 102.6 | K40: 32.33 | L40: 2.87 | M40: 25.56 | N40: 83 | O40: 85.56 | P40: 33.71 | Q40: 116.54 | R40: 8.88 | S40: 3.69 | T40: 3 | U40: 0.89 | V40: 0.281 | W40: 3.457 | X40: 278.11 | Y40: 0.32 | Z40: 0.48 | AA40: 0.8 | AB40: AL | AC40: 592696 | AD40: LF | AE40: =IF(ISNA(VLOOKUP(A40,Rankings!$B$2:$H$659,7,FALSE)),"-",VLOOKUP(A40,Rankings!$B$2:$H$659,7,FALSE)) -> 0
A41: Nicholas Castellanos | B41: OF | C41: =(G41*'Points System'!$B$16)+(H41*'Points System'!$B$17)+(I41*'Points System'!$B$15)+(J41*'Points System'!$B$2)+(K41*'Points System'!$B$3)+(L41*'Points System'!$B$4)+(M41*'Points System'!$B$5)+(N41*'Points System'!$B$6)+(O41*'Points System'!$B$7)+(P41*'Points System'!$B$8)+(Q41*'Points System'!$B$9)+(R41*'Points System'!$B$10)+(S41*'Points System'!$B$11)+(T41*'Points System'!$B$13)+(U41*'Points System'!$B$12)+(X41*'Points System'!$B$14) -> 547.66 | D41: =C41/G41 -> 0.8490852713 | E41: =C41/F41 -> 3.593569554 | F41: 152.4 | G41: 645 | H41: 587.67 | I41: 165.29 | J41: 97.47 | K41: 38.67 | L41: 5.33 | M41: 25.06 | N41: 89.94 | O41: 81.5 | P41: 48 | Q41: 143.15 | R41: 3.06 | S41: 2.08 | T41: 3.5 | U41: 5.44 | V41: 0.281 | W41: 2.982 | X41: 291.04 | Y41: 0.339 | Z41: 0.495 | AA41: 0.834 | AB41: AL | AC41: 592206 | AD41: RF | AE41: =IF(ISNA(VLOOKUP(A41,Rankings!$B$2:$H$659,7,FALSE)),"-",VLOOKUP(A41,Rankings!$B$2:$H$659,7,FALSE)) -> 0
A42: Jose Abreu | B42: 1B | C42: =(G42*'Points System'!$B$16)+(H42*'Points System'!$B$17)+(I42*'Points System'!$B$15)+(J42*'Points System'!$B$2)+(K42*'Points System'!$B$3)+(L42*'Points System'!$B$4)+(M42*'Points System'!$B$5)+(N42*'Points System'!$B$6)+(O42*'Points System'!$B$7)+(P42*'Points System'!$B$8)+(Q42*'Points System'!$B$9)+(R42*'Points System'!$B$10)+(S42*'Points System'!$B$11)+(T42*'Points System'!$B$13)+(U42*'Points System'!$B$12)+(X42*'Points System'!$B$14) -> 546.325 | D42: =C42/G42 -> 0.8868912338 | E42: =C42/F42 -> 3.793923611 | F42: 144 | G42: 616 | H42: 561.33 | I42: 158.21 | J42: 93.93 | K42: 35.73 | L42: 2.2 | M42: 26.56 | N42: 91.56 | O42: 79.25 | P42: 39.79 | Q42: 116.92 | R42: 2.31 | S42: 0.54 | T42: 6 | U42: 12.56 | V42: 0.282 | W42: 2.938 | X42: 278.23 | Y42: 0.34 | Z42: 0.496 | AA42: 0.836 | AB42: AL | AC42: 547989 | AD42: 1B | AE42: =IF(ISNA(VLOOKUP(A42,Rankings!$B$2:$H$659,7,FALSE)),"-",VLOOKUP(A42,Rankings!$B$2:$H$659,7,FALSE)) -> 0
A43: Vladimir Guerrero | B43: 3B | C43: =(G43*'Points System'!$B$16)+(H43*'Points System'!$B$17)+(I43*'Points System'!$B$15)+(J43*'Points System'!$B$2)+(K43*'Points System'!$B$3)+(L43*'Points System'!$B$4)+(M43*'Points System'!$B$5)+(N43*'Points System'!$B$6)+(O43*'Points System'!$B$7)+(P43*'Points System'!$B$8)+(Q43*'Points System'!$B$9)+(R43*'Points System'!$B$10)+(S43*'Points System'!$B$11)+(T43*'Points System'!$B$13)+(U43*'Points System'!$B$12)+(X43*'Points System'!$B$14) -> 543.235 | D43: =C43/G43 -> 1.005804481 | E43: =C43/F43 -> 4.683060345 | F43: 116 | G43: 540.1 | H43: 500.71 | I43: 149.62 | J43: 93.86 | K43: 31.79 | L43: 1.93 | M43: 22.73 | N43: 80.2 | O43: 73.67 | P43: 42.92 | Q43: 73.42 | R43: 4.6 | S43: 2.17 | T43: 0 | U43: 4.88 | V43: 0.299 | W43: 1.711 | X43: 254.15 | Y43: 0.36 | Z43: 0.508 | AA43: 0.868 | AB43: AL | AC43: 665489 | AD43: 3B | AE43: =IF(ISNA(VLOOKUP(A43,Rankings!$B$2:$H$659,7,FALSE)),"-",VLOOKUP(A43,Rankings!$B$2:$H$659,7,FALSE)) -> 0
A44: Matt Carpenter | B44: 1B/3B | C44: =(G44*'Points System'!$B$16)+(H44*'Points System'!$B$17)+(I44*'Points System'!$B$15)+(J44*'Points System'!$B$2)+(K44*'Points System'!$B$3)+(L44*'Points System'!$B$4)+(M44*'Points System'!$B$5)+(N44*'Points System'!$B$6)+(O44*'Points System'!$B$7)+(P44*'Points System'!$B$8)+(Q44*'Points System'!$B$9)+(R44*'Points System'!$B$10)+(S44*'Points System'!$B$11)+(T44*'Points System'!$B$13)+(U44*'Points System'!$B$12)+(X44*'Points System'!$B$14) -> 538.815 | D44: =C44/G44 -> 0.8334983371 | E44: =C44/F44 -> 3.660427989 | F44: 147.2 | G44: 646.45 | H44: 535.27 | I44: 136.29 | J44: 72.13 | K44: 35 | L44: 1.67 | M44: 27.63 | N44: 76.44 | O44: 97.38 | P44: 97.43 | Q44: 143.77 | R44: 3.56 | S44: 1.77 | T44: 4 | U44: 6.67 | V44: 0.255 | W44: 1.476 | X44: 257.66 | Y44: 0.374 | Z44: 0.481 | AA44: 0.855 | AB44: NL | AC44: 572761 | AD44: 1B | AE44: =IF(ISNA(VLOOKUP(A44,Rankings!$B$2:$H$659,7,FALSE)),"-",VLOOKUP(A44,Rankings!$B$2:$H$659,7,FALSE)) -> 0
A45: Michael Brantley | B45: OF | C45: =(G45*'Points System'!$B$16)+(H45*'Points System'!$B$17)+(I45*'Points System'!$B$15)+(J45*'Points System'!$B$2)+(K45*'Points System'!$B$3)+(L45*'Points System'!$B$4)+(M45*'Points System'!$B$5)+(N45*'Points System'!$B$6)+(O45*'Points System'!$B$7)+(P45*'Points System'!$B$8)+(Q45*'Points System'!$B$9)+(R45*'Points System'!$B$10)+(S45*'Points System'!$B$11)+(T45*'Points System'!$B$13)+(U45*'Points System'!$B$12)+(X45*'Points System'!$B$14) -> 538.58 | D45: =C45/G45 -> 0.9403732998 | E45: =C45/F45 -> 3.995400593 | F45: 134.8 | G45: 572.73 | H45: 513.93 | I45: 153.71 | J45: 105.27 | K45: 31 | L45: 1.93 | M45: 15.06 | N45: 71.06 | O45: 74.5 | P45: 46.79 | Q45: 62.69 | R45: 11.38 | S45: 2.69 | T45: 5.5 | U45: 4.22 | V45: 0.299 | W45: 1.34 | X45: 233.3 | Y45: 0.359 | Z45: 0.454 | AA45: 0.813 | AB45: AL | AC45: 488726 | AD45: LF | AE45: =IF(ISNA(VLOOKUP(A45,Rankings!$B$2:$H$659,7,FALSE)),"-",VLOOKUP(A45,Rankings!$B$2:$H$659,7,FALSE)) -> 0
A46: Khris Davis | B46: DH | C46: =(G46*'Points System'!$B$16)+(H46*'Points System'!$B$17)+(I46*'Points System'!$B$15)+(J46*'Points System'!$B$2)+(K46*'Points System'!$B$3)+(L46*'Points System'!$B$4)+(M46*'Points System'!$B$5)+(N46*'Points System'!$B$6)+(O46*'Points System'!$B$7)+(P46*'Points System'!$B$8)+(Q46*'Points System'!$B$9)+(R46*'Points System'!$B$10)+(S46*'Points System'!$B$11)+(T46*'Points System'!$B$13)+(U46*'Points System'!$B$12)+(X46*'Points System'!$B$14) -> 537.615 | D46: =C46/G46 -> 0.8456656128 | E46: =C46/F46 -> 3.562723658 | F46: 150.9 | G46: 635.73 | H46: 562.13 | I46: 138.21 | J46: 68.93 | K46: 26.8 | L46: 1.13 | M46: 41.44 | N46: 111.19 | O46: 91 | P46: 61.57 | Q46: 177.85 | R46: 1.19 | S46: 0.69 | T46: 6.5 | U46: 9.11 | V46: 0.246 | W46: 2.889 | X46: 291.68 | Y46: 0.327 | Z46: 0.519 | AA46: 0.846 | AB46: AL | AC46: 501981 | AD46: DH | AE46: =IF(ISNA(VLOOKUP(A46,Rankings!$B$2:$H$659,7,FALSE)),"-",VLOOKUP(A46,Rankings!$B$2:$H$659,7,FALSE)) -> 0
A47: Lorenzo Cain | B47: OF | C47: =(G47*'Points System'!$B$16)+(H47*'Points System'!$B$17)+(I47*'Points System'!$B$15)+(J47*'Points System'!$B$2)+(K47*'Points System'!$B$3)+(L47*'Points System'!$B$4)+(M47*'Points System'!$B$5)+(N47*'Points System'!$B$6)+(O47*'Points System'!$B$7)+(P47*'Points System'!$B$8)+(Q47*'Points System'!$B$9)+(R47*'Points System'!$B$10)+(S47*'Points System'!$B$11)+(T47*'Points System'!$B$13)+(U47*'Points System'!$B$12)+(X47*'Points System'!$B$14) -> 537.525 | D47: =C47/G47 -> 0.8494121551 | E47: =C47/F47 -> 3.730222068 | F47: 144.1 | G47: 632.82 | H47: 559 | I47: 163.86 | J47: 120.93 | K47: 27 | L47: 3.07 | M47: 12.5 | N47: 52.88 | O47: 87.38 | P47: 63.14 | Q47: 101.62 | R47: 24.69 | S47: 5.54 | T47: 2 | U47: 6.56 | V47: 0.293 | W47: 1.609 | X47: 234.14 | Y47: 0.37 | Z47: 0.419 | AA47: 0.789 | AB47: NL | AC47: 456715 | AD47: CF | AE47: =IF(ISNA(VLOOKUP(A47,Rankings!$B$2:$H$659,7,FALSE)),"-",VLOOKUP(A47,Rankings!$B$2:$H$659,7,FALSE)) -> 0
A48: Justin Turner | B48: 3B | C48: =(G48*'Points System'!$B$16)+(H48*'Points System'!$B$17)+(I48*'Points System'!$B$15)+(J48*'Points System'!$B$2)+(K48*'Points System'!$B$3)+(L48*'Points System'!$B$4)+(M48*'Points System'!$B$5)+(N48*'Points System'!$B$6)+(O48*'Points System'!$B$7)+(P48*'Points System'!$B$8)+(Q48*'Points System'!$B$9)+(R48*'Points System'!$B$10)+(S48*'Points System'!$B$11)+(T48*'Points System'!$B$13)+(U48*'Points System'!$B$12)+(X48*'Points System'!$B$14) -> 536.91 | D48: =C48/G48 -> 0.9322810856 | E48: =C48/F48 -> 3.974167283 | F48: 135.1 | G48: 575.91 | H48: 497 | I48: 147 | J48: 92.8 | K48: 33.6 | L48: 1.13 | M48: 19.69 | N48: 76.38 | O48: 76.13 | P48: 57.71 | Q48: 77.46 | R48: 4.31 | S48: 1.31 | T48: 3.5 | U48: 14.11 | V48: 0.296 | W48: 1.342 | X48: 242.15 | Y48: 0.382 | Z48: 0.487 | AA48: 0.869 | AB48: NL | AC48: 457759 | AD48: 3B | AE48: =IF(ISNA(VLOOKUP(A48,Rankings!$B$2:$H$659,7,FALSE)),"-",VLOOKUP(A48,Rankings!$B$2:$H$659,7,FALSE)) -> 0
A49: Corey Seager | B49: SS | C49: =(G49*'Points System'!$B$16)+(H49*'Points System'!$B$17)+(I49*'Points System'!$B$15)+(J49*'Points System'!$B$2)+(K49*'Points System'!$B$3)+(L49*'Points System'!$B$4)+(M49*'Points System'!$B$5)+(N49*'Points System'!$B$6)+(O49*'Points System'!$B$7)+(P49*'Points System'!$B$8)+(Q49*'Points System'!$B$9)+(R49*'Points System'!$B$10)+(S49*'Points System'!$B$11)+(T49*'Points System'!$B$13)+(U49*'Points System'!$B$12)+(X49*'Points System'!$B$14) -> 535.12 | D49: =C49/G49 -> 0.8721701573 | E49: =C49/F49 -> 3.795177305 | F49: 141 | G49: 613.55 | H49: 547.73 | I49: 155.5 | J49: 101.07 | K49: 32.67 | L49: 2.27 | M49: 21.38 | N49: 76.75 | O49: 86.69 | P49: 58.29 | Q49: 115.08 | R49: 3.44 | S49: 1.62 | T49: 4 | U49: 6 | V49: 0.284 | W49: 1.974 | X49: 258.74 | Y49: 0.357 | Z49: 0.472 | AA49: 0.829 | AB49: NL | AC49: 608369 | AD49: SS | AE49: =IF(ISNA(VLOOKUP(A49,Rankings!$B$2:$H$659,7,FALSE)),"-",VLOOKUP(A49,Rankings!$B$2:$H$659,7,FALSE)) -> 0
A50: Miguel Andujar | B50: 3B | C50: =(G50*'Points System'!$B$16)+(H50*'Points System'!$B$17)+(I50*'Points System'!$B$15)+(J50*'Points System'!$B$2)+(K50*'Points System'!$B$3)+(L50*'Points System'!$B$4)+(M50*'Points System'!$B$5)+(N50*'Points System'!$B$6)+(O50*'Points System'!$B$7)+(P50*'Points System'!$B$8)+(Q50*'Points System'!$B$9)+(R50*'Points System'!$B$10)+(S50*'Points System'!$B$11)+(T50*'Points System'!$B$13)+(U50*'Points System'!$B$12)+(X50*'Points System'!$B$14) -> 534.395 | D50: =C50/G50 -> 0.9156243575 | E50: =C50/F50 -> 3.737027972 | F50: 143 | G50: 583.64 | H50: 548.07 | I50: 154.07 | J50: 91.6 | K50: 37.6 | L50: 1.93 | M50: 24 | N50: 85.81 | O50: 76.13 | P50: 28.64 | Q50: 93.77 | R50: 3.13 | S50: 1.77 | T50: 4 | U50: 5 | V50: 0.281 | W50: 3.274 | X50: 268.59 | Y50: 0.32 | Z50: 0.49 | AA50: 0.81 | AB50: AL | AC50: 609280 | AD50: 3B | AE50: =IF(ISNA(VLOOKUP(A50,Rankings!$B$2:$H$659,7,FALSE)),"-",VLOOKUP(A50,Rankings!$B$2:$H$659,7,FALSE)) -> 0
A51: Mitch Haniger | B51: OF | C51: =(G51*'Points System'!$B$16)+(H51*'Points System'!$B$17)+(I51*'Points System'!$B$15)+(J51*'Points System'!$B$2)+(K51*'Points System'!$B$3)+(L51*'Points System'!$B$4)+(M51*'Points System'!$B$5)+(N51*'Points System'!$B$6)+(O51*'Points System'!$B$7)+(P51*'Points System'!$B$8)+(Q51*'Points System'!$B$9)+(R51*'Points System'!$B$10)+(S51*'Points System'!$B$11)+(T51*'Points System'!$B$13)+(U51*'Points System'!$B$12)+(X51*'Points System'!$B$14) -> 533.33 | D51: =C51/G51 -> 0.8340448823 | E51: =C51/F51 -> 3.591447811 | F51: 148.5 | G51: 639.45 | H51: 564.13 | I51: 153.79 | J51: 93.67 | K51: 33.53 | L51: 3.2 | M51: 24.13 | N51: 84.06 | O51: 84.75 | P51: 63.93 | Q51: 140.23 | R51: 7.31 | S51: 2.85 | T51: 5.5 | U51: 10.44 | V51: 0.273 | W51: 2.193 | X51: 266.85 | Y51: 0.354 | Z51: 0.473 | AA51: 0.827 | AB51: AL | AC51: 571745 | AD51: RF | AE51: =IF(ISNA(VLOOKUP(A51,Rankings!$B$2:$H$659,7,FALSE)),"-",VLOOKUP(A51,Rankings!$B$2:$H$659,7,FALSE)) -> 0
A52: Carlos Correa | B52: SS | C52: =(G52*'Points System'!$B$16)+(H52*'Points System'!$B$17)+(I52*'Points System'!$B$15)+(J52*'Points System'!$B$2)+(K52*'Points System'!$B$3)+(L52*'Points System'!$B$4)+(M52*'Points System'!$B$5)+(N52*'Points System'!$B$6)+(O52*'Points System'!$B$7)+(P52*'Points System'!$B$8)+(Q52*'Points System'!$B$9)+(R52*'Points System'!$B$10)+(S52*'Points System'!$B$11)+(T52*'Points System'!$B$13)+(U52*'Points System'!$B$12)+(X52*'Points System'!$B$14) -> 532.165 | D52: =C52/G52 -> 0.8595923048 | E52: =C52/F52 -> 3.705884401 | F52: 143.6 | G52: 619.09 | H52: 542.53 | I52: 146.57 | J52: 90.33 | K52: 30.27 | L52: 2 | M52: 23.88 | N52: 92.56 | O52: 83.81 | P52: 68.86 | Q52: 130.69 | R52: 5.25 | S52: 1.15 | T52: 11.5 | U52: 3.44 | V52: 0.27 | W52: 1.898 | X52: 252.39 | Y52: 0.349 | Z52: 0.465 | AA52: 0.814 | AB52: AL | AC52: 621043 | AD52: SS | AE52: =IF(ISNA(VLOOKUP(A52,Rankings!$B$2:$H$659,7,FALSE)),"-",VLOOKUP(A52,Rankings!$B$2:$H$659,7,FALSE)) -> 0
A53: Andrelton Simmons | B53: SS | C53: =(G53*'Points System'!$B$16)+(H53*'Points System'!$B$17)+(I53*'Points System'!$B$15)+(J53*'Points System'!$B$2)+(K53*'Points System'!$B$3)+(L53*'Points System'!$B$4)+(M53*'Points System'!$B$5)+(N53*'Points System'!$B$6)+(O53*'Points System'!$B$7)+(P53*'Points System'!$B$8)+(Q53*'Points System'!$B$9)+(R53*'Points System'!$B$10)+(S53*'Points System'!$B$11)+(T53*'Points System'!$B$13)+(U53*'Points System'!$B$12)+(X53*'Points System'!$B$14) -> 531.085 | D53: =C53/G53 -> 0.8527102534 | E53: =C53/F53 -> 3.578739892 | F53: 148.4 | G53: 622.82 | H53: 564.07 | I53: 159.07 | J53: 115.33 | K53: 28.93 | L53: 3.6 | M53: 11.25 | N53: 68.13 | O53: 69 | P53: 39.5 | Q53: 54.08 | R53: 12 | S53: 3.15 | T53: 5 | U53: 4.22 | V53: 0.282 | W53: 1.369 | X53: 228.99 | Y53: 0.331 | Z53: 0.406 | AA53: 0.737 | AB53: AL | AC53: 592743 | AD53: SS | AE53: =IF(ISNA(VLOOKUP(A53,Rankings!$B$2:$H$659,7,FALSE)),"-",VLOOKUP(A53,Rankings!$B$2:$H$659,7,FALSE)) -> 0
A54: Eugenio Suarez | B54: 3B | C54: =(G54*'Points System'!$B$16)+(H54*'Points System'!$B$17)+(I54*'Points System'!$B$15)+(J54*'Points System'!$B$2)+(K54*'Points System'!$B$3)+(L54*'Points System'!$B$4)+(M54*'Points System'!$B$5)+(N54*'Points System'!$B$6)+(O54*'Points System'!$B$7)+(P54*'Points System'!$B$8)+(Q54*'Points System'!$B$9)+(R54*'Points System'!$B$10)+(S54*'Points System'!$B$11)+(T54*'Points System'!$B$13)+(U54*'Points System'!$B$12)+(X54*'Points System'!$B$14) -> 530.895 | D54: =C54/G54 -> 0.8400237342 | E54: =C54/F54 -> 3.546392786 | F54: 149.7 | G54: 632 | H54: 548.87 | I54: 147.36 | J54: 89 | K54: 26 | L54: 2.13 | M54: 29.81 | N54: 95 | O54: 82 | P54: 67.14 | Q54: 145.31 | R54: 3.5 | S54: 2.08 | T54: 5.5 | U54: 8.44 | V54: 0.268 | W54: 2.164 | X54: 266.63 | Y54: 0.354 | Z54: 0.486 | AA54: 0.84 | AB54: NL | AC54: 553993 | AD54: 3B | AE54: =IF(ISNA(VLOOKUP(A54,Rankings!$B$2:$H$659,7,FALSE)),"-",VLOOKUP(A54,Rankings!$B$2:$H$659,7,FALSE)) -> 0
A55: Mike Moustakas | B55: 3B | C55: =(G55*'Points System'!$B$16)+(H55*'Points System'!$B$17)+(I55*'Points System'!$B$15)+(J55*'Points System'!$B$2)+(K55*'Points System'!$B$3)+(L55*'Points System'!$B$4)+(M55*'Points System'!$B$5)+(N55*'Points System'!$B$6)+(O55*'Points System'!$B$7)+(P55*'Points System'!$B$8)+(Q55*'Points System'!$B$9)+(R55*'Points System'!$B$10)+(S55*'Points System'!$B$11)+(T55*'Points System'!$B$13)+(U55*'Points System'!$B$12)+(X55*'Points System'!$B$14) -> 526.035 | D55: =C55/G55 -> 0.8860282971 | E55: =C55/F55 -> 3.722033539 | F55: 141.33 | G55: 593.7 | H55: 537.54 | I55: 138.75 | J55: 79.69 | K55: 28 | L55: 0.92 | M55: 30.64 | N55: 90.79 | O55: 71.93 | P55: 45.38 | Q55: 100 | R55: 2.57 | S55: 1 | T55: 5 | U55: 5.25 | V55: 0.258 | W55: 2.204 | X55: 261.01 | Y55: 0.319 | Z55: 0.486 | AA55: 0.805 | AB55: NL | AC55: 519058 | AD55: 3B | AE55: =IF(ISNA(VLOOKUP(A55,Rankings!$B$2:$H$659,7,FALSE)),"-",VLOOKUP(A55,Rankings!$B$2:$H$659,7,FALSE)) -> 0
A56: Eric Hosmer | B56: 1B | C56: =(G56*'Points System'!$B$16)+(H56*'Points System'!$B$17)+(I56*'Points System'!$B$15)+(J56*'Points System'!$B$2)+(K56*'Points System'!$B$3)+(L56*'Points System'!$B$4)+(M56*'Points System'!$B$5)+(N56*'Points System'!$B$6)+(O56*'Points System'!$B$7)+(P56*'Points System'!$B$8)+(Q56*'Points System'!$B$9)+(R56*'Points System'!$B$10)+(S56*'Points System'!$B$11)+(T56*'Points System'!$B$13)+(U56*'Points System'!$B$12)+(X56*'Points System'!$B$14) -> 522.79 | D56: =C56/G56 -> 0.8039583558 | E56: =C56/F56 -> 3.39474026 | F56: 154 | G56: 650.27 | H56: 588.8 | I56: 159 | J56: 107.2 | K56: 29.53 | L56: 1.87 | M56: 20.75 | N56: 79.5 | O56: 78.38 | P56: 62.93 | Q56: 128.69 | R56: 6.13 | S56: 2.77 | T56: 1.5 | U56: 1.11 | V56: 0.27 | W56: 2.045 | X56: 254.87 | Y56: 0.341 | Z56: 0.433 | AA56: 0.774 | AB56: NL | AC56: 543333 | AD56: 1B | AE56: =IF(ISNA(VLOOKUP(A56,Rankings!$B$2:$H$659,7,FALSE)),"-",VLOOKUP(A56,Rankings!$B$2:$H$659,7,FALSE)) -> 0
A57: Starling Marte | B57: OF | C57: =(G57*'Points System'!$B$16)+(H57*'Points System'!$B$17)+(I57*'Points System'!$B$15)+(J57*'Points System'!$B$2)+(K57*'Points System'!$B$3)+(L57*'Points System'!$B$4)+(M57*'Points System'!$B$5)+(N57*'Points System'!$B$6)+(O57*'Points System'!$B$7)+(P57*'Points System'!$B$8)+(Q57*'Points System'!$B$9)+(R57*'Points System'!$B$10)+(S57*'Points System'!$B$11)+(T57*'Points System'!$B$13)+(U57*'Points System'!$B$12)+(X57*'Points System'!$B$14) -> 522.77 | D57: =C57/G57 -> 0.855723429 | E57: =C57/F57 -> 3.66598878 | F57: 142.6 | G57: 610.91 | H57: 559.27 | I57: 157.36 | J57: 105.53 | K57: 29.93 | L57: 4.47 | M57: 17.38 | N57: 69 | O57: 79.69 | P57: 35.21 | Q57: 113.92 | R57: 33 | S57: 11.08 | T57: 2.5 | U57: 11.22 | V57: 0.281 | W57: 3.235 | X57: 248.32 | Y57: 0.335 | Z57: 0.444 | AA57: 0.779 | AB57: NL | AC57: 516782 | AD57: CF | AE57: =IF(ISNA(VLOOKUP(A57,Rankings!$B$2:$H$659,7,FALSE)),"-",VLOOKUP(A57,Rankings!$B$2:$H$659,7,FALSE)) -> 0
A58: Jose Peraza | B58: SS | C58: =(G58*'Points System'!$B$16)+(H58*'Points System'!$B$17)+(I58*'Points System'!$B$15)+(J58*'Points System'!$B$2)+(K58*'Points System'!$B$3)+(L58*'Points System'!$B$4)+(M58*'Points System'!$B$5)+(N58*'Points System'!$B$6)+(O58*'Points System'!$B$7)+(P58*'Points System'!$B$8)+(Q58*'Points System'!$B$9)+(R58*'Points System'!$B$10)+(S58*'Points System'!$B$11)+(T58*'Points System'!$B$13)+(U58*'Points System'!$B$12)+(X58*'Points System'!$B$14) -> 522.575 | D58: =C58/G58 -> 0.83612 | E58: =C58/F58 -> 3.530912162 | F58: 148 | G58: 625 | H58: 586.73 | I58: 166.14 | J58: 122.93 | K58: 26.73 | L58: 4.6 | M58: 11.69 | N58: 57.75 | O58: 73.75 | P58: 28.57 | Q58: 75.38 | R58: 24.38 | S58: 7.62 | T58: 4.5 | U58: 8.33 | V58: 0.283 | W58: 2.638 | X58: 236.95 | Y58: 0.323 | Z58: 0.404 | AA58: 0.727 | AB58: NL | AC58: 606299 | AD58: SS | AE58: =IF(ISNA(VLOOKUP(A58,Rankings!$B$2:$H$659,7,FALSE)),"-",VLOOKUP(A58,Rankings!$B$2:$H$659,7,FALSE)) -> 0
A59: Ender Inciarte | B59: OF | C59: =(G59*'Points System'!$B$16)+(H59*'Points System'!$B$17)+(I59*'Points System'!$B$15)+(J59*'Points System'!$B$2)+(K59*'Points System'!$B$3)+(L59*'Points System'!$B$4)+(M59*'Points System'!$B$5)+(N59*'Points System'!$B$6)+(O59*'Points System'!$B$7)+(P59*'Points System'!$B$8)+(Q59*'Points System'!$B$9)+(R59*'Points System'!$B$10)+(S59*'Points System'!$B$11)+(T59*'Points System'!$B$13)+(U59*'Points System'!$B$12)+(X59*'Points System'!$B$14) -> 518.705 | D59: =C59/G59 -> 0.7992372881 | E59: =C59/F59 -> 3.419281477 | F59: 151.7 | G59: 649 | H59: 590.33 | I59: 162.86 | J59: 122.2 | K59: 26.27 | L59: 5.53 | M59: 9.44 | N59: 55.88 | O59: 80 | P59: 46.79 | Q59: 85.85 | R59: 23.63 | S59: 10.23 | T59: 3.5 | U59: 3.89 | V59: 0.276 | W59: 1.835 | X59: 229.09 | Y59: 0.331 | Z59: 0.388 | AA59: 0.719 | AB59: NL | AC59: 542255 | AD59: CF | AE59: =IF(ISNA(VLOOKUP(A59,Rankings!$B$2:$H$659,7,FALSE)),"-",VLOOKUP(A59,Rankings!$B$2:$H$659,7,FALSE)) -> 0
A60: Yasiel Puig | B60: OF | C60: =(G60*'Points System'!$B$16)+(H60*'Points System'!$B$17)+(I60*'Points System'!$B$15)+(J60*'Points System'!$B$2)+(K60*'Points System'!$B$3)+(L60*'Points System'!$B$4)+(M60*'Points System'!$B$5)+(N60*'Points System'!$B$6)+(O60*'Points System'!$B$7)+(P60*'Points System'!$B$8)+(Q60*'Points System'!$B$9)+(R60*'Points System'!$B$10)+(S60*'Points System'!$B$11)+(T60*'Points System'!$B$13)+(U60*'Points System'!$B$12)+(X60*'Points System'!$B$14) -> 517.355 | D60: =C60/G60 -> 0.9064794211 | E60: =C60/F60 -> 3.64848378 | F60: 141.8 | G60: 570.73 | H60: 508.6 | I60: 138.79 | J60: 83.67 | K60: 26.33 | L60: 2.13 | M60: 26.94 | N60: 81.25 | O60: 75.25 | P60: 51.86 | Q60: 109.69 | R60: 14.63 | S60: 6 | T60: 3.5 | U60: 3.11 | V60: 0.273 | W60: 2.115 | X60: 250.48 | Y60: 0.342 | Z60: 0.492 | AA60: 0.834 | AB60: NL | AC60: 624577 | AD60: RF | AE60: =IF(ISNA(VLOOKUP(A60,Rankings!$B$2:$H$659,7,FALSE)),"-",VLOOKUP(A60,Rankings!$B$2:$H$659,7,FALSE)) -> 0
A61: Scooter Gennett | B61: 2B | C61: =(G61*'Points System'!$B$16)+(H61*'Points System'!$B$17)+(I61*'Points System'!$B$15)+(J61*'Points System'!$B$2)+(K61*'Points System'!$B$3)+(L61*'Points System'!$B$4)+(M61*'Points System'!$B$5)+(N61*'Points System'!$B$6)+(O61*'Points System'!$B$7)+(P61*'Points System'!$B$8)+(Q61*'Points System'!$B$9)+(R61*'Points System'!$B$10)+(S61*'Points System'!$B$11)+(T61*'Points System'!$B$13)+(U61*'Points System'!$B$12)+(X61*'Points System'!$B$14) -> 516.755 | D61: =C61/G61 -> 0.8442467611 | E61: =C61/F61 -> 3.541843729 | F61: 145.9 | G61: 612.09 | H61: 559.4 | I61: 158.57 | J61: 104.33 | K61: 28.87 | L61: 2.87 | M61: 22.56 | N61: 85.44 | O61: 78.88 | P61: 39.86 | Q61: 123.38 | R61: 4.69 | S61: 1.85 | T61: 4 | U61: 4 | V61: 0.283 | W61: 3.095 | X61: 260.92 | Y61: 0.333 | Z61: 0.466 | AA61: 0.799 | AB61: NL | AC61: 571697 | AD61: 2B | AE61: =IF(ISNA(VLOOKUP(A61,Rankings!$B$2:$H$659,7,FALSE)),"-",VLOOKUP(A61,Rankings!$B$2:$H$659,7,FALSE)) -> 0
A62: Travis Shaw | B62: 2B/3B | C62: =(G62*'Points System'!$B$16)+(H62*'Points System'!$B$17)+(I62*'Points System'!$B$15)+(J62*'Points System'!$B$2)+(K62*'Points System'!$B$3)+(L62*'Points System'!$B$4)+(M62*'Points System'!$B$5)+(N62*'Points System'!$B$6)+(O62*'Points System'!$B$7)+(P62*'Points System'!$B$8)+(Q62*'Points System'!$B$9)+(R62*'Points System'!$B$10)+(S62*'Points System'!$B$11)+(T62*'Points System'!$B$13)+(U62*'Points System'!$B$12)+(X62*'Points System'!$B$14) -> 514.935 | D62: =C62/G62 -> 0.845916909 | E62: =C62/F62 -> 3.526952055 | F62: 146 | G62: 608.73 | H62: 525.8 | I62: 132.79 | J62: 75.4 | K62: 27.87 | L62: 1.07 | M62: 28.81 | N62: 88.94 | O62: 76.69 | P62: 67.93 | Q62: 122.54 | R62: 5.88 | S62: 1.69 | T62: 5.5 | U62: 4.11 | V62: 0.253 | W62: 1.804 | X62: 249.59 | Y62: 0.339 | Z62: 0.475 | AA62: 0.814 | AB62: NL | AC62: 543768 | AD62: 3B | AE62: =IF(ISNA(VLOOKUP(A62,Rankings!$B$2:$H$659,7,FALSE)),"-",VLOOKUP(A62,Rankings!$B$2:$H$659,7,FALSE)) -> 0
A63: David Peralta | B63: OF | C63: =(G63*'Points System'!$B$16)+(H63*'Points System'!$B$17)+(I63*'Points System'!$B$15)+(J63*'Points System'!$B$2)+(K63*'Points System'!$B$3)+(L63*'Points System'!$B$4)+(M63*'Points System'!$B$5)+(N63*'Points System'!$B$6)+(O63*'Points System'!$B$7)+(P63*'Points System'!$B$8)+(Q63*'Points System'!$B$9)+(R63*'Points System'!$B$10)+(S63*'Points System'!$B$11)+(T63*'Points System'!$B$13)+(U63*'Points System'!$B$12)+(X63*'Points System'!$B$14) -> 509.865 | D63: =C63/G63 -> 0.8559090146 | E63: =C63/F63 -> 3.58227359 | F63: 142.33 | G63: 595.7 | H63: 543.93 | I63: 152.77 | J63: 98.43 | K63: 27.79 | L63: 5.07 | M63: 22.6 | N63: 74.47 | O63: 75.07 | P63: 47.15 | Q63: 116.92 | R63: 5.27 | S63: 1.5 | T63: 2 | U63: 5.13 | V63: 0.281 | W63: 2.48 | X63: 259.62 | Y63: 0.343 | Z63: 0.477 | AA63: 0.82 | AB63: NL | AC63: 444482 | AD63: LF | AE63: =IF(ISNA(VLOOKUP(A63,Rankings!$B$2:$H$659,7,FALSE)),"-",VLOOKUP(A63,Rankings!$B$2:$H$659,7,FALSE)) -> 0
A64: Andrew McCutchen | B64: OF | C64: =(G64*'Points System'!$B$16)+(H64*'Points System'!$B$17)+(I64*'Points System'!$B$15)+(J64*'Points System'!$B$2)+(K64*'Points System'!$B$3)+(L64*'Points System'!$B$4)+(M64*'Points System'!$B$5)+(N64*'Points System'!$B$6)+(O64*'Points System'!$B$7)+(P64*'Points System'!$B$8)+(Q64*'Points System'!$B$9)+(R64*'Points System'!$B$10)+(S64*'Points System'!$B$11)+(T64*'Points System'!$B$13)+(U64*'Points System'!$B$12)+(X64*'Points System'!$B$14) -> 506.83 | D64: =C64/G64 -> 0.8119933353 | E64: =C64/F64 -> 3.480975275 | F64: 145.6 | G64: 624.18 | H64: 536 | I64: 139 | J64: 86.13 | K64: 27.13 | L64: 2.13 | M64: 23.75 | N64: 75.63 | O64: 82.13 | P64: 80.64 | Q64: 134.92 | R64: 11.13 | S64: 6 | T64: 5.5 | U64: 7.67 | V64: 0.259 | W64: 1.673 | X64: 241.78 | Y64: 0.361 | Z64: 0.451 | AA64: 0.812 | AB64: NL | AC64: 457705 | AD64: RF | AE64: =IF(ISNA(VLOOKUP(A64,Rankings!$B$2:$H$659,7,FALSE)),"-",VLOOKUP(A64,Rankings!$B$2:$H$659,7,FALSE)) -> 0
A65: Matt Chapman | B65: 3B | C65: =(G65*'Points System'!$B$16)+(H65*'Points System'!$B$17)+(I65*'Points System'!$B$15)+(J65*'Points System'!$B$2)+(K65*'Points System'!$B$3)+(L65*'Points System'!$B$4)+(M65*'Points System'!$B$5)+(N65*'Points System'!$B$6)+(O65*'Points System'!$B$7)+(P65*'Points System'!$B$8)+(Q65*'Points System'!$B$9)+(R65*'Points System'!$B$10)+(S65*'Points System'!$B$11)+(T65*'Points System'!$B$13)+(U65*'Points System'!$B$12)+(X65*'Points System'!$B$14) -> 504.245 | D65: =C65/G65 -> 0.8071406848 | E65: =C65/F65 -> 3.449008208 | F65: 146.2 | G65: 624.73 | H65: 554.73 | I65: 143.57 | J65: 75.27 | K65: 36.73 | L65: 5.4 | M65: 26.88 | N65: 81 | O65: 89.81 | P65: 59.93 | Q65: 157.77 | R65: 2.75 | S65: 2.31 | T65: 2 | U65: 7 | V65: 0.259 | W65: 2.633 | X65: 272.45 | Y65: 0.338 | Z65: 0.491 | AA65: 0.829 | AB65: AL | AC65: 656305 | AD65: 3B | AE65: =IF(ISNA(VLOOKUP(A65,Rankings!$B$2:$H$659,7,FALSE)),"-",VLOOKUP(A65,Rankings!$B$2:$H$659,7,FALSE)) -> 0
A66: Matt Olson | B66: 1B | C66: =(G66*'Points System'!$B$16)+(H66*'Points System'!$B$17)+(I66*'Points System'!$B$15)+(J66*'Points System'!$B$2)+(K66*'Points System'!$B$3)+(L66*'Points System'!$B$4)+(M66*'Points System'!$B$5)+(N66*'Points System'!$B$6)+(O66*'Points System'!$B$7)+(P66*'Points System'!$B$8)+(Q66*'Points System'!$B$9)+(R66*'Points System'!$B$10)+(S66*'Points System'!$B$11)+(T66*'Points System'!$B$13)+(U66*'Points System'!$B$12)+(X66*'Points System'!$B$14) -> 501.51 | D66: =C66/G66 -> 0.7800625282 | E66: =C66/F66 -> 3.246019417 | F66: 154.5 | G66: 642.91 | H66: 556.53 | I66: 136.14 | J66: 74.93 | K66: 29.6 | L66: 0.67 | M66: 31.63 | N66: 89.88 | O66: 83.44 | P66: 70.36 | Q66: 159.15 | R66: 2.19 | S66: 0.92 | T66: 1.5 | U66: 7.22 | V66: 0.245 | W66: 2.262 | X66: 262.66 | Y66: 0.336 | Z66: 0.472 | AA66: 0.808 | AB66: AL | AC66: 621566 | AD66: 1B | AE66: =IF(ISNA(VLOOKUP(A66,Rankings!$B$2:$H$659,7,FALSE)),"-",VLOOKUP(A66,Rankings!$B$2:$H$659,7,FALSE)) -> 0
A67: Adalberto Mondesi | B67: SS | C67: =(G67*'Points System'!$B$16)+(H67*'Points System'!$B$17)+(I67*'Points System'!$B$15)+(J67*'Points System'!$B$2)+(K67*'Points System'!$B$3)+(L67*'Points System'!$B$4)+(M67*'Points System'!$B$5)+(N67*'Points System'!$B$6)+(O67*'Points System'!$B$7)+(P67*'Points System'!$B$8)+(Q67*'Points System'!$B$9)+(R67*'Points System'!$B$10)+(S67*'Points System'!$B$11)+(T67*'Points System'!$B$13)+(U67*'Points System'!$B$12)+(X67*'Points System'!$B$14) -> 500.555 | D67: =C67/G67 -> 0.8646508093 | E67: =C67/F67 -> 3.537491166 | F67: 141.5 | G67: 578.91 | H67: 540.57 | I67: 149.853 | J67: 91.454 | K67: 28.446 | L67: 7.546 | M67: 21.483 | N67: 73.997 | O67: 82.72 | P67: 30.118 | Q67: 163.713 | R67: 47.003 | S67: 10.582 | T67: 2.2 | U67: 3.179 | V67: 0.252 | W67: 5.436 | X67: 256.916 | Y67: 0.291 | Z67: 0.432 | AA67: 0.723 | AB67: AL | AC67: 609275 | AD67: SS | AE67: =IF(ISNA(VLOOKUP(A67,Rankings!$B$2:$H$659,7,FALSE)),"-",VLOOKUP(A67,Rankings!$B$2:$H$659,7,FALSE)) -> 0
A68: Michael Conforto | B68: OF | C68: =(G68*'Points System'!$B$16)+(H68*'Points System'!$B$17)+(I68*'Points System'!$B$15)+(J68*'Points System'!$B$2)+(K68*'Points System'!$B$3)+(L68*'Points System'!$B$4)+(M68*'Points System'!$B$5)+(N68*'Points System'!$B$6)+(O68*'Points System'!$B$7)+(P68*'Points System'!$B$8)+(Q68*'Points System'!$B$9)+(R68*'Points System'!$B$10)+(S68*'Points System'!$B$11)+(T68*'Points System'!$B$13)+(U68*'Points System'!$B$12)+(X68*'Points System'!$B$14) -> 499.85 | D68: =C68/G68 -> 0.7939798269 | E68: =C68/F68 -> 3.334556371 | F68: 149.9 | G68: 629.55 | H68: 538.33 | I68: 136.14 | J68: 77.87 | K68: 27.33 | L68: 1.33 | M68: 29.31 | N68: 88 | O68: 82 | P68: 78.93 | Q68: 156.54 | R68: 3.63 | S68: 2.54 | T68: 3.5 | U68: 8 | V68: 0.253 | W68: 1.983 | X68: 253.76 | Y68: 0.355 | Z68: 0.471 | AA68: 0.826 | AB68: NL | AC68: 624424 | AD68: LF | AE68: =IF(ISNA(VLOOKUP(A68,Rankings!$B$2:$H$659,7,FALSE)),"-",VLOOKUP(A68,Rankings!$B$2:$H$659,7,FALSE)) -> 0
A69: Ketel Marte | B69: 2B/SS | C69: =(G69*'Points System'!$B$16)+(H69*'Points System'!$B$17)+(I69*'Points System'!$B$15)+(J69*'Points System'!$B$2)+(K69*'Points System'!$B$3)+(L69*'Points System'!$B$4)+(M69*'Points System'!$B$5)+(N69*'Points System'!$B$6)+(O69*'Points System'!$B$7)+(P69*'Points System'!$B$8)+(Q69*'Points System'!$B$9)+(R69*'Points System'!$B$10)+(S69*'Points System'!$B$11)+(T69*'Points System'!$B$13)+(U69*'Points System'!$B$12)+(X69*'Points System'!$B$14) -> 496.655 | D69: =C69/G69 -> 0.8177275421 | E69: =C69/F69 -> 3.383208447 | F69: 146.8 | G69: 607.36 | H69: 549.53 | I69: 148.71 | J69: 97.07 | K69: 29 | L69: 8.6 | M69: 12.69 | N69: 58.31 | O69: 73.38 | P69: 52.71 | Q69: 84.69 | R69: 8.38 | S69: 2.31 | T69: 2.5 | U69: 3.33 | V69: 0.271 | W69: 1.607 | X69: 231.63 | Y69: 0.337 | Z69: 0.422 | AA69: 0.759 | AB69: NL | AC69: 606466 | AD69: 2B | AE69: =IF(ISNA(VLOOKUP(A69,Rankings!$B$2:$H$659,7,FALSE)),"-",VLOOKUP(A69,Rankings!$B$2:$H$659,7,FALSE)) -> 0
A70: Aaron Hicks | B70: OF | C70: =(G70*'Points System'!$B$16)+(H70*'Points System'!$B$17)+(I70*'Points System'!$B$15)+(J70*'Points System'!$B$2)+(K70*'Points System'!$B$3)+(L70*'Points System'!$B$4)+(M70*'Points System'!$B$5)+(N70*'Points System'!$B$6)+(O70*'Points System'!$B$7)+(P70*'Points System'!$B$8)+(Q70*'Points System'!$B$9)+(R70*'Points System'!$B$10)+(S70*'Points System'!$B$11)+(T70*'Points System'!$B$13)+(U70*'Points System'!$B$12)+(X70*'Points System'!$B$14) -> 495.655 | D70: =C70/G70 -> 0.8397089468 | E70: =C70/F70 -> 3.550537249 | F70: 139.6 | G70: 590.27 | H70: 494.87 | I70: 124.86 | J70: 76.8 | K70: 22.33 | L70: 2.47 | M70: 23.44 | N70: 76.44 | O70: 82.5 | P70: 80.71 | Q70: 115.38 | R70: 10.63 | S70: 3.77 | T70: 5.5 | U70: 3.11 | V70: 0.252 | W70: 1.43 | X70: 222.63 | Y70: 0.357 | Z70: 0.45 | AA70: 0.807 | AB70: AL | AC70: 543305 | AD70: CF | AE70: =IF(ISNA(VLOOKUP(A70,Rankings!$B$2:$H$659,7,FALSE)),"-",VLOOKUP(A70,Rankings!$B$2:$H$659,7,FALSE)) -> 0
A71: Josh Bell | B71: 1B | C71: =(G71*'Points System'!$B$16)+(H71*'Points System'!$B$17)+(I71*'Points System'!$B$15)+(J71*'Points System'!$B$2)+(K71*'Points System'!$B$3)+(L71*'Points System'!$B$4)+(M71*'Points System'!$B$5)+(N71*'Points System'!$B$6)+(O71*'Points System'!$B$7)+(P71*'Points System'!$B$8)+(Q71*'Points System'!$B$9)+(R71*'Points System'!$B$10)+(S71*'Points System'!$B$11)+(T71*'Points System'!$B$13)+(U71*'Points System'!$B$12)+(X71*'Points System'!$B$14) -> 492.095 | D71: =C71/G71 -> 0.8026341543 | E71: =C71/F71 -> 3.33239656 | F71: 147.67 | G71: 613.1 | H71: 531 | I71: 140.15 | J71: 88.86 | K71: 29.29 | L71: 4.14 | M71: 18.07 | N71: 74.87 | O71: 73.73 | P71: 72.92 | Q71: 111.42 | R71: 3 | S71: 3.83 | T71: 4.5 | U71: 1.25 | V71: 0.264 | W71: 1.528 | X71: 232.14 | Y71: 0.352 | Z71: 0.437 | AA71: 0.789 | AB71: NL | AC71: 605137 | AD71: 1B | AE71: =IF(ISNA(VLOOKUP(A71,Rankings!$B$2:$H$659,7,FALSE)),"-",VLOOKUP(A71,Rankings!$B$2:$H$659,7,FALSE)) -> 0
A72: Stephen Piscotty | B72: OF | C72: =(G72*'Points System'!$B$16)+(H72*'Points System'!$B$17)+(I72*'Points System'!$B$15)+(J72*'Points System'!$B$2)+(K72*'Points System'!$B$3)+(L72*'Points System'!$B$4)+(M72*'Points System'!$B$5)+(N72*'Points System'!$B$6)+(O72*'Points System'!$B$7)+(P72*'Points System'!$B$8)+(Q72*'Points System'!$B$9)+(R72*'Points System'!$B$10)+(S72*'Points System'!$B$11)+(T72*'Points System'!$B$13)+(U72*'Points System'!$B$12)+(X72*'Points System'!$B$14) -> 489.875 | D72: =C72/G72 -> 0.8074019745 | E72: =C72/F72 -> 3.369154058 | F72: 145.4 | G72: 606.73 | H72: 538.4 | I72: 141.14 | J72: 82.6 | K72: 34.8 | L72: 1.33 | M72: 22.63 | N72: 80.5 | O72: 74.88 | P72: 50.07 | Q72: 118.08 | R72: 3.56 | S72: 2 | T72: 4 | U72: 10.33 | V72: 0.262 | W72: 2.358 | X72: 246.71 | Y72: 0.334 | Z72: 0.458 | AA72: 0.792 | AB72: AL | AC72: 572039 | AD72: RF | AE72: =IF(ISNA(VLOOKUP(A72,Rankings!$B$2:$H$659,7,FALSE)),"-",VLOOKUP(A72,Rankings!$B$2:$H$659,7,FALSE)) -> 0
A73: Nomar Mazara | B73: OF | C73: =(G73*'Points System'!$B$16)+(H73*'Points System'!$B$17)+(I73*'Points System'!$B$15)+(J73*'Points System'!$B$2)+(K73*'Points System'!$B$3)+(L73*'Points System'!$B$4)+(M73*'Points System'!$B$5)+(N73*'Points System'!$B$6)+(O73*'Points System'!$B$7)+(P73*'Points System'!$B$8)+(Q73*'Points System'!$B$9)+(R73*'Points System'!$B$10)+(S73*'Points System'!$B$11)+(T73*'Points System'!$B$13)+(U73*'Points System'!$B$12)+(X73*'Points System'!$B$14) -> 489.03 | D73: =C73/G73 -> 0.796465798 | E73: =C73/F73 -> 3.352046062 | F73: 145.89 | G73: 614 | H73: 553.43 | I73: 145.38 | J73: 92.57 | K73: 27.86 | L73: 2.29 | M73: 23.53 | N73: 86.13 | O73: 71.33 | P73: 50 | Q73: 126.58 | R73: 1.87 | S73: 1.08 | T73: 3 | U73: 5.25 | V73: 0.263 | W73: 2.532 | X73: 249.28 | Y73: 0.328 | Z73: 0.45 | AA73: 0.778 | AB73: AL | AC73: 608577 | AD73: RF | AE73: =IF(ISNA(VLOOKUP(A73,Rankings!$B$2:$H$659,7,FALSE)),"-",VLOOKUP(A73,Rankings!$B$2:$H$659,7,FALSE)) -> 0
A74: Jorge Polanco | B74: SS | C74: =(G74*'Points System'!$B$16)+(H74*'Points System'!$B$17)+(I74*'Points System'!$B$15)+(J74*'Points System'!$B$2)+(K74*'Points System'!$B$3)+(L74*'Points System'!$B$4)+(M74*'Points System'!$B$5)+(N74*'Points System'!$B$6)+(O74*'Points System'!$B$7)+(P74*'Points System'!$B$8)+(Q74*'Points System'!$B$9)+(R74*'Points System'!$B$10)+(S74*'Points System'!$B$11)+(T74*'Points System'!$B$13)+(U74*'Points System'!$B$12)+(X74*'Points System'!$B$14) -> 487.835 | D74: =C74/G74 -> 0.8008060015 | E74: =C74/F74 -> 3.442731122 | F74: 141.7 | G74: 609.18 | H74: 555.27 | I74: 152 | J74: 101.33 | K74: 31.47 | L74: 5.2 | M74: 13.5 | N74: 67.38 | O74: 74.56 | P74: 45.71 | Q74: 104.85 | R74: 13.25 | S74: 7.46 | T74: 3 | U74: 3.44 | V74: 0.274 | W74: 2.294 | X74: 233.87 | Y74: 0.331 | Z74: 0.421 | AA74: 0.752 | AB74: AL | AC74: 593871 | AD74: SS | AE74: =IF(ISNA(VLOOKUP(A74,Rankings!$B$2:$H$659,7,FALSE)),"-",VLOOKUP(A74,Rankings!$B$2:$H$659,7,FALSE)) -> 0
A75: Jurickson Profar | B75: 1B/SS/3B | C75: =(G75*'Points System'!$B$16)+(H75*'Points System'!$B$17)+(I75*'Points System'!$B$15)+(J75*'Points System'!$B$2)+(K75*'Points System'!$B$3)+(L75*'Points System'!$B$4)+(M75*'Points System'!$B$5)+(N75*'Points System'!$B$6)+(O75*'Points System'!$B$7)+(P75*'Points System'!$B$8)+(Q75*'Points System'!$B$9)+(R75*'Points System'!$B$10)+(S75*'Points System'!$B$11)+(T75*'Points System'!$B$13)+(U75*'Points System'!$B$12)+(X75*'Points System'!$B$14) -> 486.835 | D75: =C75/G75 -> 0.8399499655 | E75: =C75/F75 -> 3.414948092 | F75: 142.56 | G75: 579.6 | H75: 526.14 | I75: 135 | J75: 82.07 | K75: 31.14 | L75: 4.71 | M75: 16.93 | N75: 67.4 | O75: 75.27 | P75: 53.62 | Q75: 91.17 | R75: 9.2 | S75: 1.75 | T75: 3.5 | U75: 10.38 | V75: 0.257 | W75: 1.7 | X75: 226.2 | Y75: 0.335 | Z75: 0.43 | AA75: 0.765 | AB75: AL | AC75: 595777 | AD75: SS | AE75: =IF(ISNA(VLOOKUP(A75,Rankings!$B$2:$H$659,7,FALSE)),"-",VLOOKUP(A75,Rankings!$B$2:$H$659,7,FALSE)) -> 0
A76: David Dahl | B76: OF | C76: =(G76*'Points System'!$B$16)+(H76*'Points System'!$B$17)+(I76*'Points System'!$B$15)+(J76*'Points System'!$B$2)+(K76*'Points System'!$B$3)+(L76*'Points System'!$B$4)+(M76*'Points System'!$B$5)+(N76*'Points System'!$B$6)+(O76*'Points System'!$B$7)+(P76*'Points System'!$B$8)+(Q76*'Points System'!$B$9)+(R76*'Points System'!$B$10)+(S76*'Points System'!$B$11)+(T76*'Points System'!$B$13)+(U76*'Points System'!$B$12)+(X76*'Points System'!$B$14) -> 486.4 | D76: =C76/G76 -> 0.8597740972 | E76: =C76/F76 -> 3.511913357 | F76: 138.5 | G76: 565.73 | H76: 524.87 | I76: 142.64 | J76: 83.73 | K76: 28 | L76: 5.47 | M76: 26.19 | N76: 84.5 | O76: 72.81 | P76: 38.29 | Q76: 137.77 | R76: 11.19 | S76: 4.85 | T76: 3 | U76: 2.11 | V76: 0.272 | W76: 3.598 | X76: 260.9 | Y76: 0.322 | Z76: 0.497 | AA76: 0.819 | AB76: NL | AC76: 621311 | AD76: LF | AE76: =IF(ISNA(VLOOKUP(A76,Rankings!$B$2:$H$659,7,FALSE)),"-",VLOOKUP(A76,Rankings!$B$2:$H$659,7,FALSE)) -> 0
A77: Edwin Encarnacion | B77: 1B | C77: =(G77*'Points System'!$B$16)+(H77*'Points System'!$B$17)+(I77*'Points System'!$B$15)+(J77*'Points System'!$B$2)+(K77*'Points System'!$B$3)+(L77*'Points System'!$B$4)+(M77*'Points System'!$B$5)+(N77*'Points System'!$B$6)+(O77*'Points System'!$B$7)+(P77*'Points System'!$B$8)+(Q77*'Points System'!$B$9)+(R77*'Points System'!$B$10)+(S77*'Points System'!$B$11)+(T77*'Points System'!$B$13)+(U77*'Points System'!$B$12)+(X77*'Points System'!$B$14) -> 484.745 | D77: =C77/G77 -> 0.8394579617 | E77: =C77/F77 -> 3.553848974 | F77: 136.4 | G77: 577.45 | H77: 509.8 | I77: 123.64 | J77: 73.53 | K77: 19.13 | L77: 1 | M77: 30.63 | N77: 92.88 | O77: 75.31 | P77: 69.5 | Q77: 131.92 | R77: 2.06 | S77: 0.38 | T77: 6.5 | U77: 6.11 | V77: 0.243 | W77: 1.898 | X77: 237.31 | Y77: 0.337 | Z77: 0.465 | AA77: 0.802 | AB77: AL | AC77: 429665 | AD77: 1B | AE77: =IF(ISNA(VLOOKUP(A77,Rankings!$B$2:$H$659,7,FALSE)),"-",VLOOKUP(A77,Rankings!$B$2:$H$659,7,FALSE)) -> 0
A78: Rougned Odor | B78: 2B | C78: =(G78*'Points System'!$B$16)+(H78*'Points System'!$B$17)+(I78*'Points System'!$B$15)+(J78*'Points System'!$B$2)+(K78*'Points System'!$B$3)+(L78*'Points System'!$B$4)+(M78*'Points System'!$B$5)+(N78*'Points System'!$B$6)+(O78*'Points System'!$B$7)+(P78*'Points System'!$B$8)+(Q78*'Points System'!$B$9)+(R78*'Points System'!$B$10)+(S78*'Points System'!$B$11)+(T78*'Points System'!$B$13)+(U78*'Points System'!$B$12)+(X78*'Points System'!$B$14) -> 484.135 | D78: =C78/G78 -> 0.7710261025 | E78: =C78/F78 -> 3.229719813 | F78: 149.9 | G78: 627.91 | H78: 569.13 | I78: 142.43 | J78: 85.67 | K78: 27.87 | L78: 3.07 | M78: 26.06 | N78: 78.81 | O78: 81.69 | P78: 43.57 | Q78: 142.62 | R78: 14.19 | S78: 8.92 | T78: 5 | U78: 9.67 | V78: 0.25 | W78: 3.273 | X78: 254.86 | Y78: 0.312 | Z78: 0.448 | AA78: 0.76 | AB78: AL | AC78: 596059 | AD78: 2B | AE78: =IF(ISNA(VLOOKUP(A78,Rankings!$B$2:$H$659,7,FALSE)),"-",VLOOKUP(A78,Rankings!$B$2:$H$659,7,FALSE)) -> 0
A79: Tommy Pham | B79: OF | C79: =(G79*'Points System'!$B$16)+(H79*'Points System'!$B$17)+(I79*'Points System'!$B$15)+(J79*'Points System'!$B$2)+(K79*'Points System'!$B$3)+(L79*'Points System'!$B$4)+(M79*'Points System'!$B$5)+(N79*'Points System'!$B$6)+(O79*'Points System'!$B$7)+(P79*'Points System'!$B$8)+(Q79*'Points System'!$B$9)+(R79*'Points System'!$B$10)+(S79*'Points System'!$B$11)+(T79*'Points System'!$B$13)+(U79*'Points System'!$B$12)+(X79*'Points System'!$B$14) -> 484 | D79: =C79/G79 -> 0.8161888702 | E79: =C79/F79 -> 3.432624113 | F79: 141 | G79: 593 | H79: 513.87 | I79: 138.36 | J79: 90.87 | K79: 21.47 | L79: 4.47 | M79: 21.69 | N79: 70.31 | O79: 90.75 | P79: 69.36 | Q79: 148.92 | R79: 17.13 | S79: 6.38 | T79: 3 | U79: 7.22 | V79: 0.269 | W79: 2.147 | X79: 233.98 | Y79: 0.362 | Z79: 0.455 | AA79: 0.817 | AB79: AL | AC79: 502054 | AD79: CF | AE79: =IF(ISNA(VLOOKUP(A79,Rankings!$B$2:$H$659,7,FALSE)),"-",VLOOKUP(A79,Rankings!$B$2:$H$659,7,FALSE)) -> 0
A80: Brian Dozier | B80: 2B | C80: =(G80*'Points System'!$B$16)+(H80*'Points System'!$B$17)+(I80*'Points System'!$B$15)+(J80*'Points System'!$B$2)+(K80*'Points System'!$B$3)+(L80*'Points System'!$B$4)+(M80*'Points System'!$B$5)+(N80*'Points System'!$B$6)+(O80*'Points System'!$B$7)+(P80*'Points System'!$B$8)+(Q80*'Points System'!$B$9)+(R80*'Points System'!$B$10)+(S80*'Points System'!$B$11)+(T80*'Points System'!$B$13)+(U80*'Points System'!$B$12)+(X80*'Points System'!$B$14) -> 483.845 | D80: =C80/G80 -> 0.8162991581 | E80: =C80/F80 -> 3.44128734 | F80: 140.6 | G80: 592.73 | H80: 527.13 | I80: 127.14 | J80: 72.4 | K80: 27.2 | L80: 2.93 | M80: 24.44 | N80: 77.44 | O80: 79.25 | P80: 62.64 | Q80: 122.77 | R80: 12.13 | S80: 3.62 | T80: 4 | U80: 5.11 | V80: 0.241 | W80: 1.96 | X80: 233.35 | Y80: 0.325 | Z80: 0.443 | AA80: 0.768 | AB80: NL | AC80: 572821 | AD80: 2B | AE80: =IF(ISNA(VLOOKUP(A80,Rankings!$B$2:$H$659,7,FALSE)),"-",VLOOKUP(A80,Rankings!$B$2:$H$659,7,FALSE)) -> 0
A81: Josh Donaldson | B81: 3B | C81: =(G81*'Points System'!$B$16)+(H81*'Points System'!$B$17)+(I81*'Points System'!$B$15)+(J81*'Points System'!$B$2)+(K81*'Points System'!$B$3)+(L81*'Points System'!$B$4)+(M81*'Points System'!$B$5)+(N81*'Points System'!$B$6)+(O81*'Points System'!$B$7)+(P81*'Points System'!$B$8)+(Q81*'Points System'!$B$9)+(R81*'Points System'!$B$10)+(S81*'Points System'!$B$11)+(T81*'Points System'!$B$13)+(U81*'Points System'!$B$12)+(X81*'Points System'!$B$14) -> 483.575 | D81: =C81/G81 -> 0.8691764325 | E81: =C81/F81 -> 3.763229572 | F81: 128.5 | G81: 556.36 | H81: 474.53 | I81: 123.86 | J81: 70.2 | K81: 25.93 | L81: 1.33 | M81: 26.88 | N81: 76.31 | O81: 78.88 | P81: 76.57 | Q81: 123.69 | R81: 3.81 | S81: 1.08 | T81: 2.5 | U81: 3.33 | V81: 0.261 | W81: 1.615 | X81: 233.57 | Y81: 0.366 | Z81: 0.492 | AA81: 0.858 | AB81: NL | AC81: 518626 | AD81: 3B | AE81: =IF(ISNA(VLOOKUP(A81,Rankings!$B$2:$H$659,7,FALSE)),"-",VLOOKUP(A81,Rankings!$B$2:$H$659,7,FALSE)) -> 0
A82: Gleyber Torres | B82: 2B/SS | C82: =(G82*'Points System'!$B$16)+(H82*'Points System'!$B$17)+(I82*'Points System'!$B$15)+(J82*'Points System'!$B$2)+(K82*'Points System'!$B$3)+(L82*'Points System'!$B$4)+(M82*'Points System'!$B$5)+(N82*'Points System'!$B$6)+(O82*'Points System'!$B$7)+(P82*'Points System'!$B$8)+(Q82*'Points System'!$B$9)+(R82*'Points System'!$B$10)+(S82*'Points System'!$B$11)+(T82*'Points System'!$B$13)+(U82*'Points System'!$B$12)+(X82*'Points System'!$B$14) -> 482.255 | D82: =C82/G82 -> 0.8126295391 | E82: =C82/F82 -> 3.319029594 | F82: 145.3 | G82: 593.45 | H82: 530.53 | I82: 142.79 | J82: 91.87 | K82: 24.07 | L82: 2.33 | M82: 24.5 | N82: 84.31 | O82: 71.88 | P82: 52.86 | Q82: 136.77 | R82: 9.19 | S82: 3.85 | T82: 6.5 | U82: 5.56 | V82: 0.269 | W82: 2.587 | X82: 245 | Y82: 0.338 | Z82: 0.462 | AA82: 0.8 | AB82: AL | AC82: 650402 | AD82: 2B | AE82: =IF(ISNA(VLOOKUP(A82,Rankings!$B$2:$H$659,7,FALSE)),"-",VLOOKUP(A82,Rankings!$B$2:$H$659,7,FALSE)) -> 0
A83: A.J. Pollock | B83: OF | C83: =(G83*'Points System'!$B$16)+(H83*'Points System'!$B$17)+(I83*'Points System'!$B$15)+(J83*'Points System'!$B$2)+(K83*'Points System'!$B$3)+(L83*'Points System'!$B$4)+(M83*'Points System'!$B$5)+(N83*'Points System'!$B$6)+(O83*'Points System'!$B$7)+(P83*'Points System'!$B$8)+(Q83*'Points System'!$B$9)+(R83*'Points System'!$B$10)+(S83*'Points System'!$B$11)+(T83*'Points System'!$B$13)+(U83*'Points System'!$B$12)+(X83*'Points System'!$B$14) -> 479.9 | D83: =C83/G83 -> 0.858082858 | E83: =C83/F83 -> 3.654988576 | F83: 131.3 | G83: 559.27 | H83: 503.6 | I83: 132.5 | J83: 78.07 | K83: 28.93 | L83: 4.53 | M83: 21.25 | N83: 69.06 | O83: 78.25 | P83: 40.86 | Q83: 108.23 | R83: 17.75 | S83: 4.31 | T83: 6.5 | U83: 7.89 | V83: 0.263 | W83: 2.649 | X83: 234.52 | Y83: 0.324 | Z83: 0.466 | AA83: 0.79 | AB83: NL | AC83: 572041 | AD83: CF | AE83: =IF(ISNA(VLOOKUP(A83,Rankings!$B$2:$H$659,7,FALSE)),"-",VLOOKUP(A83,Rankings!$B$2:$H$659,7,FALSE)) -> 0
A84: Justin Upton | B84: OF | C84: =(G84*'Points System'!$B$16)+(H84*'Points System'!$B$17)+(I84*'Points System'!$B$15)+(J84*'Points System'!$B$2)+(K84*'Points System'!$B$3)+(L84*'Points System'!$B$4)+(M84*'Points System'!$B$5)+(N84*'Points System'!$B$6)+(O84*'Points System'!$B$7)+(P84*'Points System'!$B$8)+(Q84*'Points System'!$B$9)+(R84*'Points System'!$B$10)+(S84*'Points System'!$B$11)+(T84*'Points System'!$B$13)+(U84*'Points System'!$B$12)+(X84*'Points System'!$B$14) -> 477.465 | D84: =C84/G84 -> 0.7632723204 | E84: =C84/F84 -> 3.252486376 | F84: 146.8 | G84: 625.55 | H84: 548.53 | I84: 138.29 | J84: 82.2 | K84: 25.6 | L84: 1.07 | M84: 29.69 | N84: 89.06 | O84: 82.81 | P84: 65.07 | Q84: 178.62 | R84: 8.94 | S84: 2.77 | T84: 5 | U84: 6.67 | V84: 0.252 | W84: 2.745 | X84: 255.37 | Y84: 0.336 | Z84: 0.466 | AA84: 0.802 | AB84: AL | AC84: 457708 | AD84: LF | AE84: =IF(ISNA(VLOOKUP(A84,Rankings!$B$2:$H$659,7,FALSE)),"-",VLOOKUP(A84,Rankings!$B$2:$H$659,7,FALSE)) -> 0
A85: Elvis Andrus | B85: SS | C85: =(G85*'Points System'!$B$16)+(H85*'Points System'!$B$17)+(I85*'Points System'!$B$15)+(J85*'Points System'!$B$2)+(K85*'Points System'!$B$3)+(L85*'Points System'!$B$4)+(M85*'Points System'!$B$5)+(N85*'Points System'!$B$6)+(O85*'Points System'!$B$7)+(P85*'Points System'!$B$8)+(Q85*'Points System'!$B$9)+(R85*'Points System'!$B$10)+(S85*'Points System'!$B$11)+(T85*'Points System'!$B$13)+(U85*'Points System'!$B$12)+(X85*'Points System'!$B$14) -> 477.05 | D85: =C85/G85 -> 0.8029792964 | E85: =C85/F85 -> 3.442912818 | F85: 138.56 | G85: 594.1 | H85: 554 | I85: 149 | J85: 103.5 | K85: 32 | L85: 4.21 | M85: 10.93 | N85: 60.27 | O85: 73.8 | P85: 39.85 | Q85: 89.83 | R85: 13.93 | S85: 6.25 | T85: 3 | U85: 3.63 | V85: 0.269 | W85: 2.254 | X85: 223.85 | Y85: 0.321 | Z85: 0.404 | AA85: 0.725 | AB85: AL | AC85: 462101 | AD85: SS | AE85: =IF(ISNA(VLOOKUP(A85,Rankings!$B$2:$H$659,7,FALSE)),"-",VLOOKUP(A85,Rankings!$B$2:$H$659,7,FALSE)) -> 0
A86: Max Kepler | B86: OF | C86: =(G86*'Points System'!$B$16)+(H86*'Points System'!$B$17)+(I86*'Points System'!$B$15)+(J86*'Points System'!$B$2)+(K86*'Points System'!$B$3)+(L86*'Points System'!$B$4)+(M86*'Points System'!$B$5)+(N86*'Points System'!$B$6)+(O86*'Points System'!$B$7)+(P86*'Points System'!$B$8)+(Q86*'Points System'!$B$9)+(R86*'Points System'!$B$10)+(S86*'Points System'!$B$11)+(T86*'Points System'!$B$13)+(U86*'Points System'!$B$12)+(X86*'Points System'!$B$14) -> 476.69 | D86: =C86/G86 -> 0.8002988382 | E86: =C86/F86 -> 3.233989145 | F86: 147.4 | G86: 595.64 | H86: 518.33 | I86: 128.43 | J86: 73.4 | K86: 30 | L86: 3.8 | M86: 21.13 | N86: 70.38 | O86: 73.81 | P86: 61 | Q86: 102.15 | R86: 5.81 | S86: 3.38 | T86: 3 | U86: 4.78 | V86: 0.248 | W86: 1.675 | X86: 229.32 | Y86: 0.331 | Z86: 0.442 | AA86: 0.773 | AB86: AL | AC86: 596146 | AD86: RF | AE86: =IF(ISNA(VLOOKUP(A86,Rankings!$B$2:$H$659,7,FALSE)),"-",VLOOKUP(A86,Rankings!$B$2:$H$659,7,FALSE)) -> 0
A87: Nick Markakis | B87: OF | C87: =(G87*'Points System'!$B$16)+(H87*'Points System'!$B$17)+(I87*'Points System'!$B$15)+(J87*'Points System'!$B$2)+(K87*'Points System'!$B$3)+(L87*'Points System'!$B$4)+(M87*'Points System'!$B$5)+(N87*'Points System'!$B$6)+(O87*'Points System'!$B$7)+(P87*'Points System'!$B$8)+(Q87*'Points System'!$B$9)+(R87*'Points System'!$B$10)+(S87*'Points System'!$B$11)+(T87*'Points System'!$B$13)+(U87*'Points System'!$B$12)+(X87*'Points System'!$B$14) -> 475.485 | D87: =C87/G87 -> 0.8121701255 | E87: =C87/F87 -> 3.31117688 | F87: 143.6 | G87: 585.45 | H87: 536.67 | I87: 144.57 | J87: 102.13 | K87: 32.4 | L87: 1.2 | M87: 10.63 | N87: 69.5 | O87: 64.31 | P87: 59.93 | Q87: 81.69 | R87: 1 | S87: 1 | T87: 6.5 | U87: 2.78 | V87: 0.269 | W87: 1.363 | X87: 213.05 | Y87: 0.342 | Z87: 0.397 | AA87: 0.739 | AB87: NL | AC87: 455976 | AD87: RF | AE87: =IF(ISNA(VLOOKUP(A87,Rankings!$B$2:$H$659,7,FALSE)),"-",VLOOKUP(A87,Rankings!$B$2:$H$659,7,FALSE)) -> 0
A88: Yuli Gurriel | B88: 1B/3B | C88: =(G88*'Points System'!$B$16)+(H88*'Points System'!$B$17)+(I88*'Points System'!$B$15)+(J88*'Points System'!$B$2)+(K88*'Points System'!$B$3)+(L88*'Points System'!$B$4)+(M88*'Points System'!$B$5)+(N88*'Points System'!$B$6)+(O88*'Points System'!$B$7)+(P88*'Points System'!$B$8)+(Q88*'Points System'!$B$9)+(R88*'Points System'!$B$10)+(S88*'Points System'!$B$11)+(T88*'Points System'!$B$13)+(U88*'Points System'!$B$12)+(X88*'Points System'!$B$14) -> 474.955 | D88: =C88/G88 -> 0.8808839349 | E88: =C88/F88 -> 3.631154434 | F88: 130.8 | G88: 539.18 | H88: 512.2 | I88: 144.71 | J88: 96.93 | K88: 33.8 | L88: 1.2 | M88: 13.75 | N88: 72.63 | O88: 64.06 | P88: 23.71 | Q88: 64.69 | R88: 3.94 | S88: 1.38 | T88: 6.5 | U88: 6.11 | V88: 0.283 | W88: 2.728 | X88: 223.13 | Y88: 0.318 | Z88: 0.436 | AA88: 0.754 | AB88: AL | AC88: 493329 | AD88: 1B | AE88: =IF(ISNA(VLOOKUP(A88,Rankings!$B$2:$H$659,7,FALSE)),"-",VLOOKUP(A88,Rankings!$B$2:$H$659,7,FALSE)) -> 0
A89: Jesse Winker | B89: OF | C89: =(G89*'Points System'!$B$16)+(H89*'Points System'!$B$17)+(I89*'Points System'!$B$15)+(J89*'Points System'!$B$2)+(K89*'Points System'!$B$3)+(L89*'Points System'!$B$4)+(M89*'Points System'!$B$5)+(N89*'Points System'!$B$6)+(O89*'Points System'!$B$7)+(P89*'Points System'!$B$8)+(Q89*'Points System'!$B$9)+(R89*'Points System'!$B$10)+(S89*'Points System'!$B$11)+(T89*'Points System'!$B$13)+(U89*'Points System'!$B$12)+(X89*'Points System'!$B$14) -> 474.6 | D89: =C89/G89 -> 0.8839470302 | E89: =C89/F89 -> 3.544436146 | F89: 133.9 | G89: 536.91 | H89: 470.6 | I89: 135.93 | J89: 94.47 | K89: 26.13 | L89: 0.67 | M89: 15.13 | N89: 64.63 | O89: 67.81 | P89: 70.5 | Q89: 83.23 | R89: 2.19 | S89: 1.15 | T89: 1.5 | U89: 3.67 | V89: 0.289 | W89: 1.181 | X89: 209.26 | Y89: 0.385 | Z89: 0.445 | AA89: 0.83 | AB89: NL | AC89: 608385 | AD89: RF | AE89: =IF(ISNA(VLOOKUP(A89,Rankings!$B$2:$H$659,7,FALSE)),"-",VLOOKUP(A89,Rankings!$B$2:$H$659,7,FALSE)) -> 0
A90: Jesus Aguilar | B90: 1B | C90: =(G90*'Points System'!$B$16)+(H90*'Points System'!$B$17)+(I90*'Points System'!$B$15)+(J90*'Points System'!$B$2)+(K90*'Points System'!$B$3)+(L90*'Points System'!$B$4)+(M90*'Points System'!$B$5)+(N90*'Points System'!$B$6)+(O90*'Points System'!$B$7)+(P90*'Points System'!$B$8)+(Q90*'Points System'!$B$9)+(R90*'Points System'!$B$10)+(S90*'Points System'!$B$11)+(T90*'Points System'!$B$13)+(U90*'Points System'!$B$12)+(X90*'Points System'!$B$14) -> 473.52 | D90: =C90/G90 -> 0.8045535638 | E90: =C90/F90 -> 3.315966387 | F90: 142.8 | G90: 588.55 | H90: 517.07 | I90: 133.14 | J90: 76.47 | K90: 25.13 | L90: 1 | M90: 30.38 | N90: 94.31 | O90: 75.88 | P90: 55.07 | Q90: 152.08 | R90: 0.56 | S90: 0.08 | T90: 8.5 | U90: 6.11 | V90: 0.257 | W90: 2.762 | X90: 251.25 | Y90: 0.331 | Z90: 0.486 | AA90: 0.817 | AB90: NL | AC90: 542583 | AD90: 1B | AE90: =IF(ISNA(VLOOKUP(A90,Rankings!$B$2:$H$659,7,FALSE)),"-",VLOOKUP(A90,Rankings!$B$2:$H$659,7,FALSE)) -> 0
A91: J.T. Realmuto | B91: C | C91: =(G91*'Points System'!$B$16)+(H91*'Points System'!$B$17)+(I91*'Points System'!$B$15)+(J91*'Points System'!$B$2)+(K91*'Points System'!$B$3)+(L91*'Points System'!$B$4)+(M91*'Points System'!$B$5)+(N91*'Points System'!$B$6)+(O91*'Points System'!$B$7)+(P91*'Points System'!$B$8)+(Q91*'Points System'!$B$9)+(R91*'Points System'!$B$10)+(S91*'Points System'!$B$11)+(T91*'Points System'!$B$13)+(U91*'Points System'!$B$12)+(X91*'Points System'!$B$14) -> 473.16 | D91: =C91/G91 -> 0.8550672257 | E91: =C91/F91 -> 3.562951807 | F91: 132.8 | G91: 553.36 | H91: 500.73 | I91: 137.86 | J91: 84.33 | K91: 29 | L91: 3.07 | M91: 21.63 | N91: 76.31 | O91: 73.19 | P91: 38.5 | Q91: 107.46 | R91: 5.31 | S91: 2.08 | T91: 3.5 | U91: 8.33 | V91: 0.275 | W91: 2.791 | X91: 238.06 | Y91: 0.335 | Z91: 0.475 | AA91: 0.81 | AB91: NL | AC91: 592663 | AD91: C | AE91: =IF(ISNA(VLOOKUP(A91,Rankings!$B$2:$H$659,7,FALSE)),"-",VLOOKUP(A91,Rankings!$B$2:$H$659,7,FALSE)) -> 0
A92: Marcus Semien | B92: SS | C92: =(G92*'Points System'!$B$16)+(H92*'Points System'!$B$17)+(I92*'Points System'!$B$15)+(J92*'Points System'!$B$2)+(K92*'Points System'!$B$3)+(L92*'Points System'!$B$4)+(M92*'Points System'!$B$5)+(N92*'Points System'!$B$6)+(O92*'Points System'!$B$7)+(P92*'Points System'!$B$8)+(Q92*'Points System'!$B$9)+(R92*'Points System'!$B$10)+(S92*'Points System'!$B$11)+(T92*'Points System'!$B$13)+(U92*'Points System'!$B$12)+(X92*'Points System'!$B$14) -> 472.765 | D92: =C92/G92 -> 0.7556502142 | E92: =C92/F92 -> 3.139209827 | F92: 150.6 | G92: 625.64 | H92: 566.93 | I92: 143.07 | J92: 94.27 | K92: 30.47 | L92: 2.2 | M92: 17 | N92: 68.38 | O92: 75.88 | P92: 54.79 | Q92: 123.62 | R92: 13.25 | S92: 3.92 | T92: 5.5 | U92: 1.67 | V92: 0.252 | W92: 2.256 | X92: 229.81 | Y92: 0.317 | Z92: 0.405 | AA92: 0.722 | AB92: AL | AC92: 543760 | AD92: SS | AE92: =IF(ISNA(VLOOKUP(A92,Rankings!$B$2:$H$659,7,FALSE)),"-",VLOOKUP(A92,Rankings!$B$2:$H$659,7,FALSE)) -> 0
A93: Eduardo Escobar | B93: SS/3B | C93: =(G93*'Points System'!$B$16)+(H93*'Points System'!$B$17)+(I93*'Points System'!$B$15)+(J93*'Points System'!$B$2)+(K93*'Points System'!$B$3)+(L93*'Points System'!$B$4)+(M93*'Points System'!$B$5)+(N93*'Points System'!$B$6)+(O93*'Points System'!$B$7)+(P93*'Points System'!$B$8)+(Q93*'Points System'!$B$9)+(R93*'Points System'!$B$10)+(S93*'Points System'!$B$11)+(T93*'Points System'!$B$13)+(U93*'Points System'!$B$12)+(X93*'Points System'!$B$14) -> 472.56 | D93: =C93/G93 -> 0.7809618245 | E93: =C93/F93 -> 3.271669898 | F93: 144.44 | G93: 605.1 | H93: 545.79 | I93: 140.77 | J93: 81.29 | K93: 34.57 | L93: 4.5 | M93: 20.8 | N93: 76.27 | O93: 70.6 | P93: 46.54 | Q93: 121.42 | R93: 3.4 | S93: 2.83 | T93: 6.5 | U93: 4.63 | V93: 0.258 | W93: 2.609 | X93: 247.13 | Y93: 0.318 | Z93: 0.453 | AA93: 0.771 | AB93: NL | AC93: 500871 | AD93: 3B | AE93: =IF(ISNA(VLOOKUP(A93,Rankings!$B$2:$H$659,7,FALSE)),"-",VLOOKUP(A93,Rankings!$B$2:$H$659,7,FALSE)) -> 0
A94: Corey Dickerson | B94: OF | C94: =(G94*'Points System'!$B$16)+(H94*'Points System'!$B$17)+(I94*'Points System'!$B$15)+(J94*'Points System'!$B$2)+(K94*'Points System'!$B$3)+(L94*'Points System'!$B$4)+(M94*'Points System'!$B$5)+(N94*'Points System'!$B$6)+(O94*'Points System'!$B$7)+(P94*'Points System'!$B$8)+(Q94*'Points System'!$B$9)+(R94*'Points System'!$B$10)+(S94*'Points System'!$B$11)+(T94*'Points System'!$B$13)+(U94*'Points System'!$B$12)+(X94*'Points System'!$B$14) -> 471.4 | D94: =C94/G94 -> 0.8371514829 | E94: =C94/F94 -> 3.468982265 | F94: 135.89 | G94: 563.1 | H94: 529 | I94: 148.54 | J94: 91.57 | K94: 33.43 | L94: 4.79 | M94: 18.67 | N94: 66.27 | O94: 69.4 | P94: 28.15 | Q94: 103.83 | R94: 5.87 | S94: 2.75 | T94: 3.5 | U94: 3.5 | V94: 0.281 | W94: 3.688 | X94: 247.48 | Y94: 0.319 | Z94: 0.468 | AA94: 0.787 | AB94: NL | AC94: 572816 | AD94: LF | AE94: =IF(ISNA(VLOOKUP(A94,Rankings!$B$2:$H$659,7,FALSE)),"-",VLOOKUP(A94,Rankings!$B$2:$H$659,7,FALSE)) -> 0
A95: Kyle Seager | B95: 3B | C95: =(G95*'Points System'!$B$16)+(H95*'Points System'!$B$17)+(I95*'Points System'!$B$15)+(J95*'Points System'!$B$2)+(K95*'Points System'!$B$3)+(L95*'Points System'!$B$4)+(M95*'Points System'!$B$5)+(N95*'Points System'!$B$6)+(O95*'Points System'!$B$7)+(P95*'Points System'!$B$8)+(Q95*'Points System'!$B$9)+(R95*'Points System'!$B$10)+(S95*'Points System'!$B$11)+(T95*'Points System'!$B$13)+(U95*'Points System'!$B$12)+(X95*'Points System'!$B$14) -> 471.21 | D95: =C95/G95 -> 0.75690306 | E95: =C95/F95 -> 3.147695391 | F95: 149.7 | G95: 622.55 | H95: 569.4 | I95: 137.5 | J95: 79.93 | K95: 32.87 | L95: 1.13 | M95: 23.88 | N95: 82.06 | O95: 70.5 | P95: 48.71 | Q95: 126.15 | R95: 2.56 | S95: 1.77 | T95: 4 | U95: 6.56 | V95: 0.241 | W95: 2.59 | X95: 244.58 | Y95: 0.307 | Z95: 0.43 | AA95: 0.737 | AB95: AL | AC95: 572122 | AD95: 3B | AE95: =IF(ISNA(VLOOKUP(A95,Rankings!$B$2:$H$659,7,FALSE)),"-",VLOOKUP(A95,Rankings!$B$2:$H$659,7,FALSE)) -> 0
A96: Miguel Cabrera | B96: 1B | C96: =(G96*'Points System'!$B$16)+(H96*'Points System'!$B$17)+(I96*'Points System'!$B$15)+(J96*'Points System'!$B$2)+(K96*'Points System'!$B$3)+(L96*'Points System'!$B$4)+(M96*'Points System'!$B$5)+(N96*'Points System'!$B$6)+(O96*'Points System'!$B$7)+(P96*'Points System'!$B$8)+(Q96*'Points System'!$B$9)+(R96*'Points System'!$B$10)+(S96*'Points System'!$B$11)+(T96*'Points System'!$B$13)+(U96*'Points System'!$B$12)+(X96*'Points System'!$B$14) -> 470.705 | D96: =C96/G96 -> 0.8468658918 | E96: =C96/F96 -> 3.56594697 | F96: 132 | G96: 555.82 | H96: 490.07 | I96: 136.43 | J96: 88 | K96: 27.2 | L96: 0.6 | M96: 20.19 | N96: 75.06 | O96: 65.31 | P96: 63.79 | Q96: 105.23 | R96: 0.5 | S96: 0.46 | T96: 3.5 | U96: 2.33 | V96: 0.278 | W96: 1.65 | X96: 224.96 | Y96: 0.362 | Z96: 0.459 | AA96: 0.821 | AB96: AL | AC96: 408234 | AD96: 1B | AE96: =IF(ISNA(VLOOKUP(A96,Rankings!$B$2:$H$659,7,FALSE)),"-",VLOOKUP(A96,Rankings!$B$2:$H$659,7,FALSE)) -> 0
A97: Maikel Franco | B97: 3B | C97: =(G97*'Points System'!$B$16)+(H97*'Points System'!$B$17)+(I97*'Points System'!$B$15)+(J97*'Points System'!$B$2)+(K97*'Points System'!$B$3)+(L97*'Points System'!$B$4)+(M97*'Points System'!$B$5)+(N97*'Points System'!$B$6)+(O97*'Points System'!$B$7)+(P97*'Points System'!$B$8)+(Q97*'Points System'!$B$9)+(R97*'Points System'!$B$10)+(S97*'Points System'!$B$11)+(T97*'Points System'!$B$13)+(U97*'Points System'!$B$12)+(X97*'Points System'!$B$14) -> 465.61 | D97: =C97/G97 -> 0.8450272232 | E97: =C97/F97 -> 3.302198582 | F97: 141 | G97: 551 | H97: 494.93 | I97: 132 | J97: 82.2 | K97: 24 | L97: 1 | M97: 23.75 | N97: 75.63 | O97: 60.81 | P97: 36.86 | Q97: 81.15 | R97: 1.13 | S97: 0.31 | T97: 4 | U97: 1.89 | V97: 0.267 | W97: 2.202 | X97: 228.2 | Y97: 0.318 | Z97: 0.461 | AA97: 0.779 | AB97: NL | AC97: 596748 | AD97: 3B | AE97: =IF(ISNA(VLOOKUP(A97,Rankings!$B$2:$H$659,7,FALSE)),"-",VLOOKUP(A97,Rankings!$B$2:$H$659,7,FALSE)) -> 0
A98: Rafael Devers | B98: 3B | C98: =(G98*'Points System'!$B$16)+(H98*'Points System'!$B$17)+(I98*'Points System'!$B$15)+(J98*'Points System'!$B$2)+(K98*'Points System'!$B$3)+(L98*'Points System'!$B$4)+(M98*'Points System'!$B$5)+(N98*'Points System'!$B$6)+(O98*'Points System'!$B$7)+(P98*'Points System'!$B$8)+(Q98*'Points System'!$B$9)+(R98*'Points System'!$B$10)+(S98*'Points System'!$B$11)+(T98*'Points System'!$B$13)+(U98*'Points System'!$B$12)+(X98*'Points System'!$B$14) -> 463.02 | D98: =C98/G98 -> 0.8166137566 | E98: =C98/F98 -> 3.392087912 | F98: 136.5 | G98: 567 | H98: 520.33 | I98: 137.79 | J98: 81.07 | K98: 31.07 | L98: 1.27 | M98: 24.38 | N98: 78.25 | O98: 71.69 | P98: 44.43 | Q98: 132 | R98: 5.88 | S98: 2.69 | T98: 2 | U98: 0.78 | V98: 0.265 | W98: 2.971 | X98: 244.54 | Y98: 0.322 | Z98: 0.47 | AA98: 0.792 | AB98: AL | AC98: 646240 | AD98: 3B | AE98: =IF(ISNA(VLOOKUP(A98,Rankings!$B$2:$H$659,7,FALSE)),"-",VLOOKUP(A98,Rankings!$B$2:$H$659,7,FALSE)) -> 0
A99: Cesar Hernandez | B99: 2B | C99: =(G99*'Points System'!$B$16)+(H99*'Points System'!$B$17)+(I99*'Points System'!$B$15)+(J99*'Points System'!$B$2)+(K99*'Points System'!$B$3)+(L99*'Points System'!$B$4)+(M99*'Points System'!$B$5)+(N99*'Points System'!$B$6)+(O99*'Points System'!$B$7)+(P99*'Points System'!$B$8)+(Q99*'Points System'!$B$9)+(R99*'Points System'!$B$10)+(S99*'Points System'!$B$11)+(T99*'Points System'!$B$13)+(U99*'Points System'!$B$12)+(X99*'Points System'!$B$14) -> 462.73 | D99: =C99/G99 -> 0.7237393644 | E99: =C99/F99 -> 3.111835911 | F99: 148.7 | G99: 639.36 | H99: 556.33 | I99: 146.36 | J99: 111.67 | K99: 19.27 | L99: 4.67 | M99: 11.5 | N99: 51.63 | O99: 81.81 | P99: 77.43 | Q99: 129.46 | R99: 16.56 | S99: 5.85 | T99: 2.5 | U99: 3.89 | V99: 0.263 | W99: 1.672 | X99: 210.22 | Y99: 0.356 | Z99: 0.378 | AA99: 0.734 | AB99: NL | AC99: 514917 | AD99: 2B | AE99: =IF(ISNA(VLOOKUP(A99,Rankings!$B$2:$H$659,7,FALSE)),"-",VLOOKUP(A99,Rankings!$B$2:$H$659,7,FALSE)) -> 0
A100: Eloy Jimenez | B100: OF | C100: =(G100*'Points System'!$B$16)+(H100*'Points System'!$B$17)+(I100*'Points System'!$B$15)+(J100*'Points System'!$B$2)+(K100*'Points System'!$B$3)+(L100*'Points System'!$B$4)+(M100*'Points System'!$B$5)+(N100*'Points System'!$B$6)+(O100*'Points System'!$B$7)+(P100*'Points System'!$B$8)+(Q100*'Points System'!$B$9)+(R100*'Points System'!$B$10)+(S100*'Points System'!$B$11)+(T100*'Points System'!$B$13)+(U100*'Points System'!$B$12)+(X100*'Points System'!$B$14) -> 461.09 | D100: =C100/G100 -> 0.8845002877 | E100: =C100/F100 -> 4.024877793 | F100: 114.56 | G100: 521.3 | H100: 481.43 | I100: 136.54 | J100: 84.43 | K100: 26.93 | L100: 2.5 | M100: 22.67 | N100: 73.13 | O100: 64.73 | P100: 31.69 | Q100: 94.58 | R100: 2.07 | S100: 1.33 | T100: 0 | U100: 3 | V100: 0.284 | W100: 2.985 | X100: 236.47 | Y100: 0.332 | Z100: 0.491 | AA100: 0.823 | AB100: AL | AC100: 650391 | AD100: LF | AE100: =IF(ISNA(VLOOKUP(A100,Rankings!$B$2:$H$659,7,FALSE)),"-",VLOOKUP(A100,Rankings!$B$2:$H$659,7,FALSE)) -> 0
A101: Justin Smoak | B101: 1B | C101: =(G101*'Points System'!$B$16)+(H101*'Points System'!$B$17)+(I101*'Points System'!$B$15)+(J101*'Points System'!$B$2)+(K101*'Points System'!$B$3)+(L101*'Points System'!$B$4)+(M101*'Points System'!$B$5)+(N101*'Points System'!$B$6)+(O101*'Points System'!$B$7)+(P101*'Points System'!$B$8)+(Q101*'Points System'!$B$9)+(R101*'Points System'!$B$10)+(S101*'Points System'!$B$11)+(T101*'Points System'!$B$13)+(U101*'Points System'!$B$12)+(X101*'Points System'!$B$14) -> 458.365 | D101: =C101/G101 -> 0.7559288212 | E101: =C101/F101 -> 3.118129252 | F101: 147 | G101: 606.36 | H101: 525 | I101: 128.36 | J101: 71.6 | K101: 28.8 | L101: 0.73 | M101: 27.44 | N101: 79.88 | O101: 73.13 | P101: 76.86 | Q101: 155.08 | R101: 0.69 | S101: 0.69 | T101: 2.5 | U101: 2.89 | V101: 0.244 | W101: 2.018 | X101: 241.15 | Y101: 0.343 | Z101: 0.459 | AA101: 0.802 | AB101: AL | AC101: 475253 | AD101: 1B | AE101: =IF(ISNA(VLOOKUP(A101,Rankings!$B$2:$H$659,7,FALSE)),"-",VLOOKUP(A101,Rankings!$B$2:$H$659,7,FALSE)) -> 0
A102: Asdrubal Cabrera | B102: 2B/SS/3B | C102: =(G102*'Points System'!$B$16)+(H102*'Points System'!$B$17)+(I102*'Points System'!$B$15)+(J102*'Points System'!$B$2)+(K102*'Points System'!$B$3)+(L102*'Points System'!$B$4)+(M102*'Points System'!$B$5)+(N102*'Points System'!$B$6)+(O102*'Points System'!$B$7)+(P102*'Points System'!$B$8)+(Q102*'Points System'!$B$9)+(R102*'Points System'!$B$10)+(S102*'Points System'!$B$11)+(T102*'Points System'!$B$13)+(U102*'Points System'!$B$12)+(X102*'Points System'!$B$14) -> 455.35 | D102: =C102/G102 -> 0.8500093336 | E102: =C102/F102 -> 3.446748921 | F102: 132.11 | G102: 535.7 | H102: 506.79 | I102: 138.54 | J102: 84.64 | K102: 31.93 | L102: 1.21 | M102: 20.07 | N102: 69.6 | O102: 67.27 | P102: 40.77 | Q102: 105.33 | R102: 1.87 | S102: 0.75 | T102: 2.5 | U102: 4 | V102: 0.273 | W102: 2.584 | X102: 232.41 | Y102: 0.331 | Z102: 0.459 | AA102: 0.79 | AB102: AL | AC102: 452678 | AD102: 2B | AE102: =IF(ISNA(VLOOKUP(A102,Rankings!$B$2:$H$659,7,FALSE)),"-",VLOOKUP(A102,Rankings!$B$2:$H$659,7,FALSE)) -> 0
A103: Dee Gordon | B103: 2B/OF | C103: =(G103*'Points System'!$B$16)+(H103*'Points System'!$B$17)+(I103*'Points System'!$B$15)+(J103*'Points System'!$B$2)+(K103*'Points System'!$B$3)+(L103*'Points System'!$B$4)+(M103*'Points System'!$B$5)+(N103*'Points System'!$B$6)+(O103*'Points System'!$B$7)+(P103*'Points System'!$B$8)+(Q103*'Points System'!$B$9)+(R103*'Points System'!$B$10)+(S103*'Points System'!$B$11)+(T103*'Points System'!$B$13)+(U103*'Points System'!$B$12)+(X103*'Points System'!$B$14) -> 453.725 | D103: =C103/G103 -> 0.7427035079 | E103: =C103/F103 -> 3.094986357 | F103: 146.6 | G103: 610.91 | H103: 581.13 | I103: 159.93 | J103: 130.2 | K103: 19.47 | L103: 7.33 | M103: 3.63 | N103: 39.81 | O103: 70.69 | P103: 18.29 | Q103: 86.38 | R103: 37.38 | S103: 12.15 | T103: 4.5 | U103: 7.67 | V103: 0.275 | W103: 4.723 | X103: 205.65 | Y103: 0.304 | Z103: 0.354 | AA103: 0.658 | AB103: AL | AC103: 543829 | AD103: 2B | AE103: =IF(ISNA(VLOOKUP(A103,Rankings!$B$2:$H$659,7,FALSE)),"-",VLOOKUP(A103,Rankings!$B$2:$H$659,7,FALSE)) -> 0
A104: Evan Longoria | B104: 3B | C104: =(G104*'Points System'!$B$16)+(H104*'Points System'!$B$17)+(I104*'Points System'!$B$15)+(J104*'Points System'!$B$2)+(K104*'Points System'!$B$3)+(L104*'Points System'!$B$4)+(M104*'Points System'!$B$5)+(N104*'Points System'!$B$6)+(O104*'Points System'!$B$7)+(P104*'Points System'!$B$8)+(Q104*'Points System'!$B$9)+(R104*'Points System'!$B$10)+(S104*'Points System'!$B$11)+(T104*'Points System'!$B$13)+(U104*'Points System'!$B$12)+(X104*'Points System'!$B$14) -> 452.485 | D104: =C104/G104 -> 0.7629280548 | E104: =C104/F104 -> 3.166445066 | F104: 142.9 | G104: 593.09 | H104: 555.07 | I104: 141.29 | J104: 87.53 | K104: 31.4 | L104: 3.13 | M104: 19.69 | N104: 72.44 | O104: 64.06 | P104: 35.5 | Q104: 112.85 | R104: 3.56 | S104: 1.62 | T104: 6.5 | U104: 5.33 | V104: 0.255 | W104: 3.179 | X104: 238.48 | Y104: 0.302 | Z104: 0.43 | AA104: 0.732 | AB104: NL | AC104: 446334 | AD104: 3B | AE104: =IF(ISNA(VLOOKUP(A104,Rankings!$B$2:$H$659,7,FALSE)),"-",VLOOKUP(A104,Rankings!$B$2:$H$659,7,FALSE)) -> 0
A105: Starlin Castro | B105: 2B | C105: =(G105*'Points System'!$B$16)+(H105*'Points System'!$B$17)+(I105*'Points System'!$B$15)+(J105*'Points System'!$B$2)+(K105*'Points System'!$B$3)+(L105*'Points System'!$B$4)+(M105*'Points System'!$B$5)+(N105*'Points System'!$B$6)+(O105*'Points System'!$B$7)+(P105*'Points System'!$B$8)+(Q105*'Points System'!$B$9)+(R105*'Points System'!$B$10)+(S105*'Points System'!$B$11)+(T105*'Points System'!$B$13)+(U105*'Points System'!$B$12)+(X105*'Points System'!$B$14) -> 451.07 | D105: =C105/G105 -> 0.7272976459 | E105: =C105/F105 -> 3.07080128 | F105: 146.89 | G105: 620.2 | H105: 573.57 | I105: 155.77 | J105: 109.93 | K105: 29.21 | L105: 1.93 | M105: 14.6 | N105: 59.47 | O105: 70.67 | P105: 39 | Q105: 119.25 | R105: 5.6 | S105: 2.83 | T105: 5.5 | U105: 2.38 | V105: 0.272 | W105: 3.058 | X105: 232.54 | Y105: 0.318 | Z105: 0.405 | AA105: 0.723 | AB105: NL | AC105: 516770 | AD105: 2B | AE105: =IF(ISNA(VLOOKUP(A105,Rankings!$B$2:$H$659,7,FALSE)),"-",VLOOKUP(A105,Rankings!$B$2:$H$659,7,FALSE)) -> 0
A106: Jed Lowrie | B106: 2B | C106: =(G106*'Points System'!$B$16)+(H106*'Points System'!$B$17)+(I106*'Points System'!$B$15)+(J106*'Points System'!$B$2)+(K106*'Points System'!$B$3)+(L106*'Points System'!$B$4)+(M106*'Points System'!$B$5)+(N106*'Points System'!$B$6)+(O106*'Points System'!$B$7)+(P106*'Points System'!$B$8)+(Q106*'Points System'!$B$9)+(R106*'Points System'!$B$10)+(S106*'Points System'!$B$11)+(T106*'Points System'!$B$13)+(U106*'Points System'!$B$12)+(X106*'Points System'!$B$14) -> 449.865 | D106: =C106/G106 -> 0.7755089727 | E106: =C106/F106 -> 3.16806338 | F106: 142 | G106: 580.09 | H106: 519 | I106: 133.57 | J106: 86.73 | K106: 30.13 | L106: 1.8 | M106: 15.69 | N106: 66.88 | O106: 68.06 | P106: 63.86 | Q106: 105.92 | R106: 0.38 | S106: 0.15 | T106: 3 | U106: 2.67 | V106: 0.257 | W106: 1.659 | X106: 215.15 | Y106: 0.34 | Z106: 0.415 | AA106: 0.755 | AB106: NL | AC106: 476704 | AD106: 2B | AE106: =IF(ISNA(VLOOKUP(A106,Rankings!$B$2:$H$659,7,FALSE)),"-",VLOOKUP(A106,Rankings!$B$2:$H$659,7,FALSE)) -> 0
A107: Trey Mancini | B107: 1B/OF | C107: =(G107*'Points System'!$B$16)+(H107*'Points System'!$B$17)+(I107*'Points System'!$B$15)+(J107*'Points System'!$B$2)+(K107*'Points System'!$B$3)+(L107*'Points System'!$B$4)+(M107*'Points System'!$B$5)+(N107*'Points System'!$B$6)+(O107*'Points System'!$B$7)+(P107*'Points System'!$B$8)+(Q107*'Points System'!$B$9)+(R107*'Points System'!$B$10)+(S107*'Points System'!$B$11)+(T107*'Points System'!$B$13)+(U107*'Points System'!$B$12)+(X107*'Points System'!$B$14) -> 448.835 | D107: =C107/G107 -> 0.7221221141 | E107: =C107/F107 -> 3.004250335 | F107: 149.4 | G107: 621.55 | H107: 564.4 | I107: 147 | J107: 94.87 | K107: 25.33 | L107: 3.6 | M107: 23.81 | N107: 72.25 | O107: 69.63 | P107: 42.29 | Q107: 146.62 | R107: 1 | S107: 0.69 | T107: 4.5 | U107: 5.56 | V107: 0.26 | W107: 3.467 | X107: 251.57 | Y107: 0.316 | Z107: 0.446 | AA107: 0.762 | AB107: AL | AC107: 641820 | AD107: LF | AE107: =IF(ISNA(VLOOKUP(A107,Rankings!$B$2:$H$659,7,FALSE)),"-",VLOOKUP(A107,Rankings!$B$2:$H$659,7,FALSE)) -> 0
A108: Wil Myers | B108: 3B/OF | C108: =(G108*'Points System'!$B$16)+(H108*'Points System'!$B$17)+(I108*'Points System'!$B$15)+(J108*'Points System'!$B$2)+(K108*'Points System'!$B$3)+(L108*'Points System'!$B$4)+(M108*'Points System'!$B$5)+(N108*'Points System'!$B$6)+(O108*'Points System'!$B$7)+(P108*'Points System'!$B$8)+(Q108*'Points System'!$B$9)+(R108*'Points System'!$B$10)+(S108*'Points System'!$B$11)+(T108*'Points System'!$B$13)+(U108*'Points System'!$B$12)+(X108*'Points System'!$B$14) -> 447.5 | D108: =C108/G108 -> 0.7654282978 | E108: =C108/F108 -> 3.212491027 | F108: 139.3 | G108: 584.64 | H108: 525.53 | I108: 130.14 | J108: 74.87 | K108: 30.13 | L108: 2.53 | M108: 23.19 | N108: 73.25 | O108: 73.5 | P108: 56.5 | Q108: 157.85 | R108: 19.31 | S108: 4.08 | T108: 3 | U108: 2.67 | V108: 0.248 | W108: 2.794 | X108: 235.48 | Y108: 0.322 | Z108: 0.448 | AA108: 0.77 | AB108: NL | AC108: 571976 | AD108: 3B | AE108: =IF(ISNA(VLOOKUP(A108,Rankings!$B$2:$H$659,7,FALSE)),"-",VLOOKUP(A108,Rankings!$B$2:$H$659,7,FALSE)) -> 0
A109: Adam Eaton | B109: OF | C109: =(G109*'Points System'!$B$16)+(H109*'Points System'!$B$17)+(I109*'Points System'!$B$15)+(J109*'Points System'!$B$2)+(K109*'Points System'!$B$3)+(L109*'Points System'!$B$4)+(M109*'Points System'!$B$5)+(N109*'Points System'!$B$6)+(O109*'Points System'!$B$7)+(P109*'Points System'!$B$8)+(Q109*'Points System'!$B$9)+(R109*'Points System'!$B$10)+(S109*'Points System'!$B$11)+(T109*'Points System'!$B$13)+(U109*'Points System'!$B$12)+(X109*'Points System'!$B$14) -> 446.775 | D109: =C109/G109 -> 0.7954828716 | E109: =C109/F109 -> 3.410496183 | F109: 131 | G109: 561.64 | H109: 483.4 | I109: 140.57 | J109: 99.27 | K109: 26.8 | L109: 3.8 | M109: 9 | N109: 51.06 | O109: 76.88 | P109: 53.71 | Q109: 94.69 | R109: 11.75 | S109: 3.15 | T109: 0.5 | U109: 12.11 | V109: 0.291 | W109: 1.763 | X109: 200.27 | Y109: 0.375 | Z109: 0.414 | AA109: 0.789 | AB109: NL | AC109: 594809 | AD109: RF | AE109: =IF(ISNA(VLOOKUP(A109,Rankings!$B$2:$H$659,7,FALSE)),"-",VLOOKUP(A109,Rankings!$B$2:$H$659,7,FALSE)) -> 0
A110: Victor Robles | B110: OF | C110: =(G110*'Points System'!$B$16)+(H110*'Points System'!$B$17)+(I110*'Points System'!$B$15)+(J110*'Points System'!$B$2)+(K110*'Points System'!$B$3)+(L110*'Points System'!$B$4)+(M110*'Points System'!$B$5)+(N110*'Points System'!$B$6)+(O110*'Points System'!$B$7)+(P110*'Points System'!$B$8)+(Q110*'Points System'!$B$9)+(R110*'Points System'!$B$10)+(S110*'Points System'!$B$11)+(T110*'Points System'!$B$13)+(U110*'Points System'!$B$12)+(X110*'Points System'!$B$14) -> 445.035 | D110: =C110/G110 -> 0.7753222997 | E110: =C110/F110 -> 3.173833975 | F110: 140.22 | G110: 574 | H110: 498.36 | I110: 135.31 | J110: 89.5 | K110: 28.29 | L110: 5.29 | M110: 12.27 | N110: 57.4 | O110: 68.87 | P110: 40.31 | Q110: 103.25 | R110: 26.6 | S110: 10.67 | T110: 9 | U110: 15.25 | V110: 0.272 | W110: 2.561 | X110: 211.03 | Y110: 0.339 | Z110: 0.423 | AA110: 0.762 | AB110: NL | AC110: 645302 | AD110: CF | AE110: =IF(ISNA(VLOOKUP(A110,Rankings!$B$2:$H$659,7,FALSE)),"-",VLOOKUP(A110,Rankings!$B$2:$H$659,7,FALSE)) -> 0
A111: Buster Posey | B111: C | C111: =(G111*'Points System'!$B$16)+(H111*'Points System'!$B$17)+(I111*'Points System'!$B$15)+(J111*'Points System'!$B$2)+(K111*'Points System'!$B$3)+(L111*'Points System'!$B$4)+(M111*'Points System'!$B$5)+(N111*'Points System'!$B$6)+(O111*'Points System'!$B$7)+(P111*'Points System'!$B$8)+(Q111*'Points System'!$B$9)+(R111*'Points System'!$B$10)+(S111*'Points System'!$B$11)+(T111*'Points System'!$B$13)+(U111*'Points System'!$B$12)+(X111*'Points System'!$B$14) -> 443.525 | D111: =C111/G111 -> 0.8584797925 | E111: =C111/F111 -> 3.536881978 | F111: 125.4 | G111: 516.64 | H111: 472.33 | I111: 134.79 | J111: 97.27 | K111: 26.73 | L111: 1.07 | M111: 10.06 | N111: 58.81 | O111: 59.19 | P111: 52.57 | Q111: 65.38 | R111: 3.81 | S111: 1.38 | T111: 3 | U111: 4.56 | V111: 0.285 | W111: 1.244 | X111: 194.18 | Y111: 0.36 | Z111: 0.411 | AA111: 0.771 | AB111: NL | AC111: 457763 | AD111: C | AE111: =IF(ISNA(VLOOKUP(A111,Rankings!$B$2:$H$659,7,FALSE)),"-",VLOOKUP(A111,Rankings!$B$2:$H$659,7,FALSE)) -> 0
A112: Adam Jones | B112: OF | C112: =(G112*'Points System'!$B$16)+(H112*'Points System'!$B$17)+(I112*'Points System'!$B$15)+(J112*'Points System'!$B$2)+(K112*'Points System'!$B$3)+(L112*'Points System'!$B$4)+(M112*'Points System'!$B$5)+(N112*'Points System'!$B$6)+(O112*'Points System'!$B$7)+(P112*'Points System'!$B$8)+(Q112*'Points System'!$B$9)+(R112*'Points System'!$B$10)+(S112*'Points System'!$B$11)+(T112*'Points System'!$B$13)+(U112*'Points System'!$B$12)+(X112*'Points System'!$B$14) -> 443.35 | D112: =C112/G112 -> 0.7747487986 | E112: =C112/F112 -> 3.274855961 | F112: 135.38 | G112: 572.25 | H112: 536.27 | I112: 144.4 | J112: 99 | K112: 27.82 | L112: 0.82 | M112: 17.83 | N112: 65.33 | O112: 61.25 | P112: 26.18 | Q112: 96.4 | R112: 4.17 | S112: 1 | T112: 4 | U112: 5.5 | V112: 0.269 | W112: 3.682 | X112: 228.42 | Y112: 0.308 | Z112: 0.426 | AA112: 0.734 | AC112: 430945 | AD112: OF | AE112: =IF(ISNA(VLOOKUP(A112,Rankings!$B$2:$H$659,7,FALSE)),"-",VLOOKUP(A112,Rankings!$B$2:$H$659,7,FALSE)) -> 0
A113: Joey Gallo | B113: 1B/OF | C113: =(G113*'Points System'!$B$16)+(H113*'Points System'!$B$17)+(I113*'Points System'!$B$15)+(J113*'Points System'!$B$2)+(K113*'Points System'!$B$3)+(L113*'Points System'!$B$4)+(M113*'Points System'!$B$5)+(N113*'Points System'!$B$6)+(O113*'Points System'!$B$7)+(P113*'Points System'!$B$8)+(Q113*'Points System'!$B$9)+(R113*'Points System'!$B$10)+(S113*'Points System'!$B$11)+(T113*'Points System'!$B$13)+(U113*'Points System'!$B$12)+(X113*'Points System'!$B$14) -> 441.7 | D113: =C113/G113 -> 0.7337209302 | E113: =C113/F113 -> 3.006807352 | F113: 146.9 | G113: 602 | H113: 509.4 | I113: 110.21 | J113: 44.4 | K113: 22.73 | L113: 2.4 | M113: 40.63 | N113: 94.06 | O113: 85.75 | P113: 78.36 | Q113: 211.62 | R113: 5.31 | S113: 2.92 | T113: 0 | U113: 5.78 | V113: 0.216 | W113: 2.701 | X113: 259.58 | Y113: 0.327 | Z113: 0.51 | AA113: 0.837 | AB113: AL | AC113: 608336 | AD113: LF | AE113: =IF(ISNA(VLOOKUP(A113,Rankings!$B$2:$H$659,7,FALSE)),"-",VLOOKUP(A113,Rankings!$B$2:$H$659,7,FALSE)) -> 0
A114: Mallex Smith | B114: OF | C114: =(G114*'Points System'!$B$16)+(H114*'Points System'!$B$17)+(I114*'Points System'!$B$15)+(J114*'Points System'!$B$2)+(K114*'Points System'!$B$3)+(L114*'Points System'!$B$4)+(M114*'Points System'!$B$5)+(N114*'Points System'!$B$6)+(O114*'Points System'!$B$7)+(P114*'Points System'!$B$8)+(Q114*'Points System'!$B$9)+(R114*'Points System'!$B$10)+(S114*'Points System'!$B$11)+(T114*'Points System'!$B$13)+(U114*'Points System'!$B$12)+(X114*'Points System'!$B$14) -> 441.385 | D114: =C114/G114 -> 0.7425098831 | E114: =C114/F114 -> 3.1149259 | F114: 141.7 | G114: 594.45 | H114: 528.53 | I114: 144.14 | J114: 105.93 | K114: 25.47 | L114: 7.8 | M114: 4.75 | N114: 43.56 | O114: 71.44 | P114: 49.14 | Q114: 114.38 | R114: 38.56 | S114: 12 | T114: 2 | U114: 6 | V114: 0.273 | W114: 2.328 | X114: 199.27 | Y114: 0.34 | Z114: 0.377 | AA114: 0.717 | AB114: AL | AC114: 605480 | AD114: CF | AE114: =IF(ISNA(VLOOKUP(A114,Rankings!$B$2:$H$659,7,FALSE)),"-",VLOOKUP(A114,Rankings!$B$2:$H$659,7,FALSE)) -> 0
A115: Brian Anderson | B115: 3B/OF | C115: =(G115*'Points System'!$B$16)+(H115*'Points System'!$B$17)+(I115*'Points System'!$B$15)+(J115*'Points System'!$B$2)+(K115*'Points System'!$B$3)+(L115*'Points System'!$B$4)+(M115*'Points System'!$B$5)+(N115*'Points System'!$B$6)+(O115*'Points System'!$B$7)+(P115*'Points System'!$B$8)+(Q115*'Points System'!$B$9)+(R115*'Points System'!$B$10)+(S115*'Points System'!$B$11)+(T115*'Points System'!$B$13)+(U115*'Points System'!$B$12)+(X115*'Points System'!$B$14) -> 441.295 | D115: =C115/G115 -> 0.7107344178 | E115: =C115/F115 -> 2.983940767 | F115: 147.89 | G115: 620.9 | H115: 552.5 | I115: 144.46 | J115: 98 | K115: 30.21 | L115: 3.5 | M115: 13.4 | N115: 63.93 | O115: 73.07 | P115: 55.77 | Q115: 126.42 | R115: 2.73 | S115: 2.83 | T115: 2 | U115: 13.25 | V115: 0.261 | W115: 2.267 | X115: 222.52 | Y115: 0.342 | Z115: 0.403 | AA115: 0.745 | AB115: NL | AC115: 605119 | AD115: RF | AE115: =IF(ISNA(VLOOKUP(A115,Rankings!$B$2:$H$659,7,FALSE)),"-",VLOOKUP(A115,Rankings!$B$2:$H$659,7,FALSE)) -> 0
A116: Shin-Soo Choo | B116: OF | C116: =(G116*'Points System'!$B$16)+(H116*'Points System'!$B$17)+(I116*'Points System'!$B$15)+(J116*'Points System'!$B$2)+(K116*'Points System'!$B$3)+(L116*'Points System'!$B$4)+(M116*'Points System'!$B$5)+(N116*'Points System'!$B$6)+(O116*'Points System'!$B$7)+(P116*'Points System'!$B$8)+(Q116*'Points System'!$B$9)+(R116*'Points System'!$B$10)+(S116*'Points System'!$B$11)+(T116*'Points System'!$B$13)+(U116*'Points System'!$B$12)+(X116*'Points System'!$B$14) -> 439.53 | D116: =C116/G116 -> 0.7571576227 | E116: =C116/F116 -> 3.185 | F116: 138 | G116: 580.5 | H116: 507.79 | I116: 131.08 | J116: 87.71 | K116: 24.07 | L116: 1 | M116: 18.47 | N116: 59.13 | O116: 77.47 | P116: 76 | Q116: 134.17 | R116: 6.87 | S116: 2.25 | T116: 2 | U116: 8.38 | V116: 0.258 | W116: 1.765 | X116: 212.73 | Y116: 0.363 | Z116: 0.419 | AA116: 0.782 | AB116: AL | AC116: 425783 | AD116: RF | AE116: =IF(ISNA(VLOOKUP(A116,Rankings!$B$2:$H$659,7,FALSE)),"-",VLOOKUP(A116,Rankings!$B$2:$H$659,7,FALSE)) -> 0
A117: Max Muncy | B117: 1B/3B | C117: =(G117*'Points System'!$B$16)+(H117*'Points System'!$B$17)+(I117*'Points System'!$B$15)+(J117*'Points System'!$B$2)+(K117*'Points System'!$B$3)+(L117*'Points System'!$B$4)+(M117*'Points System'!$B$5)+(N117*'Points System'!$B$6)+(O117*'Points System'!$B$7)+(P117*'Points System'!$B$8)+(Q117*'Points System'!$B$9)+(R117*'Points System'!$B$10)+(S117*'Points System'!$B$11)+(T117*'Points System'!$B$13)+(U117*'Points System'!$B$12)+(X117*'Points System'!$B$14) -> 436.8 | D117: =C117/G117 -> 0.8017326824 | E117: =C117/F117 -> 3.216494845 | F117: 135.8 | G117: 544.82 | H117: 452.87 | I117: 113 | J117: 63.47 | K117: 20 | L117: 2.07 | M117: 27.5 | N117: 76.06 | O117: 73.69 | P117: 77.14 | Q117: 139.85 | R117: 2.94 | S117: 1.08 | T117: 1.5 | U117: 5 | V117: 0.25 | W117: 1.813 | X117: 219.68 | Y117: 0.364 | Z117: 0.485 | AA117: 0.849 | AB117: NL | AC117: 571970 | AD117: 1B | AE117: =IF(ISNA(VLOOKUP(A117,Rankings!$B$2:$H$659,7,FALSE)),"-",VLOOKUP(A117,Rankings!$B$2:$H$659,7,FALSE)) -> 0
A118: Ryan Braun | B118: OF | C118: =(G118*'Points System'!$B$16)+(H118*'Points System'!$B$17)+(I118*'Points System'!$B$15)+(J118*'Points System'!$B$2)+(K118*'Points System'!$B$3)+(L118*'Points System'!$B$4)+(M118*'Points System'!$B$5)+(N118*'Points System'!$B$6)+(O118*'Points System'!$B$7)+(P118*'Points System'!$B$8)+(Q118*'Points System'!$B$9)+(R118*'Points System'!$B$10)+(S118*'Points System'!$B$11)+(T118*'Points System'!$B$13)+(U118*'Points System'!$B$12)+(X118*'Points System'!$B$14) -> 436.625 | D118: =C118/G118 -> 0.8517185549 | E118: =C118/F118 -> 3.55268511 | F118: 122.9 | G118: 512.64 | H118: 457.67 | I118: 123.29 | J118: 72.53 | K118: 25.8 | L118: 2 | M118: 20.94 | N118: 69.88 | O118: 65 | P118: 40 | Q118: 99.15 | R118: 11.75 | S118: 4.38 | T118: 3.5 | U118: 3 | V118: 0.269 | W118: 2.479 | X118: 213.89 | Y118: 0.33 | Z118: 0.467 | AA118: 0.797 | AB118: NL | AC118: 460075 | AD118: LF | AE118: =IF(ISNA(VLOOKUP(A118,Rankings!$B$2:$H$659,7,FALSE)),"-",VLOOKUP(A118,Rankings!$B$2:$H$659,7,FALSE)) -> 0
A119: Amed Rosario | B119: SS | C119: =(G119*'Points System'!$B$16)+(H119*'Points System'!$B$17)+(I119*'Points System'!$B$15)+(J119*'Points System'!$B$2)+(K119*'Points System'!$B$3)+(L119*'Points System'!$B$4)+(M119*'Points System'!$B$5)+(N119*'Points System'!$B$6)+(O119*'Points System'!$B$7)+(P119*'Points System'!$B$8)+(Q119*'Points System'!$B$9)+(R119*'Points System'!$B$10)+(S119*'Points System'!$B$11)+(T119*'Points System'!$B$13)+(U119*'Points System'!$B$12)+(X119*'Points System'!$B$14) -> 436.275 | D119: =C119/G119 -> 0.7174513641 | E119: =C119/F119 -> 2.918227425 | F119: 149.5 | G119: 608.09 | H119: 567.07 | I119: 147 | J119: 102.53 | K119: 25.87 | L119: 7.8 | M119: 11.31 | N119: 55.56 | O119: 69.56 | P119: 30.79 | Q119: 121 | R119: 23.56 | S119: 9.54 | T119: 2.5 | U119: 4 | V119: 0.259 | W119: 3.93 | X119: 222.91 | Y119: 0.301 | Z119: 0.393 | AA119: 0.694 | AB119: NL | AC119: 642708 | AD119: SS | AE119: =IF(ISNA(VLOOKUP(A119,Rankings!$B$2:$H$659,7,FALSE)),"-",VLOOKUP(A119,Rankings!$B$2:$H$659,7,FALSE)) -> 0
A120: Tim Anderson | B120: SS | C120: =(G120*'Points System'!$B$16)+(H120*'Points System'!$B$17)+(I120*'Points System'!$B$15)+(J120*'Points System'!$B$2)+(K120*'Points System'!$B$3)+(L120*'Points System'!$B$4)+(M120*'Points System'!$B$5)+(N120*'Points System'!$B$6)+(O120*'Points System'!$B$7)+(P120*'Points System'!$B$8)+(Q120*'Points System'!$B$9)+(R120*'Points System'!$B$10)+(S120*'Points System'!$B$11)+(T120*'Points System'!$B$13)+(U120*'Points System'!$B$12)+(X120*'Points System'!$B$14) -> 436.235 | D120: =C120/G120 -> 0.7115350112 | E120: =C120/F120 -> 2.912116155 | F120: 149.8 | G120: 613.09 | H120: 577.8 | I120: 146.79 | J120: 96.67 | K120: 27.73 | L120: 3.93 | M120: 18.44 | N120: 65.38 | O120: 73.19 | P120: 27.07 | Q120: 150.38 | R120: 22.19 | S120: 6 | T120: 2.5 | U120: 3.78 | V120: 0.254 | W120: 5.555 | X120: 237.68 | Y120: 0.291 | Z120: 0.411 | AA120: 0.702 | AB120: AL | AC120: 641313 | AD120: SS | AE120: =IF(ISNA(VLOOKUP(A120,Rankings!$B$2:$H$659,7,FALSE)),"-",VLOOKUP(A120,Rankings!$B$2:$H$659,7,FALSE)) -> 0
A121: Jonathan Schoop | B121: 2B | C121: =(G121*'Points System'!$B$16)+(H121*'Points System'!$B$17)+(I121*'Points System'!$B$15)+(J121*'Points System'!$B$2)+(K121*'Points System'!$B$3)+(L121*'Points System'!$B$4)+(M121*'Points System'!$B$5)+(N121*'Points System'!$B$6)+(O121*'Points System'!$B$7)+(P121*'Points System'!$B$8)+(Q121*'Points System'!$B$9)+(R121*'Points System'!$B$10)+(S121*'Points System'!$B$11)+(T121*'Points System'!$B$13)+(U121*'Points System'!$B$12)+(X121*'Points System'!$B$14) -> 434.96 | D121: =C121/G121 -> 0.7963674979 | E121: =C121/F121 -> 3.226706231 | F121: 134.8 | G121: 546.18 | H121: 510.2 | I121: 134.29 | J121: 81.47 | K121: 28.53 | L121: 1 | M121: 24.06 | N121: 76.13 | O121: 69.81 | P121: 24.29 | Q121: 120.62 | R121: 1.56 | S121: 1.08 | T121: 4.5 | U121: 6.33 | V121: 0.263 | W121: 4.966 | X121: 237.77 | Y121: 0.302 | Z121: 0.466 | AA121: 0.768 | AB121: AL | AC121: 570731 | AD121: 2B | AE121: =IF(ISNA(VLOOKUP(A121,Rankings!$B$2:$H$659,7,FALSE)),"-",VLOOKUP(A121,Rankings!$B$2:$H$659,7,FALSE)) -> 0
A122: Kevin Pillar | B122: OF | C122: =(G122*'Points System'!$B$16)+(H122*'Points System'!$B$17)+(I122*'Points System'!$B$15)+(J122*'Points System'!$B$2)+(K122*'Points System'!$B$3)+(L122*'Points System'!$B$4)+(M122*'Points System'!$B$5)+(N122*'Points System'!$B$6)+(O122*'Points System'!$B$7)+(P122*'Points System'!$B$8)+(Q122*'Points System'!$B$9)+(R122*'Points System'!$B$10)+(S122*'Points System'!$B$11)+(T122*'Points System'!$B$13)+(U122*'Points System'!$B$12)+(X122*'Points System'!$B$14) -> 433.25 | D122: =C122/G122 -> 0.7534782609 | E122: =C122/F122 -> 3.061837456 | F122: 141.5 | G122: 575 | H122: 537.2 | I122: 138.14 | J122: 85.67 | K122: 36.13 | L122: 1.93 | M122: 14.5 | N122: 58.88 | O122: 64.56 | P122: 24.79 | Q122: 99.08 | R122: 13.94 | S122: 3.92 | T122: 5.5 | U122: 6.22 | V122: 0.257 | W122: 3.997 | X122: 221.72 | Y122: 0.295 | Z122: 0.413 | AA122: 0.708 | AB122: AL | AC122: 607680 | AD122: CF | AE122: =IF(ISNA(VLOOKUP(A122,Rankings!$B$2:$H$659,7,FALSE)),"-",VLOOKUP(A122,Rankings!$B$2:$H$659,7,FALSE)) -> 0
A123: Wilmer Flores | B123: 1B | C123: =(G123*'Points System'!$B$16)+(H123*'Points System'!$B$17)+(I123*'Points System'!$B$15)+(J123*'Points System'!$B$2)+(K123*'Points System'!$B$3)+(L123*'Points System'!$B$4)+(M123*'Points System'!$B$5)+(N123*'Points System'!$B$6)+(O123*'Points System'!$B$7)+(P123*'Points System'!$B$8)+(Q123*'Points System'!$B$9)+(R123*'Points System'!$B$10)+(S123*'Points System'!$B$11)+(T123*'Points System'!$B$13)+(U123*'Points System'!$B$12)+(X123*'Points System'!$B$14) -> 433.05 | D123: =C123/G123 -> 0.8579834763 | E123: =C123/F123 -> 3.372663551 | F123: 128.4 | G123: 504.73 | H123: 446.67 | I123: 125.36 | J123: 78.07 | K123: 26.87 | L123: 0.93 | M123: 17.56 | N123: 65.69 | O123: 55 | P123: 31.79 | Q123: 59.31 | R123: 1.06 | S123: 0.69 | T123: 8.5 | U123: 4.89 | V123: 0.281 | W123: 1.866 | X123: 204.84 | Y123: 0.329 | Z123: 0.459 | AA123: 0.788 | AB123: NL | AC123: 527038 | AD123: 1B | AE123: =IF(ISNA(VLOOKUP(A123,Rankings!$B$2:$H$659,7,FALSE)),"-",VLOOKUP(A123,Rankings!$B$2:$H$659,7,FALSE)) -> 0
A124: Brandon Nimmo | B124: OF | C124: =(G124*'Points System'!$B$16)+(H124*'Points System'!$B$17)+(I124*'Points System'!$B$15)+(J124*'Points System'!$B$2)+(K124*'Points System'!$B$3)+(L124*'Points System'!$B$4)+(M124*'Points System'!$B$5)+(N124*'Points System'!$B$6)+(O124*'Points System'!$B$7)+(P124*'Points System'!$B$8)+(Q124*'Points System'!$B$9)+(R124*'Points System'!$B$10)+(S124*'Points System'!$B$11)+(T124*'Points System'!$B$13)+(U124*'Points System'!$B$12)+(X124*'Points System'!$B$14) -> 431.275 | D124: =C124/G124 -> 0.7078553022 | E124: =C124/F124 -> 3.022249474 | F124: 142.7 | G124: 609.27 | H124: 509.4 | I124: 129.07 | J124: 78.33 | K124: 28.07 | L124: 5.93 | M124: 16.94 | N124: 55.44 | O124: 81.81 | P124: 84.29 | Q124: 156.08 | R124: 8.63 | S124: 4.69 | T124: 0.5 | U124: 16.33 | V124: 0.253 | W124: 1.852 | X124: 220.02 | Y124: 0.376 | Z124: 0.432 | AA124: 0.808 | AB124: NL | AC124: 607043 | AD124: RF | AE124: =IF(ISNA(VLOOKUP(A124,Rankings!$B$2:$H$659,7,FALSE)),"-",VLOOKUP(A124,Rankings!$B$2:$H$659,7,FALSE)) -> 0
A125: Gary Sanchez | B125: C | C125: =(G125*'Points System'!$B$16)+(H125*'Points System'!$B$17)+(I125*'Points System'!$B$15)+(J125*'Points System'!$B$2)+(K125*'Points System'!$B$3)+(L125*'Points System'!$B$4)+(M125*'Points System'!$B$5)+(N125*'Points System'!$B$6)+(O125*'Points System'!$B$7)+(P125*'Points System'!$B$8)+(Q125*'Points System'!$B$9)+(R125*'Points System'!$B$10)+(S125*'Points System'!$B$11)+(T125*'Points System'!$B$13)+(U125*'Points System'!$B$12)+(X125*'Points System'!$B$14) -> 429.81 | D125: =C125/G125 -> 0.8232488651 | E125: =C125/F125 -> 3.466209677 | F125: 124 | G125: 522.09 | H125: 465.6 | I125: 112.29 | J125: 60.8 | K125: 22.13 | L125: 0.47 | M125: 29 | N125: 82.69 | O125: 73.56 | P125: 51.36 | Q125: 129.46 | R125: 2.06 | S125: 0.69 | T125: 3 | U125: 6 | V125: 0.241 | W125: 2.521 | X125: 222.47 | Y125: 0.323 | Z125: 0.478 | AA125: 0.801 | AB125: AL | AC125: 596142 | AD125: C | AE125: =IF(ISNA(VLOOKUP(A125,Rankings!$B$2:$H$659,7,FALSE)),"-",VLOOKUP(A125,Rankings!$B$2:$H$659,7,FALSE)) -> 0
A126: Brandon Belt | B126: 1B | C126: =(G126*'Points System'!$B$16)+(H126*'Points System'!$B$17)+(I126*'Points System'!$B$15)+(J126*'Points System'!$B$2)+(K126*'Points System'!$B$3)+(L126*'Points System'!$B$4)+(M126*'Points System'!$B$5)+(N126*'Points System'!$B$6)+(O126*'Points System'!$B$7)+(P126*'Points System'!$B$8)+(Q126*'Points System'!$B$9)+(R126*'Points System'!$B$10)+(S126*'Points System'!$B$11)+(T126*'Points System'!$B$13)+(U126*'Points System'!$B$12)+(X126*'Points System'!$B$14) -> 427.85 | D126: =C126/G126 -> 0.7412765515 | E126: =C126/F126 -> 3.171608599 | F126: 134.9 | G126: 577.18 | H126: 488.4 | I126: 125.36 | J126: 73.27 | K126: 28.27 | L126: 3.4 | M126: 19 | N126: 65.88 | O126: 67.69 | P126: 70.21 | Q126: 131.08 | R126: 3.88 | S126: 1.54 | T126: 2.5 | U126: 5.56 | V126: 0.257 | W126: 1.867 | X126: 216.01 | Y126: 0.355 | Z126: 0.442 | AA126: 0.797 | AB126: NL | AC126: 474832 | AD126: 1B | AE126: =IF(ISNA(VLOOKUP(A126,Rankings!$B$2:$H$659,7,FALSE)),"-",VLOOKUP(A126,Rankings!$B$2:$H$659,7,FALSE)) -> 0
A127: Chris Taylor | B127: SS/OF | C127: =(G127*'Points System'!$B$16)+(H127*'Points System'!$B$17)+(I127*'Points System'!$B$15)+(J127*'Points System'!$B$2)+(K127*'Points System'!$B$3)+(L127*'Points System'!$B$4)+(M127*'Points System'!$B$5)+(N127*'Points System'!$B$6)+(O127*'Points System'!$B$7)+(P127*'Points System'!$B$8)+(Q127*'Points System'!$B$9)+(R127*'Points System'!$B$10)+(S127*'Points System'!$B$11)+(T127*'Points System'!$B$13)+(U127*'Points System'!$B$12)+(X127*'Points System'!$B$14) -> 427.025 | D127: =C127/G127 -> 0.7028639618 | E127: =C127/F127 -> 2.938919477 | F127: 145.3 | G127: 607.55 | H127: 536.8 | I127: 138.43 | J127: 83.93 | K127: 31.6 | L127: 6.47 | M127: 16.5 | N127: 65.13 | O127: 78.5 | P127: 53.57 | Q127: 161.92 | R127: 11.63 | S127: 4.92 | T127: 3 | U127: 6.78 | V127: 0.258 | W127: 3.023 | X127: 232.54 | Y127: 0.331 | Z127: 0.433 | AA127: 0.764 | AB127: NL | AC127: 621035 | AD127: SS | AE127: =IF(ISNA(VLOOKUP(A127,Rankings!$B$2:$H$659,7,FALSE)),"-",VLOOKUP(A127,Rankings!$B$2:$H$659,7,FALSE)) -> 0
A128: Odubel Herrera | B128: OF | C128: =(G128*'Points System'!$B$16)+(H128*'Points System'!$B$17)+(I128*'Points System'!$B$15)+(J128*'Points System'!$B$2)+(K128*'Points System'!$B$3)+(L128*'Points System'!$B$4)+(M128*'Points System'!$B$5)+(N128*'Points System'!$B$6)+(O128*'Points System'!$B$7)+(P128*'Points System'!$B$8)+(Q128*'Points System'!$B$9)+(R128*'Points System'!$B$10)+(S128*'Points System'!$B$11)+(T128*'Points System'!$B$13)+(U128*'Points System'!$B$12)+(X128*'Points System'!$B$14) -> 426.035 | D128: =C128/G128 -> 0.7718025362 | E128: =C128/F128 -> 3.121135531 | F128: 136.5 | G128: 552 | H128: 515.8 | I128: 135.29 | J128: 91.13 | K128: 24.67 | L128: 3.2 | M128: 17.69 | N128: 65.19 | O128: 64.25 | P128: 38.07 | Q128: 115.38 | R128: 8.06 | S128: 3.15 | T128: 1 | U128: 5.56 | V128: 0.262 | W128: 3.031 | X128: 220.83 | Y128: 0.319 | Z128: 0.428 | AA128: 0.747 | AB128: NL | AC128: 546318 | AD128: CF | AE128: =IF(ISNA(VLOOKUP(A128,Rankings!$B$2:$H$659,7,FALSE)),"-",VLOOKUP(A128,Rankings!$B$2:$H$659,7,FALSE)) -> 0
A129: Joe Panik | B129: 2B | C129: =(G129*'Points System'!$B$16)+(H129*'Points System'!$B$17)+(I129*'Points System'!$B$15)+(J129*'Points System'!$B$2)+(K129*'Points System'!$B$3)+(L129*'Points System'!$B$4)+(M129*'Points System'!$B$5)+(N129*'Points System'!$B$6)+(O129*'Points System'!$B$7)+(P129*'Points System'!$B$8)+(Q129*'Points System'!$B$9)+(R129*'Points System'!$B$10)+(S129*'Points System'!$B$11)+(T129*'Points System'!$B$13)+(U129*'Points System'!$B$12)+(X129*'Points System'!$B$14) -> 421.25 | D129: =C129/G129 -> 0.7975500776 | E129: =C129/F129 -> 3.291015625 | F129: 128 | G129: 528.18 | H129: 476.67 | I129: 129.69 | J129: 93.79 | K129: 24.14 | L129: 3.79 | M129: 8.2 | N129: 47.07 | O129: 55.47 | P129: 41.38 | Q129: 48.23 | R129: 4.8 | S129: 1.67 | T129: 5.5 | U129: 4.25 | V129: 0.272 | W129: 1.166 | X129: 186.24 | Y129: 0.332 | Z129: 0.391 | AA129: 0.723 | AB129: NL | AC129: 605412 | AD129: 2B | AE129: =IF(ISNA(VLOOKUP(A129,Rankings!$B$2:$H$659,7,FALSE)),"-",VLOOKUP(A129,Rankings!$B$2:$H$659,7,FALSE)) -> 0
A130: Kole Calhoun | B130: OF | C130: =(G130*'Points System'!$B$16)+(H130*'Points System'!$B$17)+(I130*'Points System'!$B$15)+(J130*'Points System'!$B$2)+(K130*'Points System'!$B$3)+(L130*'Points System'!$B$4)+(M130*'Points System'!$B$5)+(N130*'Points System'!$B$6)+(O130*'Points System'!$B$7)+(P130*'Points System'!$B$8)+(Q130*'Points System'!$B$9)+(R130*'Points System'!$B$10)+(S130*'Points System'!$B$11)+(T130*'Points System'!$B$13)+(U130*'Points System'!$B$12)+(X130*'Points System'!$B$14) -> 419.18 | D130: =C130/G130 -> 0.6933178961 | E130: =C130/F130 -> 2.906531688 | F130: 144.22 | G130: 604.6 | H130: 526.5 | I130: 126.15 | J130: 81.43 | K130: 23 | L130: 2.86 | M130: 18.8 | N130: 65.53 | O130: 73.67 | P130: 58.62 | Q130: 131.33 | R130: 5.4 | S130: 2.17 | T130: 6 | U130: 4 | V130: 0.24 | W130: 2.24 | X130: 211.21 | Y130: 0.317 | Z130: 0.401 | AA130: 0.718 | AB130: AL | AC130: 594777 | AD130: RF | AE130: =IF(ISNA(VLOOKUP(A130,Rankings!$B$2:$H$659,7,FALSE)),"-",VLOOKUP(A130,Rankings!$B$2:$H$659,7,FALSE)) -> 0
A131: Adam Frazier | B131: 2B/OF | C131: =(G131*'Points System'!$B$16)+(H131*'Points System'!$B$17)+(I131*'Points System'!$B$15)+(J131*'Points System'!$B$2)+(K131*'Points System'!$B$3)+(L131*'Points System'!$B$4)+(M131*'Points System'!$B$5)+(N131*'Points System'!$B$6)+(O131*'Points System'!$B$7)+(P131*'Points System'!$B$8)+(Q131*'Points System'!$B$9)+(R131*'Points System'!$B$10)+(S131*'Points System'!$B$11)+(T131*'Points System'!$B$13)+(U131*'Points System'!$B$12)+(X131*'Points System'!$B$14) -> 418.23 | D131: =C131/G131 -> 0.7846716698 | E131: =C131/F131 -> 3.131401617 | F131: 133.56 | G131: 533 | H131: 472.21 | I131: 131.15 | J131: 86.57 | K131: 27.64 | L131: 4.57 | M131: 9.93 | N131: 50.93 | O131: 65.13 | P131: 42.15 | Q131: 76.33 | R131: 7.47 | S131: 6.25 | T131: 2 | U131: 6.13 | V131: 0.278 | W131: 1.811 | X131: 195.28 | Y131: 0.343 | Z131: 0.414 | AA131: 0.757 | AB131: NL | AC131: 624428 | AD131: 2B | AE131: =IF(ISNA(VLOOKUP(A131,Rankings!$B$2:$H$659,7,FALSE)),"-",VLOOKUP(A131,Rankings!$B$2:$H$659,7,FALSE)) -> 0
A132: Jeimer Candelario | B132: 3B | C132: =(G132*'Points System'!$B$16)+(H132*'Points System'!$B$17)+(I132*'Points System'!$B$15)+(J132*'Points System'!$B$2)+(K132*'Points System'!$B$3)+(L132*'Points System'!$B$4)+(M132*'Points System'!$B$5)+(N132*'Points System'!$B$6)+(O132*'Points System'!$B$7)+(P132*'Points System'!$B$8)+(Q132*'Points System'!$B$9)+(R132*'Points System'!$B$10)+(S132*'Points System'!$B$11)+(T132*'Points System'!$B$13)+(U132*'Points System'!$B$12)+(X132*'Points System'!$B$14) -> 416.79 | D132: =C132/G132 -> 0.6659050967 | E132: =C132/F132 -> 2.835306122 | F132: 147 | G132: 625.9 | H132: 548.14 | I132: 129.77 | J132: 76.21 | K132: 32 | L132: 3.07 | M132: 19.07 | N132: 62.53 | O132: 76.2 | P132: 63.46 | Q132: 152.83 | R132: 2.67 | S132: 1.58 | T132: 4.5 | U132: 7.75 | V132: 0.237 | W132: 2.408 | X132: 225.7 | Y132: 0.322 | Z132: 0.412 | AA132: 0.734 | AB132: AL | AC132: 600869 | AD132: 3B | AE132: =IF(ISNA(VLOOKUP(A132,Rankings!$B$2:$H$659,7,FALSE)),"-",VLOOKUP(A132,Rankings!$B$2:$H$659,7,FALSE)) -> 0
A133: DJ LeMahieu | B133: 2B | C133: =(G133*'Points System'!$B$16)+(H133*'Points System'!$B$17)+(I133*'Points System'!$B$15)+(J133*'Points System'!$B$2)+(K133*'Points System'!$B$3)+(L133*'Points System'!$B$4)+(M133*'Points System'!$B$5)+(N133*'Points System'!$B$6)+(O133*'Points System'!$B$7)+(P133*'Points System'!$B$8)+(Q133*'Points System'!$B$9)+(R133*'Points System'!$B$10)+(S133*'Points System'!$B$11)+(T133*'Points System'!$B$13)+(U133*'Points System'!$B$12)+(X133*'Points System'!$B$14) -> 416.675 | D133: =C133/G133 -> 0.8062596749 | E133: =C133/F133 -> 3.224539545 | F133: 129.22 | G133: 516.8 | H133: 486.14 | I133: 129.62 | J133: 96.29 | K133: 22.57 | L133: 2 | M133: 11 | N133: 52.33 | O133: 70.13 | P133: 40.54 | Q133: 78.92 | R133: 6.53 | S133: 3.75 | T133: 6 | U133: 2.88 | V133: 0.267 | W133: 1.947 | X133: 191.43 | Y133: 0.323 | Z133: 0.394 | AA133: 0.717 | AB133: AL | AC133: 518934 | AD133: 2B | AE133: =IF(ISNA(VLOOKUP(A133,Rankings!$B$2:$H$659,7,FALSE)),"-",VLOOKUP(A133,Rankings!$B$2:$H$659,7,FALSE)) -> 0
A134: Yadier Molina | B134: C | C134: =(G134*'Points System'!$B$16)+(H134*'Points System'!$B$17)+(I134*'Points System'!$B$15)+(J134*'Points System'!$B$2)+(K134*'Points System'!$B$3)+(L134*'Points System'!$B$4)+(M134*'Points System'!$B$5)+(N134*'Points System'!$B$6)+(O134*'Points System'!$B$7)+(P134*'Points System'!$B$8)+(Q134*'Points System'!$B$9)+(R134*'Points System'!$B$10)+(S134*'Points System'!$B$11)+(T134*'Points System'!$B$13)+(U134*'Points System'!$B$12)+(X134*'Points System'!$B$14) -> 416.315 | D134: =C134/G134 -> 0.8291640941 | E134: =C134/F134 -> 3.319896332 | F134: 125.4 | G134: 502.09 | H134: 467.4 | I134: 125.21 | J134: 85.67 | K134: 23.2 | L134: 0.93 | M134: 15.69 | N134: 66.38 | O134: 54.56 | P134: 29.71 | Q134: 69.31 | R134: 4.56 | S134: 2.54 | T134: 6 | U134: 6.44 | V134: 0.268 | W134: 2.333 | X134: 197.62 | Y134: 0.317 | Z134: 0.423 | AA134: 0.74 | AB134: NL | AC134: 425877 | AD134: C | AE134: =IF(ISNA(VLOOKUP(A134,Rankings!$B$2:$H$659,7,FALSE)),"-",VLOOKUP(A134,Rankings!$B$2:$H$659,7,FALSE)) -> 0
A135: Jackie Bradley | B135: OF | C135: =(G135*'Points System'!$B$16)+(H135*'Points System'!$B$17)+(I135*'Points System'!$B$15)+(J135*'Points System'!$B$2)+(K135*'Points System'!$B$3)+(L135*'Points System'!$B$4)+(M135*'Points System'!$B$5)+(N135*'Points System'!$B$6)+(O135*'Points System'!$B$7)+(P135*'Points System'!$B$8)+(Q135*'Points System'!$B$9)+(R135*'Points System'!$B$10)+(S135*'Points System'!$B$11)+(T135*'Points System'!$B$13)+(U135*'Points System'!$B$12)+(X135*'Points System'!$B$14) -> 415.725 | D135: =C135/G135 -> 0.7240325334 | E135: =C135/F135 -> 2.942144374 | F135: 141.3 | G135: 574.18 | H135: 502.53 | I135: 123.57 | J135: 72.27 | K135: 29.67 | L135: 4.13 | M135: 17.56 | N135: 68.75 | O135: 72.31 | P135: 51.43 | Q135: 139.77 | R135: 12.69 | S135: 2.62 | T135: 3.5 | U135: 10.11 | V135: 0.246 | W135: 2.718 | X135: 214.24 | Y135: 0.326 | Z135: 0.426 | AA135: 0.752 | AB135: AL | AC135: 598265 | AD135: CF | AE135: =IF(ISNA(VLOOKUP(A135,Rankings!$B$2:$H$659,7,FALSE)),"-",VLOOKUP(A135,Rankings!$B$2:$H$659,7,FALSE)) -> 0
A136: Brandon Crawford | B136: SS | C136: =(G136*'Points System'!$B$16)+(H136*'Points System'!$B$17)+(I136*'Points System'!$B$15)+(J136*'Points System'!$B$2)+(K136*'Points System'!$B$3)+(L136*'Points System'!$B$4)+(M136*'Points System'!$B$5)+(N136*'Points System'!$B$6)+(O136*'Points System'!$B$7)+(P136*'Points System'!$B$8)+(Q136*'Points System'!$B$9)+(R136*'Points System'!$B$10)+(S136*'Points System'!$B$11)+(T136*'Points System'!$B$13)+(U136*'Points System'!$B$12)+(X136*'Points System'!$B$14) -> 415.625 | D136: =C136/G136 -> 0.6988465354 | E136: =C136/F136 -> 2.82930565 | F136: 146.9 | G136: 594.73 | H136: 532.13 | I136: 136.07 | J136: 89.33 | K136: 29.47 | L136: 3.07 | M136: 14.38 | N136: 64.81 | O136: 60.5 | P136: 49.71 | Q136: 120.92 | R136: 4.69 | S136: 3.77 | T136: 5.5 | U136: 5.33 | V136: 0.256 | W136: 2.433 | X136: 215 | Y136: 0.322 | Z136: 0.404 | AA136: 0.726 | AB136: NL | AC136: 543063 | AD136: SS | AE136: =IF(ISNA(VLOOKUP(A136,Rankings!$B$2:$H$659,7,FALSE)),"-",VLOOKUP(A136,Rankings!$B$2:$H$659,7,FALSE)) -> 0
A137: Jason Kipnis | B137: 2B | C137: =(G137*'Points System'!$B$16)+(H137*'Points System'!$B$17)+(I137*'Points System'!$B$15)+(J137*'Points System'!$B$2)+(K137*'Points System'!$B$3)+(L137*'Points System'!$B$4)+(M137*'Points System'!$B$5)+(N137*'Points System'!$B$6)+(O137*'Points System'!$B$7)+(P137*'Points System'!$B$8)+(Q137*'Points System'!$B$9)+(R137*'Points System'!$B$10)+(S137*'Points System'!$B$11)+(T137*'Points System'!$B$13)+(U137*'Points System'!$B$12)+(X137*'Points System'!$B$14) -> 414.76 | D137: =C137/G137 -> 0.7290560731 | E137: =C137/F137 -> 3.113346344 | F137: 133.22 | G137: 568.9 | H137: 498.93 | I137: 121.85 | J137: 73.57 | K137: 29.71 | L137: 1.93 | M137: 16.13 | N137: 63.73 | O137: 65.53 | P137: 51.69 | Q137: 108.92 | R137: 7.73 | S137: 2.08 | T137: 3.5 | U137: 5.63 | V137: 0.244 | W137: 2.107 | X137: 203.3 | Y137: 0.32 | Z137: 0.407 | AA137: 0.727 | AB137: AL | AC137: 543401 | AD137: 2B | AE137: =IF(ISNA(VLOOKUP(A137,Rankings!$B$2:$H$659,7,FALSE)),"-",VLOOKUP(A137,Rankings!$B$2:$H$659,7,FALSE)) -> 0
A138: Paul DeJong | B138: SS | C138: =(G138*'Points System'!$B$16)+(H138*'Points System'!$B$17)+(I138*'Points System'!$B$15)+(J138*'Points System'!$B$2)+(K138*'Points System'!$B$3)+(L138*'Points System'!$B$4)+(M138*'Points System'!$B$5)+(N138*'Points System'!$B$6)+(O138*'Points System'!$B$7)+(P138*'Points System'!$B$8)+(Q138*'Points System'!$B$9)+(R138*'Points System'!$B$10)+(S138*'Points System'!$B$11)+(T138*'Points System'!$B$13)+(U138*'Points System'!$B$12)+(X138*'Points System'!$B$14) -> 414.39 | D138: =C138/G138 -> 0.7293287339 | E138: =C138/F138 -> 3.158460366 | F138: 131.2 | G138: 568.18 | H138: 515.07 | I138: 128.71 | J138: 74.47 | K138: 28.47 | L138: 1.33 | M138: 24 | N138: 76.38 | O138: 70.31 | P138: 37.21 | Q138: 143.31 | R138: 2 | S138: 1.31 | T138: 5 | U138: 9.44 | V138: 0.25 | W138: 3.851 | X138: 231.4 | Y138: 0.309 | Z138: 0.449 | AA138: 0.758 | AB138: NL | AC138: 657557 | AD138: SS | AE138: =IF(ISNA(VLOOKUP(A138,Rankings!$B$2:$H$659,7,FALSE)),"-",VLOOKUP(A138,Rankings!$B$2:$H$659,7,FALSE)) -> 0
A139: Ian Desmond | B139: 1B/OF | C139: =(G139*'Points System'!$B$16)+(H139*'Points System'!$B$17)+(I139*'Points System'!$B$15)+(J139*'Points System'!$B$2)+(K139*'Points System'!$B$3)+(L139*'Points System'!$B$4)+(M139*'Points System'!$B$5)+(N139*'Points System'!$B$6)+(O139*'Points System'!$B$7)+(P139*'Points System'!$B$8)+(Q139*'Points System'!$B$9)+(R139*'Points System'!$B$10)+(S139*'Points System'!$B$11)+(T139*'Points System'!$B$13)+(U139*'Points System'!$B$12)+(X139*'Points System'!$B$14) -> 413 | D139: =C139/G139 -> 0.7877169559 | E139: =C139/F139 -> 3.136629452 | F139: 131.67 | G139: 524.3 | H139: 485.5 | I139: 124.69 | J139: 82.57 | K139: 20.21 | L139: 4.43 | M139: 17.93 | N139: 69.13 | O139: 68.47 | P139: 41.38 | Q139: 126.75 | R139: 16.13 | S139: 5.08 | T139: 3.5 | U139: 4.75 | V139: 0.257 | W139: 3.063 | X139: 208 | Y139: 0.319 | Z139: 0.428 | AA139: 0.747 | AB139: NL | AC139: 435622 | AD139: 1B | AE139: =IF(ISNA(VLOOKUP(A139,Rankings!$B$2:$H$659,7,FALSE)),"-",VLOOKUP(A139,Rankings!$B$2:$H$659,7,FALSE)) -> 0
A140: Yoan Moncada | B140: 2B | C140: =(G140*'Points System'!$B$16)+(H140*'Points System'!$B$17)+(I140*'Points System'!$B$15)+(J140*'Points System'!$B$2)+(K140*'Points System'!$B$3)+(L140*'Points System'!$B$4)+(M140*'Points System'!$B$5)+(N140*'Points System'!$B$6)+(O140*'Points System'!$B$7)+(P140*'Points System'!$B$8)+(Q140*'Points System'!$B$9)+(R140*'Points System'!$B$10)+(S140*'Points System'!$B$11)+(T140*'Points System'!$B$13)+(U140*'Points System'!$B$12)+(X140*'Points System'!$B$14) -> 412.24 | D140: =C140/G140 -> 0.6518143727 | E140: =C140/F140 -> 2.78917456 | F140: 147.8 | G140: 632.45 | H140: 560.87 | I140: 135.07 | J140: 82.6 | K140: 28.07 | L140: 5.13 | M140: 19.63 | N140: 64.06 | O140: 80.94 | P140: 69.64 | Q140: 197.15 | R140: 15.63 | S140: 6.23 | T140: 1.5 | U140: 2.89 | V140: 0.241 | W140: 2.831 | X140: 232.65 | Y140: 0.327 | Z140: 0.415 | AA140: 0.742 | AB140: AL | AC140: 660162 | AD140: 2B | AE140: =IF(ISNA(VLOOKUP(A140,Rankings!$B$2:$H$659,7,FALSE)),"-",VLOOKUP(A140,Rankings!$B$2:$H$659,7,FALSE)) -> 0
A141: Ryan Zimmerman | B141: 1B | C141: =(G141*'Points System'!$B$16)+(H141*'Points System'!$B$17)+(I141*'Points System'!$B$15)+(J141*'Points System'!$B$2)+(K141*'Points System'!$B$3)+(L141*'Points System'!$B$4)+(M141*'Points System'!$B$5)+(N141*'Points System'!$B$6)+(O141*'Points System'!$B$7)+(P141*'Points System'!$B$8)+(Q141*'Points System'!$B$9)+(R141*'Points System'!$B$10)+(S141*'Points System'!$B$11)+(T141*'Points System'!$B$13)+(U141*'Points System'!$B$12)+(X141*'Points System'!$B$14) -> 410.58 | D141: =C141/G141 -> 0.8455977757 | E141: =C141/F141 -> 3.539482759 | F141: 116 | G141: 485.55 | H141: 439.2 | I141: 116.5 | J141: 65.73 | K141: 26.2 | L141: 1.87 | M141: 20.75 | N141: 72.94 | O141: 60.19 | P141: 40.43 | Q141: 98.23 | R141: 1.81 | S141: 1.08 | T141: 3 | U141: 3.89 | V141: 0.265 | W141: 2.43 | X141: 206.74 | Y141: 0.331 | Z141: 0.471 | AA141: 0.802 | AB141: NL | AC141: 475582 | AD141: 1B | AE141: =IF(ISNA(VLOOKUP(A141,Rankings!$B$2:$H$659,7,FALSE)),"-",VLOOKUP(A141,Rankings!$B$2:$H$659,7,FALSE)) -> 0
A142: Cedric Mullins | B142: OF | C142: =(G142*'Points System'!$B$16)+(H142*'Points System'!$B$17)+(I142*'Points System'!$B$15)+(J142*'Points System'!$B$2)+(K142*'Points System'!$B$3)+(L142*'Points System'!$B$4)+(M142*'Points System'!$B$5)+(N142*'Points System'!$B$6)+(O142*'Points System'!$B$7)+(P142*'Points System'!$B$8)+(Q142*'Points System'!$B$9)+(R142*'Points System'!$B$10)+(S142*'Points System'!$B$11)+(T142*'Points System'!$B$13)+(U142*'Points System'!$B$12)+(X142*'Points System'!$B$14) -> 409.65 | D142: =C142/G142 -> 0.7189364689 | E142: =C142/F142 -> 3.080075188 | F142: 133 | G142: 569.8 | H142: 515.89 | I142: 129.38 | J142: 84.11 | K142: 27.56 | L142: 3.56 | M142: 14.1 | N142: 48 | O142: 69.4 | P142: 43 | Q142: 106.86 | R142: 13.2 | S142: 6.43 | T142: 0.5 | U142: 4.4 | V142: 0.251 | W142: 2.485 | X142: 206.31 | Y142: 0.314 | Z142: 0.4 | AA142: 0.714 | AB142: AL | AC142: 656775 | AD142: CF | AE142: =IF(ISNA(VLOOKUP(A142,Rankings!$B$2:$H$659,7,FALSE)),"-",VLOOKUP(A142,Rankings!$B$2:$H$659,7,FALSE)) -> 0
A143: Kyle Schwarber | B143: OF | C143: =(G143*'Points System'!$B$16)+(H143*'Points System'!$B$17)+(I143*'Points System'!$B$15)+(J143*'Points System'!$B$2)+(K143*'Points System'!$B$3)+(L143*'Points System'!$B$4)+(M143*'Points System'!$B$5)+(N143*'Points System'!$B$6)+(O143*'Points System'!$B$7)+(P143*'Points System'!$B$8)+(Q143*'Points System'!$B$9)+(R143*'Points System'!$B$10)+(S143*'Points System'!$B$11)+(T143*'Points System'!$B$13)+(U143*'Points System'!$B$12)+(X143*'Points System'!$B$14) -> 408.695 | D143: =C143/G143 -> 0.7487724891 | E143: =C143/F143 -> 3.070586026 | F143: 133.1 | G143: 545.82 | H143: 461 | I143: 109.64 | J143: 59.8 | K143: 17.67 | L143: 2.47 | M143: 28.44 | N143: 72.25 | O143: 70.81 | P143: 77.29 | Q143: 155.46 | R143: 3.81 | S143: 2.08 | T143: 1.5 | U143: 3.22 | V143: 0.238 | W143: 2.011 | X143: 216.31 | Y143: 0.35 | Z143: 0.469 | AA143: 0.819 | AB143: NL | AC143: 656941 | AD143: LF | AE143: =IF(ISNA(VLOOKUP(A143,Rankings!$B$2:$H$659,7,FALSE)),"-",VLOOKUP(A143,Rankings!$B$2:$H$659,7,FALSE)) -> 0
A144: Kendrys Morales | B144: 1B | C144: =(G144*'Points System'!$B$16)+(H144*'Points System'!$B$17)+(I144*'Points System'!$B$15)+(J144*'Points System'!$B$2)+(K144*'Points System'!$B$3)+(L144*'Points System'!$B$4)+(M144*'Points System'!$B$5)+(N144*'Points System'!$B$6)+(O144*'Points System'!$B$7)+(P144*'Points System'!$B$8)+(Q144*'Points System'!$B$9)+(R144*'Points System'!$B$10)+(S144*'Points System'!$B$11)+(T144*'Points System'!$B$13)+(U144*'Points System'!$B$12)+(X144*'Points System'!$B$14) -> 407.87 | D144: =C144/G144 -> 0.7563372708 | E144: =C144/F144 -> 3.037006701 | F144: 134.3 | G144: 539.27 | H144: 480.6 | I144: 120.07 | J144: 75.2 | K144: 20.73 | L144: 0.33 | M144: 23.25 | N144: 69.94 | O144: 58.94 | P144: 49.43 | Q144: 114 | R144: 1.63 | S144: 1.23 | T144: 5 | U144: 4.22 | V144: 0.25 | W144: 2.306 | X144: 210.65 | Y144: 0.322 | Z144: 0.438 | AA144: 0.76 | AB144: AL | AC144: 434778 | AD144: 1B | AE144: =IF(ISNA(VLOOKUP(A144,Rankings!$B$2:$H$659,7,FALSE)),"-",VLOOKUP(A144,Rankings!$B$2:$H$659,7,FALSE)) -> 0
A145: Randal Grichuk | B145: OF | C145: =(G145*'Points System'!$B$16)+(H145*'Points System'!$B$17)+(I145*'Points System'!$B$15)+(J145*'Points System'!$B$2)+(K145*'Points System'!$B$3)+(L145*'Points System'!$B$4)+(M145*'Points System'!$B$5)+(N145*'Points System'!$B$6)+(O145*'Points System'!$B$7)+(P145*'Points System'!$B$8)+(Q145*'Points System'!$B$9)+(R145*'Points System'!$B$10)+(S145*'Points System'!$B$11)+(T145*'Points System'!$B$13)+(U145*'Points System'!$B$12)+(X145*'Points System'!$B$14) -> 407.775 | D145: =C145/G145 -> 0.7533670811 | E145: =C145/F145 -> 3.091546626 | F145: 131.9 | G145: 541.27 | H145: 493.8 | I145: 119.93 | J145: 56.87 | K145: 31.87 | L145: 2.33 | M145: 28.13 | N145: 75.25 | O145: 69.06 | P145: 34.21 | Q145: 149.62 | R145: 4.56 | S145: 2.08 | T145: 2.5 | U145: 6.11 | V145: 0.243 | W145: 4.374 | X145: 240.12 | Y145: 0.299 | Z145: 0.486 | AA145: 0.785 | AB145: AL | AC145: 545341 | AD145: RF | AE145: =IF(ISNA(VLOOKUP(A145,Rankings!$B$2:$H$659,7,FALSE)),"-",VLOOKUP(A145,Rankings!$B$2:$H$659,7,FALSE)) -> 0
A146: Tyler White | B146: 1B | C146: =(G146*'Points System'!$B$16)+(H146*'Points System'!$B$17)+(I146*'Points System'!$B$15)+(J146*'Points System'!$B$2)+(K146*'Points System'!$B$3)+(L146*'Points System'!$B$4)+(M146*'Points System'!$B$5)+(N146*'Points System'!$B$6)+(O146*'Points System'!$B$7)+(P146*'Points System'!$B$8)+(Q146*'Points System'!$B$9)+(R146*'Points System'!$B$10)+(S146*'Points System'!$B$11)+(T146*'Points System'!$B$13)+(U146*'Points System'!$B$12)+(X146*'Points System'!$B$14) -> 407.67 | D146: =C146/G146 -> 0.8187624269 | E146: =C146/F146 -> 3.250956938 | F146: 125.4 | G146: 497.91 | H146: 443.87 | I146: 114.71 | J146: 68.4 | K146: 24.2 | L146: 1.87 | M146: 20.38 | N146: 69.81 | O146: 61.69 | P146: 48.57 | Q146: 103.23 | R146: 2 | S146: 1 | T146: 2 | U146: 6.11 | V146: 0.258 | W146: 2.125 | X146: 203.93 | Y146: 0.338 | Z146: 0.459 | AA146: 0.797 | AB146: AL | AC146: 643603 | AD146: 1B | AE146: =IF(ISNA(VLOOKUP(A146,Rankings!$B$2:$H$659,7,FALSE)),"-",VLOOKUP(A146,Rankings!$B$2:$H$659,7,FALSE)) -> 0
A147: C.J. Cron | B147: 1B | C147: =(G147*'Points System'!$B$16)+(H147*'Points System'!$B$17)+(I147*'Points System'!$B$15)+(J147*'Points System'!$B$2)+(K147*'Points System'!$B$3)+(L147*'Points System'!$B$4)+(M147*'Points System'!$B$5)+(N147*'Points System'!$B$6)+(O147*'Points System'!$B$7)+(P147*'Points System'!$B$8)+(Q147*'Points System'!$B$9)+(R147*'Points System'!$B$10)+(S147*'Points System'!$B$11)+(T147*'Points System'!$B$13)+(U147*'Points System'!$B$12)+(X147*'Points System'!$B$14) -> 407.575 | D147: =C147/G147 -> 0.8004536706 | E147: =C147/F147 -> 3.252793296 | F147: 125.3 | G147: 509.18 | H147: 468 | I147: 120.43 | J147: 68.67 | K147: 25.6 | L147: 1.13 | M147: 25.63 | N147: 74.63 | O147: 64.31 | P147: 33.29 | Q147: 125.23 | R147: 2.06 | S147: 1.54 | T147: 4.5 | U147: 12.33 | V147: 0.257 | W147: 3.762 | X147: 225.78 | Y147: 0.32 | Z147: 0.482 | AA147: 0.802 | AB147: AL | AC147: 543068 | AD147: 1B | AE147: =IF(ISNA(VLOOKUP(A147,Rankings!$B$2:$H$659,7,FALSE)),"-",VLOOKUP(A147,Rankings!$B$2:$H$659,7,FALSE)) -> 0
A148: Austin Meadows | B148: OF | C148: =(G148*'Points System'!$B$16)+(H148*'Points System'!$B$17)+(I148*'Points System'!$B$15)+(J148*'Points System'!$B$2)+(K148*'Points System'!$B$3)+(L148*'Points System'!$B$4)+(M148*'Points System'!$B$5)+(N148*'Points System'!$B$6)+(O148*'Points System'!$B$7)+(P148*'Points System'!$B$8)+(Q148*'Points System'!$B$9)+(R148*'Points System'!$B$10)+(S148*'Points System'!$B$11)+(T148*'Points System'!$B$13)+(U148*'Points System'!$B$12)+(X148*'Points System'!$B$14) -> 407.165 | D148: =C148/G148 -> 0.8166165263 | E148: =C148/F148 -> 3.156317829 | F148: 129 | G148: 498.6 | H148: 458.57 | I148: 121.54 | J148: 75.36 | K148: 27.64 | L148: 2.93 | M148: 16.07 | N148: 59.67 | O148: 62.27 | P148: 32.31 | Q148: 97.5 | R148: 14.2 | S148: 4.17 | T148: 4.5 | U148: 3.5 | V148: 0.265 | W148: 3.018 | X148: 203.71 | Y148: 0.315 | Z148: 0.444 | AA148: 0.759 | AB148: AL | AC148: 640457 | AD148: CF | AE148: =IF(ISNA(VLOOKUP(A148,Rankings!$B$2:$H$659,7,FALSE)),"-",VLOOKUP(A148,Rankings!$B$2:$H$659,7,FALSE)) -> 0
A149: Jason Heyward | B149: OF | C149: =(G149*'Points System'!$B$16)+(H149*'Points System'!$B$17)+(I149*'Points System'!$B$15)+(J149*'Points System'!$B$2)+(K149*'Points System'!$B$3)+(L149*'Points System'!$B$4)+(M149*'Points System'!$B$5)+(N149*'Points System'!$B$6)+(O149*'Points System'!$B$7)+(P149*'Points System'!$B$8)+(Q149*'Points System'!$B$9)+(R149*'Points System'!$B$10)+(S149*'Points System'!$B$11)+(T149*'Points System'!$B$13)+(U149*'Points System'!$B$12)+(X149*'Points System'!$B$14) -> 406.925 | D149: =C149/G149 -> 0.7900075715 | E149: =C149/F149 -> 3.186570086 | F149: 127.7 | G149: 515.09 | H149: 462.33 | I149: 122.85 | J149: 85.5 | K149: 23.29 | L149: 3.43 | M149: 10.07 | N149: 56.73 | O149: 59.73 | P149: 45.77 | Q149: 69.54 | R149: 3.8 | S149: 2 | T149: 2 | U149: 3.25 | V149: 0.266 | W149: 1.519 | X149: 182.65 | Y149: 0.335 | Z149: 0.395 | AA149: 0.73 | AB149: NL | AC149: 518792 | AD149: RF | AE149: =IF(ISNA(VLOOKUP(A149,Rankings!$B$2:$H$659,7,FALSE)),"-",VLOOKUP(A149,Rankings!$B$2:$H$659,7,FALSE)) -> 0
A150: Zack Cozart | B150: 3B | C150: =(G150*'Points System'!$B$16)+(H150*'Points System'!$B$17)+(I150*'Points System'!$B$15)+(J150*'Points System'!$B$2)+(K150*'Points System'!$B$3)+(L150*'Points System'!$B$4)+(M150*'Points System'!$B$5)+(N150*'Points System'!$B$6)+(O150*'Points System'!$B$7)+(P150*'Points System'!$B$8)+(Q150*'Points System'!$B$9)+(R150*'Points System'!$B$10)+(S150*'Points System'!$B$11)+(T150*'Points System'!$B$13)+(U150*'Points System'!$B$12)+(X150*'Points System'!$B$14) -> 406.41 | D150: =C150/G150 -> 0.7572386808 | E150: =C150/F150 -> 3.346590909 | F150: 121.44 | G150: 536.7 | H150: 462.64 | I150: 119.92 | J150: 73.36 | K150: 24.36 | L150: 3.93 | M150: 15.93 | N150: 54.2 | O150: 64.27 | P150: 45.23 | Q150: 85.5 | R150: 2.27 | S150: 0.67 | T150: 5.5 | U150: 7.13 | V150: 0.259 | W150: 1.89 | X150: 197.59 | Y150: 0.331 | Z150: 0.427 | AA150: 0.758 | AB150: AL | AC150: 446359 | AD150: 3B | AE150: =IF(ISNA(VLOOKUP(A150,Rankings!$B$2:$H$659,7,FALSE)),"-",VLOOKUP(A150,Rankings!$B$2:$H$659,7,FALSE)) -> 0
A151: Jake Bauers | B151: 1B/OF | C151: =(G151*'Points System'!$B$16)+(H151*'Points System'!$B$17)+(I151*'Points System'!$B$15)+(J151*'Points System'!$B$2)+(K151*'Points System'!$B$3)+(L151*'Points System'!$B$4)+(M151*'Points System'!$B$5)+(N151*'Points System'!$B$6)+(O151*'Points System'!$B$7)+(P151*'Points System'!$B$8)+(Q151*'Points System'!$B$9)+(R151*'Points System'!$B$10)+(S151*'Points System'!$B$11)+(T151*'Points System'!$B$13)+(U151*'Points System'!$B$12)+(X151*'Points System'!$B$14) -> 405.65 | D151: =C151/G151 -> 0.7121664326 | E151: =C151/F151 -> 2.987553395 | F151: 135.78 | G151: 569.6 | H151: 482.21 | I151: 114.92 | J151: 66.86 | K151: 30.14 | L151: 1.43 | M151: 16.2 | N151: 68.87 | O151: 68.87 | P151: 67.62 | Q151: 130.58 | R151: 12.8 | S151: 7.58 | T151: 6 | U151: 4.13 | V151: 0.238 | W151: 1.931 | X151: 196.23 | Y151: 0.333 | Z151: 0.407 | AA151: 0.74 | AB151: AL | AC151: 641343 | AD151: 1B | AE151: =IF(ISNA(VLOOKUP(A151,Rankings!$B$2:$H$659,7,FALSE)),"-",VLOOKUP(A151,Rankings!$B$2:$H$659,7,FALSE)) -> 0
A152: Peter Alonso | B152: 1B | C152: =(G152*'Points System'!$B$16)+(H152*'Points System'!$B$17)+(I152*'Points System'!$B$15)+(J152*'Points System'!$B$2)+(K152*'Points System'!$B$3)+(L152*'Points System'!$B$4)+(M152*'Points System'!$B$5)+(N152*'Points System'!$B$6)+(O152*'Points System'!$B$7)+(P152*'Points System'!$B$8)+(Q152*'Points System'!$B$9)+(R152*'Points System'!$B$10)+(S152*'Points System'!$B$11)+(T152*'Points System'!$B$13)+(U152*'Points System'!$B$12)+(X152*'Points System'!$B$14) -> 405.18 | D152: =C152/G152 -> 0.7341813438 | E152: =C152/F152 -> 3.239781232 | F152: 125.064 | G152: 551.88 | H152: 487.368 | I152: 115.848 | J152: 67.032 | K152: 24.684 | L152: 1.116 | M152: 24.72 | N152: 75.84 | O152: 64.884 | P152: 49.2 | Q152: 132.6 | R152: 1.68 | S152: 1.5 | T152: 0 | U152: 9.6 | V152: 0.238 | W152: 2.695 | X152: 218.628 | Y152: 0.32 | Z152: 0.449 | AA152: 0.769 | AB152: NL | AC152: 624413 | AD152: 1B | AE152: =IF(ISNA(VLOOKUP(A152,Rankings!$B$2:$H$659,7,FALSE)),"-",VLOOKUP(A152,Rankings!$B$2:$H$659,7,FALSE)) -> 0
A153: Willy Adames | B153: SS | C153: =(G153*'Points System'!$B$16)+(H153*'Points System'!$B$17)+(I153*'Points System'!$B$15)+(J153*'Points System'!$B$2)+(K153*'Points System'!$B$3)+(L153*'Points System'!$B$4)+(M153*'Points System'!$B$5)+(N153*'Points System'!$B$6)+(O153*'Points System'!$B$7)+(P153*'Points System'!$B$8)+(Q153*'Points System'!$B$9)+(R153*'Points System'!$B$10)+(S153*'Points System'!$B$11)+(T153*'Points System'!$B$13)+(U153*'Points System'!$B$12)+(X153*'Points System'!$B$14) -> 402.895 | D153: =C153/G153 -> 0.6675973488 | E153: =C153/F153 -> 2.736686591 | F153: 147.22 | G153: 603.5 | H153: 531.36 | I153: 137.15 | J153: 97.29 | K153: 22.5 | L153: 3.86 | M153: 14.6 | N153: 63.6 | O153: 70 | P153: 56.92 | Q153: 154.17 | R153: 10.33 | S153: 5.67 | T153: 4 | U153: 3 | V153: 0.258 | W153: 2.709 | X153: 212.27 | Y153: 0.331 | Z153: 0.399 | AA153: 0.73 | AB153: AL | AC153: 642715 | AD153: SS | AE153: =IF(ISNA(VLOOKUP(A153,Rankings!$B$2:$H$659,7,FALSE)),"-",VLOOKUP(A153,Rankings!$B$2:$H$659,7,FALSE)) -> 0
A154: Jake Lamb | B154: 3B | C154: =(G154*'Points System'!$B$16)+(H154*'Points System'!$B$17)+(I154*'Points System'!$B$15)+(J154*'Points System'!$B$2)+(K154*'Points System'!$B$3)+(L154*'Points System'!$B$4)+(M154*'Points System'!$B$5)+(N154*'Points System'!$B$6)+(O154*'Points System'!$B$7)+(P154*'Points System'!$B$8)+(Q154*'Points System'!$B$9)+(R154*'Points System'!$B$10)+(S154*'Points System'!$B$11)+(T154*'Points System'!$B$13)+(U154*'Points System'!$B$12)+(X154*'Points System'!$B$14) -> 400.43 | D154: =C154/G154 -> 0.7465137957 | E154: =C154/F154 -> 3.175243835 | F154: 126.11 | G154: 536.4 | H154: 474.86 | I154: 113.31 | J154: 64.5 | K154: 24.43 | L154: 3.29 | M154: 20.93 | N154: 73.87 | O154: 68.73 | P154: 63 | Q154: 139.17 | R154: 4.13 | S154: 2.92 | T154: 7 | U154: 3.75 | V154: 0.239 | W154: 2.209 | X154: 206.95 | Y154: 0.328 | Z154: 0.436 | AA154: 0.764 | AB154: NL | AC154: 571875 | AD154: 3B | AE154: =IF(ISNA(VLOOKUP(A154,Rankings!$B$2:$H$659,7,FALSE)),"-",VLOOKUP(A154,Rankings!$B$2:$H$659,7,FALSE)) -> 0
A155: Yonder Alonso | B155: 1B | C155: =(G155*'Points System'!$B$16)+(H155*'Points System'!$B$17)+(I155*'Points System'!$B$15)+(J155*'Points System'!$B$2)+(K155*'Points System'!$B$3)+(L155*'Points System'!$B$4)+(M155*'Points System'!$B$5)+(N155*'Points System'!$B$6)+(O155*'Points System'!$B$7)+(P155*'Points System'!$B$8)+(Q155*'Points System'!$B$9)+(R155*'Points System'!$B$10)+(S155*'Points System'!$B$11)+(T155*'Points System'!$B$13)+(U155*'Points System'!$B$12)+(X155*'Points System'!$B$14) -> 400.18 | D155: =C155/G155 -> 0.7436907638 | E155: =C155/F155 -> 2.991329048 | F155: 133.78 | G155: 538.1 | H155: 486 | I155: 118.15 | J155: 76.07 | K155: 20.5 | L155: 0.57 | M155: 21.73 | N155: 69.87 | O155: 62 | P155: 54.15 | Q155: 121.83 | R155: 1.07 | S155: 0.33 | T155: 4 | U155: 2.38 | V155: 0.243 | W155: 2.25 | X155: 205.7 | Y155: 0.32 | Z155: 0.423 | AA155: 0.743 | AB155: AL | AC155: 475174 | AD155: 1B | AE155: =IF(ISNA(VLOOKUP(A155,Rankings!$B$2:$H$659,7,FALSE)),"-",VLOOKUP(A155,Rankings!$B$2:$H$659,7,FALSE)) -> 0
A156: Nick Senzel | B156: 2B | C156: =(G156*'Points System'!$B$16)+(H156*'Points System'!$B$17)+(I156*'Points System'!$B$15)+(J156*'Points System'!$B$2)+(K156*'Points System'!$B$3)+(L156*'Points System'!$B$4)+(M156*'Points System'!$B$5)+(N156*'Points System'!$B$6)+(O156*'Points System'!$B$7)+(P156*'Points System'!$B$8)+(Q156*'Points System'!$B$9)+(R156*'Points System'!$B$10)+(S156*'Points System'!$B$11)+(T156*'Points System'!$B$13)+(U156*'Points System'!$B$12)+(X156*'Points System'!$B$14) -> 399.93 | D156: =C156/G156 -> 0.8179731985 | E156: =C156/F156 -> 3.814087892 | F156: 104.856 | G156: 488.928 | H156: 435.6 | I156: 122.4 | J156: 76.056 | K156: 28.62 | L156: 2.772 | M156: 14.568 | N156: 58.032 | O156: 58.968 | P156: 40.5 | Q156: 99.276 | R156: 11.148 | S156: 4.584 | T156: 0 | U156: 2.232 | V156: 0.281 | W156: 2.451 | X156: 199.884 | Y156: 0.345 | Z156: 0.459 | AA156: 0.804 | AB156: NL | AC156: 669222 | AD156: 2B | AE156: =IF(ISNA(VLOOKUP(A156,Rankings!$B$2:$H$659,7,FALSE)),"-",VLOOKUP(A156,Rankings!$B$2:$H$659,7,FALSE)) -> 0
A157: Jose Martinez | B157: OF/1B | C157: =(G157*'Points System'!$B$16)+(H157*'Points System'!$B$17)+(I157*'Points System'!$B$15)+(J157*'Points System'!$B$2)+(K157*'Points System'!$B$3)+(L157*'Points System'!$B$4)+(M157*'Points System'!$B$5)+(N157*'Points System'!$B$6)+(O157*'Points System'!$B$7)+(P157*'Points System'!$B$8)+(Q157*'Points System'!$B$9)+(R157*'Points System'!$B$10)+(S157*'Points System'!$B$11)+(T157*'Points System'!$B$13)+(U157*'Points System'!$B$12)+(X157*'Points System'!$B$14) -> 399.875 | D157: =C157/G157 -> 0.8588841755 | E157: =C157/F157 -> 3.242120199 | F157: 123.3375 | G157: 465.575 | H157: 418.05 | I157: 122.275 | J157: 86.0375 | K157: 23.4 | L157: 0.7625 | M157: 14.4125 | N157: 62.9 | O157: 56.05 | P157: 40.075 | Q157: 83.75 | R157: 2.2375 | S157: 1.0125 | T157: 2.5 | U157: 1.5875 | V157: 0.292 | W157: 2.09 | X157: 154.22 | Y157: 0.355 | Z157: 0.461 | AA157: 0.816 | AB157: NL | AC157: 500874 | AD157: 1B | AE157: =IF(ISNA(VLOOKUP(A157,Rankings!$B$2:$H$659,7,FALSE)),"-",VLOOKUP(A157,Rankings!$B$2:$H$659,7,FALSE)) -> 0
A158: Garrett Hampson | B158: 2B/SS | C158: =(G158*'Points System'!$B$16)+(H158*'Points System'!$B$17)+(I158*'Points System'!$B$15)+(J158*'Points System'!$B$2)+(K158*'Points System'!$B$3)+(L158*'Points System'!$B$4)+(M158*'Points System'!$B$5)+(N158*'Points System'!$B$6)+(O158*'Points System'!$B$7)+(P158*'Points System'!$B$8)+(Q158*'Points System'!$B$9)+(R158*'Points System'!$B$10)+(S158*'Points System'!$B$11)+(T158*'Points System'!$B$13)+(U158*'Points System'!$B$12)+(X158*'Points System'!$B$14) -> 396.168 | D158: =C158/G158 -> 0.8642408377 | E158: =C158/F158 -> 3.038004969 | F158: 130.404 | G158: 458.4 | H158: 442.452 | I158: 122.496 | J158: 87.432 | K158: 24 | L158: 6.168 | M158: 7.356 | N158: 44.88 | O158: 61.68 | P158: 44.952 | Q158: 94.296 | R158: 23.676 | S158: 6.096 | T158: 0.6 | U158: 3.3 | V158: 0.277 | W158: 2.098 | X158: 152.8 | Y158: 0.348 | Z158: 0.414 | AA158: 0.762 | AB158: NL | AC158: 641658 | AD158: 2B | AE158: =IF(ISNA(VLOOKUP(A158,Rankings!$B$2:$H$659,7,FALSE)),"-",VLOOKUP(A158,Rankings!$B$2:$H$659,7,FALSE)) -> 0
A159: Mark Trumbo | B159: OF | C159: =(G159*'Points System'!$B$16)+(H159*'Points System'!$B$17)+(I159*'Points System'!$B$15)+(J159*'Points System'!$B$2)+(K159*'Points System'!$B$3)+(L159*'Points System'!$B$4)+(M159*'Points System'!$B$5)+(N159*'Points System'!$B$6)+(O159*'Points System'!$B$7)+(P159*'Points System'!$B$8)+(Q159*'Points System'!$B$9)+(R159*'Points System'!$B$10)+(S159*'Points System'!$B$11)+(T159*'Points System'!$B$13)+(U159*'Points System'!$B$12)+(X159*'Points System'!$B$14) -> 395.79 | D159: =C159/G159 -> 0.7459291368 | E159: =C159/F159 -> 3.065525521 | F159: 129.11 | G159: 530.6 | H159: 500.21 | I159: 123.46 | J159: 76.5 | K159: 20.21 | L159: 0.64 | M159: 25.27 | N159: 70.33 | O159: 64.33 | P159: 38.77 | Q159: 134.67 | R159: 0.73 | S159: 0.08 | T159: 2 | U159: 2.5 | V159: 0.247 | W159: 3.474 | X159: 219.92 | Y159: 0.303 | Z159: 0.44 | AA159: 0.743 | AB159: AL | AC159: 444432 | AD159: RF | AE159: =IF(ISNA(VLOOKUP(A159,Rankings!$B$2:$H$659,7,FALSE)),"-",VLOOKUP(A159,Rankings!$B$2:$H$659,7,FALSE)) -> 0
A160: Jonathan Villar | B160: 2B | C160: =(G160*'Points System'!$B$16)+(H160*'Points System'!$B$17)+(I160*'Points System'!$B$15)+(J160*'Points System'!$B$2)+(K160*'Points System'!$B$3)+(L160*'Points System'!$B$4)+(M160*'Points System'!$B$5)+(N160*'Points System'!$B$6)+(O160*'Points System'!$B$7)+(P160*'Points System'!$B$8)+(Q160*'Points System'!$B$9)+(R160*'Points System'!$B$10)+(S160*'Points System'!$B$11)+(T160*'Points System'!$B$13)+(U160*'Points System'!$B$12)+(X160*'Points System'!$B$14) -> 395.3 | D160: =C160/G160 -> 0.7001416932 | E160: =C160/F160 -> 2.892368479 | F160: 136.67 | G160: 564.6 | H160: 511.57 | I160: 129.62 | J160: 91 | K160: 21.29 | L160: 1.79 | M160: 15 | N160: 52.67 | O160: 65.87 | P160: 46.54 | Q160: 152.33 | R160: 36.6 | S160: 8.42 | T160: 2 | U160: 3.38 | V160: 0.253 | W160: 3.273 | X160: 198.95 | Y160: 0.319 | Z160: 0.389 | AA160: 0.708 | AB160: AL | AC160: 542340 | AD160: 2B | AE160: =IF(ISNA(VLOOKUP(A160,Rankings!$B$2:$H$659,7,FALSE)),"-",VLOOKUP(A160,Rankings!$B$2:$H$659,7,FALSE)) -> 0
A161: Shohei Ohtani | B161: DH | C161: =(G161*'Points System'!$B$16)+(H161*'Points System'!$B$17)+(I161*'Points System'!$B$15)+(J161*'Points System'!$B$2)+(K161*'Points System'!$B$3)+(L161*'Points System'!$B$4)+(M161*'Points System'!$B$5)+(N161*'Points System'!$B$6)+(O161*'Points System'!$B$7)+(P161*'Points System'!$B$8)+(Q161*'Points System'!$B$9)+(R161*'Points System'!$B$10)+(S161*'Points System'!$B$11)+(T161*'Points System'!$B$13)+(U161*'Points System'!$B$12)+(X161*'Points System'!$B$14) -> 394.66 | D161: =C161/G161 -> 0.846165391 | E161: =C161/F161 -> 3.371145469 | F161: 117.07 | G161: 466.41 | H161: 389.63 | I161: 113.24 | J161: 63.44 | K161: 23.56 | L161: 1.94 | M161: 22.95 | N161: 69.7 | O161: 62.55 | P161: 47 | Q161: 126.94 | R161: 8.45 | S161: 3.22 | T161: 2 | U161: 2.92 | V161: 0.291 | W161: 2.701 | X161: 208.18 | Y161: 0.37 | Z161: 0.534 | AA161: 0.904 | AB161: AL | AC161: 660271 | AD161: DH | AE161: =IF(ISNA(VLOOKUP(A161,Rankings!$B$2:$H$659,7,FALSE)),"-",VLOOKUP(A161,Rankings!$B$2:$H$659,7,FALSE)) -> 0
A162: Ben Zobrist | B162: 2B/OF | C162: =(G162*'Points System'!$B$16)+(H162*'Points System'!$B$17)+(I162*'Points System'!$B$15)+(J162*'Points System'!$B$2)+(K162*'Points System'!$B$3)+(L162*'Points System'!$B$4)+(M162*'Points System'!$B$5)+(N162*'Points System'!$B$6)+(O162*'Points System'!$B$7)+(P162*'Points System'!$B$8)+(Q162*'Points System'!$B$9)+(R162*'Points System'!$B$10)+(S162*'Points System'!$B$11)+(T162*'Points System'!$B$13)+(U162*'Points System'!$B$12)+(X162*'Points System'!$B$14) -> 390.26 | D162: =C162/G162 -> 0.8460554556 | E162: =C162/F162 -> 3.285016835 | F162: 118.8 | G162: 461.27 | H162: 419.67 | I162: 113.21 | J162: 77.53 | K162: 23.47 | L162: 2.73 | M162: 9.63 | N162: 50.38 | O162: 57.44 | P162: 52.36 | Q162: 61.46 | R162: 3.25 | S162: 2.54 | T162: 5.5 | U162: 2.22 | V162: 0.27 | W162: 1.174 | X162: 171.18 | Y162: 0.35 | Z162: 0.408 | AA162: 0.758 | AB162: NL | AC162: 450314 | AD162: RF | AE162: =IF(ISNA(VLOOKUP(A162,Rankings!$B$2:$H$659,7,FALSE)),"-",VLOOKUP(A162,Rankings!$B$2:$H$659,7,FALSE)) -> 0
A163: Luke Voit | B163: 1B | C163: =(G163*'Points System'!$B$16)+(H163*'Points System'!$B$17)+(I163*'Points System'!$B$15)+(J163*'Points System'!$B$2)+(K163*'Points System'!$B$3)+(L163*'Points System'!$B$4)+(M163*'Points System'!$B$5)+(N163*'Points System'!$B$6)+(O163*'Points System'!$B$7)+(P163*'Points System'!$B$8)+(Q163*'Points System'!$B$9)+(R163*'Points System'!$B$10)+(S163*'Points System'!$B$11)+(T163*'Points System'!$B$13)+(U163*'Points System'!$B$12)+(X163*'Points System'!$B$14) -> 387.635 | D163: =C163/G163 -> 0.8396911013 | E163: =C163/F163 -> 3.34456428 | F163: 115.9 | G163: 461.64 | H163: 416.13 | I163: 111.29 | J163: 66.87 | K163: 20.73 | L163: 1.33 | M163: 22.13 | N163: 68.81 | O163: 61.88 | P163: 43.57 | Q163: 110.54 | R163: 0.94 | S163: 0.69 | T163: 0.5 | U163: 6.22 | V163: 0.267 | W163: 2.537 | X163: 200.84 | Y163: 0.345 | Z163: 0.483 | AA163: 0.828 | AB163: AL | AC163: 572228 | AD163: 1B | AE163: =IF(ISNA(VLOOKUP(A163,Rankings!$B$2:$H$659,7,FALSE)),"-",VLOOKUP(A163,Rankings!$B$2:$H$659,7,FALSE)) -> 0
A164: David Fletcher | B164: 2B/3B | C164: =(G164*'Points System'!$B$16)+(H164*'Points System'!$B$17)+(I164*'Points System'!$B$15)+(J164*'Points System'!$B$2)+(K164*'Points System'!$B$3)+(L164*'Points System'!$B$4)+(M164*'Points System'!$B$5)+(N164*'Points System'!$B$6)+(O164*'Points System'!$B$7)+(P164*'Points System'!$B$8)+(Q164*'Points System'!$B$9)+(R164*'Points System'!$B$10)+(S164*'Points System'!$B$11)+(T164*'Points System'!$B$13)+(U164*'Points System'!$B$12)+(X164*'Points System'!$B$14) -> 387.08 | D164: =C164/G164 -> 0.7472586873 | E164: =C164/F164 -> 3.222712514 | F164: 120.11 | G164: 518 | H164: 465.64 | I164: 127.58 | J164: 90 | K164: 26 | L164: 3 | M164: 6.07 | N164: 45.43 | O164: 57.29 | P164: 25.67 | Q164: 58 | R164: 8.71 | S164: 2.27 | T164: 3 | U164: 5 | V164: 0.274 | W164: 2.259 | X164: 175.28 | Y164: 0.317 | Z164: 0.376 | AA164: 0.693 | AB164: AL | AC164: 664058 | AD164: 2B | AE164: =IF(ISNA(VLOOKUP(A164,Rankings!$B$2:$H$659,7,FALSE)),"-",VLOOKUP(A164,Rankings!$B$2:$H$659,7,FALSE)) -> 0
A165: Joey Wendle | B165: 2B/3B | C165: =(G165*'Points System'!$B$16)+(H165*'Points System'!$B$17)+(I165*'Points System'!$B$15)+(J165*'Points System'!$B$2)+(K165*'Points System'!$B$3)+(L165*'Points System'!$B$4)+(M165*'Points System'!$B$5)+(N165*'Points System'!$B$6)+(O165*'Points System'!$B$7)+(P165*'Points System'!$B$8)+(Q165*'Points System'!$B$9)+(R165*'Points System'!$B$10)+(S165*'Points System'!$B$11)+(T165*'Points System'!$B$13)+(U165*'Points System'!$B$12)+(X165*'Points System'!$B$14) -> 385.015 | D165: =C165/G165 -> 0.7711095534 | E165: =C165/F165 -> 3.034242257 | F165: 126.89 | G165: 499.3 | H165: 478.57 | I165: 126.77 | J165: 87.86 | K165: 28 | L165: 4.36 | M165: 8.53 | N165: 57.07 | O165: 57.93 | P165: 30.92 | Q165: 97.5 | R165: 12 | S165: 3.5 | T165: 9.5 | U165: 7.38 | V165: 0.265 | W165: 3.153 | X165: 191.06 | Y165: 0.314 | Z165: 0.399 | AA165: 0.713 | AB165: AL | AC165: 621563 | AD165: 2B | AE165: =IF(ISNA(VLOOKUP(A165,Rankings!$B$2:$H$659,7,FALSE)),"-",VLOOKUP(A165,Rankings!$B$2:$H$659,7,FALSE)) -> 0
A166: Hunter Renfroe | B166: OF | C166: =(G166*'Points System'!$B$16)+(H166*'Points System'!$B$17)+(I166*'Points System'!$B$15)+(J166*'Points System'!$B$2)+(K166*'Points System'!$B$3)+(L166*'Points System'!$B$4)+(M166*'Points System'!$B$5)+(N166*'Points System'!$B$6)+(O166*'Points System'!$B$7)+(P166*'Points System'!$B$8)+(Q166*'Points System'!$B$9)+(R166*'Points System'!$B$10)+(S166*'Points System'!$B$11)+(T166*'Points System'!$B$13)+(U166*'Points System'!$B$12)+(X166*'Points System'!$B$14) -> 383.04 | D166: =C166/G166 -> 0.8188114579 | E166: =C166/F166 -> 3.246101695 | F166: 118 | G166: 467.8 | H166: 443.36 | I166: 109.85 | J166: 59.64 | K166: 24.29 | L166: 1.64 | M166: 25.27 | N166: 70.93 | O166: 59 | P166: 30.85 | Q166: 117.67 | R166: 2.87 | S166: 1.08 | T166: 5 | U166: 4 | V166: 0.248 | W166: 3.814 | X166: 214.22 | Y166: 0.299 | Z166: 0.483 | AA166: 0.782 | AB166: NL | AC166: 592669 | AD166: LF | AE166: =IF(ISNA(VLOOKUP(A166,Rankings!$B$2:$H$659,7,FALSE)),"-",VLOOKUP(A166,Rankings!$B$2:$H$659,7,FALSE)) -> 0
A167: Luis Urias | B167: 2B | C167: =(G167*'Points System'!$B$16)+(H167*'Points System'!$B$17)+(I167*'Points System'!$B$15)+(J167*'Points System'!$B$2)+(K167*'Points System'!$B$3)+(L167*'Points System'!$B$4)+(M167*'Points System'!$B$5)+(N167*'Points System'!$B$6)+(O167*'Points System'!$B$7)+(P167*'Points System'!$B$8)+(Q167*'Points System'!$B$9)+(R167*'Points System'!$B$10)+(S167*'Points System'!$B$11)+(T167*'Points System'!$B$13)+(U167*'Points System'!$B$12)+(X167*'Points System'!$B$14) -> 382.215 | D167: =C167/G167 -> 0.6860796984 | E167: =C167/F167 -> 2.907904747 | F167: 131.44 | G167: 557.1 | H167: 505.79 | I167: 127.31 | J167: 91 | K167: 24.07 | L167: 4.36 | M167: 8.8 | N167: 46.13 | O167: 65.8 | P167: 52.46 | Q167: 107.92 | R167: 6.13 | S167: 2.58 | T167: 10 | U167: 9.88 | V167: 0.252 | W167: 2.057 | X167: 187.42 | Y167: 0.328 | Z167: 0.371 | AA167: 0.699 | AB167: NL | AC167: 649966 | AD167: 2B | AE167: =IF(ISNA(VLOOKUP(A167,Rankings!$B$2:$H$659,7,FALSE)),"-",VLOOKUP(A167,Rankings!$B$2:$H$659,7,FALSE)) -> 0
A168: Nick Ahmed | B168: SS | C168: =(G168*'Points System'!$B$16)+(H168*'Points System'!$B$17)+(I168*'Points System'!$B$15)+(J168*'Points System'!$B$2)+(K168*'Points System'!$B$3)+(L168*'Points System'!$B$4)+(M168*'Points System'!$B$5)+(N168*'Points System'!$B$6)+(O168*'Points System'!$B$7)+(P168*'Points System'!$B$8)+(Q168*'Points System'!$B$9)+(R168*'Points System'!$B$10)+(S168*'Points System'!$B$11)+(T168*'Points System'!$B$13)+(U168*'Points System'!$B$12)+(X168*'Points System'!$B$14) -> 379.805 | D168: =C168/G168 -> 0.682856886 | E168: =C168/F168 -> 2.704393335 | F168: 140.44 | G168: 556.2 | H168: 507.29 | I168: 120.46 | J168: 72.5 | K168: 28 | L168: 4 | M168: 14.53 | N168: 61.27 | O168: 57.87 | P168: 37.85 | Q168: 108.58 | R168: 6.2 | S168: 4.25 | T168: 4.5 | U168: 3.38 | V168: 0.237 | W168: 2.869 | X168: 198.62 | Y168: 0.292 | Z168: 0.392 | AA168: 0.684 | AB168: NL | AC168: 605113 | AD168: SS | AE168: =IF(ISNA(VLOOKUP(A168,Rankings!$B$2:$H$659,7,FALSE)),"-",VLOOKUP(A168,Rankings!$B$2:$H$659,7,FALSE)) -> 0
A169: Josh Reddick | B169: OF | C169: =(G169*'Points System'!$B$16)+(H169*'Points System'!$B$17)+(I169*'Points System'!$B$15)+(J169*'Points System'!$B$2)+(K169*'Points System'!$B$3)+(L169*'Points System'!$B$4)+(M169*'Points System'!$B$5)+(N169*'Points System'!$B$6)+(O169*'Points System'!$B$7)+(P169*'Points System'!$B$8)+(Q169*'Points System'!$B$9)+(R169*'Points System'!$B$10)+(S169*'Points System'!$B$11)+(T169*'Points System'!$B$13)+(U169*'Points System'!$B$12)+(X169*'Points System'!$B$14) -> 378.795 | D169: =C169/G169 -> 0.8501739423 | E169: =C169/F169 -> 3.334463028 | F169: 113.6 | G169: 445.55 | H169: 410.07 | I169: 108.86 | J169: 75 | K169: 18.33 | L169: 2.07 | M169: 14.13 | N169: 53.06 | O169: 56.88 | P169: 42 | Q169: 70.38 | R169: 6 | S169: 2.08 | T169: 3 | U169: 0.44 | V169: 0.265 | W169: 1.676 | X169: 174.39 | Y169: 0.332 | Z169: 0.425 | AA169: 0.757 | AB169: AL | AC169: 502210 | AD169: RF | AE169: =IF(ISNA(VLOOKUP(A169,Rankings!$B$2:$H$659,7,FALSE)),"-",VLOOKUP(A169,Rankings!$B$2:$H$659,7,FALSE)) -> 0
A170: Willson Contreras | B170: C | C170: =(G170*'Points System'!$B$16)+(H170*'Points System'!$B$17)+(I170*'Points System'!$B$15)+(J170*'Points System'!$B$2)+(K170*'Points System'!$B$3)+(L170*'Points System'!$B$4)+(M170*'Points System'!$B$5)+(N170*'Points System'!$B$6)+(O170*'Points System'!$B$7)+(P170*'Points System'!$B$8)+(Q170*'Points System'!$B$9)+(R170*'Points System'!$B$10)+(S170*'Points System'!$B$11)+(T170*'Points System'!$B$13)+(U170*'Points System'!$B$12)+(X170*'Points System'!$B$14) -> 378.065 | D170: =C170/G170 -> 0.7528475845 | E170: =C170/F170 -> 3.017278532 | F170: 125.3 | G170: 502.18 | H170: 453 | I170: 116.71 | J170: 74.93 | K170: 23.67 | L170: 3.13 | M170: 15.25 | N170: 63.31 | O170: 56.25 | P170: 49.71 | Q170: 112.69 | R170: 4.38 | S170: 2.08 | T170: 2 | U170: 9 | V170: 0.258 | W170: 2.267 | X170: 192.66 | Y170: 0.341 | Z170: 0.425 | AA170: 0.766 | AB170: NL | AC170: 575929 | AD170: C | AE170: =IF(ISNA(VLOOKUP(A170,Rankings!$B$2:$H$659,7,FALSE)),"-",VLOOKUP(A170,Rankings!$B$2:$H$659,7,FALSE)) -> 0
A171: Ryan O'Hearn | B171: 1B | C171: =(G171*'Points System'!$B$16)+(H171*'Points System'!$B$17)+(I171*'Points System'!$B$15)+(J171*'Points System'!$B$2)+(K171*'Points System'!$B$3)+(L171*'Points System'!$B$4)+(M171*'Points System'!$B$5)+(N171*'Points System'!$B$6)+(O171*'Points System'!$B$7)+(P171*'Points System'!$B$8)+(Q171*'Points System'!$B$9)+(R171*'Points System'!$B$10)+(S171*'Points System'!$B$11)+(T171*'Points System'!$B$13)+(U171*'Points System'!$B$12)+(X171*'Points System'!$B$14) -> 375.43 | D171: =C171/G171 -> 0.6907635695 | E171: =C171/F171 -> 2.852161361 | F171: 131.63 | G171: 543.5 | H171: 487.58 | I171: 115.58 | J171: 63.54 | K171: 27.31 | L171: 2.69 | M171: 21.38 | N171: 70.69 | O171: 61.08 | P171: 54.33 | Q171: 150.45 | R171: 1.54 | S171: 0.55 | T171: 1 | U171: 3.29 | V171: 0.237 | W171: 2.769 | X171: 211.75 | Y171: 0.317 | Z171: 0.434 | AA171: 0.751 | AB171: AL | AC171: 656811 | AD171: 1B | AE171: =IF(ISNA(VLOOKUP(A171,Rankings!$B$2:$H$659,7,FALSE)),"-",VLOOKUP(A171,Rankings!$B$2:$H$659,7,FALSE)) -> 0
A172: Yasmani Grandal | B172: C | C172: =(G172*'Points System'!$B$16)+(H172*'Points System'!$B$17)+(I172*'Points System'!$B$15)+(J172*'Points System'!$B$2)+(K172*'Points System'!$B$3)+(L172*'Points System'!$B$4)+(M172*'Points System'!$B$5)+(N172*'Points System'!$B$6)+(O172*'Points System'!$B$7)+(P172*'Points System'!$B$8)+(Q172*'Points System'!$B$9)+(R172*'Points System'!$B$10)+(S172*'Points System'!$B$11)+(T172*'Points System'!$B$13)+(U172*'Points System'!$B$12)+(X172*'Points System'!$B$14) -> 370.275 | D172: =C172/G172 -> 0.7633119627 | E172: =C172/F172 -> 2.964571657 | F172: 124.9 | G172: 485.09 | H172: 416.4 | I172: 100 | J172: 56.8 | K172: 20.13 | L172: 1.13 | M172: 22.31 | N172: 65.75 | O172: 58.75 | P172: 62.36 | Q172: 118.46 | R172: 1.56 | S172: 1.31 | T172: 2.5 | U172: 2.33 | V172: 0.24 | W172: 1.9 | X172: 189.69 | Y172: 0.341 | Z172: 0.456 | AA172: 0.797 | AB172: NL | AC172: 518735 | AD172: C | AE172: =IF(ISNA(VLOOKUP(A172,Rankings!$B$2:$H$659,7,FALSE)),"-",VLOOKUP(A172,Rankings!$B$2:$H$659,7,FALSE)) -> 0
A173: Manuel Margot | B173: OF | C173: =(G173*'Points System'!$B$16)+(H173*'Points System'!$B$17)+(I173*'Points System'!$B$15)+(J173*'Points System'!$B$2)+(K173*'Points System'!$B$3)+(L173*'Points System'!$B$4)+(M173*'Points System'!$B$5)+(N173*'Points System'!$B$6)+(O173*'Points System'!$B$7)+(P173*'Points System'!$B$8)+(Q173*'Points System'!$B$9)+(R173*'Points System'!$B$10)+(S173*'Points System'!$B$11)+(T173*'Points System'!$B$13)+(U173*'Points System'!$B$12)+(X173*'Points System'!$B$14) -> 369.76 | D173: =C173/G173 -> 0.7539198695 | E173: =C173/F173 -> 2.900078431 | F173: 127.5 | G173: 490.45 | H173: 454.93 | I173: 117.57 | J173: 77.93 | K173: 22.47 | L173: 7.27 | M173: 10.5 | N173: 47.5 | O173: 51.56 | P173: 32.57 | Q173: 85.08 | R173: 14.06 | S173: 7.38 | T173: 6 | U173: 2.11 | V173: 0.258 | W173: 2.612 | X173: 186.68 | Y173: 0.307 | Z173: 0.41 | AA173: 0.717 | AB173: NL | AC173: 622534 | AD173: CF | AE173: =IF(ISNA(VLOOKUP(A173,Rankings!$B$2:$H$659,7,FALSE)),"-",VLOOKUP(A173,Rankings!$B$2:$H$659,7,FALSE)) -> 0
A174: Billy Hamilton | B174: OF | C174: =(G174*'Points System'!$B$16)+(H174*'Points System'!$B$17)+(I174*'Points System'!$B$15)+(J174*'Points System'!$B$2)+(K174*'Points System'!$B$3)+(L174*'Points System'!$B$4)+(M174*'Points System'!$B$5)+(N174*'Points System'!$B$6)+(O174*'Points System'!$B$7)+(P174*'Points System'!$B$8)+(Q174*'Points System'!$B$9)+(R174*'Points System'!$B$10)+(S174*'Points System'!$B$11)+(T174*'Points System'!$B$13)+(U174*'Points System'!$B$12)+(X174*'Points System'!$B$14) -> 367.585 | D174: =C174/G174 -> 0.6694317975 | E174: =C174/F174 -> 2.629739591 | F174: 139.78 | G174: 549.1 | H174: 503.86 | I174: 121.54 | J174: 90.93 | K174: 18.5 | L174: 8.14 | M174: 4.2 | N174: 33.8 | O174: 67.33 | P174: 42 | Q174: 120.92 | R174: 41.67 | S174: 9.92 | T174: 3.5 | U174: 1.25 | V174: 0.241 | W174: 2.879 | X174: 169.15 | Y174: 0.299 | Z174: 0.336 | AA174: 0.635 | AB174: AL | AC174: 571740 | AD174: CF | AE174: =IF(ISNA(VLOOKUP(A174,Rankings!$B$2:$H$659,7,FALSE)),"-",VLOOKUP(A174,Rankings!$B$2:$H$659,7,FALSE)) -> 0
A175: Domingo Santana | B175: OF | C175: =(G175*'Points System'!$B$16)+(H175*'Points System'!$B$17)+(I175*'Points System'!$B$15)+(J175*'Points System'!$B$2)+(K175*'Points System'!$B$3)+(L175*'Points System'!$B$4)+(M175*'Points System'!$B$5)+(N175*'Points System'!$B$6)+(O175*'Points System'!$B$7)+(P175*'Points System'!$B$8)+(Q175*'Points System'!$B$9)+(R175*'Points System'!$B$10)+(S175*'Points System'!$B$11)+(T175*'Points System'!$B$13)+(U175*'Points System'!$B$12)+(X175*'Points System'!$B$14) -> 367.575 | D175: =C175/G175 -> 0.6593864921 | E175: =C175/F175 -> 2.638729361 | F175: 139.3 | G175: 557.45 | H175: 494.93 | I175: 122.36 | J175: 78 | K175: 24.27 | L175: 1.53 | M175: 20.63 | N175: 67.19 | O175: 66.06 | P175: 60.14 | Q175: 179.54 | R175: 6.88 | S175: 2.92 | T175: 5 | U175: 4.56 | V175: 0.247 | W175: 2.985 | X175: 213.65 | Y175: 0.331 | Z175: 0.432 | AA175: 0.763 | AB175: AL | AC175: 570267 | AD175: RF | AE175: =IF(ISNA(VLOOKUP(A175,Rankings!$B$2:$H$659,7,FALSE)),"-",VLOOKUP(A175,Rankings!$B$2:$H$659,7,FALSE)) -> 0
A176: Jeff McNeil | B176: 2B | C176: =(G176*'Points System'!$B$16)+(H176*'Points System'!$B$17)+(I176*'Points System'!$B$15)+(J176*'Points System'!$B$2)+(K176*'Points System'!$B$3)+(L176*'Points System'!$B$4)+(M176*'Points System'!$B$5)+(N176*'Points System'!$B$6)+(O176*'Points System'!$B$7)+(P176*'Points System'!$B$8)+(Q176*'Points System'!$B$9)+(R176*'Points System'!$B$10)+(S176*'Points System'!$B$11)+(T176*'Points System'!$B$13)+(U176*'Points System'!$B$12)+(X176*'Points System'!$B$14) -> 366.285 | D176: =C176/G176 -> 0.9026244455 | E176: =C176/F176 -> 3.544807897 | F176: 103.33 | G176: 405.8 | H176: 390.43 | I176: 111.38 | J176: 75.79 | K176: 20.29 | L176: 4.93 | M176: 9.33 | N176: 46.13 | O176: 53.07 | P176: 28.46 | Q176: 56.33 | R176: 8.4 | S176: 2.17 | T176: 0 | U176: 7.63 | V176: 0.285 | W176: 1.979 | X176: 168.48 | Y176: 0.346 | Z176: 0.432 | AA176: 0.778 | AB176: NL | AC176: 643446 | AD176: 2B | AE176: =IF(ISNA(VLOOKUP(A176,Rankings!$B$2:$H$659,7,FALSE)),"-",VLOOKUP(A176,Rankings!$B$2:$H$659,7,FALSE)) -> 0
A177: Ramon Laureano | B177: OF | C177: =(G177*'Points System'!$B$16)+(H177*'Points System'!$B$17)+(I177*'Points System'!$B$15)+(J177*'Points System'!$B$2)+(K177*'Points System'!$B$3)+(L177*'Points System'!$B$4)+(M177*'Points System'!$B$5)+(N177*'Points System'!$B$6)+(O177*'Points System'!$B$7)+(P177*'Points System'!$B$8)+(Q177*'Points System'!$B$9)+(R177*'Points System'!$B$10)+(S177*'Points System'!$B$11)+(T177*'Points System'!$B$13)+(U177*'Points System'!$B$12)+(X177*'Points System'!$B$14) -> 366.08 | D177: =C177/G177 -> 0.7245235221 | E177: =C177/F177 -> 2.921628093 | F177: 125.3 | G177: 505.27 | H177: 448 | I177: 114.64 | J177: 70.87 | K177: 24.87 | L177: 3.87 | M177: 14.94 | N177: 54.44 | O177: 63.38 | P177: 44.93 | Q177: 131.85 | R177: 16.88 | S177: 4.23 | T177: 5 | U177: 6.78 | V177: 0.256 | W177: 2.935 | X177: 191.98 | Y177: 0.33 | Z177: 0.429 | AA177: 0.759 | AB177: AL | AC177: 657656 | AD177: CF | AE177: =IF(ISNA(VLOOKUP(A177,Rankings!$B$2:$H$659,7,FALSE)),"-",VLOOKUP(A177,Rankings!$B$2:$H$659,7,FALSE)) -> 0
A178: Joc Pederson | B178: OF | C178: =(G178*'Points System'!$B$16)+(H178*'Points System'!$B$17)+(I178*'Points System'!$B$15)+(J178*'Points System'!$B$2)+(K178*'Points System'!$B$3)+(L178*'Points System'!$B$4)+(M178*'Points System'!$B$5)+(N178*'Points System'!$B$6)+(O178*'Points System'!$B$7)+(P178*'Points System'!$B$8)+(Q178*'Points System'!$B$9)+(R178*'Points System'!$B$10)+(S178*'Points System'!$B$11)+(T178*'Points System'!$B$13)+(U178*'Points System'!$B$12)+(X178*'Points System'!$B$14) -> 364.62 | D178: =C178/G178 -> 0.8762797404 | E178: =C178/F178 -> 3.122281213 | F178: 116.78 | G178: 416.1 | H178: 376.07 | I178: 93.77 | J178: 46.71 | K178: 23.21 | L178: 1.86 | M178: 21.73 | N178: 58.6 | O178: 59.8 | P178: 47 | Q178: 92.17 | R178: 3.47 | S178: 4.08 | T178: 2.5 | U178: 5.38 | V178: 0.249 | W178: 1.961 | X178: 185.63 | Y178: 0.339 | Z178: 0.494 | AA178: 0.833 | AB178: NL | AC178: 592626 | AD178: LF | AE178: =IF(ISNA(VLOOKUP(A178,Rankings!$B$2:$H$659,7,FALSE)),"-",VLOOKUP(A178,Rankings!$B$2:$H$659,7,FALSE)) -> 0
A179: Brett Gardner | B179: OF | C179: =(G179*'Points System'!$B$16)+(H179*'Points System'!$B$17)+(I179*'Points System'!$B$15)+(J179*'Points System'!$B$2)+(K179*'Points System'!$B$3)+(L179*'Points System'!$B$4)+(M179*'Points System'!$B$5)+(N179*'Points System'!$B$6)+(O179*'Points System'!$B$7)+(P179*'Points System'!$B$8)+(Q179*'Points System'!$B$9)+(R179*'Points System'!$B$10)+(S179*'Points System'!$B$11)+(T179*'Points System'!$B$13)+(U179*'Points System'!$B$12)+(X179*'Points System'!$B$14) -> 363.895 | D179: =C179/G179 -> 0.7769557605 | E179: =C179/F179 -> 3.18090035 | F179: 114.4 | G179: 468.36 | H179: 422.93 | I179: 103.64 | J179: 72.07 | K179: 17.87 | L179: 4.47 | M179: 10.88 | N179: 42.5 | O179: 67.19 | P179: 50.86 | Q179: 87 | R179: 12.81 | S179: 2.69 | T179: 3.5 | U179: 4.44 | V179: 0.245 | W179: 1.711 | X179: 164.74 | Y179: 0.33 | Z179: 0.39 | AA179: 0.72 | AB179: AL | AC179: 458731 | AD179: LF | AE179: =IF(ISNA(VLOOKUP(A179,Rankings!$B$2:$H$659,7,FALSE)),"-",VLOOKUP(A179,Rankings!$B$2:$H$659,7,FALSE)) -> 0
A180: Steven Souza | B180: OF | C180: =(G180*'Points System'!$B$16)+(H180*'Points System'!$B$17)+(I180*'Points System'!$B$15)+(J180*'Points System'!$B$2)+(K180*'Points System'!$B$3)+(L180*'Points System'!$B$4)+(M180*'Points System'!$B$5)+(N180*'Points System'!$B$6)+(O180*'Points System'!$B$7)+(P180*'Points System'!$B$8)+(Q180*'Points System'!$B$9)+(R180*'Points System'!$B$10)+(S180*'Points System'!$B$11)+(T180*'Points System'!$B$13)+(U180*'Points System'!$B$12)+(X180*'Points System'!$B$14) -> 363.35 | D180: =C180/G180 -> 0.7038938396 | E180: =C180/F180 -> 2.909360237 | F180: 124.89 | G180: 516.2 | H180: 456.71 | I180: 110.38 | J180: 63.93 | K180: 23.07 | L180: 3.5 | M180: 19.27 | N180: 64.07 | O180: 60.13 | P180: 58.15 | Q180: 149.42 | R180: 10.67 | S180: 3.25 | T180: 0.5 | U180: 5.88 | V180: 0.242 | W180: 2.57 | X180: 197.65 | Y180: 0.335 | Z180: 0.433 | AA180: 0.768 | AB180: NL | AC180: 519306 | AD180: RF | AE180: =IF(ISNA(VLOOKUP(A180,Rankings!$B$2:$H$659,7,FALSE)),"-",VLOOKUP(A180,Rankings!$B$2:$H$659,7,FALSE)) -> 0
A181: Miguel Sano | B181: 3B | C181: =(G181*'Points System'!$B$16)+(H181*'Points System'!$B$17)+(I181*'Points System'!$B$15)+(J181*'Points System'!$B$2)+(K181*'Points System'!$B$3)+(L181*'Points System'!$B$4)+(M181*'Points System'!$B$5)+(N181*'Points System'!$B$6)+(O181*'Points System'!$B$7)+(P181*'Points System'!$B$8)+(Q181*'Points System'!$B$9)+(R181*'Points System'!$B$10)+(S181*'Points System'!$B$11)+(T181*'Points System'!$B$13)+(U181*'Points System'!$B$12)+(X181*'Points System'!$B$14) -> 362.955 | D181: =C181/G181 -> 0.6592589229 | E181: =C181/F181 -> 2.783397239 | F181: 130.4 | G181: 550.55 | H181: 482.6 | I181: 113.43 | J181: 61 | K181: 22.8 | L181: 1.13 | M181: 28.06 | N181: 78.81 | O181: 70.5 | P181: 59.71 | Q181: 196.62 | R181: 0.63 | S181: 0.08 | T181: 3 | U181: 2 | V181: 0.235 | W181: 3.293 | X181: 222.23 | Y181: 0.32 | Z181: 0.46 | AA181: 0.78 | AB181: AL | AC181: 593934 | AD181: 3B | AE181: =IF(ISNA(VLOOKUP(A181,Rankings!$B$2:$H$659,7,FALSE)),"-",VLOOKUP(A181,Rankings!$B$2:$H$659,7,FALSE)) -> 0
A182: Harrison Bader | B182: OF | C182: =(G182*'Points System'!$B$16)+(H182*'Points System'!$B$17)+(I182*'Points System'!$B$15)+(J182*'Points System'!$B$2)+(K182*'Points System'!$B$3)+(L182*'Points System'!$B$4)+(M182*'Points System'!$B$5)+(N182*'Points System'!$B$6)+(O182*'Points System'!$B$7)+(P182*'Points System'!$B$8)+(Q182*'Points System'!$B$9)+(R182*'Points System'!$B$10)+(S182*'Points System'!$B$11)+(T182*'Points System'!$B$13)+(U182*'Points System'!$B$12)+(X182*'Points System'!$B$14) -> 361.965 | D182: =C182/G182 -> 0.6575801617 | E182: =C182/F182 -> 2.56712766 | F182: 141 | G182: 550.45 | H182: 493.2 | I182: 124.21 | J182: 82 | K182: 22.93 | L182: 2.4 | M182: 16.56 | N182: 57.5 | O182: 66.69 | P182: 38.86 | Q182: 153.38 | R182: 16.13 | S182: 5.69 | T182: 5 | U182: 11.44 | V182: 0.252 | W182: 3.947 | X182: 201.3 | Y182: 0.318 | Z182: 0.408 | AA182: 0.726 | AB182: NL | AC182: 664056 | AD182: CF | AE182: =IF(ISNA(VLOOKUP(A182,Rankings!$B$2:$H$659,7,FALSE)),"-",VLOOKUP(A182,Rankings!$B$2:$H$659,7,FALSE)) -> 0
A183: Dustin Pedroia | B183: 2B | C183: =(G183*'Points System'!$B$16)+(H183*'Points System'!$B$17)+(I183*'Points System'!$B$15)+(J183*'Points System'!$B$2)+(K183*'Points System'!$B$3)+(L183*'Points System'!$B$4)+(M183*'Points System'!$B$5)+(N183*'Points System'!$B$6)+(O183*'Points System'!$B$7)+(P183*'Points System'!$B$8)+(Q183*'Points System'!$B$9)+(R183*'Points System'!$B$10)+(S183*'Points System'!$B$11)+(T183*'Points System'!$B$13)+(U183*'Points System'!$B$12)+(X183*'Points System'!$B$14) -> 360.565 | D183: =C183/G183 -> 0.8159425209 | E183: =C183/F183 -> 3.203313788 | F183: 112.56 | G183: 441.9 | H183: 391.14 | I183: 108.08 | J183: 81.46 | K183: 19.31 | L183: 0.77 | M183: 8.07 | N183: 48.57 | O183: 49.57 | P183: 44.5 | Q183: 52.5 | R183: 3.64 | S183: 1.82 | T183: 1 | U183: 1.43 | V183: 0.276 | W183: 1.18 | X183: 154.67 | Y183: 0.352 | Z183: 0.395 | AA183: 0.747 | AB183: AL | AC183: 456030 | AD183: 2B | AE183: =IF(ISNA(VLOOKUP(A183,Rankings!$B$2:$H$659,7,FALSE)),"-",VLOOKUP(A183,Rankings!$B$2:$H$659,7,FALSE)) -> 0
A184: Marwin Gonzalez | B184: 1B/2B/SS/OF | C184: =(G184*'Points System'!$B$16)+(H184*'Points System'!$B$17)+(I184*'Points System'!$B$15)+(J184*'Points System'!$B$2)+(K184*'Points System'!$B$3)+(L184*'Points System'!$B$4)+(M184*'Points System'!$B$5)+(N184*'Points System'!$B$6)+(O184*'Points System'!$B$7)+(P184*'Points System'!$B$8)+(Q184*'Points System'!$B$9)+(R184*'Points System'!$B$10)+(S184*'Points System'!$B$11)+(T184*'Points System'!$B$13)+(U184*'Points System'!$B$12)+(X184*'Points System'!$B$14) -> 360.53 | D184: =C184/G184 -> 0.7837608696 | E184: =C184/F184 -> 3.086729452 | F184: 116.8 | G184: 460 | H184: 417.5 | I184: 111.15 | J184: 70.93 | K184: 24.29 | L184: 1.86 | M184: 15.07 | N184: 60.07 | O184: 54.47 | P184: 40.29 | Q184: 102.46 | R184: 4.53 | S184: 2.69 | T184: 1 | U184: 3.56 | V184: 0.266 | W184: 2.543 | X184: 185.37 | Y184: 0.335 | Z184: 0.444 | AA184: 0.779 | AB184: AL | AC184: 503556 | AD184: LF | AE184: =IF(ISNA(VLOOKUP(A184,Rankings!$B$2:$H$659,7,FALSE)),"-",VLOOKUP(A184,Rankings!$B$2:$H$659,7,FALSE)) -> 0
A185: Ian Kinsler | B185: 2B | C185: =(G185*'Points System'!$B$16)+(H185*'Points System'!$B$17)+(I185*'Points System'!$B$15)+(J185*'Points System'!$B$2)+(K185*'Points System'!$B$3)+(L185*'Points System'!$B$4)+(M185*'Points System'!$B$5)+(N185*'Points System'!$B$6)+(O185*'Points System'!$B$7)+(P185*'Points System'!$B$8)+(Q185*'Points System'!$B$9)+(R185*'Points System'!$B$10)+(S185*'Points System'!$B$11)+(T185*'Points System'!$B$13)+(U185*'Points System'!$B$12)+(X185*'Points System'!$B$14) -> 359.225 | D185: =C185/G185 -> 0.7656116795 | E185: =C185/F185 -> 3.099706618 | F185: 115.89 | G185: 469.2 | H185: 441.07 | I185: 104 | J185: 69.64 | K185: 20.71 | L185: 1.14 | M185: 13 | N185: 43 | O185: 58.6 | P185: 34.92 | Q185: 67.08 | R185: 11.87 | S185: 5 | T185: 2.5 | U185: 4.5 | V185: 0.236 | W185: 1.921 | X185: 166.48 | Y185: 0.297 | Z185: 0.377 | AA185: 0.674 | AB185: NL | AC185: 435079 | AD185: 2B | AE185: =IF(ISNA(VLOOKUP(A185,Rankings!$B$2:$H$659,7,FALSE)),"-",VLOOKUP(A185,Rankings!$B$2:$H$659,7,FALSE)) -> 0
A186: Byron Buxton | B186: OF | C186: =(G186*'Points System'!$B$16)+(H186*'Points System'!$B$17)+(I186*'Points System'!$B$15)+(J186*'Points System'!$B$2)+(K186*'Points System'!$B$3)+(L186*'Points System'!$B$4)+(M186*'Points System'!$B$5)+(N186*'Points System'!$B$6)+(O186*'Points System'!$B$7)+(P186*'Points System'!$B$8)+(Q186*'Points System'!$B$9)+(R186*'Points System'!$B$10)+(S186*'Points System'!$B$11)+(T186*'Points System'!$B$13)+(U186*'Points System'!$B$12)+(X186*'Points System'!$B$14) -> 358.61 | D186: =C186/G186 -> 0.6689286993 | E186: =C186/F186 -> 2.55493018 | F186: 140.36 | G186: 536.096 | H186: 496.243 | I186: 121.396 | J186: 77.297 | K186: 23.837 | L186: 4.84 | M186: 15.268 | N186: 55.55 | O186: 66.825 | P186: 34.023 | Q186: 159.082 | R186: 23.034 | S186: 2.85 | T186: 1 | U186: 3.78 | V186: 0.245 | W186: 4.676 | X186: 182.33 | Y186: 0.298 | Z186: 0.404 | AA186: 0.702 | AB186: AL | AC186: 621439 | AD186: CF | AE186: =IF(ISNA(VLOOKUP(A186,Rankings!$B$2:$H$659,7,FALSE)),"-",VLOOKUP(A186,Rankings!$B$2:$H$659,7,FALSE)) -> 0
A187: Gregory Polanco | B187: OF | C187: =(G187*'Points System'!$B$16)+(H187*'Points System'!$B$17)+(I187*'Points System'!$B$15)+(J187*'Points System'!$B$2)+(K187*'Points System'!$B$3)+(L187*'Points System'!$B$4)+(M187*'Points System'!$B$5)+(N187*'Points System'!$B$6)+(O187*'Points System'!$B$7)+(P187*'Points System'!$B$8)+(Q187*'Points System'!$B$9)+(R187*'Points System'!$B$10)+(S187*'Points System'!$B$11)+(T187*'Points System'!$B$13)+(U187*'Points System'!$B$12)+(X187*'Points System'!$B$14) -> 358.04 | D187: =C187/G187 -> 0.8313557945 | E187: =C187/F187 -> 3.401805226 | F187: 105.25 | G187: 430.67 | H187: 384.08 | I187: 98.17 | J187: 56.08 | K187: 22.77 | L187: 3.15 | M187: 16.29 | N187: 56.36 | O187: 53.5 | P187: 42.58 | Q187: 87.82 | R187: 9.07 | S187: 2.73 | T187: 6 | U187: 2.43 | V187: 0.256 | W187: 2.062 | X187: 176.23 | Y187: 0.329 | Z187: 0.459 | AA187: 0.788 | AB187: NL | AC187: 570256 | AD187: RF | AE187: =IF(ISNA(VLOOKUP(A187,Rankings!$B$2:$H$659,7,FALSE)),"-",VLOOKUP(A187,Rankings!$B$2:$H$659,7,FALSE)) -> 0
A188: Josh Harrison | B188: 2B | C188: =(G188*'Points System'!$B$16)+(H188*'Points System'!$B$17)+(I188*'Points System'!$B$15)+(J188*'Points System'!$B$2)+(K188*'Points System'!$B$3)+(L188*'Points System'!$B$4)+(M188*'Points System'!$B$5)+(N188*'Points System'!$B$6)+(O188*'Points System'!$B$7)+(P188*'Points System'!$B$8)+(Q188*'Points System'!$B$9)+(R188*'Points System'!$B$10)+(S188*'Points System'!$B$11)+(T188*'Points System'!$B$13)+(U188*'Points System'!$B$12)+(X188*'Points System'!$B$14) -> 356.805 | D188: =C188/G188 -> 0.7513424161 | E188: =C188/F188 -> 3.05614561 | F188: 116.75 | G188: 474.89 | H188: 458.33 | I188: 118.9 | J188: 81.09 | K188: 23.45 | L188: 2.45 | M188: 11.42 | N188: 48.33 | O188: 58.17 | P188: 24.55 | Q188: 89 | R188: 7.75 | S188: 2.5 | T188: 4 | U188: 10.5 | V188: 0.259 | W188: 3.625 | X188: 181.02 | Y188: 0.31 | Z188: 0.395 | AA188: 0.705 | AB188: AL | AC188: 543281 | AD188: 2B | AE188: =IF(ISNA(VLOOKUP(A188,Rankings!$B$2:$H$659,7,FALSE)),"-",VLOOKUP(A188,Rankings!$B$2:$H$659,7,FALSE)) -> 0
A189: Wilson Ramos | B189: C | C189: =(G189*'Points System'!$B$16)+(H189*'Points System'!$B$17)+(I189*'Points System'!$B$15)+(J189*'Points System'!$B$2)+(K189*'Points System'!$B$3)+(L189*'Points System'!$B$4)+(M189*'Points System'!$B$5)+(N189*'Points System'!$B$6)+(O189*'Points System'!$B$7)+(P189*'Points System'!$B$8)+(Q189*'Points System'!$B$9)+(R189*'Points System'!$B$10)+(S189*'Points System'!$B$11)+(T189*'Points System'!$B$13)+(U189*'Points System'!$B$12)+(X189*'Points System'!$B$14) -> 355.775 | D189: =C189/G189 -> 0.8513196621 | E189: =C189/F189 -> 3.404545455 | F189: 104.5 | G189: 417.91 | H189: 399.47 | I189: 109.14 | J189: 73.4 | K189: 19.2 | L189: 0.67 | M189: 16.38 | N189: 62.38 | O189: 44.94 | P189: 30.21 | Q189: 78.62 | R189: 0.19 | S189: 0.08 | T189: 2 | U189: 0.67 | V189: 0.273 | W189: 2.602 | X189: 179.33 | Y189: 0.324 | Z189: 0.449 | AA189: 0.773 | AB189: NL | AC189: 467092 | AD189: C | AE189: =IF(ISNA(VLOOKUP(A189,Rankings!$B$2:$H$659,7,FALSE)),"-",VLOOKUP(A189,Rankings!$B$2:$H$659,7,FALSE)) -> 0
A190: Colin Moran | B190: 3B | C190: =(G190*'Points System'!$B$16)+(H190*'Points System'!$B$17)+(I190*'Points System'!$B$15)+(J190*'Points System'!$B$2)+(K190*'Points System'!$B$3)+(L190*'Points System'!$B$4)+(M190*'Points System'!$B$5)+(N190*'Points System'!$B$6)+(O190*'Points System'!$B$7)+(P190*'Points System'!$B$8)+(Q190*'Points System'!$B$9)+(R190*'Points System'!$B$10)+(S190*'Points System'!$B$11)+(T190*'Points System'!$B$13)+(U190*'Points System'!$B$12)+(X190*'Points System'!$B$14) -> 353.51 | D190: =C190/G190 -> 0.7436053849 | E190: =C190/F190 -> 2.82808 | F190: 125 | G190: 475.4 | H190: 435.21 | I190: 115.69 | J190: 81 | K190: 20.86 | L190: 1.43 | M190: 12.67 | N190: 57.47 | O190: 50.33 | P190: 39.77 | Q190: 93.75 | R190: 0.87 | S190: 1.33 | T190: 7 | U190: 3.5 | V190: 0.266 | W190: 2.357 | X190: 177.69 | Y190: 0.327 | Z190: 0.408 | AA190: 0.735 | AB190: NL | AC190: 592567 | AD190: 3B | AE190: =IF(ISNA(VLOOKUP(A190,Rankings!$B$2:$H$659,7,FALSE)),"-",VLOOKUP(A190,Rankings!$B$2:$H$659,7,FALSE)) -> 0
A191: Franmil Reyes | B191: OF | C191: =(G191*'Points System'!$B$16)+(H191*'Points System'!$B$17)+(I191*'Points System'!$B$15)+(J191*'Points System'!$B$2)+(K191*'Points System'!$B$3)+(L191*'Points System'!$B$4)+(M191*'Points System'!$B$5)+(N191*'Points System'!$B$6)+(O191*'Points System'!$B$7)+(P191*'Points System'!$B$8)+(Q191*'Points System'!$B$9)+(R191*'Points System'!$B$10)+(S191*'Points System'!$B$11)+(T191*'Points System'!$B$13)+(U191*'Points System'!$B$12)+(X191*'Points System'!$B$14) -> 352.515 | D191: =C191/G191 -> 0.720079665 | E191: =C191/F191 -> 2.690954198 | F191: 131 | G191: 489.55 | H191: 429 | I191: 110.86 | J191: 67.93 | K191: 18.73 | L191: 1.07 | M191: 21.56 | N191: 62.69 | O191: 57.94 | P191: 41.29 | Q191: 127 | R191: 1.31 | S191: 0.85 | T191: 0.5 | U191: 1.78 | V191: 0.258 | W191: 3.076 | X191: 194.84 | Y191: 0.326 | Z191: 0.454 | AA191: 0.78 | AB191: NL | AC191: 614177 | AD191: RF | AE191: =IF(ISNA(VLOOKUP(A191,Rankings!$B$2:$H$659,7,FALSE)),"-",VLOOKUP(A191,Rankings!$B$2:$H$659,7,FALSE)) -> 0
A192: Lourdes Gurriel | B192: 2B/SS | C192: =(G192*'Points System'!$B$16)+(H192*'Points System'!$B$17)+(I192*'Points System'!$B$15)+(J192*'Points System'!$B$2)+(K192*'Points System'!$B$3)+(L192*'Points System'!$B$4)+(M192*'Points System'!$B$5)+(N192*'Points System'!$B$6)+(O192*'Points System'!$B$7)+(P192*'Points System'!$B$8)+(Q192*'Points System'!$B$9)+(R192*'Points System'!$B$10)+(S192*'Points System'!$B$11)+(T192*'Points System'!$B$13)+(U192*'Points System'!$B$12)+(X192*'Points System'!$B$14) -> 350.7 | D192: =C192/G192 -> 0.8396581033 | E192: =C192/F192 -> 2.597777778 | F192: 135 | G192: 417.67 | H192: 447 | I192: 125 | J192: 88.25 | K192: 19.5 | L192: 1.5 | M192: 16.2 | N192: 59.2 | O192: 52.8 | P192: 21.5 | Q192: 114 | R192: 4.2 | S192: 4.75 | T192: 4 | U192: 4.5 | V192: 0.28 | W192: 5.302 | X192: 196.55 | Y192: 0.317 | Z192: 0.44 | AA192: 0.757 | AB192: AL | AC192: 666971 | AD192: SS | AE192: =IF(ISNA(VLOOKUP(A192,Rankings!$B$2:$H$659,7,FALSE)),"-",VLOOKUP(A192,Rankings!$B$2:$H$659,7,FALSE)) -> 0
A193: Kevin Kiermaier | B193: OF | C193: =(G193*'Points System'!$B$16)+(H193*'Points System'!$B$17)+(I193*'Points System'!$B$15)+(J193*'Points System'!$B$2)+(K193*'Points System'!$B$3)+(L193*'Points System'!$B$4)+(M193*'Points System'!$B$5)+(N193*'Points System'!$B$6)+(O193*'Points System'!$B$7)+(P193*'Points System'!$B$8)+(Q193*'Points System'!$B$9)+(R193*'Points System'!$B$10)+(S193*'Points System'!$B$11)+(T193*'Points System'!$B$13)+(U193*'Points System'!$B$12)+(X193*'Points System'!$B$14) -> 350.565 | D193: =C193/G193 -> 0.6668537189 | E193: =C193/F193 -> 2.865732036 | F193: 122.33 | G193: 525.7 | H193: 461.79 | I193: 113.15 | J193: 71.79 | K193: 19.86 | L193: 7.36 | M193: 12.8 | N193: 46.87 | O193: 62.8 | P193: 38.15 | Q193: 119.67 | R193: 16.33 | S193: 6.42 | T193: 2 | U193: 6.88 | V193: 0.245 | W193: 3.137 | X193: 184.79 | Y193: 0.311 | Z193: 0.4 | AA193: 0.711 | AB193: AL | AC193: 595281 | AD193: CF | AE193: =IF(ISNA(VLOOKUP(A193,Rankings!$B$2:$H$659,7,FALSE)),"-",VLOOKUP(A193,Rankings!$B$2:$H$659,7,FALSE)) -> 0
A194: Renato Nunez | B194: 3B | C194: =(G194*'Points System'!$B$16)+(H194*'Points System'!$B$17)+(I194*'Points System'!$B$15)+(J194*'Points System'!$B$2)+(K194*'Points System'!$B$3)+(L194*'Points System'!$B$4)+(M194*'Points System'!$B$5)+(N194*'Points System'!$B$6)+(O194*'Points System'!$B$7)+(P194*'Points System'!$B$8)+(Q194*'Points System'!$B$9)+(R194*'Points System'!$B$10)+(S194*'Points System'!$B$11)+(T194*'Points System'!$B$13)+(U194*'Points System'!$B$12)+(X194*'Points System'!$B$14) -> 349.85 | D194: =C194/G194 -> 0.6662540468 | E194: =C194/F194 -> 2.597831737 | F194: 134.67 | G194: 525.1 | H194: 485.07 | I194: 117 | J194: 73.62 | K194: 24.38 | L194: 0.92 | M194: 18.79 | N194: 58.86 | O194: 55.14 | P194: 38.67 | Q194: 131.42 | R194: 1.57 | S194: 0.45 | T194: 4 | U194: 5 | V194: 0.241 | W194: 3.399 | X194: 200.3 | Y194: 0.302 | Z194: 0.413 | AA194: 0.715 | AB194: AL | AC194: 600524 | AD194: 3B | AE194: =IF(ISNA(VLOOKUP(A194,Rankings!$B$2:$H$659,7,FALSE)),"-",VLOOKUP(A194,Rankings!$B$2:$H$659,7,FALSE)) -> 0
A195: Dansby Swanson | B195: SS | C195: =(G195*'Points System'!$B$16)+(H195*'Points System'!$B$17)+(I195*'Points System'!$B$15)+(J195*'Points System'!$B$2)+(K195*'Points System'!$B$3)+(L195*'Points System'!$B$4)+(M195*'Points System'!$B$5)+(N195*'Points System'!$B$6)+(O195*'Points System'!$B$7)+(P195*'Points System'!$B$8)+(Q195*'Points System'!$B$9)+(R195*'Points System'!$B$10)+(S195*'Points System'!$B$11)+(T195*'Points System'!$B$13)+(U195*'Points System'!$B$12)+(X195*'Points System'!$B$14) -> 348.72 | D195: =C195/G195 -> 0.6541484552 | E195: =C195/F195 -> 2.618018018 | F195: 133.2 | G195: 533.09 | H195: 462.47 | I195: 114.86 | J195: 74.6 | K195: 24.07 | L195: 3.33 | M195: 11.81 | N195: 54.75 | O195: 53.13 | P195: 46.79 | Q195: 115.92 | R195: 8.31 | S195: 3.23 | T195: 3.5 | U195: 2.22 | V195: 0.248 | W195: 2.477 | X195: 179.97 | Y195: 0.318 | Z195: 0.389 | AA195: 0.707 | AB195: NL | AC195: 621020 | AD195: SS | AE195: =IF(ISNA(VLOOKUP(A195,Rankings!$B$2:$H$659,7,FALSE)),"-",VLOOKUP(A195,Rankings!$B$2:$H$659,7,FALSE)) -> 0
A196: Orlando Arcia | B196: SS | C196: =(G196*'Points System'!$B$16)+(H196*'Points System'!$B$17)+(I196*'Points System'!$B$15)+(J196*'Points System'!$B$2)+(K196*'Points System'!$B$3)+(L196*'Points System'!$B$4)+(M196*'Points System'!$B$5)+(N196*'Points System'!$B$6)+(O196*'Points System'!$B$7)+(P196*'Points System'!$B$8)+(Q196*'Points System'!$B$9)+(R196*'Points System'!$B$10)+(S196*'Points System'!$B$11)+(T196*'Points System'!$B$13)+(U196*'Points System'!$B$12)+(X196*'Points System'!$B$14) -> 347.33 | D196: =C196/G196 -> 0.6637301739 | E196: =C196/F196 -> 2.496801093 | F196: 139.11 | G196: 523.3 | H196: 491.5 | I196: 125.38 | J196: 90.5 | K196: 22 | L196: 2.21 | M196: 10.07 | N196: 50.2 | O196: 52.2 | P196: 30 | Q196: 109.42 | R196: 12.07 | S196: 5.58 | T196: 1 | U196: 2.25 | V196: 0.255 | W196: 3.647 | X196: 181.41 | Y196: 0.3 | Z196: 0.369 | AA196: 0.669 | AB196: NL | AC196: 606115 | AD196: SS | AE196: =IF(ISNA(VLOOKUP(A196,Rankings!$B$2:$H$659,7,FALSE)),"-",VLOOKUP(A196,Rankings!$B$2:$H$659,7,FALSE)) -> 0
A197: Justin Bour | B197: 1B | C197: =(G197*'Points System'!$B$16)+(H197*'Points System'!$B$17)+(I197*'Points System'!$B$15)+(J197*'Points System'!$B$2)+(K197*'Points System'!$B$3)+(L197*'Points System'!$B$4)+(M197*'Points System'!$B$5)+(N197*'Points System'!$B$6)+(O197*'Points System'!$B$7)+(P197*'Points System'!$B$8)+(Q197*'Points System'!$B$9)+(R197*'Points System'!$B$10)+(S197*'Points System'!$B$11)+(T197*'Points System'!$B$13)+(U197*'Points System'!$B$12)+(X197*'Points System'!$B$14) -> 343.845 | D197: =C197/G197 -> 0.8206324582 | E197: =C197/F197 -> 3.261048938 | F197: 105.44 | G197: 419 | H197: 371.43 | I197: 92.62 | J197: 56.5 | K197: 14.86 | L197: 0.93 | M197: 20.8 | N197: 63.4 | O197: 50.6 | P197: 54.54 | Q197: 101.67 | R197: 1.33 | S197: 0.25 | T197: 3 | U197: 1.63 | V197: 0.249 | W197: 1.864 | X197: 172.21 | Y197: 0.346 | Z197: 0.464 | AA197: 0.81 | AB197: AL | AC197: 571506 | AD197: 1B | AE197: =IF(ISNA(VLOOKUP(A197,Rankings!$B$2:$H$659,7,FALSE)),"-",VLOOKUP(A197,Rankings!$B$2:$H$659,7,FALSE)) -> 0
A198: Jay Bruce | B198: 1B/OF | C198: =(G198*'Points System'!$B$16)+(H198*'Points System'!$B$17)+(I198*'Points System'!$B$15)+(J198*'Points System'!$B$2)+(K198*'Points System'!$B$3)+(L198*'Points System'!$B$4)+(M198*'Points System'!$B$5)+(N198*'Points System'!$B$6)+(O198*'Points System'!$B$7)+(P198*'Points System'!$B$8)+(Q198*'Points System'!$B$9)+(R198*'Points System'!$B$10)+(S198*'Points System'!$B$11)+(T198*'Points System'!$B$13)+(U198*'Points System'!$B$12)+(X198*'Points System'!$B$14) -> 343.215 | D198: =C198/G198 -> 0.7795557272 | E198: =C198/F198 -> 3.097608303 | F198: 110.8 | G198: 440.27 | H198: 413.47 | I198: 96.57 | J198: 57.2 | K198: 21.33 | L198: 1.87 | M198: 18.63 | N198: 61.19 | O198: 52.31 | P198: 43.57 | Q198: 101.38 | R198: 2.38 | S198: 1.92 | T198: 1.5 | U198: 1.22 | V198: 0.234 | W198: 2.327 | X198: 179.99 | Y198: 0.307 | Z198: 0.435 | AA198: 0.742 | AB198: AL | AC198: 457803 | AD198: RF | AE198: =IF(ISNA(VLOOKUP(A198,Rankings!$B$2:$H$659,7,FALSE)),"-",VLOOKUP(A198,Rankings!$B$2:$H$659,7,FALSE)) -> 0
A199: Kolten Wong | B199: 2B | C199: =(G199*'Points System'!$B$16)+(H199*'Points System'!$B$17)+(I199*'Points System'!$B$15)+(J199*'Points System'!$B$2)+(K199*'Points System'!$B$3)+(L199*'Points System'!$B$4)+(M199*'Points System'!$B$5)+(N199*'Points System'!$B$6)+(O199*'Points System'!$B$7)+(P199*'Points System'!$B$8)+(Q199*'Points System'!$B$9)+(R199*'Points System'!$B$10)+(S199*'Points System'!$B$11)+(T199*'Points System'!$B$13)+(U199*'Points System'!$B$12)+(X199*'Points System'!$B$14) -> 341.18 | D199: =C199/G199 -> 0.7638814258 | E199: =C199/F199 -> 2.898725573 | F199: 117.7 | G199: 446.64 | H199: 387.4 | I199: 104.14 | J199: 69.07 | K199: 21.4 | L199: 3.33 | M199: 9.31 | N199: 45.69 | O199: 49.56 | P199: 38.86 | Q199: 68.92 | R199: 7.81 | S199: 3.62 | T199: 3 | U199: 12.89 | V199: 0.269 | W199: 1.774 | X199: 159.1 | Y199: 0.353 | Z199: 0.411 | AA199: 0.764 | AB199: NL | AC199: 543939 | AD199: 2B | AE199: =IF(ISNA(VLOOKUP(A199,Rankings!$B$2:$H$659,7,FALSE)),"-",VLOOKUP(A199,Rankings!$B$2:$H$659,7,FALSE)) -> 0
A200: Daniel Palka | B200: OF | C200: =(G200*'Points System'!$B$16)+(H200*'Points System'!$B$17)+(I200*'Points System'!$B$15)+(J200*'Points System'!$B$2)+(K200*'Points System'!$B$3)+(L200*'Points System'!$B$4)+(M200*'Points System'!$B$5)+(N200*'Points System'!$B$6)+(O200*'Points System'!$B$7)+(P200*'Points System'!$B$8)+(Q200*'Points System'!$B$9)+(R200*'Points System'!$B$10)+(S200*'Points System'!$B$11)+(T200*'Points System'!$B$13)+(U200*'Points System'!$B$12)+(X200*'Points System'!$B$14) -> 339.485 | D200: =C200/G200 -> 0.7273691428 | E200: =C200/F200 -> 2.914034335 | F200: 116.5 | G200: 466.73 | H200: 444.8 | I200: 105.86 | J200: 60.13 | K200: 18.13 | L200: 2.6 | M200: 25.56 | N200: 68.19 | O200: 60 | P200: 36.43 | Q200: 152.85 | R200: 3.25 | S200: 2.23 | T200: 0 | U200: 2.33 | V200: 0.238 | W200: 4.196 | X200: 206.43 | Y200: 0.299 | Z200: 0.464 | AA200: 0.763 | AB200: AL | AC200: 594953 | AD200: RF | AE200: =IF(ISNA(VLOOKUP(A200,Rankings!$B$2:$H$659,7,FALSE)),"-",VLOOKUP(A200,Rankings!$B$2:$H$659,7,FALSE)) -> 0
... 132 more rows

Sheet Pitchers
A1: Name | B1: POS | C1: FPTS | D1: PPS | E1: G | F1: GS | G1: IP | H1: W | I1: L | J1: SV | K1: BS | L1: K | M1: BB | N1: H | O1: R | P1: ER | Q1: HRA | R1: HLD | S1: QS | T1: WP | U1: CG | V1: ERA | W1: WHIP | X1: K/9 | Y1: BB/9 | Z1: LG | AA1: PlayerID | AB1: Drafted
A2: Max Scherzer | B2: SP | C2: =(G2*'Points System'!$E$6)+(H2*'Points System'!$E$2)+(I2*'Points System'!$E$3)+(J2*'Points System'!$E$4)+(K2*'Points System'!$E$5)+(L2*'Points System'!$E$7)+(M2*'Points System'!$E$8)+(N2*'Points System'!$E$10)+(P2*'Points System'!$E$9)+(Q2*'Points System'!$E$17)+(R2*'Points System'!$E$11)+(S2*'Points System'!$E$12)+(T2*'Points System'!$E$16)+(U2*'Points System'!$E$13) -> 765.31 | D2: =IF(AND(ABS(E2-F2)<3,F2>9),C2/F2,0) -> 23.86373558 | E2: 32.07 | F2: 32.07 | G2: 209.09 | H2: 16.59 | I2: 7.53 | J2: 0 | K2: 0 | L2: 273.12 | M2: 54.31 | N2: 143.94 | O2: 76.5 | P2: 67 | Q2: 24.67 | R2: 0 | S2: 23.2 | T2: 4 | U2: 2 | V2: 2.88 | W2: 0.95 | X2: 11.76 | Y2: 2.34 | Z2: NL | AA2: 453286 | AB2: =IF(ISNA(VLOOKUP(A2,Rankings!$B$2:$H$659,7,FALSE)),"-",VLOOKUP(A2,Rankings!$B$2:$H$659,7,FALSE)) -> 0
A3: Chris Sale | B3: SP | C3: =(G3*'Points System'!$E$6)+(H3*'Points System'!$E$2)+(I3*'Points System'!$E$3)+(J3*'Points System'!$E$4)+(K3*'Points System'!$E$5)+(L3*'Points System'!$E$7)+(M3*'Points System'!$E$8)+(N3*'Points System'!$E$10)+(P3*'Points System'!$E$9)+(Q3*'Points System'!$E$17)+(R3*'Points System'!$E$11)+(S3*'Points System'!$E$12)+(T3*'Points System'!$E$16)+(U3*'Points System'!$E$13) -> 715.48 | D3: =IF(AND(ABS(E3-F3)<3,F3>9),C3/F3,0) -> 23.51232337 | E3: 30.43 | F3: 30.43 | G3: 188.79 | H3: 15.71 | I3: 6.13 | J3: 0 | K3: 0 | L3: 254.24 | M3: 40.88 | N3: 134.75 | O3: 69.5 | P3: 56.67 | Q3: 19.67 | R3: 0 | S3: 21 | T3: 3.5 | U3: 1.17 | V3: 2.7 | W3: 0.93 | X3: 12.12 | Y3: 1.95 | Z3: AL | AA3: 519242 | AB3: =IF(ISNA(VLOOKUP(A3,Rankings!$B$2:$H$659,7,FALSE)),"-",VLOOKUP(A3,Rankings!$B$2:$H$659,7,FALSE)) -> 0
A4: Jacob deGrom | B4: SP | C4: =(G4*'Points System'!$E$6)+(H4*'Points System'!$E$2)+(I4*'Points System'!$E$3)+(J4*'Points System'!$E$4)+(K4*'Points System'!$E$5)+(L4*'Points System'!$E$7)+(M4*'Points System'!$E$8)+(N4*'Points System'!$E$10)+(P4*'Points System'!$E$9)+(Q4*'Points System'!$E$17)+(R4*'Points System'!$E$11)+(S4*'Points System'!$E$12)+(T4*'Points System'!$E$16)+(U4*'Points System'!$E$13) -> 713.1275 | D4: =IF(AND(ABS(E4-F4)<3,F4>9),C4/F4,0) -> 22.43244731 | E4: 31.79 | F4: 31.79 | G4: 208.36 | H4: 15.06 | I4: 8.47 | J4: 0 | K4: 0 | L4: 248.47 | M4: 51.81 | N4: 155.81 | O4: 71.5 | P4: 62.93 | Q4: 19.58 | R4: 0 | S4: 23.4 | T4: 3 | U4: 1.33 | V4: 2.72 | W4: 1 | X4: 10.73 | Y4: 2.24 | Z4: NL | AA4: 594798 | AB4: =IF(ISNA(VLOOKUP(A4,Rankings!$B$2:$H$659,7,FALSE)),"-",VLOOKUP(A4,Rankings!$B$2:$H$659,7,FALSE)) -> 0
A5: Justin Verlander | B5: SP | C5: =(G5*'Points System'!$E$6)+(H5*'Points System'!$E$2)+(I5*'Points System'!$E$3)+(J5*'Points System'!$E$4)+(K5*'Points System'!$E$5)+(L5*'Points System'!$E$7)+(M5*'Points System'!$E$8)+(N5*'Points System'!$E$10)+(P5*'Points System'!$E$9)+(Q5*'Points System'!$E$17)+(R5*'Points System'!$E$11)+(S5*'Points System'!$E$12)+(T5*'Points System'!$E$16)+(U5*'Points System'!$E$13) -> 701.9575 | D5: =IF(AND(ABS(E5-F5)<3,F5>9),C5/F5,0) -> 22.03256434 | E5: 31.93 | F5: 31.86 | G5: 201.51 | H5: 15.65 | I5: 7.8 | J5: 0 | K5: 0 | L5: 248.71 | M5: 50.44 | N5: 148.19 | O5: 78.5 | P5: 69.73 | Q5: 26.25 | R5: 0 | S5: 22.6 | T5: 5 | U5: 1.17 | V5: 3.11 | W5: 0.99 | X5: 11.11 | Y5: 2.25 | Z5: AL | AA5: 434378 | AB5: =IF(ISNA(VLOOKUP(A5,Rankings!$B$2:$H$659,7,FALSE)),"-",VLOOKUP(A5,Rankings!$B$2:$H$659,7,FALSE)) -> 0
A6: Corey Kluber | B6: SP | C6: =(G6*'Points System'!$E$6)+(H6*'Points System'!$E$2)+(I6*'Points System'!$E$3)+(J6*'Points System'!$E$4)+(K6*'Points System'!$E$5)+(L6*'Points System'!$E$7)+(M6*'Points System'!$E$8)+(N6*'Points System'!$E$10)+(P6*'Points System'!$E$9)+(Q6*'Points System'!$E$17)+(R6*'Points System'!$E$11)+(S6*'Points System'!$E$12)+(T6*'Points System'!$E$16)+(U6*'Points System'!$E$13) -> 677.665 | D6: =IF(AND(ABS(E6-F6)<3,F6>9),C6/F6,0) -> 21.22345756 | E6: 31.93 | F6: 31.93 | G6: 207.96 | H6: 16.12 | I6: 7.93 | J6: 0 | K6: 0 | L6: 223.06 | M6: 42.06 | N6: 167.38 | O6: 81.5 | P6: 72.67 | Q6: 24.42 | R6: 0 | S6: 22.2 | T6: 2.5 | U6: 2.67 | V6: 3.14 | W6: 1.01 | X6: 9.65 | Y6: 1.82 | Z6: AL | AA6: 446372 | AB6: =IF(ISNA(VLOOKUP(A6,Rankings!$B$2:$H$659,7,FALSE)),"-",VLOOKUP(A6,Rankings!$B$2:$H$659,7,FALSE)) -> 0
A7: Gerrit Cole | B7: SP | C7: =(G7*'Points System'!$E$6)+(H7*'Points System'!$E$2)+(I7*'Points System'!$E$3)+(J7*'Points System'!$E$4)+(K7*'Points System'!$E$5)+(L7*'Points System'!$E$7)+(M7*'Points System'!$E$8)+(N7*'Points System'!$E$10)+(P7*'Points System'!$E$9)+(Q7*'Points System'!$E$17)+(R7*'Points System'!$E$11)+(S7*'Points System'!$E$12)+(T7*'Points System'!$E$16)+(U7*'Points System'!$E$13) -> 654.9 | D7: =IF(AND(ABS(E7-F7)<3,F7>9),C7/F7,0) -> 20.60081787 | E7: 31.79 | F7: 31.79 | G7: 196.91 | H7: 14.71 | I7: 7.87 | J7: 0 | K7: 0 | L7: 238.88 | M7: 59.06 | N7: 152.88 | O7: 80.5 | P7: 71.4 | Q7: 22.33 | R7: 0 | S7: 20 | T7: 8.5 | U7: 1 | V7: 3.26 | W7: 1.08 | X7: 10.92 | Y7: 2.7 | Z7: AL | AA7: 543037 | AB7: =IF(ISNA(VLOOKUP(A7,Rankings!$B$2:$H$659,7,FALSE)),"-",VLOOKUP(A7,Rankings!$B$2:$H$659,7,FALSE)) -> 0
A8: Carlos Carrasco | B8: SP | C8: =(G8*'Points System'!$E$6)+(H8*'Points System'!$E$2)+(I8*'Points System'!$E$3)+(J8*'Points System'!$E$4)+(K8*'Points System'!$E$5)+(L8*'Points System'!$E$7)+(M8*'Points System'!$E$8)+(N8*'Points System'!$E$10)+(P8*'Points System'!$E$9)+(Q8*'Points System'!$E$17)+(R8*'Points System'!$E$11)+(S8*'Points System'!$E$12)+(T8*'Points System'!$E$16)+(U8*'Points System'!$E$13) -> 628.8525 | D8: =IF(AND(ABS(E8-F8)<3,F8>9),C8/F8,0) -> 20.03991396 | E8: 31.54 | F8: 31.38 | G8: 193.33 | H8: 15.38 | I8: 8.5 | J8: 0 | K8: 0 | L8: 220.25 | M8: 45.4 | N8: 159.33 | O8: 78.5 | P8: 71.5 | Q8: 22.91 | R8: 0 | S8: 19.6 | T8: 9 | U8: 2 | V8: 3.33 | W8: 1.06 | X8: 10.25 | Y8: 2.11 | Z8: AL | AA8: 471911 | AB8: =IF(ISNA(VLOOKUP(A8,Rankings!$B$2:$H$659,7,FALSE)),"-",VLOOKUP(A8,Rankings!$B$2:$H$659,7,FALSE)) -> 0
A9: Luis Severino | B9: SP | C9: =(G9*'Points System'!$E$6)+(H9*'Points System'!$E$2)+(I9*'Points System'!$E$3)+(J9*'Points System'!$E$4)+(K9*'Points System'!$E$5)+(L9*'Points System'!$E$7)+(M9*'Points System'!$E$8)+(N9*'Points System'!$E$10)+(P9*'Points System'!$E$9)+(Q9*'Points System'!$E$17)+(R9*'Points System'!$E$11)+(S9*'Points System'!$E$12)+(T9*'Points System'!$E$16)+(U9*'Points System'!$E$13) -> 627.44 | D9: =IF(AND(ABS(E9-F9)<3,F9>9),C9/F9,0) -> 19.83059418 | E9: 31.64 | F9: 31.64 | G9: 192.16 | H9: 15.41 | I9: 8 | J9: 0 | K9: 0 | L9: 219.24 | M9: 49.69 | N9: 155.19 | O9: 80 | P9: 70.67 | Q9: 22.08 | R9: 0 | S9: 18.4 | T9: 7.5 | U9: 1 | V9: 3.31 | W9: 1.07 | X9: 10.27 | Y9: 2.33 | Z9: AL | AA9: 622663 | AB9: =IF(ISNA(VLOOKUP(A9,Rankings!$B$2:$H$659,7,FALSE)),"-",VLOOKUP(A9,Rankings!$B$2:$H$659,7,FALSE)) -> 0
A10: Aaron Nola | B10: SP | C10: =(G10*'Points System'!$E$6)+(H10*'Points System'!$E$2)+(I10*'Points System'!$E$3)+(J10*'Points System'!$E$4)+(K10*'Points System'!$E$5)+(L10*'Points System'!$E$7)+(M10*'Points System'!$E$8)+(N10*'Points System'!$E$10)+(P10*'Points System'!$E$9)+(Q10*'Points System'!$E$17)+(R10*'Points System'!$E$11)+(S10*'Points System'!$E$12)+(T10*'Points System'!$E$16)+(U10*'Points System'!$E$13) -> 612.605 | D10: =IF(AND(ABS(E10-F10)<3,F10>9),C10/F10,0) -> 19.49109131 | E10: 31.43 | F10: 31.43 | G10: 196.41 | H10: 14.35 | I10: 8.6 | J10: 0 | K10: 0 | L10: 209.82 | M10: 55.25 | N10: 156.75 | O10: 77 | P10: 70 | Q10: 20.25 | R10: 0 | S10: 21.6 | T10: 4 | U10: 0.67 | V10: 3.21 | W10: 1.08 | X10: 9.61 | Y10: 2.53 | Z10: NL | AA10: 605400 | AB10: =IF(ISNA(VLOOKUP(A10,Rankings!$B$2:$H$659,7,FALSE)),"-",VLOOKUP(A10,Rankings!$B$2:$H$659,7,FALSE)) -> 0
A11: Trevor Bauer | B11: SP | C11: =(G11*'Points System'!$E$6)+(H11*'Points System'!$E$2)+(I11*'Points System'!$E$3)+(J11*'Points System'!$E$4)+(K11*'Points System'!$E$5)+(L11*'Points System'!$E$7)+(M11*'Points System'!$E$8)+(N11*'Points System'!$E$10)+(P11*'Points System'!$E$9)+(Q11*'Points System'!$E$17)+(R11*'Points System'!$E$11)+(S11*'Points System'!$E$12)+(T11*'Points System'!$E$16)+(U11*'Points System'!$E$13) -> 606.54 | D11: =IF(AND(ABS(E11-F11)<3,F11>9),C11/F11,0) -> 19.56580645 | E11: 31.07 | F11: 31 | G11: 189.62 | H11: 14.41 | I11: 7.87 | J11: 0 | K11: 0 | L11: 220.76 | M11: 62.5 | N11: 152.88 | O11: 80.5 | P11: 70 | Q11: 19.83 | R11: 0 | S11: 19.6 | T11: 10 | U11: 0.33 | V11: 3.32 | W11: 1.14 | X11: 10.48 | Y11: 2.97 | Z11: AL | AA11: 545333 | AB11: =IF(ISNA(VLOOKUP(A11,Rankings!$B$2:$H$659,7,FALSE)),"-",VLOOKUP(A11,Rankings!$B$2:$H$659,7,FALSE)) -> 0
A12: Blake Snell | B12: SP | C12: =(G12*'Points System'!$E$6)+(H12*'Points System'!$E$2)+(I12*'Points System'!$E$3)+(J12*'Points System'!$E$4)+(K12*'Points System'!$E$5)+(L12*'Points System'!$E$7)+(M12*'Points System'!$E$8)+(N12*'Points System'!$E$10)+(P12*'Points System'!$E$9)+(Q12*'Points System'!$E$17)+(R12*'Points System'!$E$11)+(S12*'Points System'!$E$12)+(T12*'Points System'!$E$16)+(U12*'Points System'!$E$13) -> 596.3025 | D12: =IF(AND(ABS(E12-F12)<3,F12>9),C12/F12,0) -> 18.9302381 | E12: 31.5 | F12: 31.5 | G12: 182.98 | H12: 14.65 | I12: 8.13 | J12: 0 | K12: 0 | L12: 214.65 | M12: 73.19 | N12: 132.94 | O12: 69 | P12: 62.07 | Q12: 18.17 | R12: 0 | S12: 18.8 | T12: 13.5 | U12: 0.33 | V12: 3.05 | W12: 1.13 | X12: 10.56 | Y12: 3.6 | Z12: AL | AA12: 605483 | AB12: =IF(ISNA(VLOOKUP(A12,Rankings!$B$2:$H$659,7,FALSE)),"-",VLOOKUP(A12,Rankings!$B$2:$H$659,7,FALSE)) -> 0
A13: Patrick Corbin | B13: SP | C13: =(G13*'Points System'!$E$6)+(H13*'Points System'!$E$2)+(I13*'Points System'!$E$3)+(J13*'Points System'!$E$4)+(K13*'Points System'!$E$5)+(L13*'Points System'!$E$7)+(M13*'Points System'!$E$8)+(N13*'Points System'!$E$10)+(P13*'Points System'!$E$9)+(Q13*'Points System'!$E$17)+(R13*'Points System'!$E$11)+(S13*'Points System'!$E$12)+(T13*'Points System'!$E$16)+(U13*'Points System'!$E$13) -> 569.7275 | D13: =IF(AND(ABS(E13-F13)<3,F13>9),C13/F13,0) -> 18.16733099 | E13: 31.43 | F13: 31.36 | G13: 187.48 | H13: 13.41 | I13: 8.47 | J13: 0 | K13: 0 | L13: 204.71 | M13: 53.13 | N13: 161.25 | O13: 80 | P13: 72.33 | Q13: 20.83 | R13: 0 | S13: 18.8 | T13: 8.5 | U13: 1 | V13: 3.47 | W13: 1.14 | X13: 9.83 | Y13: 2.55 | Z13: NL | AA13: 571578 | AB13: =IF(ISNA(VLOOKUP(A13,Rankings!$B$2:$H$659,7,FALSE)),"-",VLOOKUP(A13,Rankings!$B$2:$H$659,7,FALSE)) -> 0
A14: Zack Greinke | B14: SP | C14: =(G14*'Points System'!$E$6)+(H14*'Points System'!$E$2)+(I14*'Points System'!$E$3)+(J14*'Points System'!$E$4)+(K14*'Points System'!$E$5)+(L14*'Points System'!$E$7)+(M14*'Points System'!$E$8)+(N14*'Points System'!$E$10)+(P14*'Points System'!$E$9)+(Q14*'Points System'!$E$17)+(R14*'Points System'!$E$11)+(S14*'Points System'!$E$12)+(T14*'Points System'!$E$16)+(U14*'Points System'!$E$13) -> 557.14 | D14: =IF(AND(ABS(E14-F14)<3,F14>9),C14/F14,0) -> 17.64776687 | E14: 31.57 | F14: 31.57 | G14: 197 | H14: 13.06 | I14: 10.33 | J14: 0 | K14: 0 | L14: 189.76 | M14: 47 | N14: 170.5 | O14: 86.5 | P14: 80.27 | Q14: 26 | R14: 0 | S14: 19 | T14: 5 | U14: 0.17 | V14: 3.67 | W14: 1.1 | X14: 8.67 | Y14: 2.15 | Z14: NL | AA14: 425844 | AB14: =IF(ISNA(VLOOKUP(A14,Rankings!$B$2:$H$659,7,FALSE)),"-",VLOOKUP(A14,Rankings!$B$2:$H$659,7,FALSE)) -> 0
A15: James Paxton | B15: SP | C15: =(G15*'Points System'!$E$6)+(H15*'Points System'!$E$2)+(I15*'Points System'!$E$3)+(J15*'Points System'!$E$4)+(K15*'Points System'!$E$5)+(L15*'Points System'!$E$7)+(M15*'Points System'!$E$8)+(N15*'Points System'!$E$10)+(P15*'Points System'!$E$9)+(Q15*'Points System'!$E$17)+(R15*'Points System'!$E$11)+(S15*'Points System'!$E$12)+(T15*'Points System'!$E$16)+(U15*'Points System'!$E$13) -> 543.43 | D15: =IF(AND(ABS(E15-F15)<3,F15>9),C15/F15,0) -> 19.09451862 | E15: 28.46 | F15: 28.46 | G15: 166.73 | H15: 12.75 | I15: 7 | J15: 0 | K15: 0 | L15: 197.44 | M15: 46 | N15: 134.27 | O15: 73 | P15: 64.79 | Q15: 21.55 | R15: 0 | S15: 15.8 | T15: 9.5 | U15: 1.17 | V15: 3.5 | W15: 1.08 | X15: 10.66 | Y15: 2.48 | Z15: AL | AA15: 572020 | AB15: =IF(ISNA(VLOOKUP(A15,Rankings!$B$2:$H$659,7,FALSE)),"-",VLOOKUP(A15,Rankings!$B$2:$H$659,7,FALSE)) -> 0
A16: German Marquez | B16: SP | C16: =(G16*'Points System'!$E$6)+(H16*'Points System'!$E$2)+(I16*'Points System'!$E$3)+(J16*'Points System'!$E$4)+(K16*'Points System'!$E$5)+(L16*'Points System'!$E$7)+(M16*'Points System'!$E$8)+(N16*'Points System'!$E$10)+(P16*'Points System'!$E$9)+(Q16*'Points System'!$E$17)+(R16*'Points System'!$E$11)+(S16*'Points System'!$E$12)+(T16*'Points System'!$E$16)+(U16*'Points System'!$E$13) -> 537.1625 | D16: =IF(AND(ABS(E16-F16)<3,F16>9),C16/F16,0) -> 16.97732301 | E16: 31.71 | F16: 31.64 | G16: 186.49 | H16: 12.82 | I16: 9.87 | J16: 0 | K16: 0 | L16: 203.29 | M16: 54.88 | N16: 168.38 | O16: 91 | P16: 80.73 | Q16: 24.5 | R16: 0 | S16: 17.6 | T16: 7.5 | U16: 0.17 | V16: 3.9 | W16: 1.2 | X16: 9.81 | Y16: 2.65 | Z16: NL | AA16: 608566 | AB16: =IF(ISNA(VLOOKUP(A16,Rankings!$B$2:$H$659,7,FALSE)),"-",VLOOKUP(A16,Rankings!$B$2:$H$659,7,FALSE)) -> 0
A17: Jose Berrios | B17: SP | C17: =(G17*'Points System'!$E$6)+(H17*'Points System'!$E$2)+(I17*'Points System'!$E$3)+(J17*'Points System'!$E$4)+(K17*'Points System'!$E$5)+(L17*'Points System'!$E$7)+(M17*'Points System'!$E$8)+(N17*'Points System'!$E$10)+(P17*'Points System'!$E$9)+(Q17*'Points System'!$E$17)+(R17*'Points System'!$E$11)+(S17*'Points System'!$E$12)+(T17*'Points System'!$E$16)+(U17*'Points System'!$E$13) -> 534.1225 | D17: =IF(AND(ABS(E17-F17)<3,F17>9),C17/F17,0) -> 16.80158855 | E17: 31.79 | F17: 31.79 | G17: 188.45 | H17: 13.12 | I17: 9.73 | J17: 0 | K17: 0 | L17: 192.53 | M17: 62.63 | N17: 158.06 | O17: 88.5 | P17: 81.27 | Q17: 24.42 | R17: 0 | S17: 17.2 | T17: 3 | U17: 1 | V17: 3.88 | W17: 1.17 | X17: 9.19 | Y17: 2.99 | Z17: AL | AA17: 621244 | AB17: =IF(ISNA(VLOOKUP(A17,Rankings!$B$2:$H$659,7,FALSE)),"-",VLOOKUP(A17,Rankings!$B$2:$H$659,7,FALSE)) -> 0
A18: Clayton Kershaw | B18: SP | C18: =(G18*'Points System'!$E$6)+(H18*'Points System'!$E$2)+(I18*'Points System'!$E$3)+(J18*'Points System'!$E$4)+(K18*'Points System'!$E$5)+(L18*'Points System'!$E$7)+(M18*'Points System'!$E$8)+(N18*'Points System'!$E$10)+(P18*'Points System'!$E$9)+(Q18*'Points System'!$E$17)+(R18*'Points System'!$E$11)+(S18*'Points System'!$E$12)+(T18*'Points System'!$E$16)+(U18*'Points System'!$E$13) -> 532.88 | D18: =IF(AND(ABS(E18-F18)<3,F18>9),C18/F18,0) -> 19.78759747 | E18: 26.93 | F18: 26.93 | G18: 166.78 | H18: 12.82 | I18: 6.27 | J18: 0 | K18: 0 | L18: 167.88 | M18: 32.38 | N18: 135.63 | O18: 65 | P18: 54.87 | Q18: 19.33 | R18: 0 | S18: 17.6 | T18: 9 | U18: 0.67 | V18: 2.96 | W18: 1.01 | X18: 9.06 | Y18: 1.75 | Z18: NL | AA18: 477132 | AB18: =IF(ISNA(VLOOKUP(A18,Rankings!$B$2:$H$659,7,FALSE)),"-",VLOOKUP(A18,Rankings!$B$2:$H$659,7,FALSE)) -> 0
A19: Mike Clevinger | B19: SP | C19: =(G19*'Points System'!$E$6)+(H19*'Points System'!$E$2)+(I19*'Points System'!$E$3)+(J19*'Points System'!$E$4)+(K19*'Points System'!$E$5)+(L19*'Points System'!$E$7)+(M19*'Points System'!$E$8)+(N19*'Points System'!$E$10)+(P19*'Points System'!$E$9)+(Q19*'Points System'!$E$17)+(R19*'Points System'!$E$11)+(S19*'Points System'!$E$12)+(T19*'Points System'!$E$16)+(U19*'Points System'!$E$13) -> 532.71 | D19: =IF(AND(ABS(E19-F19)<3,F19>9),C19/F19,0) -> 17.80447861 | E19: 30.08 | F19: 29.92 | G19: 180.36 | H19: 12.88 | I19: 8.5 | J19: 0 | K19: 0 | L19: 191.88 | M19: 67.27 | N19: 142.87 | O19: 78.5 | P19: 72.86 | Q19: 22 | R19: 0 | S19: 17.8 | T19: 4 | U19: 0.67 | V19: 3.64 | W19: 1.17 | X19: 9.57 | Y19: 3.36 | Z19: AL | AA19: 605182 | AB19: =IF(ISNA(VLOOKUP(A19,Rankings!$B$2:$H$659,7,FALSE)),"-",VLOOKUP(A19,Rankings!$B$2:$H$659,7,FALSE)) -> 0
A20: Noah Syndergaard | B20: SP | C20: =(G20*'Points System'!$E$6)+(H20*'Points System'!$E$2)+(I20*'Points System'!$E$3)+(J20*'Points System'!$E$4)+(K20*'Points System'!$E$5)+(L20*'Points System'!$E$7)+(M20*'Points System'!$E$8)+(N20*'Points System'!$E$10)+(P20*'Points System'!$E$9)+(Q20*'Points System'!$E$17)+(R20*'Points System'!$E$11)+(S20*'Points System'!$E$12)+(T20*'Points System'!$E$16)+(U20*'Points System'!$E$13) -> 531.3575 | D20: =IF(AND(ABS(E20-F20)<3,F20>9),C20/F20,0) -> 18.55298534 | E20: 28.64 | F20: 28.64 | G20: 174.64 | H20: 12.65 | I20: 8.07 | J20: 0 | K20: 0 | L20: 182.47 | M20: 44.31 | N20: 149.69 | O20: 67.5 | P20: 62.2 | Q20: 15.92 | R20: 0 | S20: 18 | T20: 4.5 | U20: 1.5 | V20: 3.21 | W20: 1.11 | X20: 9.4 | Y20: 2.28 | Z20: NL | AA20: 592789 | AB20: =IF(ISNA(VLOOKUP(A20,Rankings!$B$2:$H$659,7,FALSE)),"-",VLOOKUP(A20,Rankings!$B$2:$H$659,7,FALSE)) -> 0
A21: Walker Buehler | B21: SP | C21: =(G21*'Points System'!$E$6)+(H21*'Points System'!$E$2)+(I21*'Points System'!$E$3)+(J21*'Points System'!$E$4)+(K21*'Points System'!$E$5)+(L21*'Points System'!$E$7)+(M21*'Points System'!$E$8)+(N21*'Points System'!$E$10)+(P21*'Points System'!$E$9)+(Q21*'Points System'!$E$17)+(R21*'Points System'!$E$11)+(S21*'Points System'!$E$12)+(T21*'Points System'!$E$16)+(U21*'Points System'!$E$13) -> 528.67 | D21: =IF(AND(ABS(E21-F21)<3,F21>9),C21/F21,0) -> 18.59549771 | E21: 28.5 | F21: 28.43 | G21: 165.65 | H21: 11.82 | I21: 6.93 | J21: 0 | K21: 0 | L21: 184.76 | M21: 52.44 | N21: 125.13 | O21: 63 | P21: 57.93 | Q21: 16.75 | R21: 0 | S21: 17 | T21: 6 | U21: 0.17 | V21: 3.15 | W21: 1.07 | X21: 10.04 | Y21: 2.85 | Z21: NL | AA21: 621111 | AB21: =IF(ISNA(VLOOKUP(A21,Rankings!$B$2:$H$659,7,FALSE)),"-",VLOOKUP(A21,Rankings!$B$2:$H$659,7,FALSE)) -> 0
A22: David Price | B22: SP | C22: =(G22*'Points System'!$E$6)+(H22*'Points System'!$E$2)+(I22*'Points System'!$E$3)+(J22*'Points System'!$E$4)+(K22*'Points System'!$E$5)+(L22*'Points System'!$E$7)+(M22*'Points System'!$E$8)+(N22*'Points System'!$E$10)+(P22*'Points System'!$E$9)+(Q22*'Points System'!$E$17)+(R22*'Points System'!$E$11)+(S22*'Points System'!$E$12)+(T22*'Points System'!$E$16)+(U22*'Points System'!$E$13) -> 526.6025 | D22: =IF(AND(ABS(E22-F22)<3,F22>9),C22/F22,0) -> 17.22612038 | E22: 30.57 | F22: 30.57 | G22: 180.82 | H22: 13.94 | I22: 8.33 | J22: 0 | K22: 0 | L22: 181.53 | M22: 51.5 | N22: 157.13 | O22: 87 | P22: 76.13 | Q22: 24.25 | R22: 0 | S22: 17.8 | T22: 1.5 | U22: 0.67 | V22: 3.79 | W22: 1.15 | X22: 9.04 | Y22: 2.56 | Z22: AL | AA22: 456034 | AB22: =IF(ISNA(VLOOKUP(A22,Rankings!$B$2:$H$659,7,FALSE)),"-",VLOOKUP(A22,Rankings!$B$2:$H$659,7,FALSE)) -> 0
A23: Stephen Strasburg | B23: SP | C23: =(G23*'Points System'!$E$6)+(H23*'Points System'!$E$2)+(I23*'Points System'!$E$3)+(J23*'Points System'!$E$4)+(K23*'Points System'!$E$5)+(L23*'Points System'!$E$7)+(M23*'Points System'!$E$8)+(N23*'Points System'!$E$10)+(P23*'Points System'!$E$9)+(Q23*'Points System'!$E$17)+(R23*'Points System'!$E$11)+(S23*'Points System'!$E$12)+(T23*'Points System'!$E$16)+(U23*'Points System'!$E$13) -> 520.23 | D23: =IF(AND(ABS(E23-F23)<3,F23>9),C23/F23,0) -> 18.96573095 | E23: 27.43 | F23: 27.43 | G23: 162.92 | H23: 12.53 | I23: 7.4 | J23: 0 | K23: 0 | L23: 187.88 | M23: 47.13 | N23: 132.56 | O23: 68 | P23: 61.87 | Q23: 19.58 | R23: 0 | S23: 16.2 | T23: 4.5 | U23: 0.33 | V23: 3.42 | W23: 1.1 | X23: 10.38 | Y23: 2.6 | Z23: NL | AA23: 544931 | AB23: =IF(ISNA(VLOOKUP(A23,Rankings!$B$2:$H$659,7,FALSE)),"-",VLOOKUP(A23,Rankings!$B$2:$H$659,7,FALSE)) -> 0
A24: Mike Foltynewicz | B24: SP | C24: =(G24*'Points System'!$E$6)+(H24*'Points System'!$E$2)+(I24*'Points System'!$E$3)+(J24*'Points System'!$E$4)+(K24*'Points System'!$E$5)+(L24*'Points System'!$E$7)+(M24*'Points System'!$E$8)+(N24*'Points System'!$E$10)+(P24*'Points System'!$E$9)+(Q24*'Points System'!$E$17)+(R24*'Points System'!$E$11)+(S24*'Points System'!$E$12)+(T24*'Points System'!$E$16)+(U24*'Points System'!$E$13) -> 519.765 | D24: =IF(AND(ABS(E24-F24)<3,F24>9),C24/F24,0) -> 16.72883811 | E24: 31.07 | F24: 31.07 | G24: 181.97 | H24: 12.65 | I24: 9.8 | J24: 0 | K24: 0 | L24: 190.82 | M24: 65.63 | N24: 149.94 | O24: 80 | P24: 76 | Q24: 22.5 | R24: 0 | S24: 15.2 | T24: 8.5 | U24: 0.67 | V24: 3.76 | W24: 1.18 | X24: 9.44 | Y24: 3.25 | Z24: NL | AA24: 592314 | AB24: =IF(ISNA(VLOOKUP(A24,Rankings!$B$2:$H$659,7,FALSE)),"-",VLOOKUP(A24,Rankings!$B$2:$H$659,7,FALSE)) -> 0
A25: Chris Archer | B25: SP | C25: =(G25*'Points System'!$E$6)+(H25*'Points System'!$E$2)+(I25*'Points System'!$E$3)+(J25*'Points System'!$E$4)+(K25*'Points System'!$E$5)+(L25*'Points System'!$E$7)+(M25*'Points System'!$E$8)+(N25*'Points System'!$E$10)+(P25*'Points System'!$E$9)+(Q25*'Points System'!$E$17)+(R25*'Points System'!$E$11)+(S25*'Points System'!$E$12)+(T25*'Points System'!$E$16)+(U25*'Points System'!$E$13) -> 516.9575 | D25: =IF(AND(ABS(E25-F25)<3,F25>9),C25/F25,0) -> 16.55323407 | E25: 31.23 | F25: 31.23 | G25: 181.21 | H25: 10.94 | I25: 9.86 | J25: 0 | K25: 0 | L25: 202.31 | M25: 57.53 | N25: 160.73 | O25: 82.5 | P25: 77.64 | Q25: 22.36 | R25: 0 | S25: 16.2 | T25: 7.5 | U25: 0.17 | V25: 3.86 | W25: 1.2 | X25: 10.05 | Y25: 2.86 | Z25: NL | AA25: 502042 | AB25: =IF(ISNA(VLOOKUP(A25,Rankings!$B$2:$H$659,7,FALSE)),"-",VLOOKUP(A25,Rankings!$B$2:$H$659,7,FALSE)) -> 0
A26: Rick Porcello | B26: SP | C26: =(G26*'Points System'!$E$6)+(H26*'Points System'!$E$2)+(I26*'Points System'!$E$3)+(J26*'Points System'!$E$4)+(K26*'Points System'!$E$5)+(L26*'Points System'!$E$7)+(M26*'Points System'!$E$8)+(N26*'Points System'!$E$10)+(P26*'Points System'!$E$9)+(Q26*'Points System'!$E$17)+(R26*'Points System'!$E$11)+(S26*'Points System'!$E$12)+(T26*'Points System'!$E$16)+(U26*'Points System'!$E$13) -> 512.9275 | D26: =IF(AND(ABS(E26-F26)<3,F26>9),C26/F26,0) -> 16.17557553 | E26: 31.71 | F26: 31.71 | G26: 189.54 | H26: 13.41 | I26: 9.67 | J26: 0 | K26: 0 | L26: 176.35 | M26: 45.13 | N26: 175.38 | O26: 92.5 | P26: 87.73 | Q26: 27.5 | R26: 0 | S26: 15.8 | T26: 3.5 | U26: 0.83 | V26: 4.17 | W26: 1.16 | X26: 8.37 | Y26: 2.14 | Z26: AL | AA26: 519144 | AB26: =IF(ISNA(VLOOKUP(A26,Rankings!$B$2:$H$659,7,FALSE)),"-",VLOOKUP(A26,Rankings!$B$2:$H$659,7,FALSE)) -> 0
A27: Jameson Taillon | B27: SP | C27: =(G27*'Points System'!$E$6)+(H27*'Points System'!$E$2)+(I27*'Points System'!$E$3)+(J27*'Points System'!$E$4)+(K27*'Points System'!$E$5)+(L27*'Points System'!$E$7)+(M27*'Points System'!$E$8)+(N27*'Points System'!$E$10)+(P27*'Points System'!$E$9)+(Q27*'Points System'!$E$17)+(R27*'Points System'!$E$11)+(S27*'Points System'!$E$12)+(T27*'Points System'!$E$16)+(U27*'Points System'!$E$13) -> 511.6 | D27: =IF(AND(ABS(E27-F27)<3,F27>9),C27/F27,0) -> 16.10324205 | E27: 31.77 | F27: 31.77 | G27: 186.86 | H27: 12.44 | I27: 9.86 | J27: 0 | K27: 0 | L27: 172.88 | M27: 47.33 | N27: 167.73 | O27: 80.5 | P27: 75.36 | Q27: 21.09 | R27: 0 | S27: 18.6 | T27: 3 | U27: 1.33 | V27: 3.63 | W27: 1.15 | X27: 8.33 | Y27: 2.28 | Z27: NL | AA27: 592791 | AB27: =IF(ISNA(VLOOKUP(A27,Rankings!$B$2:$H$659,7,FALSE)),"-",VLOOKUP(A27,Rankings!$B$2:$H$659,7,FALSE)) -> 0
A28: Jack Flaherty | B28: SP | C28: =(G28*'Points System'!$E$6)+(H28*'Points System'!$E$2)+(I28*'Points System'!$E$3)+(J28*'Points System'!$E$4)+(K28*'Points System'!$E$5)+(L28*'Points System'!$E$7)+(M28*'Points System'!$E$8)+(N28*'Points System'!$E$10)+(P28*'Points System'!$E$9)+(Q28*'Points System'!$E$17)+(R28*'Points System'!$E$11)+(S28*'Points System'!$E$12)+(T28*'Points System'!$E$16)+(U28*'Points System'!$E$13) -> 511.5575 | D28: =IF(AND(ABS(E28-F28)<3,F28>9),C28/F28,0) -> 17.17212152 | E28: 29.86 | F28: 29.79 | G28: 168.59 | H28: 11.47 | I28: 8.8 | J28: 0 | K28: 0 | L28: 189.59 | M28: 61.06 | N28: 128.63 | O28: 70.5 | P28: 66.33 | Q28: 20.75 | R28: 0 | S28: 13.4 | T28: 6.5 | U28: 0 | V28: 3.54 | W28: 1.13 | X28: 10.12 | Y28: 3.26 | Z28: NL | AA28: 656427 | AB28: =IF(ISNA(VLOOKUP(A28,Rankings!$B$2:$H$659,7,FALSE)),"-",VLOOKUP(A28,Rankings!$B$2:$H$659,7,FALSE)) -> 0
A29: Miles Mikolas | B29: SP | C29: =(G29*'Points System'!$E$6)+(H29*'Points System'!$E$2)+(I29*'Points System'!$E$3)+(J29*'Points System'!$E$4)+(K29*'Points System'!$E$5)+(L29*'Points System'!$E$7)+(M29*'Points System'!$E$8)+(N29*'Points System'!$E$10)+(P29*'Points System'!$E$9)+(Q29*'Points System'!$E$17)+(R29*'Points System'!$E$11)+(S29*'Points System'!$E$12)+(T29*'Points System'!$E$16)+(U29*'Points System'!$E$13) -> 506.2275 | D29: =IF(AND(ABS(E29-F29)<3,F29>9),C29/F29,0) -> 16.29312842 | E29: 31.07 | F29: 31.07 | G29: 190.79 | H29: 13.41 | I29: 8.8 | J29: 0 | K29: 0 | L29: 149.71 | M29: 35.44 | N29: 177.5 | O29: 79 | P29: 76.8 | Q29: 21.92 | R29: 0 | S29: 18.4 | T29: 2 | U29: 1 | V29: 3.62 | W29: 1.12 | X29: 7.06 | Y29: 1.67 | Z29: NL | AA29: 571945 | AB29: =IF(ISNA(VLOOKUP(A29,Rankings!$B$2:$H$659,7,FALSE)),"-",VLOOKUP(A29,Rankings!$B$2:$H$659,7,FALSE)) -> 0
A30: Kyle Hendricks | B30: SP | C30: =(G30*'Points System'!$E$6)+(H30*'Points System'!$E$2)+(I30*'Points System'!$E$3)+(J30*'Points System'!$E$4)+(K30*'Points System'!$E$5)+(L30*'Points System'!$E$7)+(M30*'Points System'!$E$8)+(N30*'Points System'!$E$10)+(P30*'Points System'!$E$9)+(Q30*'Points System'!$E$17)+(R30*'Points System'!$E$11)+(S30*'Points System'!$E$12)+(T30*'Points System'!$E$16)+(U30*'Points System'!$E$13) -> 499.7175 | D30: =IF(AND(ABS(E30-F30)<3,F30>9),C30/F30,0) -> 15.97051774 | E30: 31.36 | F30: 31.29 | G30: 187.1 | H30: 12.88 | I30: 9.27 | J30: 0 | K30: 0 | L30: 157.47 | M30: 46.94 | N30: 165.81 | O30: 84.5 | P30: 76.6 | Q30: 22.67 | R30: 0 | S30: 16.8 | T30: 0.5 | U30: 0 | V30: 3.68 | W30: 1.14 | X30: 7.57 | Y30: 2.26 | Z30: NL | AA30: 543294 | AB30: =IF(ISNA(VLOOKUP(A30,Rankings!$B$2:$H$659,7,FALSE)),"-",VLOOKUP(A30,Rankings!$B$2:$H$659,7,FALSE)) -> 0
A31: Robbie Ray | B31: SP | C31: =(G31*'Points System'!$E$6)+(H31*'Points System'!$E$2)+(I31*'Points System'!$E$3)+(J31*'Points System'!$E$4)+(K31*'Points System'!$E$5)+(L31*'Points System'!$E$7)+(M31*'Points System'!$E$8)+(N31*'Points System'!$E$10)+(P31*'Points System'!$E$9)+(Q31*'Points System'!$E$17)+(R31*'Points System'!$E$11)+(S31*'Points System'!$E$12)+(T31*'Points System'!$E$16)+(U31*'Points System'!$E$13) -> 494.825 | D31: =IF(AND(ABS(E31-F31)<3,F31>9),C31/F31,0) -> 16.94026018 | E31: 29.21 | F31: 29.21 | G31: 161.76 | H31: 9.82 | I31: 8.33 | J31: 0 | K31: 0 | L31: 208.18 | M31: 74.75 | N31: 125 | O31: 74.5 | P31: 68.2 | Q31: 20.92 | R31: 0 | S31: 13.4 | T31: 6.5 | U31: 0 | V31: 3.79 | W31: 1.23 | X31: 11.58 | Y31: 4.16 | Z31: NL | AA31: 592662 | AB31: =IF(ISNA(VLOOKUP(A31,Rankings!$B$2:$H$659,7,FALSE)),"-",VLOOKUP(A31,Rankings!$B$2:$H$659,7,FALSE)) -> 0
A32: Edwin Diaz | B32: RP | C32: =(G32*'Points System'!$E$6)+(H32*'Points System'!$E$2)+(I32*'Points System'!$E$3)+(J32*'Points System'!$E$4)+(K32*'Points System'!$E$5)+(L32*'Points System'!$E$7)+(M32*'Points System'!$E$8)+(N32*'Points System'!$E$10)+(P32*'Points System'!$E$9)+(Q32*'Points System'!$E$17)+(R32*'Points System'!$E$11)+(S32*'Points System'!$E$12)+(T32*'Points System'!$E$16)+(U32*'Points System'!$E$13) -> 491.7 | D32: =IF(AND(ABS(E32-F32)<3,F32>9),C32/F32,0) -> 0 | E32: 66.23 | F32: 0 | G32: 66.77 | H32: 3.38 | I32: 2.93 | J32: 35.73 | K32: 4 | L32: 102.44 | M32: 21.33 | N32: 40.93 | O32: 21.5 | P32: 18.14 | Q32: 6.36 | R32: 2 | S32: 0 | T32: 3.5 | U32: 0 | V32: 2.45 | W32: 0.93 | X32: 13.81 | Y32: 2.88 | Z32: NL | AA32: 621242 | AB32: =IF(ISNA(VLOOKUP(A32,Rankings!$B$2:$H$659,7,FALSE)),"-",VLOOKUP(A32,Rankings!$B$2:$H$659,7,FALSE)) -> 0
A33: Cole Hamels | B33: SP | C33: =(G33*'Points System'!$E$6)+(H33*'Points System'!$E$2)+(I33*'Points System'!$E$3)+(J33*'Points System'!$E$4)+(K33*'Points System'!$E$5)+(L33*'Points System'!$E$7)+(M33*'Points System'!$E$8)+(N33*'Points System'!$E$10)+(P33*'Points System'!$E$9)+(Q33*'Points System'!$E$17)+(R33*'Points System'!$E$11)+(S33*'Points System'!$E$12)+(T33*'Points System'!$E$16)+(U33*'Points System'!$E$13) -> 487.835 | D33: =IF(AND(ABS(E33-F33)<3,F33>9),C33/F33,0) -> 16.41989229 | E33: 29.71 | F33: 29.71 | G33: 179.79 | H33: 12.06 | I33: 8.93 | J33: 0 | K33: 0 | L33: 172.18 | M33: 63.88 | N33: 153.06 | O33: 86 | P33: 77.53 | Q33: 22.42 | R33: 0 | S33: 16 | T33: 6.5 | U33: 0.67 | V33: 3.88 | W33: 1.21 | X33: 8.62 | Y33: 3.2 | Z33: NL | AA33: 430935 | AB33: =IF(ISNA(VLOOKUP(A33,Rankings!$B$2:$H$659,7,FALSE)),"-",VLOOKUP(A33,Rankings!$B$2:$H$659,7,FALSE)) -> 0
A34: Zack Wheeler | B34: SP | C34: =(G34*'Points System'!$E$6)+(H34*'Points System'!$E$2)+(I34*'Points System'!$E$3)+(J34*'Points System'!$E$4)+(K34*'Points System'!$E$5)+(L34*'Points System'!$E$7)+(M34*'Points System'!$E$8)+(N34*'Points System'!$E$10)+(P34*'Points System'!$E$9)+(Q34*'Points System'!$E$17)+(R34*'Points System'!$E$11)+(S34*'Points System'!$E$12)+(T34*'Points System'!$E$16)+(U34*'Points System'!$E$13) -> 487.1425 | D34: =IF(AND(ABS(E34-F34)<3,F34>9),C34/F34,0) -> 16.592047 | E34: 29.36 | F34: 29.36 | G34: 175.18 | H34: 11.41 | I34: 9.07 | J34: 0 | K34: 0 | L34: 172.53 | M34: 59 | N34: 147.5 | O34: 71 | P34: 70.67 | Q34: 18.83 | R34: 0 | S34: 17 | T34: 2 | U34: 0.17 | V34: 3.63 | W34: 1.18 | X34: 8.86 | Y34: 3.03 | Z34: NL | AA34: 554430 | AB34: =IF(ISNA(VLOOKUP(A34,Rankings!$B$2:$H$659,7,FALSE)),"-",VLOOKUP(A34,Rankings!$B$2:$H$659,7,FALSE)) -> 0
A35: J.A. Happ | B35: SP | C35: =(G35*'Points System'!$E$6)+(H35*'Points System'!$E$2)+(I35*'Points System'!$E$3)+(J35*'Points System'!$E$4)+(K35*'Points System'!$E$5)+(L35*'Points System'!$E$7)+(M35*'Points System'!$E$8)+(N35*'Points System'!$E$10)+(P35*'Points System'!$E$9)+(Q35*'Points System'!$E$17)+(R35*'Points System'!$E$11)+(S35*'Points System'!$E$12)+(T35*'Points System'!$E$16)+(U35*'Points System'!$E$13) -> 484.925 | D35: =IF(AND(ABS(E35-F35)<3,F35>9),C35/F35,0) -> 16.80266805 | E35: 28.86 | F35: 28.86 | G35: 167.36 | H35: 12.82 | I35: 8.13 | J35: 0 | K35: 0 | L35: 170.06 | M35: 52.38 | N35: 141.75 | O35: 81 | P35: 71.87 | Q35: 23.83 | R35: 0 | S35: 15.2 | T35: 4 | U35: 0 | V35: 3.86 | W35: 1.16 | X35: 9.15 | Y35: 2.82 | Z35: AL | AA35: 457918 | AB35: =IF(ISNA(VLOOKUP(A35,Rankings!$B$2:$H$659,7,FALSE)),"-",VLOOKUP(A35,Rankings!$B$2:$H$659,7,FALSE)) -> 0
A36: Masahiro Tanaka | B36: SP | C36: =(G36*'Points System'!$E$6)+(H36*'Points System'!$E$2)+(I36*'Points System'!$E$3)+(J36*'Points System'!$E$4)+(K36*'Points System'!$E$5)+(L36*'Points System'!$E$7)+(M36*'Points System'!$E$8)+(N36*'Points System'!$E$10)+(P36*'Points System'!$E$9)+(Q36*'Points System'!$E$17)+(R36*'Points System'!$E$11)+(S36*'Points System'!$E$12)+(T36*'Points System'!$E$16)+(U36*'Points System'!$E$13) -> 479.0125 | D36: =IF(AND(ABS(E36-F36)<3,F36>9),C36/F36,0) -> 17.55267497 | E36: 27.29 | F36: 27.29 | G36: 162.25 | H36: 12.24 | I36: 7.53 | J36: 0 | K36: 0 | L36: 163.53 | M36: 37.06 | N36: 141.81 | O36: 76.5 | P36: 69.07 | Q36: 24 | R36: 0 | S36: 15 | T36: 4 | U36: 0.67 | V36: 3.83 | W36: 1.1 | X36: 9.07 | Y36: 2.06 | Z36: AL | AA36: 547888 | AB36: =IF(ISNA(VLOOKUP(A36,Rankings!$B$2:$H$659,7,FALSE)),"-",VLOOKUP(A36,Rankings!$B$2:$H$659,7,FALSE)) -> 0
A37: Andrew Heaney | B37: SP | C37: =(G37*'Points System'!$E$6)+(H37*'Points System'!$E$2)+(I37*'Points System'!$E$3)+(J37*'Points System'!$E$4)+(K37*'Points System'!$E$5)+(L37*'Points System'!$E$7)+(M37*'Points System'!$E$8)+(N37*'Points System'!$E$10)+(P37*'Points System'!$E$9)+(Q37*'Points System'!$E$17)+(R37*'Points System'!$E$11)+(S37*'Points System'!$E$12)+(T37*'Points System'!$E$16)+(U37*'Points System'!$E$13) -> 478.7625 | D37: =IF(AND(ABS(E37-F37)<3,F37>9),C37/F37,0) -> 16.50905172 | E37: 29 | F37: 29 | G37: 171.92 | H37: 10.94 | I37: 9.13 | J37: 0 | K37: 0 | L37: 172.53 | M37: 45.38 | N37: 152 | O37: 74.5 | P37: 75.27 | Q37: 24.92 | R37: 0 | S37: 15 | T37: 12 | U37: 0.67 | V37: 3.94 | W37: 1.15 | X37: 9.03 | Y37: 2.38 | Z37: AL | AA37: 571760 | AB37: =IF(ISNA(VLOOKUP(A37,Rankings!$B$2:$H$659,7,FALSE)),"-",VLOOKUP(A37,Rankings!$B$2:$H$659,7,FALSE)) -> 0
A38: Charlie Morton | B38: SP | C38: =(G38*'Points System'!$E$6)+(H38*'Points System'!$E$2)+(I38*'Points System'!$E$3)+(J38*'Points System'!$E$4)+(K38*'Points System'!$E$5)+(L38*'Points System'!$E$7)+(M38*'Points System'!$E$8)+(N38*'Points System'!$E$10)+(P38*'Points System'!$E$9)+(Q38*'Points System'!$E$17)+(R38*'Points System'!$E$11)+(S38*'Points System'!$E$12)+(T38*'Points System'!$E$16)+(U38*'Points System'!$E$13) -> 478.33 | D38: =IF(AND(ABS(E38-F38)<3,F38>9),C38/F38,0) -> 17.76197549 | E38: 26.93 | F38: 26.93 | G38: 154.95 | H38: 11.65 | I38: 6.87 | J38: 0 | K38: 0 | L38: 173.12 | M38: 57 | N38: 123 | O38: 67 | P38: 58.47 | Q38: 16.08 | R38: 0 | S38: 16 | T38: 4.5 | U38: 0.33 | V38: 3.4 | W38: 1.16 | X38: 10.06 | Y38: 3.31 | Z38: AL | AA38: 450203 | AB38: =IF(ISNA(VLOOKUP(A38,Rankings!$B$2:$H$659,7,FALSE)),"-",VLOOKUP(A38,Rankings!$B$2:$H$659,7,FALSE)) -> 0
A39: Madison Bumgarner | B39: SP | C39: =(G39*'Points System'!$E$6)+(H39*'Points System'!$E$2)+(I39*'Points System'!$E$3)+(J39*'Points System'!$E$4)+(K39*'Points System'!$E$5)+(L39*'Points System'!$E$7)+(M39*'Points System'!$E$8)+(N39*'Points System'!$E$10)+(P39*'Points System'!$E$9)+(Q39*'Points System'!$E$17)+(R39*'Points System'!$E$11)+(S39*'Points System'!$E$12)+(T39*'Points System'!$E$16)+(U39*'Points System'!$E$13) -> 474.7125 | D39: =IF(AND(ABS(E39-F39)<3,F39>9),C39/F39,0) -> 16.13022426 | E39: 29.43 | F39: 29.43 | G39: 182.13 | H39: 10.29 | I39: 10.47 | J39: 0 | K39: 0 | L39: 163.41 | M39: 51.25 | N39: 158.75 | O39: 84 | P39: 75.33 | Q39: 24.08 | R39: 0 | S39: 17.2 | T39: 3 | U39: 0.5 | V39: 3.72 | W39: 1.15 | X39: 8.07 | Y39: 2.53 | Z39: NL | AA39: 518516 | AB39: =IF(ISNA(VLOOKUP(A39,Rankings!$B$2:$H$659,7,FALSE)),"-",VLOOKUP(A39,Rankings!$B$2:$H$659,7,FALSE)) -> 0
A40: Jose Quintana | B40: SP | C40: =(G40*'Points System'!$E$6)+(H40*'Points System'!$E$2)+(I40*'Points System'!$E$3)+(J40*'Points System'!$E$4)+(K40*'Points System'!$E$5)+(L40*'Points System'!$E$7)+(M40*'Points System'!$E$8)+(N40*'Points System'!$E$10)+(P40*'Points System'!$E$9)+(Q40*'Points System'!$E$17)+(R40*'Points System'!$E$11)+(S40*'Points System'!$E$12)+(T40*'Points System'!$E$16)+(U40*'Points System'!$E$13) -> 473.6875 | D40: =IF(AND(ABS(E40-F40)<3,F40>9),C40/F40,0) -> 15.2458159 | E40: 31.07 | F40: 31.07 | G40: 177.97 | H40: 11.94 | I40: 9.67 | J40: 0 | K40: 0 | L40: 169.71 | M40: 61 | N40: 156.38 | O40: 83.5 | P40: 78.27 | Q40: 21.92 | R40: 0 | S40: 15.4 | T40: 4.5 | U40: 0 | V40: 3.96 | W40: 1.22 | X40: 8.58 | Y40: 3.08 | Z40: NL | AA40: 500779 | AB40: =IF(ISNA(VLOOKUP(A40,Rankings!$B$2:$H$659,7,FALSE)),"-",VLOOKUP(A40,Rankings!$B$2:$H$659,7,FALSE)) -> 0
A41: Kenley Jansen | B41: RP | C41: =(G41*'Points System'!$E$6)+(H41*'Points System'!$E$2)+(I41*'Points System'!$E$3)+(J41*'Points System'!$E$4)+(K41*'Points System'!$E$5)+(L41*'Points System'!$E$7)+(M41*'Points System'!$E$8)+(N41*'Points System'!$E$10)+(P41*'Points System'!$E$9)+(Q41*'Points System'!$E$17)+(R41*'Points System'!$E$11)+(S41*'Points System'!$E$12)+(T41*'Points System'!$E$16)+(U41*'Points System'!$E$13) -> 459.3175 | D41: =IF(AND(ABS(E41-F41)<3,F41>9),C41/F41,0) -> 0 | E41: 65.62 | F41: 0 | G41: 65.91 | H41: 3.19 | I41: 2.71 | J41: 35.6 | K41: 4.5 | L41: 83.31 | M41: 14.67 | N41: 47.53 | O41: 24.5 | P41: 21.64 | Q41: 8.36 | R41: 2.25 | S41: 0 | T41: 0.5 | U41: 0 | V41: 2.95 | W41: 0.94 | X41: 11.38 | Y41: 2 | Z41: NL | AA41: 445276 | AB41: =IF(ISNA(VLOOKUP(A41,Rankings!$B$2:$H$659,7,FALSE)),"-",VLOOKUP(A41,Rankings!$B$2:$H$659,7,FALSE)) -> 0
A42: Jon Lester | B42: SP | C42: =(G42*'Points System'!$E$6)+(H42*'Points System'!$E$2)+(I42*'Points System'!$E$3)+(J42*'Points System'!$E$4)+(K42*'Points System'!$E$5)+(L42*'Points System'!$E$7)+(M42*'Points System'!$E$8)+(N42*'Points System'!$E$10)+(P42*'Points System'!$E$9)+(Q42*'Points System'!$E$17)+(R42*'Points System'!$E$11)+(S42*'Points System'!$E$12)+(T42*'Points System'!$E$16)+(U42*'Points System'!$E$13) -> 458.555 | D42: =IF(AND(ABS(E42-F42)<3,F42>9),C42/F42,0) -> 14.62228954 | E42: 31.36 | F42: 31.36 | G42: 179.97 | H42: 12.41 | I42: 9.47 | J42: 0 | K42: 0 | L42: 158.94 | M42: 61.31 | N42: 164.5 | O42: 88 | P42: 81.33 | Q42: 24.5 | R42: 0 | S42: 15.6 | T42: 4 | U42: 0.17 | V42: 4.07 | W42: 1.25 | X42: 7.95 | Y42: 3.07 | Z42: NL | AA42: 452657 | AB42: =IF(ISNA(VLOOKUP(A42,Rankings!$B$2:$H$659,7,FALSE)),"-",VLOOKUP(A42,Rankings!$B$2:$H$659,7,FALSE)) -> 0
A43: Brad Hand | B43: RP | C43: =(G43*'Points System'!$E$6)+(H43*'Points System'!$E$2)+(I43*'Points System'!$E$3)+(J43*'Points System'!$E$4)+(K43*'Points System'!$E$5)+(L43*'Points System'!$E$7)+(M43*'Points System'!$E$8)+(N43*'Points System'!$E$10)+(P43*'Points System'!$E$9)+(Q43*'Points System'!$E$17)+(R43*'Points System'!$E$11)+(S43*'Points System'!$E$12)+(T43*'Points System'!$E$16)+(U43*'Points System'!$E$13) -> 446.585 | D43: =IF(AND(ABS(E43-F43)<3,F43>9),C43/F43,0) -> 0 | E43: 68.31 | F43: 0 | G43: 70.36 | H43: 3.56 | I43: 2.93 | J43: 32.67 | K43: 6 | L43: 94.38 | M43: 25.2 | N43: 50.6 | O43: 26.5 | P43: 24.07 | Q43: 7.82 | R43: 3 | S43: 0 | T43: 3 | U43: 0 | V43: 3.08 | W43: 1.08 | X43: 12.07 | Y43: 3.22 | Z43: AL | AA43: 543272 | AB43: =IF(ISNA(VLOOKUP(A43,Rankings!$B$2:$H$659,7,FALSE)),"-",VLOOKUP(A43,Rankings!$B$2:$H$659,7,FALSE)) -> 0
A44: Zack Godley | B44: SP | C44: =(G44*'Points System'!$E$6)+(H44*'Points System'!$E$2)+(I44*'Points System'!$E$3)+(J44*'Points System'!$E$4)+(K44*'Points System'!$E$5)+(L44*'Points System'!$E$7)+(M44*'Points System'!$E$8)+(N44*'Points System'!$E$10)+(P44*'Points System'!$E$9)+(Q44*'Points System'!$E$17)+(R44*'Points System'!$E$11)+(S44*'Points System'!$E$12)+(T44*'Points System'!$E$16)+(U44*'Points System'!$E$13) -> 445.25 | D44: =IF(AND(ABS(E44-F44)<3,F44>9),C44/F44,0) -> 14.6560237 | E44: 30.46 | F44: 30.38 | G44: 174.36 | H44: 11.06 | I44: 10.64 | J44: 0 | K44: 0 | L44: 173.44 | M44: 71.47 | N44: 155.53 | O44: 85 | P44: 80.79 | Q44: 19.09 | R44: 0 | S44: 15 | T44: 16 | U44: 0 | V44: 4.17 | W44: 1.3 | X44: 8.95 | Y44: 3.69 | Z44: NL | AA44: 643327 | AB44: =IF(ISNA(VLOOKUP(A44,Rankings!$B$2:$H$659,7,FALSE)),"-",VLOOKUP(A44,Rankings!$B$2:$H$659,7,FALSE)) -> 0
A45: Kevin Gausman | B45: SP | C45: =(G45*'Points System'!$E$6)+(H45*'Points System'!$E$2)+(I45*'Points System'!$E$3)+(J45*'Points System'!$E$4)+(K45*'Points System'!$E$5)+(L45*'Points System'!$E$7)+(M45*'Points System'!$E$8)+(N45*'Points System'!$E$10)+(P45*'Points System'!$E$9)+(Q45*'Points System'!$E$17)+(R45*'Points System'!$E$11)+(S45*'Points System'!$E$12)+(T45*'Points System'!$E$16)+(U45*'Points System'!$E$13) -> 444.43 | D45: =IF(AND(ABS(E45-F45)<3,F45>9),C45/F45,0) -> 14.67249917 | E45: 30.29 | F45: 30.29 | G45: 177.72 | H45: 11.06 | I45: 10 | J45: 0 | K45: 0 | L45: 158.24 | M45: 53.88 | N45: 167.94 | O45: 92.5 | P45: 81.07 | Q45: 23.25 | R45: 0 | S45: 15.6 | T45: 6.5 | U45: 0 | V45: 4.11 | W45: 1.25 | X45: 8.01 | Y45: 2.73 | Z45: NL | AA45: 592332 | AB45: =IF(ISNA(VLOOKUP(A45,Rankings!$B$2:$H$659,7,FALSE)),"-",VLOOKUP(A45,Rankings!$B$2:$H$659,7,FALSE)) -> 0
A46: Kyle Gibson | B46: SP | C46: =(G46*'Points System'!$E$6)+(H46*'Points System'!$E$2)+(I46*'Points System'!$E$3)+(J46*'Points System'!$E$4)+(K46*'Points System'!$E$5)+(L46*'Points System'!$E$7)+(M46*'Points System'!$E$8)+(N46*'Points System'!$E$10)+(P46*'Points System'!$E$9)+(Q46*'Points System'!$E$17)+(R46*'Points System'!$E$11)+(S46*'Points System'!$E$12)+(T46*'Points System'!$E$16)+(U46*'Points System'!$E$13) -> 441.4425 | D46: =IF(AND(ABS(E46-F46)<3,F46>9),C46/F46,0) -> 14.10810163 | E46: 31.29 | F46: 31.29 | G46: 185.99 | H46: 11.53 | I46: 10.93 | J46: 0 | K46: 0 | L46: 161.29 | M46: 71.44 | N46: 174.63 | O46: 93.5 | P46: 86.6 | Q46: 23.17 | R46: 0 | S46: 16 | T46: 8 | U46: 0 | V46: 4.19 | W46: 1.32 | X46: 7.8 | Y46: 3.46 | Z46: AL | AA46: 502043 | AB46: =IF(ISNA(VLOOKUP(A46,Rankings!$B$2:$H$659,7,FALSE)),"-",VLOOKUP(A46,Rankings!$B$2:$H$659,7,FALSE)) -> 0
A47: Kyle Freeland | B47: SP | C47: =(G47*'Points System'!$E$6)+(H47*'Points System'!$E$2)+(I47*'Points System'!$E$3)+(J47*'Points System'!$E$4)+(K47*'Points System'!$E$5)+(L47*'Points System'!$E$7)+(M47*'Points System'!$E$8)+(N47*'Points System'!$E$10)+(P47*'Points System'!$E$9)+(Q47*'Points System'!$E$17)+(R47*'Points System'!$E$11)+(S47*'Points System'!$E$12)+(T47*'Points System'!$E$16)+(U47*'Points System'!$E$13) -> 440.23 | D47: =IF(AND(ABS(E47-F47)<3,F47>9),C47/F47,0) -> 14.00668151 | E47: 31.5 | F47: 31.43 | G47: 187.01 | H47: 12.18 | I47: 10.4 | J47: 0 | K47: 0 | L47: 152 | M47: 67.19 | N47: 178.56 | O47: 92.5 | P47: 86.13 | Q47: 22.75 | R47: 0 | S47: 17.8 | T47: 2 | U47: 0 | V47: 4.15 | W47: 1.31 | X47: 7.32 | Y47: 3.23 | Z47: NL | AA47: 607536 | AB47: =IF(ISNA(VLOOKUP(A47,Rankings!$B$2:$H$659,7,FALSE)),"-",VLOOKUP(A47,Rankings!$B$2:$H$659,7,FALSE)) -> 0
A48: Jake Junis | B48: SP | C48: =(G48*'Points System'!$E$6)+(H48*'Points System'!$E$2)+(I48*'Points System'!$E$3)+(J48*'Points System'!$E$4)+(K48*'Points System'!$E$5)+(L48*'Points System'!$E$7)+(M48*'Points System'!$E$8)+(N48*'Points System'!$E$10)+(P48*'Points System'!$E$9)+(Q48*'Points System'!$E$17)+(R48*'Points System'!$E$11)+(S48*'Points System'!$E$12)+(T48*'Points System'!$E$16)+(U48*'Points System'!$E$13) -> 439.6725 | D48: =IF(AND(ABS(E48-F48)<3,F48>9),C48/F48,0) -> 15.16112069 | E48: 29.75 | F48: 29 | G48: 173.98 | H48: 9.5 | I48: 11 | J48: 0 | K48: 0 | L48: 157.17 | M48: 45.6 | N48: 149.33 | O48: 94 | P48: 85.8 | Q48: 28 | R48: 0 | S48: 13.5 | T48: 8 | U48: 0.75 | V48: 4.44 | W48: 1.12 | X48: 8.13 | Y48: 2.36 | Z48: AL | AA48: 596001 | AB48: =IF(ISNA(VLOOKUP(A48,Rankings!$B$2:$H$659,7,FALSE)),"-",VLOOKUP(A48,Rankings!$B$2:$H$659,7,FALSE)) -> 0
A49: Jon Gray | B49: SP | C49: =(G49*'Points System'!$E$6)+(H49*'Points System'!$E$2)+(I49*'Points System'!$E$3)+(J49*'Points System'!$E$4)+(K49*'Points System'!$E$5)+(L49*'Points System'!$E$7)+(M49*'Points System'!$E$8)+(N49*'Points System'!$E$10)+(P49*'Points System'!$E$9)+(Q49*'Points System'!$E$17)+(R49*'Points System'!$E$11)+(S49*'Points System'!$E$12)+(T49*'Points System'!$E$16)+(U49*'Points System'!$E$13) -> 439.655 | D49: =IF(AND(ABS(E49-F49)<3,F49>9),C49/F49,0) -> 15.28171707 | E49: 28.77 | F49: 28.77 | G49: 163.59 | H49: 10.56 | I49: 9.14 | J49: 0 | K49: 0 | L49: 169.06 | M49: 50.4 | N49: 152.27 | O49: 85.5 | P49: 77.43 | Q49: 21.18 | R49: 0 | S49: 14.6 | T49: 6 | U49: 0 | V49: 4.26 | W49: 1.24 | X49: 9.3 | Y49: 2.77 | Z49: NL | AA49: 592351 | AB49: =IF(ISNA(VLOOKUP(A49,Rankings!$B$2:$H$659,7,FALSE)),"-",VLOOKUP(A49,Rankings!$B$2:$H$659,7,FALSE)) -> 0
A50: Blake Treinen | B50: RP | C50: =(G50*'Points System'!$E$6)+(H50*'Points System'!$E$2)+(I50*'Points System'!$E$3)+(J50*'Points System'!$E$4)+(K50*'Points System'!$E$5)+(L50*'Points System'!$E$7)+(M50*'Points System'!$E$8)+(N50*'Points System'!$E$10)+(P50*'Points System'!$E$9)+(Q50*'Points System'!$E$17)+(R50*'Points System'!$E$11)+(S50*'Points System'!$E$12)+(T50*'Points System'!$E$16)+(U50*'Points System'!$E$13) -> 439.475 | D50: =IF(AND(ABS(E50-F50)<3,F50>9),C50/F50,0) -> 0 | E50: 69.08 | F50: 0 | G50: 73.76 | H50: 4.44 | I50: 2.86 | J50: 30.8 | K50: 4.5 | L50: 84.06 | M50: 24.2 | N50: 55.33 | O50: 25.5 | P50: 21.79 | Q50: 5.27 | R50: 2 | S50: 0 | T50: 5 | U50: 0 | V50: 2.66 | W50: 1.08 | X50: 10.26 | Y50: 2.95 | Z50: AL | AA50: 595014 | AB50: =IF(ISNA(VLOOKUP(A50,Rankings!$B$2:$H$659,7,FALSE)),"-",VLOOKUP(A50,Rankings!$B$2:$H$659,7,FALSE)) -> 0
A51: Jake Arrieta | B51: SP | C51: =(G51*'Points System'!$E$6)+(H51*'Points System'!$E$2)+(I51*'Points System'!$E$3)+(J51*'Points System'!$E$4)+(K51*'Points System'!$E$5)+(L51*'Points System'!$E$7)+(M51*'Points System'!$E$8)+(N51*'Points System'!$E$10)+(P51*'Points System'!$E$9)+(Q51*'Points System'!$E$17)+(R51*'Points System'!$E$11)+(S51*'Points System'!$E$12)+(T51*'Points System'!$E$16)+(U51*'Points System'!$E$13) -> 438.85 | D51: =IF(AND(ABS(E51-F51)<3,F51>9),C51/F51,0) -> 14.48827996 | E51: 30.29 | F51: 30.29 | G51: 173.09 | H51: 11.29 | I51: 10.27 | J51: 0 | K51: 0 | L51: 152.24 | M51: 58.06 | N51: 151.25 | O51: 84.5 | P51: 77.8 | Q51: 22.5 | R51: 0 | S51: 15.2 | T51: 12 | U51: 0 | V51: 4.05 | W51: 1.21 | X51: 7.92 | Y51: 3.02 | Z51: NL | AA51: 453562 | AB51: =IF(ISNA(VLOOKUP(A51,Rankings!$B$2:$H$659,7,FALSE)),"-",VLOOKUP(A51,Rankings!$B$2:$H$659,7,FALSE)) -> 0
A52: Nick Pivetta | B52: SP | C52: =(G52*'Points System'!$E$6)+(H52*'Points System'!$E$2)+(I52*'Points System'!$E$3)+(J52*'Points System'!$E$4)+(K52*'Points System'!$E$5)+(L52*'Points System'!$E$7)+(M52*'Points System'!$E$8)+(N52*'Points System'!$E$10)+(P52*'Points System'!$E$9)+(Q52*'Points System'!$E$17)+(R52*'Points System'!$E$11)+(S52*'Points System'!$E$12)+(T52*'Points System'!$E$16)+(U52*'Points System'!$E$13) -> 437.08 | D52: =IF(AND(ABS(E52-F52)<3,F52>9),C52/F52,0) -> 14.81627119 | E52: 29.57 | F52: 29.5 | G52: 159.57 | H52: 9.94 | I52: 10.2 | J52: 0 | K52: 0 | L52: 175.12 | M52: 53.06 | N52: 141.44 | O52: 77.5 | P52: 74.67 | Q52: 23.17 | R52: 0 | S52: 12.2 | T52: 10 | U52: 0 | V52: 4.21 | W52: 1.22 | X52: 9.88 | Y52: 2.99 | Z52: NL | AA52: 601713 | AB52: =IF(ISNA(VLOOKUP(A52,Rankings!$B$2:$H$659,7,FALSE)),"-",VLOOKUP(A52,Rankings!$B$2:$H$659,7,FALSE)) -> 0
A53: Jhoulys Chacin | B53: SP | C53: =(G53*'Points System'!$E$6)+(H53*'Points System'!$E$2)+(I53*'Points System'!$E$3)+(J53*'Points System'!$E$4)+(K53*'Points System'!$E$5)+(L53*'Points System'!$E$7)+(M53*'Points System'!$E$8)+(N53*'Points System'!$E$10)+(P53*'Points System'!$E$9)+(Q53*'Points System'!$E$17)+(R53*'Points System'!$E$11)+(S53*'Points System'!$E$12)+(T53*'Points System'!$E$16)+(U53*'Points System'!$E$13) -> 436.5675 | D53: =IF(AND(ABS(E53-F53)<3,F53>9),C53/F53,0) -> 13.70698587 | E53: 31.92 | F53: 31.85 | G53: 180.76 | H53: 11.56 | I53: 10.29 | J53: 0 | K53: 0 | L53: 149.75 | M53: 68.87 | N53: 157.73 | O53: 91 | P53: 84.21 | Q53: 23 | R53: 0 | S53: 13.6 | T53: 6 | U53: 0 | V53: 4.19 | W53: 1.25 | X53: 7.46 | Y53: 3.43 | Z53: NL | AA53: 468504 | AB53: =IF(ISNA(VLOOKUP(A53,Rankings!$B$2:$H$659,7,FALSE)),"-",VLOOKUP(A53,Rankings!$B$2:$H$659,7,FALSE)) -> 0
A54: Aroldis Chapman | B54: RP | C54: =(G54*'Points System'!$E$6)+(H54*'Points System'!$E$2)+(I54*'Points System'!$E$3)+(J54*'Points System'!$E$4)+(K54*'Points System'!$E$5)+(L54*'Points System'!$E$7)+(M54*'Points System'!$E$8)+(N54*'Points System'!$E$10)+(P54*'Points System'!$E$9)+(Q54*'Points System'!$E$17)+(R54*'Points System'!$E$11)+(S54*'Points System'!$E$12)+(T54*'Points System'!$E$16)+(U54*'Points System'!$E$13) -> 435.965 | D54: =IF(AND(ABS(E54-F54)<3,F54>9),C54/F54,0) -> 0 | E54: 59.14 | F54: 0 | G54: 57.74 | H54: 3.24 | I54: 2.07 | J54: 32.81 | K54: 4 | L54: 90.94 | M54: 26.94 | N54: 33.75 | O54: 21 | P54: 17 | Q54: 4.83 | R54: 2.25 | S54: 0 | T54: 8 | U54: 0 | V54: 2.65 | W54: 1.05 | X54: 14.17 | Y54: 4.2 | Z54: AL | AA54: 547973 | AB54: =IF(ISNA(VLOOKUP(A54,Rankings!$B$2:$H$659,7,FALSE)),"-",VLOOKUP(A54,Rankings!$B$2:$H$659,7,FALSE)) -> 0
A55: Rich Hill | B55: SP | C55: =(G55*'Points System'!$E$6)+(H55*'Points System'!$E$2)+(I55*'Points System'!$E$3)+(J55*'Points System'!$E$4)+(K55*'Points System'!$E$5)+(L55*'Points System'!$E$7)+(M55*'Points System'!$E$8)+(N55*'Points System'!$E$10)+(P55*'Points System'!$E$9)+(Q55*'Points System'!$E$17)+(R55*'Points System'!$E$11)+(S55*'Points System'!$E$12)+(T55*'Points System'!$E$16)+(U55*'Points System'!$E$13) -> 434.5575 | D55: =IF(AND(ABS(E55-F55)<3,F55>9),C55/F55,0) -> 17.0682443 | E55: 25.54 | F55: 25.46 | G55: 140.04 | H55: 10.75 | I55: 7.21 | J55: 0 | K55: 0 | L55: 156.31 | M55: 46.6 | N55: 107.73 | O55: 61.5 | P55: 55.07 | Q55: 18.55 | R55: 0 | S55: 12.4 | T55: 2 | U55: 0.17 | V55: 3.54 | W55: 1.1 | X55: 10.05 | Y55: 2.99 | Z55: NL | AA55: 448179 | AB55: =IF(ISNA(VLOOKUP(A55,Rankings!$B$2:$H$659,7,FALSE)),"-",VLOOKUP(A55,Rankings!$B$2:$H$659,7,FALSE)) -> 0
A56: Dylan Bundy | B56: SP | C56: =(G56*'Points System'!$E$6)+(H56*'Points System'!$E$2)+(I56*'Points System'!$E$3)+(J56*'Points System'!$E$4)+(K56*'Points System'!$E$5)+(L56*'Points System'!$E$7)+(M56*'Points System'!$E$8)+(N56*'Points System'!$E$10)+(P56*'Points System'!$E$9)+(Q56*'Points System'!$E$17)+(R56*'Points System'!$E$11)+(S56*'Points System'!$E$12)+(T56*'Points System'!$E$16)+(U56*'Points System'!$E$13) -> 427.3675 | D56: =IF(AND(ABS(E56-F56)<3,F56>9),C56/F56,0) -> 13.86206617 | E56: 30.83 | F56: 30.83 | G56: 175.09 | H56: 9.6 | I56: 12.62 | J56: 0 | K56: 0 | L56: 174.27 | M56: 55.93 | N56: 162.93 | O56: 91.5 | P56: 91.38 | Q56: 32 | R56: 0 | S56: 16.5 | T56: 6 | U56: 0.8 | V56: 4.7 | W56: 1.25 | X56: 8.96 | Y56: 2.87 | Z56: AL | AA56: 605164 | AB56: =IF(ISNA(VLOOKUP(A56,Rankings!$B$2:$H$659,7,FALSE)),"-",VLOOKUP(A56,Rankings!$B$2:$H$659,7,FALSE)) -> 0
A57: Sean Newcomb | B57: SP | C57: =(G57*'Points System'!$E$6)+(H57*'Points System'!$E$2)+(I57*'Points System'!$E$3)+(J57*'Points System'!$E$4)+(K57*'Points System'!$E$5)+(L57*'Points System'!$E$7)+(M57*'Points System'!$E$8)+(N57*'Points System'!$E$10)+(P57*'Points System'!$E$9)+(Q57*'Points System'!$E$17)+(R57*'Points System'!$E$11)+(S57*'Points System'!$E$12)+(T57*'Points System'!$E$16)+(U57*'Points System'!$E$13) -> 424.52 | D57: =IF(AND(ABS(E57-F57)<3,F57>9),C57/F57,0) -> 14.2504196 | E57: 29.86 | F57: 29.79 | G57: 164.39 | H57: 10.71 | I57: 9.73 | J57: 0 | K57: 0 | L57: 166 | M57: 79.94 | N57: 136.75 | O57: 79 | P57: 75.07 | Q57: 19.08 | R57: 0 | S57: 14.2 | T57: 4 | U57: 0 | V57: 4.11 | W57: 1.32 | X57: 9.09 | Y57: 4.38 | Z57: NL | AA57: 656794 | AB57: =IF(ISNA(VLOOKUP(A57,Rankings!$B$2:$H$659,7,FALSE)),"-",VLOOKUP(A57,Rankings!$B$2:$H$659,7,FALSE)) -> 0
A58: Luis Castillo | B58: SP | C58: =(G58*'Points System'!$E$6)+(H58*'Points System'!$E$2)+(I58*'Points System'!$E$3)+(J58*'Points System'!$E$4)+(K58*'Points System'!$E$5)+(L58*'Points System'!$E$7)+(M58*'Points System'!$E$8)+(N58*'Points System'!$E$10)+(P58*'Points System'!$E$9)+(Q58*'Points System'!$E$17)+(R58*'Points System'!$E$11)+(S58*'Points System'!$E$12)+(T58*'Points System'!$E$16)+(U58*'Points System'!$E$13) -> 422.3125 | D58: =IF(AND(ABS(E58-F58)<3,F58>9),C58/F58,0) -> 16.16197857 | E58: 26.25 | F58: 26.13 | G58: 152.12 | H58: 9.63 | I58: 8.65 | J58: 0 | K58: 0 | L58: 153.05 | M58: 45.89 | N58: 129 | O58: 76.5 | P58: 65 | Q58: 20.57 | R58: 0 | S58: 14 | T58: 5 | U58: 0 | V58: 3.85 | W58: 1.15 | X58: 9.06 | Y58: 2.72 | Z58: NL | AA58: 622491 | AB58: =IF(ISNA(VLOOKUP(A58,Rankings!$B$2:$H$659,7,FALSE)),"-",VLOOKUP(A58,Rankings!$B$2:$H$659,7,FALSE)) -> 0
A59: Eduardo Rodriguez | B59: SP | C59: =(G59*'Points System'!$E$6)+(H59*'Points System'!$E$2)+(I59*'Points System'!$E$3)+(J59*'Points System'!$E$4)+(K59*'Points System'!$E$5)+(L59*'Points System'!$E$7)+(M59*'Points System'!$E$8)+(N59*'Points System'!$E$10)+(P59*'Points System'!$E$9)+(Q59*'Points System'!$E$17)+(R59*'Points System'!$E$11)+(S59*'Points System'!$E$12)+(T59*'Points System'!$E$16)+(U59*'Points System'!$E$13) -> 422.035 | D59: =IF(AND(ABS(E59-F59)<3,F59>9),C59/F59,0) -> 16.23211538 | E59: 26.38 | F59: 26 | G59: 145.46 | H59: 10.56 | I59: 7.43 | J59: 0 | K59: 0 | L59: 158.38 | M59: 50.87 | N59: 123.8 | O59: 70.5 | P59: 63.86 | Q59: 18.73 | R59: 0 | S59: 12.2 | T59: 1 | U59: 0 | V59: 3.95 | W59: 1.2 | X59: 9.8 | Y59: 3.15 | Z59: AL | AA59: 593958 | AB59: =IF(ISNA(VLOOKUP(A59,Rankings!$B$2:$H$659,7,FALSE)),"-",VLOOKUP(A59,Rankings!$B$2:$H$659,7,FALSE)) -> 0
A60: Dallas Keuchel | B60: SP | C60: =(G60*'Points System'!$E$6)+(H60*'Points System'!$E$2)+(I60*'Points System'!$E$3)+(J60*'Points System'!$E$4)+(K60*'Points System'!$E$5)+(L60*'Points System'!$E$7)+(M60*'Points System'!$E$8)+(N60*'Points System'!$E$10)+(P60*'Points System'!$E$9)+(Q60*'Points System'!$E$17)+(R60*'Points System'!$E$11)+(S60*'Points System'!$E$12)+(T60*'Points System'!$E$16)+(U60*'Points System'!$E$13) -> 421.4075 | D60: =IF(AND(ABS(E60-F60)<3,F60>9),C60/F60,0) -> 14.36779748 | E60: 29.33 | F60: 29.33 | G60: 167.55 | H60: 11.2 | I60: 8.43 | J60: 0 | K60: 0 | L60: 130.27 | M60: 48.93 | N60: 151.27 | O60: 0 | P60: 68.93 | Q60: 15.09 | R60: 0 | S60: 17.5 | T60: 8.5 | U60: 0.67 | V60: 3.7 | W60: 1.19 | X60: 7 | Y60: 2.63 | AA60: 572971 | AB60: =IF(ISNA(VLOOKUP(A60,Rankings!$B$2:$H$659,7,FALSE)),"-",VLOOKUP(A60,Rankings!$B$2:$H$659,7,FALSE)) -> 0
A61: Shane Bieber | B61: SP | C61: =(G61*'Points System'!$E$6)+(H61*'Points System'!$E$2)+(I61*'Points System'!$E$3)+(J61*'Points System'!$E$4)+(K61*'Points System'!$E$5)+(L61*'Points System'!$E$7)+(M61*'Points System'!$E$8)+(N61*'Points System'!$E$10)+(P61*'Points System'!$E$9)+(Q61*'Points System'!$E$17)+(R61*'Points System'!$E$11)+(S61*'Points System'!$E$12)+(T61*'Points System'!$E$16)+(U61*'Points System'!$E$13) -> 418.4725 | D61: =IF(AND(ABS(E61-F61)<3,F61>9),C61/F61,0) -> 16.00277247 | E61: 26.15 | F61: 26.15 | G61: 150.53 | H61: 10.88 | I61: 7.43 | J61: 0 | K61: 0 | L61: 143.13 | M61: 30.2 | N61: 145.6 | O61: 65 | P61: 64.36 | Q61: 18.73 | R61: 0 | S61: 13.6 | T61: 5.5 | U61: 0.17 | V61: 3.85 | W61: 1.17 | X61: 8.56 | Y61: 1.81 | Z61: AL | AA61: 669456 | AB61: =IF(ISNA(VLOOKUP(A61,Rankings!$B$2:$H$659,7,FALSE)),"-",VLOOKUP(A61,Rankings!$B$2:$H$659,7,FALSE)) -> 0
A62: Felipe Vazquez | B62: RP | C62: =(G62*'Points System'!$E$6)+(H62*'Points System'!$E$2)+(I62*'Points System'!$E$3)+(J62*'Points System'!$E$4)+(K62*'Points System'!$E$5)+(L62*'Points System'!$E$7)+(M62*'Points System'!$E$8)+(N62*'Points System'!$E$10)+(P62*'Points System'!$E$9)+(Q62*'Points System'!$E$17)+(R62*'Points System'!$E$11)+(S62*'Points System'!$E$12)+(T62*'Points System'!$E$16)+(U62*'Points System'!$E$13) -> 417.21 | D62: =IF(AND(ABS(E62-F62)<3,F62>9),C62/F62,0) -> 0 | E62: 68.08 | F62: 0 | G62: 68.46 | H62: 3.43 | I62: 2.85 | J62: 30.38 | K62: 4 | L62: 85 | M62: 23.71 | N62: 55.62 | O62: 32 | P62: 22.08 | Q62: 5.2 | R62: 2.25 | S62: 0 | T62: 3 | U62: 0 | V62: 2.9 | W62: 1.16 | X62: 11.17 | Y62: 3.12 | Z62: NL | AA62: 533813 | AB62: =IF(ISNA(VLOOKUP(A62,Rankings!$B$2:$H$659,7,FALSE)),"-",VLOOKUP(A62,Rankings!$B$2:$H$659,7,FALSE)) -> 0
A63: Julio Teheran | B63: SP | C63: =(G63*'Points System'!$E$6)+(H63*'Points System'!$E$2)+(I63*'Points System'!$E$3)+(J63*'Points System'!$E$4)+(K63*'Points System'!$E$5)+(L63*'Points System'!$E$7)+(M63*'Points System'!$E$8)+(N63*'Points System'!$E$10)+(P63*'Points System'!$E$9)+(Q63*'Points System'!$E$17)+(R63*'Points System'!$E$11)+(S63*'Points System'!$E$12)+(T63*'Points System'!$E$16)+(U63*'Points System'!$E$13) -> 414.9425 | D63: =IF(AND(ABS(E63-F63)<3,F63>9),C63/F63,0) -> 14.16669512 | E63: 29.5 | F63: 29.29 | G63: 170.59 | H63: 9.65 | I63: 10.13 | J63: 0 | K63: 0 | L63: 152.53 | M63: 68.56 | N63: 143.31 | O63: 91 | P63: 82.87 | Q63: 25.25 | R63: 0 | S63: 15.4 | T63: 3 | U63: 0 | V63: 4.37 | W63: 1.24 | X63: 8.05 | Y63: 3.62 | Z63: NL | AA63: 527054 | AB63: =IF(ISNA(VLOOKUP(A63,Rankings!$B$2:$H$659,7,FALSE)),"-",VLOOKUP(A63,Rankings!$B$2:$H$659,7,FALSE)) -> 0
A64: Marco Gonzales | B64: SP | C64: =(G64*'Points System'!$E$6)+(H64*'Points System'!$E$2)+(I64*'Points System'!$E$3)+(J64*'Points System'!$E$4)+(K64*'Points System'!$E$5)+(L64*'Points System'!$E$7)+(M64*'Points System'!$E$8)+(N64*'Points System'!$E$10)+(P64*'Points System'!$E$9)+(Q64*'Points System'!$E$17)+(R64*'Points System'!$E$11)+(S64*'Points System'!$E$12)+(T64*'Points System'!$E$16)+(U64*'Points System'!$E$13) -> 413.565 | D64: =IF(AND(ABS(E64-F64)<3,F64>9),C64/F64,0) -> 14.47549877 | E64: 28.64 | F64: 28.57 | G64: 164.05 | H64: 10.53 | I64: 9.87 | J64: 0 | K64: 0 | L64: 140.18 | M64: 38.13 | N64: 157.31 | O64: 76.5 | P64: 72.2 | Q64: 21.92 | R64: 0 | S64: 14.6 | T64: 2.5 | U64: 0.83 | V64: 3.96 | W64: 1.19 | X64: 7.69 | Y64: 2.09 | Z64: AL | AA64: 594835 | AB64: =IF(ISNA(VLOOKUP(A64,Rankings!$B$2:$H$659,7,FALSE)),"-",VLOOKUP(A64,Rankings!$B$2:$H$659,7,FALSE)) -> 0
A65: Roberto Osuna | B65: RP | C65: =(G65*'Points System'!$E$6)+(H65*'Points System'!$E$2)+(I65*'Points System'!$E$3)+(J65*'Points System'!$E$4)+(K65*'Points System'!$E$5)+(L65*'Points System'!$E$7)+(M65*'Points System'!$E$8)+(N65*'Points System'!$E$10)+(P65*'Points System'!$E$9)+(Q65*'Points System'!$E$17)+(R65*'Points System'!$E$11)+(S65*'Points System'!$E$12)+(T65*'Points System'!$E$16)+(U65*'Points System'!$E$13) -> 413.55 | D65: =IF(AND(ABS(E65-F65)<3,F65>9),C65/F65,0) -> 0 | E65: 62.23 | F65: 0 | G65: 61.51 | H65: 3.44 | I65: 2.71 | J65: 33.47 | K65: 4.75 | L65: 66 | M65: 11.27 | N65: 48.27 | O65: 24 | P65: 21.07 | Q65: 6.45 | R65: 1.5 | S65: 0 | T65: 4 | U65: 0 | V65: 3.08 | W65: 0.97 | X65: 9.66 | Y65: 1.65 | Z65: AL | AA65: 532077 | AB65: =IF(ISNA(VLOOKUP(A65,Rankings!$B$2:$H$659,7,FALSE)),"-",VLOOKUP(A65,Rankings!$B$2:$H$659,7,FALSE)) -> 0
A66: Joey Lucchesi | B66: SP | C66: =(G66*'Points System'!$E$6)+(H66*'Points System'!$E$2)+(I66*'Points System'!$E$3)+(J66*'Points System'!$E$4)+(K66*'Points System'!$E$5)+(L66*'Points System'!$E$7)+(M66*'Points System'!$E$8)+(N66*'Points System'!$E$10)+(P66*'Points System'!$E$9)+(Q66*'Points System'!$E$17)+(R66*'Points System'!$E$11)+(S66*'Points System'!$E$12)+(T66*'Points System'!$E$16)+(U66*'Points System'!$E$13) -> 410.1325 | D66: =IF(AND(ABS(E66-F66)<3,F66>9),C66/F66,0) -> 14.72648115 | E66: 27.85 | F66: 27.85 | G66: 151.01 | H66: 9.56 | I66: 9.71 | J66: 0 | K66: 0 | L66: 155.81 | M66: 49.4 | N66: 132 | O66: 66.5 | P66: 65.07 | Q66: 20.73 | R66: 0 | S66: 10.4 | T66: 5 | U66: 0 | V66: 3.88 | W66: 1.2 | X66: 9.29 | Y66: 2.94 | Z66: NL | AA66: 664192 | AB66: =IF(ISNA(VLOOKUP(A66,Rankings!$B$2:$H$659,7,FALSE)),"-",VLOOKUP(A66,Rankings!$B$2:$H$659,7,FALSE)) -> 0
A67: Yusei Kikuchi | B67: SP | C67: =(G67*'Points System'!$E$6)+(H67*'Points System'!$E$2)+(I67*'Points System'!$E$3)+(J67*'Points System'!$E$4)+(K67*'Points System'!$E$5)+(L67*'Points System'!$E$7)+(M67*'Points System'!$E$8)+(N67*'Points System'!$E$10)+(P67*'Points System'!$E$9)+(Q67*'Points System'!$E$17)+(R67*'Points System'!$E$11)+(S67*'Points System'!$E$12)+(T67*'Points System'!$E$16)+(U67*'Points System'!$E$13) -> 408.8575 | D67: =IF(AND(ABS(E67-F67)<3,F67>9),C67/F67,0) -> 15.38214823 | E67: 26.58 | F67: 26.58 | G67: 155.97 | H67: 9.4 | I67: 8.77 | J67: 0 | K67: 0 | L67: 146.27 | M67: 54.86 | N67: 136.43 | O67: 78.5 | P67: 63.15 | Q67: 21.27 | R67: 0 | S67: 13.2 | T67: 7.5 | U67: 0 | V67: 3.64 | W67: 1.23 | X67: 8.44 | Y67: 3.17 | Z67: AL | AA67: 579328 | AB67: =IF(ISNA(VLOOKUP(A67,Rankings!$B$2:$H$659,7,FALSE)),"-",VLOOKUP(A67,Rankings!$B$2:$H$659,7,FALSE)) -> 0
A68: Matthew Boyd | B68: SP | C68: =(G68*'Points System'!$E$6)+(H68*'Points System'!$E$2)+(I68*'Points System'!$E$3)+(J68*'Points System'!$E$4)+(K68*'Points System'!$E$5)+(L68*'Points System'!$E$7)+(M68*'Points System'!$E$8)+(N68*'Points System'!$E$10)+(P68*'Points System'!$E$9)+(Q68*'Points System'!$E$17)+(R68*'Points System'!$E$11)+(S68*'Points System'!$E$12)+(T68*'Points System'!$E$16)+(U68*'Points System'!$E$13) -> 405.41 | D68: =IF(AND(ABS(E68-F68)<3,F68>9),C68/F68,0) -> 13.44643449 | E68: 30.23 | F68: 30.15 | G68: 169.54 | H68: 9.13 | I68: 11.79 | J68: 0 | K68: 0 | L68: 154 | M68: 54.67 | N68: 152.87 | O68: 89.5 | P68: 84 | Q68: 26.27 | R68: 0 | S68: 14.2 | T68: 5 | U68: 0.33 | V68: 4.46 | W68: 1.22 | X68: 8.18 | Y68: 2.9 | Z68: AL | AA68: 571510 | AB68: =IF(ISNA(VLOOKUP(A68,Rankings!$B$2:$H$659,7,FALSE)),"-",VLOOKUP(A68,Rankings!$B$2:$H$659,7,FALSE)) -> 0
A69: Kenta Maeda | B69: SP | C69: =(G69*'Points System'!$E$6)+(H69*'Points System'!$E$2)+(I69*'Points System'!$E$3)+(J69*'Points System'!$E$4)+(K69*'Points System'!$E$5)+(L69*'Points System'!$E$7)+(M69*'Points System'!$E$8)+(N69*'Points System'!$E$10)+(P69*'Points System'!$E$9)+(Q69*'Points System'!$E$17)+(R69*'Points System'!$E$11)+(S69*'Points System'!$E$12)+(T69*'Points System'!$E$16)+(U69*'Points System'!$E$13) -> 404.21 | D69: =IF(AND(ABS(E69-F69)<3,F69>9),C69/F69,0) -> 0 | E69: 28.15 | F69: 23.54 | G69: 134.79 | H69: 10.31 | I69: 7.07 | J69: 0.13 | K69: 0.25 | L69: 146.56 | M69: 41.2 | N69: 113.33 | O69: 57 | P69: 55.5 | Q69: 17.27 | R69: 0 | S69: 9.8 | T69: 2.5 | U69: 0.17 | V69: 3.71 | W69: 1.15 | X69: 9.79 | Y69: 2.75 | Z69: NL | AA69: 628317 | AB69: =IF(ISNA(VLOOKUP(A69,Rankings!$B$2:$H$659,7,FALSE)),"-",VLOOKUP(A69,Rankings!$B$2:$H$659,7,FALSE)) -> 0
A70: Mike Minor | B70: SP | C70: =(G70*'Points System'!$E$6)+(H70*'Points System'!$E$2)+(I70*'Points System'!$E$3)+(J70*'Points System'!$E$4)+(K70*'Points System'!$E$5)+(L70*'Points System'!$E$7)+(M70*'Points System'!$E$8)+(N70*'Points System'!$E$10)+(P70*'Points System'!$E$9)+(Q70*'Points System'!$E$17)+(R70*'Points System'!$E$11)+(S70*'Points System'!$E$12)+(T70*'Points System'!$E$16)+(U70*'Points System'!$E$13) -> 402.3925 | D70: =IF(AND(ABS(E70-F70)<3,F70>9),C70/F70,0) -> 14.6965851 | E70: 29.08 | F70: 27.38 | G70: 159.09 | H70: 10 | I70: 9.57 | J70: 0.13 | K70: 0 | L70: 140.69 | M70: 45.4 | N70: 141.4 | O70: 84.5 | P70: 77 | Q70: 25 | R70: 0 | S70: 12.2 | T70: 4.5 | U70: 0 | V70: 4.36 | W70: 1.17 | X70: 7.96 | Y70: 2.57 | Z70: AL | AA70: 501985 | AB70: =IF(ISNA(VLOOKUP(A70,Rankings!$B$2:$H$659,7,FALSE)),"-",VLOOKUP(A70,Rankings!$B$2:$H$659,7,FALSE)) -> 0
A71: Yu Darvish | B71: SP | C71: =(G71*'Points System'!$E$6)+(H71*'Points System'!$E$2)+(I71*'Points System'!$E$3)+(J71*'Points System'!$E$4)+(K71*'Points System'!$E$5)+(L71*'Points System'!$E$7)+(M71*'Points System'!$E$8)+(N71*'Points System'!$E$10)+(P71*'Points System'!$E$9)+(Q71*'Points System'!$E$17)+(R71*'Points System'!$E$11)+(S71*'Points System'!$E$12)+(T71*'Points System'!$E$16)+(U71*'Points System'!$E$13) -> 402.3025 | D71: =IF(AND(ABS(E71-F71)<3,F71>9),C71/F71,0) -> 16.32721185 | E71: 24.64 | F71: 24.64 | G71: 136.79 | H71: 9.06 | I71: 7.47 | J71: 0 | K71: 0 | L71: 156.29 | M71: 49.63 | N71: 112.94 | O71: 61.5 | P71: 57.87 | Q71: 18.33 | R71: 0 | S71: 13.4 | T71: 5.5 | U71: 0 | V71: 3.81 | W71: 1.19 | X71: 10.28 | Y71: 3.27 | Z71: NL | AA71: 506433 | AB71: =IF(ISNA(VLOOKUP(A71,Rankings!$B$2:$H$659,7,FALSE)),"-",VLOOKUP(A71,Rankings!$B$2:$H$659,7,FALSE)) -> 0
A72: Raisel Iglesias | B72: RP | C72: =(G72*'Points System'!$E$6)+(H72*'Points System'!$E$2)+(I72*'Points System'!$E$3)+(J72*'Points System'!$E$4)+(K72*'Points System'!$E$5)+(L72*'Points System'!$E$7)+(M72*'Points System'!$E$8)+(N72*'Points System'!$E$10)+(P72*'Points System'!$E$9)+(Q72*'Points System'!$E$17)+(R72*'Points System'!$E$11)+(S72*'Points System'!$E$12)+(T72*'Points System'!$E$16)+(U72*'Points System'!$E$13) -> 397.0025 | D72: =IF(AND(ABS(E72-F72)<3,F72>9),C72/F72,0) -> 0 | E72: 64.23 | F72: 0.08 | G72: 69.79 | H72: 3.19 | I72: 3.43 | J72: 29 | K72: 4.25 | L72: 79.81 | M72: 25 | N72: 53.73 | O72: 29.5 | P72: 25.64 | Q72: 8.55 | R72: 1.5 | S72: 0 | T72: 2 | U72: 0 | V72: 3.31 | W72: 1.13 | X72: 10.29 | Y72: 3.22 | Z72: NL | AA72: 628452 | AB72: =IF(ISNA(VLOOKUP(A72,Rankings!$B$2:$H$659,7,FALSE)),"-",VLOOKUP(A72,Rankings!$B$2:$H$659,7,FALSE)) -> 0
A73: Alex Wood | B73: SP | C73: =(G73*'Points System'!$E$6)+(H73*'Points System'!$E$2)+(I73*'Points System'!$E$3)+(J73*'Points System'!$E$4)+(K73*'Points System'!$E$5)+(L73*'Points System'!$E$7)+(M73*'Points System'!$E$8)+(N73*'Points System'!$E$10)+(P73*'Points System'!$E$9)+(Q73*'Points System'!$E$17)+(R73*'Points System'!$E$11)+(S73*'Points System'!$E$12)+(T73*'Points System'!$E$16)+(U73*'Points System'!$E$13) -> 396.6325 | D73: =IF(AND(ABS(E73-F73)<3,F73>9),C73/F73,0) -> 15.12133054 | E73: 26.54 | F73: 26.23 | G73: 149.93 | H73: 9.69 | I73: 7.93 | J73: 0 | K73: 0 | L73: 137.13 | M73: 44.4 | N73: 134.73 | O73: 73.5 | P73: 63.93 | Q73: 18.18 | R73: 0 | S73: 13.6 | T73: 2.5 | U73: 0 | V73: 3.84 | W73: 1.19 | X73: 8.23 | Y73: 2.67 | Z73: NL | AA73: 622072 | AB73: =IF(ISNA(VLOOKUP(A73,Rankings!$B$2:$H$659,7,FALSE)),"-",VLOOKUP(A73,Rankings!$B$2:$H$659,7,FALSE)) -> 0
A74: Tanner Roark | B74: SP | C74: =(G74*'Points System'!$E$6)+(H74*'Points System'!$E$2)+(I74*'Points System'!$E$3)+(J74*'Points System'!$E$4)+(K74*'Points System'!$E$5)+(L74*'Points System'!$E$7)+(M74*'Points System'!$E$8)+(N74*'Points System'!$E$10)+(P74*'Points System'!$E$9)+(Q74*'Points System'!$E$17)+(R74*'Points System'!$E$11)+(S74*'Points System'!$E$12)+(T74*'Points System'!$E$16)+(U74*'Points System'!$E$13) -> 396.275 | D74: =IF(AND(ABS(E74-F74)<3,F74>9),C74/F74,0) -> 14.55288285 | E74: 27.38 | F74: 27.23 | G74: 165.08 | H74: 9.94 | I74: 10.29 | J74: 0 | K74: 0 | L74: 141.5 | M74: 53.33 | N74: 151.2 | O74: 80 | P74: 79.5 | Q74: 22.55 | R74: 0 | S74: 15 | T74: 4.5 | U74: 0 | V74: 4.33 | W74: 1.24 | X74: 7.71 | Y74: 2.91 | Z74: NL | AA74: 543699 | AB74: =IF(ISNA(VLOOKUP(A74,Rankings!$B$2:$H$659,7,FALSE)),"-",VLOOKUP(A74,Rankings!$B$2:$H$659,7,FALSE)) -> 0
A75: Wade Davis | B75: RP | C75: =(G75*'Points System'!$E$6)+(H75*'Points System'!$E$2)+(I75*'Points System'!$E$3)+(J75*'Points System'!$E$4)+(K75*'Points System'!$E$5)+(L75*'Points System'!$E$7)+(M75*'Points System'!$E$8)+(N75*'Points System'!$E$10)+(P75*'Points System'!$E$9)+(Q75*'Points System'!$E$17)+(R75*'Points System'!$E$11)+(S75*'Points System'!$E$12)+(T75*'Points System'!$E$16)+(U75*'Points System'!$E$13) -> 394.7375 | D75: =IF(AND(ABS(E75-F75)<3,F75>9),C75/F75,0) -> 0 | E75: 63.08 | F75: 0 | G75: 61.89 | H75: 3.19 | I75: 3.14 | J75: 32.07 | K75: 5 | L75: 75.19 | M75: 26.67 | N75: 45.47 | O75: 29 | P75: 25.71 | Q75: 7 | R75: 1.5 | S75: 0 | T75: 6 | U75: 0 | V75: 3.74 | W75: 1.17 | X75: 10.93 | Y75: 3.88 | Z75: NL | AA75: 451584 | AB75: =IF(ISNA(VLOOKUP(A75,Rankings!$B$2:$H$659,7,FALSE)),"-",VLOOKUP(A75,Rankings!$B$2:$H$659,7,FALSE)) -> 0
A76: Danny Duffy | B76: SP | C76: =(G76*'Points System'!$E$6)+(H76*'Points System'!$E$2)+(I76*'Points System'!$E$3)+(J76*'Points System'!$E$4)+(K76*'Points System'!$E$5)+(L76*'Points System'!$E$7)+(M76*'Points System'!$E$8)+(N76*'Points System'!$E$10)+(P76*'Points System'!$E$9)+(Q76*'Points System'!$E$17)+(R76*'Points System'!$E$11)+(S76*'Points System'!$E$12)+(T76*'Points System'!$E$16)+(U76*'Points System'!$E$13) -> 394.2325 | D76: =IF(AND(ABS(E76-F76)<3,F76>9),C76/F76,0) -> 13.85216093 | E76: 28.46 | F76: 28.46 | G76: 164.83 | H76: 9.31 | I76: 10.57 | J76: 0 | K76: 0 | L76: 149.81 | M76: 58.4 | N76: 152.13 | O76: 86 | P76: 80 | Q76: 22.64 | R76: 0 | S76: 11.8 | T76: 11.5 | U76: 0 | V76: 4.37 | W76: 1.28 | X76: 8.18 | Y76: 3.19 | Z76: AL | AA76: 518633 | AB76: =IF(ISNA(VLOOKUP(A76,Rankings!$B$2:$H$659,7,FALSE)),"-",VLOOKUP(A76,Rankings!$B$2:$H$659,7,FALSE)) -> 0
A77: Jake Odorizzi | B77: SP | C77: =(G77*'Points System'!$E$6)+(H77*'Points System'!$E$2)+(I77*'Points System'!$E$3)+(J77*'Points System'!$E$4)+(K77*'Points System'!$E$5)+(L77*'Points System'!$E$7)+(M77*'Points System'!$E$8)+(N77*'Points System'!$E$10)+(P77*'Points System'!$E$9)+(Q77*'Points System'!$E$17)+(R77*'Points System'!$E$11)+(S77*'Points System'!$E$12)+(T77*'Points System'!$E$16)+(U77*'Points System'!$E$13) -> 392.235 | D77: =IF(AND(ABS(E77-F77)<3,F77>9),C77/F77,0) -> 13.2021205 | E77: 29.71 | F77: 29.71 | G77: 160.92 | H77: 9.29 | I77: 9.67 | J77: 0 | K77: 0 | L77: 149.94 | M77: 63.25 | N77: 141.56 | O77: 89.5 | P77: 80.53 | Q77: 25 | R77: 0 | S77: 12.2 | T77: 1 | U77: 0 | V77: 4.5 | W77: 1.27 | X77: 8.39 | Y77: 3.54 | Z77: AL | AA77: 543606 | AB77: =IF(ISNA(VLOOKUP(A77,Rankings!$B$2:$H$659,7,FALSE)),"-",VLOOKUP(A77,Rankings!$B$2:$H$659,7,FALSE)) -> 0
A78: Michael Fulmer | B78: SP | C78: =(G78*'Points System'!$E$6)+(H78*'Points System'!$E$2)+(I78*'Points System'!$E$3)+(J78*'Points System'!$E$4)+(K78*'Points System'!$E$5)+(L78*'Points System'!$E$7)+(M78*'Points System'!$E$8)+(N78*'Points System'!$E$10)+(P78*'Points System'!$E$9)+(Q78*'Points System'!$E$17)+(R78*'Points System'!$E$11)+(S78*'Points System'!$E$12)+(T78*'Points System'!$E$16)+(U78*'Points System'!$E$13) -> 392.2175 | D78: =IF(AND(ABS(E78-F78)<3,F78>9),C78/F78,0) -> 13.67087835 | E78: 28.69 | F78: 28.69 | G78: 165.76 | H78: 9.31 | I78: 10.86 | J78: 0 | K78: 0 | L78: 137.31 | M78: 51.13 | N78: 151.2 | O78: 81.5 | P78: 75.93 | Q78: 20.55 | R78: 0 | S78: 14.6 | T78: 1.5 | U78: 0.5 | V78: 4.12 | W78: 1.22 | X78: 7.46 | Y78: 2.78 | Z78: AL | AA78: 605242 | AB78: =IF(ISNA(VLOOKUP(A78,Rankings!$B$2:$H$659,7,FALSE)),"-",VLOOKUP(A78,Rankings!$B$2:$H$659,7,FALSE)) -> 0
A79: Craig Kimbrel | B79: RP | C79: =(G79*'Points System'!$E$6)+(H79*'Points System'!$E$2)+(I79*'Points System'!$E$3)+(J79*'Points System'!$E$4)+(K79*'Points System'!$E$5)+(L79*'Points System'!$E$7)+(M79*'Points System'!$E$8)+(N79*'Points System'!$E$10)+(P79*'Points System'!$E$9)+(Q79*'Points System'!$E$17)+(R79*'Points System'!$E$11)+(S79*'Points System'!$E$12)+(T79*'Points System'!$E$16)+(U79*'Points System'!$E$13) -> 392.095 | D79: =IF(AND(ABS(E79-F79)<3,F79>9),C79/F79,0) -> 0 | E79: 63.55 | F79: 0 | G79: 58.74 | H79: 3.5 | I79: 2.31 | J79: 26.08 | K79: 4.5 | L79: 90.5 | M79: 25.08 | N79: 33.14 | O79: 0 | P79: 17.54 | Q79: 5.5 | R79: 0.75 | S79: 0 | T79: 7 | U79: 0 | V79: 2.69 | W79: 0.99 | X79: 13.87 | Y79: 3.84 | AA79: 518886 | AB79: =IF(ISNA(VLOOKUP(A79,Rankings!$B$2:$H$659,7,FALSE)),"-",VLOOKUP(A79,Rankings!$B$2:$H$659,7,FALSE)) -> 0
A80: Kirby Yates | B80: RP | C80: =(G80*'Points System'!$E$6)+(H80*'Points System'!$E$2)+(I80*'Points System'!$E$3)+(J80*'Points System'!$E$4)+(K80*'Points System'!$E$5)+(L80*'Points System'!$E$7)+(M80*'Points System'!$E$8)+(N80*'Points System'!$E$10)+(P80*'Points System'!$E$9)+(Q80*'Points System'!$E$17)+(R80*'Points System'!$E$11)+(S80*'Points System'!$E$12)+(T80*'Points System'!$E$16)+(U80*'Points System'!$E$13) -> 392 | D80: =IF(AND(ABS(E80-F80)<3,F80>9),C80/F80,0) -> 0 | E80: 64.77 | F80: 0 | G80: 62.14 | H80: 3.25 | I80: 3.07 | J80: 27.4 | K80: 4 | L80: 86.56 | M80: 20.67 | N80: 44.47 | O80: 25.5 | P80: 21.43 | Q80: 7.64 | R80: 2.5 | S80: 0 | T80: 1.5 | U80: 0 | V80: 3.1 | W80: 1.05 | X80: 12.54 | Y80: 2.99 | Z80: NL | AA80: 489446 | AB80: =IF(ISNA(VLOOKUP(A80,Rankings!$B$2:$H$659,7,FALSE)),"-",VLOOKUP(A80,Rankings!$B$2:$H$659,7,FALSE)) -> 0
A81: Nathan Eovaldi | B81: SP | C81: =(G81*'Points System'!$E$6)+(H81*'Points System'!$E$2)+(I81*'Points System'!$E$3)+(J81*'Points System'!$E$4)+(K81*'Points System'!$E$5)+(L81*'Points System'!$E$7)+(M81*'Points System'!$E$8)+(N81*'Points System'!$E$10)+(P81*'Points System'!$E$9)+(Q81*'Points System'!$E$17)+(R81*'Points System'!$E$11)+(S81*'Points System'!$E$12)+(T81*'Points System'!$E$16)+(U81*'Points System'!$E$13) -> 390.325 | D81: =IF(AND(ABS(E81-F81)<3,F81>9),C81/F81,0) -> 14.65183934 | E81: 26.79 | F81: 26.64 | G81: 143.86 | H81: 10.59 | I81: 7.2 | J81: 0 | K81: 0 | L81: 129.18 | M81: 34.69 | N81: 132.25 | O81: 64 | P81: 63.33 | Q81: 18.17 | R81: 0 | S81: 11.6 | T81: 5 | U81: 0 | V81: 3.96 | W81: 1.16 | X81: 8.08 | Y81: 2.17 | Z81: AL | AA81: 543135 | AB81: =IF(ISNA(VLOOKUP(A81,Rankings!$B$2:$H$659,7,FALSE)),"-",VLOOKUP(A81,Rankings!$B$2:$H$659,7,FALSE)) -> 0
A82: Reynaldo Lopez | B82: SP | C82: =(G82*'Points System'!$E$6)+(H82*'Points System'!$E$2)+(I82*'Points System'!$E$3)+(J82*'Points System'!$E$4)+(K82*'Points System'!$E$5)+(L82*'Points System'!$E$7)+(M82*'Points System'!$E$8)+(N82*'Points System'!$E$10)+(P82*'Points System'!$E$9)+(Q82*'Points System'!$E$17)+(R82*'Points System'!$E$11)+(S82*'Points System'!$E$12)+(T82*'Points System'!$E$16)+(U82*'Points System'!$E$13) -> 389.1625 | D82: =IF(AND(ABS(E82-F82)<3,F82>9),C82/F82,0) -> 13.2458305 | E82: 29.62 | F82: 29.38 | G82: 173.18 | H82: 8.56 | I82: 10.93 | J82: 0 | K82: 0 | L82: 146.25 | M82: 68.87 | N82: 153.6 | O82: 90 | P82: 87.43 | Q82: 26.64 | R82: 0 | S82: 15 | T82: 8.5 | U82: 0 | V82: 4.54 | W82: 1.28 | X82: 7.6 | Y82: 3.58 | Z82: AL | AA82: 625643 | AB82: =IF(ISNA(VLOOKUP(A82,Rankings!$B$2:$H$659,7,FALSE)),"-",VLOOKUP(A82,Rankings!$B$2:$H$659,7,FALSE)) -> 0
A83: Collin McHugh | B83: SP/RP | C83: =(G83*'Points System'!$E$6)+(H83*'Points System'!$E$2)+(I83*'Points System'!$E$3)+(J83*'Points System'!$E$4)+(K83*'Points System'!$E$5)+(L83*'Points System'!$E$7)+(M83*'Points System'!$E$8)+(N83*'Points System'!$E$10)+(P83*'Points System'!$E$9)+(Q83*'Points System'!$E$17)+(R83*'Points System'!$E$11)+(S83*'Points System'!$E$12)+(T83*'Points System'!$E$16)+(U83*'Points System'!$E$13) -> 388.93 | D83: =IF(AND(ABS(E83-F83)<3,F83>9),C83/F83,0) -> 0 | E83: 28.92 | F83: 23 | G83: 133.41 | H83: 9.63 | I83: 6.36 | J83: 0 | K83: 0 | L83: 139.56 | M83: 41.4 | N83: 116.4 | O83: 53.5 | P83: 53.93 | Q83: 17.09 | R83: 3.75 | S83: 10.8 | T83: 2.5 | U83: 0.33 | V83: 3.64 | W83: 1.18 | X83: 9.41 | Y83: 2.79 | Z83: AL | AA83: 543521 | AB83: =IF(ISNA(VLOOKUP(A83,Rankings!$B$2:$H$659,7,FALSE)),"-",VLOOKUP(A83,Rankings!$B$2:$H$659,7,FALSE)) -> 0
A84: Carlos Martinez | B84: SP | C84: =(G84*'Points System'!$E$6)+(H84*'Points System'!$E$2)+(I84*'Points System'!$E$3)+(J84*'Points System'!$E$4)+(K84*'Points System'!$E$5)+(L84*'Points System'!$E$7)+(M84*'Points System'!$E$8)+(N84*'Points System'!$E$10)+(P84*'Points System'!$E$9)+(Q84*'Points System'!$E$17)+(R84*'Points System'!$E$11)+(S84*'Points System'!$E$12)+(T84*'Points System'!$E$16)+(U84*'Points System'!$E$13) -> 387.2375 | D84: =IF(AND(ABS(E84-F84)<3,F84>9),C84/F84,0) -> 0 | E84: 32.15 | F84: 24.38 | G84: 145.1 | H84: 9.69 | I84: 8.07 | J84: 0 | K84: 0 | L84: 140.75 | M84: 58.4 | N84: 125.6 | O84: 78 | P84: 57.79 | Q84: 14.82 | R84: 0.25 | S84: 14.8 | T84: 4.5 | U84: 0.83 | V84: 3.58 | W84: 1.27 | X84: 8.73 | Y84: 3.62 | Z84: NL | AA84: 593372 | AB84: =IF(ISNA(VLOOKUP(A84,Rankings!$B$2:$H$659,7,FALSE)),"-",VLOOKUP(A84,Rankings!$B$2:$H$659,7,FALSE)) -> 0
A85: Carlos Rodon | B85: SP | C85: =(G85*'Points System'!$E$6)+(H85*'Points System'!$E$2)+(I85*'Points System'!$E$3)+(J85*'Points System'!$E$4)+(K85*'Points System'!$E$5)+(L85*'Points System'!$E$7)+(M85*'Points System'!$E$8)+(N85*'Points System'!$E$10)+(P85*'Points System'!$E$9)+(Q85*'Points System'!$E$17)+(R85*'Points System'!$E$11)+(S85*'Points System'!$E$12)+(T85*'Points System'!$E$16)+(U85*'Points System'!$E$13) -> 386.4175 | D85: =IF(AND(ABS(E85-F85)<3,F85>9),C85/F85,0) -> 13.96521503 | E85: 27.67 | F85: 27.67 | G85: 160.52 | H85: 9 | I85: 9.92 | J85: 0 | K85: 0 | L85: 145.87 | M85: 67.71 | N85: 137.79 | O85: 83 | P85: 76.38 | Q85: 21.6 | R85: 0 | S85: 14.75 | T85: 6 | U85: 0 | V85: 4.28 | W85: 1.28 | X85: 8.18 | Y85: 3.8 | Z85: AL | AA85: 607074 | AB85: =IF(ISNA(VLOOKUP(A85,Rankings!$B$2:$H$659,7,FALSE)),"-",VLOOKUP(A85,Rankings!$B$2:$H$659,7,FALSE)) -> 0
A86: Steven Matz | B86: SP | C86: =(G86*'Points System'!$E$6)+(H86*'Points System'!$E$2)+(I86*'Points System'!$E$3)+(J86*'Points System'!$E$4)+(K86*'Points System'!$E$5)+(L86*'Points System'!$E$7)+(M86*'Points System'!$E$8)+(N86*'Points System'!$E$10)+(P86*'Points System'!$E$9)+(Q86*'Points System'!$E$17)+(R86*'Points System'!$E$11)+(S86*'Points System'!$E$12)+(T86*'Points System'!$E$16)+(U86*'Points System'!$E$13) -> 384.0575 | D86: =IF(AND(ABS(E86-F86)<3,F86>9),C86/F86,0) -> 13.96572727 | E86: 27.5 | F86: 27.5 | G86: 150.49 | H86: 8.29 | I86: 9.13 | J86: 0 | K86: 0 | L86: 142.71 | M86: 50.56 | N86: 132.13 | O86: 71 | P86: 67.2 | Q86: 20.5 | R86: 0 | S86: 12.8 | T86: 0.5 | U86: 0 | V86: 4.02 | W86: 1.21 | X86: 8.53 | Y86: 3.02 | Z86: NL | AA86: 571927 | AB86: =IF(ISNA(VLOOKUP(A86,Rankings!$B$2:$H$659,7,FALSE)),"-",VLOOKUP(A86,Rankings!$B$2:$H$659,7,FALSE)) -> 0
A87: Mike Fiers | B87: SP | C87: =(G87*'Points System'!$E$6)+(H87*'Points System'!$E$2)+(I87*'Points System'!$E$3)+(J87*'Points System'!$E$4)+(K87*'Points System'!$E$5)+(L87*'Points System'!$E$7)+(M87*'Points System'!$E$8)+(N87*'Points System'!$E$10)+(P87*'Points System'!$E$9)+(Q87*'Points System'!$E$17)+(R87*'Points System'!$E$11)+(S87*'Points System'!$E$12)+(T87*'Points System'!$E$16)+(U87*'Points System'!$E$13) -> 383.3275 | D87: =IF(AND(ABS(E87-F87)<3,F87>9),C87/F87,0) -> 13.72949499 | E87: 28.08 | F87: 27.92 | G87: 157.89 | H87: 9.87 | I87: 9.46 | J87: 0 | K87: 0 | L87: 133.47 | M87: 45.93 | N87: 146.79 | O87: 85 | P87: 76.38 | Q87: 24.9 | R87: 0 | S87: 14 | T87: 4 | U87: 0 | V87: 4.35 | W87: 1.22 | X87: 7.61 | Y87: 2.62 | Z87: AL | AA87: 571666 | AB87: =IF(ISNA(VLOOKUP(A87,Rankings!$B$2:$H$659,7,FALSE)),"-",VLOOKUP(A87,Rankings!$B$2:$H$659,7,FALSE)) -> 0
A88: Tyler Glasnow | B88: SP/RP | C88: =(G88*'Points System'!$E$6)+(H88*'Points System'!$E$2)+(I88*'Points System'!$E$3)+(J88*'Points System'!$E$4)+(K88*'Points System'!$E$5)+(L88*'Points System'!$E$7)+(M88*'Points System'!$E$8)+(N88*'Points System'!$E$10)+(P88*'Points System'!$E$9)+(Q88*'Points System'!$E$17)+(R88*'Points System'!$E$11)+(S88*'Points System'!$E$12)+(T88*'Points System'!$E$16)+(U88*'Points System'!$E$13) -> 382.63 | D88: =IF(AND(ABS(E88-F88)<3,F88>9),C88/F88,0) -> 15.4473153 | E88: 26.62 | F88: 24.77 | G88: 136.1 | H88: 7.75 | I88: 8.5 | J88: 0 | K88: 0 | L88: 158.88 | M88: 62.13 | N88: 106 | O88: 67.5 | P88: 60.14 | Q88: 17.91 | R88: 0 | S88: 11.75 | T88: 13 | U88: 0 | V88: 3.98 | W88: 1.24 | X88: 10.51 | Y88: 4.11 | Z88: AL | AA88: 607192 | AB88: =IF(ISNA(VLOOKUP(A88,Rankings!$B$2:$H$659,7,FALSE)),"-",VLOOKUP(A88,Rankings!$B$2:$H$659,7,FALSE)) -> 0
A89: Marcus Stroman | B89: SP | C89: =(G89*'Points System'!$E$6)+(H89*'Points System'!$E$2)+(I89*'Points System'!$E$3)+(J89*'Points System'!$E$4)+(K89*'Points System'!$E$5)+(L89*'Points System'!$E$7)+(M89*'Points System'!$E$8)+(N89*'Points System'!$E$10)+(P89*'Points System'!$E$9)+(Q89*'Points System'!$E$17)+(R89*'Points System'!$E$11)+(S89*'Points System'!$E$12)+(T89*'Points System'!$E$16)+(U89*'Points System'!$E$13) -> 380.4275 | D89: =IF(AND(ABS(E89-F89)<3,F89>9),C89/F89,0) -> 13.34833333 | E89: 28.5 | F89: 28.5 | G89: 167.15 | H89: 9.47 | I89: 9.93 | J89: 0 | K89: 0 | L89: 131.59 | M89: 53.69 | N89: 163.19 | O89: 85.5 | P89: 75.8 | Q89: 17.42 | R89: 0 | S89: 14.6 | T89: 4 | U89: 0.67 | V89: 4.08 | W89: 1.3 | X89: 7.09 | Y89: 2.89 | Z89: AL | AA89: 573186 | AB89: =IF(ISNA(VLOOKUP(A89,Rankings!$B$2:$H$659,7,FALSE)),"-",VLOOKUP(A89,Rankings!$B$2:$H$659,7,FALSE)) -> 0
A90: Tyler Skaggs | B90: SP | C90: =(G90*'Points System'!$E$6)+(H90*'Points System'!$E$2)+(I90*'Points System'!$E$3)+(J90*'Points System'!$E$4)+(K90*'Points System'!$E$5)+(L90*'Points System'!$E$7)+(M90*'Points System'!$E$8)+(N90*'Points System'!$E$10)+(P90*'Points System'!$E$9)+(Q90*'Points System'!$E$17)+(R90*'Points System'!$E$11)+(S90*'Points System'!$E$12)+(T90*'Points System'!$E$16)+(U90*'Points System'!$E$13) -> 379.55 | D90: =IF(AND(ABS(E90-F90)<3,F90>9),C90/F90,0) -> 14.2206819 | E90: 26.69 | F90: 26.69 | G90: 142.88 | H90: 9.5 | I90: 8.36 | J90: 0 | K90: 0 | L90: 140.44 | M90: 47.07 | N90: 130.27 | O90: 64 | P90: 62.5 | Q90: 17.73 | R90: 0 | S90: 12.6 | T90: 3 | U90: 0 | V90: 3.94 | W90: 1.24 | X90: 8.85 | Y90: 2.96 | Z90: AL | AA90: 572140 | AB90: =IF(ISNA(VLOOKUP(A90,Rankings!$B$2:$H$659,7,FALSE)),"-",VLOOKUP(A90,Rankings!$B$2:$H$659,7,FALSE)) -> 0
A91: Sonny Gray | B91: SP | C91: =(G91*'Points System'!$E$6)+(H91*'Points System'!$E$2)+(I91*'Points System'!$E$3)+(J91*'Points System'!$E$4)+(K91*'Points System'!$E$5)+(L91*'Points System'!$E$7)+(M91*'Points System'!$E$8)+(N91*'Points System'!$E$10)+(P91*'Points System'!$E$9)+(Q91*'Points System'!$E$17)+(R91*'Points System'!$E$11)+(S91*'Points System'!$E$12)+(T91*'Points System'!$E$16)+(U91*'Points System'!$E$13) -> 377.425 | D91: =IF(AND(ABS(E91-F91)<3,F91>9),C91/F91,0) -> 14.05156366 | E91: 27.57 | F91: 26.86 | G91: 149.95 | H91: 9.71 | I91: 8.87 | J91: 0 | K91: 0 | L91: 140.94 | M91: 56.69 | N91: 136.69 | O91: 70 | P91: 69.13 | Q91: 17.92 | R91: 0 | S91: 13.2 | T91: 11 | U91: 0 | V91: 4.15 | W91: 1.29 | X91: 8.46 | Y91: 3.4 | Z91: NL | AA91: 543243 | AB91: =IF(ISNA(VLOOKUP(A91,Rankings!$B$2:$H$659,7,FALSE)),"-",VLOOKUP(A91,Rankings!$B$2:$H$659,7,FALSE)) -> 0
A92: Joe Musgrove | B92: SP | C92: =(G92*'Points System'!$E$6)+(H92*'Points System'!$E$2)+(I92*'Points System'!$E$3)+(J92*'Points System'!$E$4)+(K92*'Points System'!$E$5)+(L92*'Points System'!$E$7)+(M92*'Points System'!$E$8)+(N92*'Points System'!$E$10)+(P92*'Points System'!$E$9)+(Q92*'Points System'!$E$17)+(R92*'Points System'!$E$11)+(S92*'Points System'!$E$12)+(T92*'Points System'!$E$16)+(U92*'Points System'!$E$13) -> 377.3875 | D92: =IF(AND(ABS(E92-F92)<3,F92>9),C92/F92,0) -> 14.64445091 | E92: 26.77 | F92: 25.77 | G92: 149.07 | H92: 9.44 | I92: 9.36 | J92: 0.07 | K92: 0 | L92: 129.63 | M92: 34.8 | N92: 141.53 | O92: 70.5 | P92: 65.86 | Q92: 19.45 | R92: 0 | S92: 13.4 | T92: 5.5 | U92: 0 | V92: 3.98 | W92: 1.18 | X92: 7.83 | Y92: 2.1 | Z92: NL | AA92: 605397 | AB92: =IF(ISNA(VLOOKUP(A92,Rankings!$B$2:$H$659,7,FALSE)),"-",VLOOKUP(A92,Rankings!$B$2:$H$659,7,FALSE)) -> 0
A93: Jose Leclerc | B93: RP | C93: =(G93*'Points System'!$E$6)+(H93*'Points System'!$E$2)+(I93*'Points System'!$E$3)+(J93*'Points System'!$E$4)+(K93*'Points System'!$E$5)+(L93*'Points System'!$E$7)+(M93*'Points System'!$E$8)+(N93*'Points System'!$E$10)+(P93*'Points System'!$E$9)+(Q93*'Points System'!$E$17)+(R93*'Points System'!$E$11)+(S93*'Points System'!$E$12)+(T93*'Points System'!$E$16)+(U93*'Points System'!$E$13) -> 376.61 | D93: =IF(AND(ABS(E93-F93)<3,F93>9),C93/F93,0) -> 0 | E93: 61.77 | F93: 0 | G93: 62.67 | H93: 2.88 | I93: 2.86 | J93: 26.67 | K93: 5 | L93: 87.44 | M93: 36.2 | N93: 37.6 | O93: 27.5 | P93: 21.57 | Q93: 5.45 | R93: 2.25 | S93: 0 | T93: 2.5 | U93: 0 | V93: 3.1 | W93: 1.18 | X93: 12.56 | Y93: 5.2 | Z93: AL | AA93: 600917 | AB93: =IF(ISNA(VLOOKUP(A93,Rankings!$B$2:$H$659,7,FALSE)),"-",VLOOKUP(A93,Rankings!$B$2:$H$659,7,FALSE)) -> 0
A94: Sean Doolittle | B94: RP | C94: =(G94*'Points System'!$E$6)+(H94*'Points System'!$E$2)+(I94*'Points System'!$E$3)+(J94*'Points System'!$E$4)+(K94*'Points System'!$E$5)+(L94*'Points System'!$E$7)+(M94*'Points System'!$E$8)+(N94*'Points System'!$E$10)+(P94*'Points System'!$E$9)+(Q94*'Points System'!$E$17)+(R94*'Points System'!$E$11)+(S94*'Points System'!$E$12)+(T94*'Points System'!$E$16)+(U94*'Points System'!$E$13) -> 376.22 | D94: =IF(AND(ABS(E94-F94)<3,F94>9),C94/F94,0) -> 0 | E94: 56.31 | F94: 0 | G94: 55.18 | H94: 3.06 | I94: 2.29 | J94: 27.4 | K94: 3 | L94: 70 | M94: 11.93 | N94: 37.6 | O94: 18 | P94: 17 | Q94: 6.45 | R94: 2.75 | S94: 0 | T94: 1.5 | U94: 0 | V94: 2.77 | W94: 0.9 | X94: 11.42 | Y94: 1.95 | Z94: NL | AA94: 448281 | AB94: =IF(ISNA(VLOOKUP(A94,Rankings!$B$2:$H$659,7,FALSE)),"-",VLOOKUP(A94,Rankings!$B$2:$H$659,7,FALSE)) -> 0
A95: Chase Anderson | B95: SP | C95: =(G95*'Points System'!$E$6)+(H95*'Points System'!$E$2)+(I95*'Points System'!$E$3)+(J95*'Points System'!$E$4)+(K95*'Points System'!$E$5)+(L95*'Points System'!$E$7)+(M95*'Points System'!$E$8)+(N95*'Points System'!$E$10)+(P95*'Points System'!$E$9)+(Q95*'Points System'!$E$17)+(R95*'Points System'!$E$11)+(S95*'Points System'!$E$12)+(T95*'Points System'!$E$16)+(U95*'Points System'!$E$13) -> 374.5875 | D95: =IF(AND(ABS(E95-F95)<3,F95>9),C95/F95,0) -> 13.53767618 | E95: 27.67 | F95: 27.67 | G95: 152.3 | H95: 9.4 | I95: 8.85 | J95: 0 | K95: 0 | L95: 129.87 | M95: 52.43 | N95: 132.14 | O95: 80.5 | P95: 72.23 | Q95: 25.2 | R95: 0 | S95: 12.5 | T95: 1 | U95: 0 | V95: 4.27 | W95: 1.21 | X95: 7.67 | Y95: 3.1 | Z95: NL | AA95: 502624 | AB95: =IF(ISNA(VLOOKUP(A95,Rankings!$B$2:$H$659,7,FALSE)),"-",VLOOKUP(A95,Rankings!$B$2:$H$659,7,FALSE)) -> 0
A96: Corey Knebel | B96: RP | C96: =(G96*'Points System'!$E$6)+(H96*'Points System'!$E$2)+(I96*'Points System'!$E$3)+(J96*'Points System'!$E$4)+(K96*'Points System'!$E$5)+(L96*'Points System'!$E$7)+(M96*'Points System'!$E$8)+(N96*'Points System'!$E$10)+(P96*'Points System'!$E$9)+(Q96*'Points System'!$E$17)+(R96*'Points System'!$E$11)+(S96*'Points System'!$E$12)+(T96*'Points System'!$E$16)+(U96*'Points System'!$E$13) -> 372.5425 | D96: =IF(AND(ABS(E96-F96)<3,F96>9),C96/F96,0) -> 0 | E96: 62.54 | F96: 0 | G96: 62.58 | H96: 3.13 | I96: 2.71 | J96: 23.27 | K96: 4.25 | L96: 95.25 | M96: 27.53 | N96: 41.6 | O96: 26.5 | P96: 20.5 | Q96: 6.36 | R96: 5.75 | S96: 0 | T96: 0.5 | U96: 0 | V96: 2.95 | W96: 1.1 | X96: 13.7 | Y96: 3.96 | Z96: NL | AA96: 608349 | AB96: =IF(ISNA(VLOOKUP(A96,Rankings!$B$2:$H$659,7,FALSE)),"-",VLOOKUP(A96,Rankings!$B$2:$H$659,7,FALSE)) -> 0
A97: Ken Giles | B97: RP | C97: =(G97*'Points System'!$E$6)+(H97*'Points System'!$E$2)+(I97*'Points System'!$E$3)+(J97*'Points System'!$E$4)+(K97*'Points System'!$E$5)+(L97*'Points System'!$E$7)+(M97*'Points System'!$E$8)+(N97*'Points System'!$E$10)+(P97*'Points System'!$E$9)+(Q97*'Points System'!$E$17)+(R97*'Points System'!$E$11)+(S97*'Points System'!$E$12)+(T97*'Points System'!$E$16)+(U97*'Points System'!$E$13) -> 370.775 | D97: =IF(AND(ABS(E97-F97)<3,F97>9),C97/F97,0) -> 0 | E97: 62.62 | F97: 0 | G97: 61.88 | H97: 2.56 | I97: 3.07 | J97: 28.27 | K97: 3.5 | L97: 73.94 | M97: 17.4 | N97: 52.93 | O97: 28 | P97: 24.36 | Q97: 7.09 | R97: 1.75 | S97: 0 | T97: 3.5 | U97: 0 | V97: 3.54 | W97: 1.14 | X97: 10.75 | Y97: 2.53 | Z97: AL | AA97: 571704 | AB97: =IF(ISNA(VLOOKUP(A97,Rankings!$B$2:$H$659,7,FALSE)),"-",VLOOKUP(A97,Rankings!$B$2:$H$659,7,FALSE)) -> 0
A98: Cody Allen | B98: RP | C98: =(G98*'Points System'!$E$6)+(H98*'Points System'!$E$2)+(I98*'Points System'!$E$3)+(J98*'Points System'!$E$4)+(K98*'Points System'!$E$5)+(L98*'Points System'!$E$7)+(M98*'Points System'!$E$8)+(N98*'Points System'!$E$10)+(P98*'Points System'!$E$9)+(Q98*'Points System'!$E$17)+(R98*'Points System'!$E$11)+(S98*'Points System'!$E$12)+(T98*'Points System'!$E$16)+(U98*'Points System'!$E$13) -> 370.0325 | D98: =IF(AND(ABS(E98-F98)<3,F98>9),C98/F98,0) -> 0 | E98: 65.54 | F98: 0 | G98: 65.04 | H98: 3.25 | I98: 3.86 | J98: 28.13 | K98: 5.25 | L98: 79.69 | M98: 27 | N98: 51.2 | O98: 31 | P98: 27.86 | Q98: 8.82 | R98: 3.25 | S98: 0 | T98: 4 | U98: 0 | V98: 3.86 | W98: 1.2 | X98: 11.03 | Y98: 3.74 | Z98: AL | AA98: 592102 | AB98: =IF(ISNA(VLOOKUP(A98,Rankings!$B$2:$H$659,7,FALSE)),"-",VLOOKUP(A98,Rankings!$B$2:$H$659,7,FALSE)) -> 0
A99: David Robertson | B99: RP | C99: =(G99*'Points System'!$E$6)+(H99*'Points System'!$E$2)+(I99*'Points System'!$E$3)+(J99*'Points System'!$E$4)+(K99*'Points System'!$E$5)+(L99*'Points System'!$E$7)+(M99*'Points System'!$E$8)+(N99*'Points System'!$E$10)+(P99*'Points System'!$E$9)+(Q99*'Points System'!$E$17)+(R99*'Points System'!$E$11)+(S99*'Points System'!$E$12)+(T99*'Points System'!$E$16)+(U99*'Points System'!$E$13) -> 365.845 | D99: =IF(AND(ABS(E99-F99)<3,F99>9),C99/F99,0) -> 0 | E99: 64.54 | F99: 0 | G99: 66.19 | H99: 4.31 | I99: 2.93 | J99: 21.2 | K99: 4.75 | L99: 90.06 | M99: 25.2 | N99: 43.6 | O99: 24.5 | P99: 21.86 | Q99: 6.82 | R99: 5.25 | S99: 0 | T99: 2 | U99: 0 | V99: 2.97 | W99: 1.04 | X99: 12.25 | Y99: 3.43 | Z99: NL | AA99: 502085 | AB99: =IF(ISNA(VLOOKUP(A99,Rankings!$B$2:$H$659,7,FALSE)),"-",VLOOKUP(A99,Rankings!$B$2:$H$659,7,FALSE)) -> 0
A100: Jose Urena | B100: SP | C100: =(G100*'Points System'!$E$6)+(H100*'Points System'!$E$2)+(I100*'Points System'!$E$3)+(J100*'Points System'!$E$4)+(K100*'Points System'!$E$5)+(L100*'Points System'!$E$7)+(M100*'Points System'!$E$8)+(N100*'Points System'!$E$10)+(P100*'Points System'!$E$9)+(Q100*'Points System'!$E$17)+(R100*'Points System'!$E$11)+(S100*'Points System'!$E$12)+(T100*'Points System'!$E$16)+(U100*'Points System'!$E$13) -> 364.5625 | D100: =IF(AND(ABS(E100-F100)<3,F100>9),C100/F100,0) -> 12.6364818 | E100: 29.46 | F100: 28.85 | G100: 164.52 | H100: 9 | I100: 11.29 | J100: 0 | K100: 0 | L100: 123.69 | M100: 56.07 | N100: 147.8 | O100: 80 | P100: 77.29 | Q100: 20.82 | R100: 0 | S100: 13.2 | T100: 2.5 | U100: 0.67 | V100: 4.23 | W100: 1.24 | X100: 6.77 | Y100: 3.07 | Z100: NL | AA100: 570632 | AB100: =IF(ISNA(VLOOKUP(A100,Rankings!$B$2:$H$659,7,FALSE)),"-",VLOOKUP(A100,Rankings!$B$2:$H$659,7,FALSE)) -> 0
A101: Lance Lynn | B101: SP | C101: =(G101*'Points System'!$E$6)+(H101*'Points System'!$E$2)+(I101*'Points System'!$E$3)+(J101*'Points System'!$E$4)+(K101*'Points System'!$E$5)+(L101*'Points System'!$E$7)+(M101*'Points System'!$E$8)+(N101*'Points System'!$E$10)+(P101*'Points System'!$E$9)+(Q101*'Points System'!$E$17)+(R101*'Points System'!$E$11)+(S101*'Points System'!$E$12)+(T101*'Points System'!$E$16)+(U101*'Points System'!$E$13) -> 361.9625 | D101: =IF(AND(ABS(E101-F101)<3,F101>9),C101/F101,0) -> 13.21995982 | E101: 27.54 | F101: 27.38 | G101: 152.67 | H101: 9.33 | I101: 9.62 | J101: 0 | K101: 0 | L101: 140.93 | M101: 68 | N101: 138.86 | O101: 87 | P101: 73.23 | Q101: 18.82 | R101: 0 | S101: 12.8 | T101: 4 | U101: 0 | V101: 4.32 | W101: 1.35 | X101: 8.31 | Y101: 4.01 | Z101: AL | AA101: 458681 | AB101: =IF(ISNA(VLOOKUP(A101,Rankings!$B$2:$H$659,7,FALSE)),"-",VLOOKUP(A101,Rankings!$B$2:$H$659,7,FALSE)) -> 0
A102: Trevor Williams | B102: SP | C102: =(G102*'Points System'!$E$6)+(H102*'Points System'!$E$2)+(I102*'Points System'!$E$3)+(J102*'Points System'!$E$4)+(K102*'Points System'!$E$5)+(L102*'Points System'!$E$7)+(M102*'Points System'!$E$8)+(N102*'Points System'!$E$10)+(P102*'Points System'!$E$9)+(Q102*'Points System'!$E$17)+(R102*'Points System'!$E$11)+(S102*'Points System'!$E$12)+(T102*'Points System'!$E$16)+(U102*'Points System'!$E$13) -> 357.275 | D102: =IF(AND(ABS(E102-F102)<3,F102>9),C102/F102,0) -> 13.15930018 | E102: 27.38 | F102: 27.15 | G102: 154.77 | H102: 9.75 | I102: 9.57 | J102: 0 | K102: 0 | L102: 116.94 | M102: 51.67 | N102: 141.4 | O102: 77.5 | P102: 70.79 | Q102: 17.91 | R102: 0 | S102: 14.2 | T102: 4 | U102: 0.67 | V102: 4.12 | W102: 1.25 | X102: 6.8 | Y102: 3 | Z102: NL | AA102: 592866 | AB102: =IF(ISNA(VLOOKUP(A102,Rankings!$B$2:$H$659,7,FALSE)),"-",VLOOKUP(A102,Rankings!$B$2:$H$659,7,FALSE)) -> 0
A103: Anibal Sanchez | B103: SP | C103: =(G103*'Points System'!$E$6)+(H103*'Points System'!$E$2)+(I103*'Points System'!$E$3)+(J103*'Points System'!$E$4)+(K103*'Points System'!$E$5)+(L103*'Points System'!$E$7)+(M103*'Points System'!$E$8)+(N103*'Points System'!$E$10)+(P103*'Points System'!$E$9)+(Q103*'Points System'!$E$17)+(R103*'Points System'!$E$11)+(S103*'Points System'!$E$12)+(T103*'Points System'!$E$16)+(U103*'Points System'!$E$13) -> 351.2 | D103: =IF(AND(ABS(E103-F103)<3,F103>9),C103/F103,0) -> 14.17844166 | E103: 25.92 | F103: 24.77 | G103: 137.99 | H103: 8 | I103: 8.29 | J103: 0 | K103: 0 | L103: 133 | M103: 43.6 | N103: 125.4 | O103: 68 | P103: 66.57 | Q103: 20.55 | R103: 0 | S103: 11.8 | T103: 4.5 | U103: 0.17 | V103: 4.34 | W103: 1.22 | X103: 8.67 | Y103: 2.84 | Z103: NL | AA103: 434671 | AB103: =IF(ISNA(VLOOKUP(A103,Rankings!$B$2:$H$659,7,FALSE)),"-",VLOOKUP(A103,Rankings!$B$2:$H$659,7,FALSE)) -> 0
A104: Ivan Nova | B104: SP | C104: =(G104*'Points System'!$E$6)+(H104*'Points System'!$E$2)+(I104*'Points System'!$E$3)+(J104*'Points System'!$E$4)+(K104*'Points System'!$E$5)+(L104*'Points System'!$E$7)+(M104*'Points System'!$E$8)+(N104*'Points System'!$E$10)+(P104*'Points System'!$E$9)+(Q104*'Points System'!$E$17)+(R104*'Points System'!$E$11)+(S104*'Points System'!$E$12)+(T104*'Points System'!$E$16)+(U104*'Points System'!$E$13) -> 350.9875 | D104: =IF(AND(ABS(E104-F104)<3,F104>9),C104/F104,0) -> 12.63908894 | E104: 27.85 | F104: 27.77 | G104: 161.88 | H104: 8.88 | I104: 10.71 | J104: 0 | K104: 0 | L104: 117.31 | M104: 37.53 | N104: 162.13 | O104: 88 | P104: 81.36 | Q104: 25.91 | R104: 0 | S104: 14 | T104: 9 | U104: 0.67 | V104: 4.52 | W104: 1.23 | X104: 6.52 | Y104: 2.09 | Z104: AL | AA104: 467100 | AB104: =IF(ISNA(VLOOKUP(A104,Rankings!$B$2:$H$659,7,FALSE)),"-",VLOOKUP(A104,Rankings!$B$2:$H$659,7,FALSE)) -> 0
A105: Joshua James | B105: SP | C105: =(G105*'Points System'!$E$6)+(H105*'Points System'!$E$2)+(I105*'Points System'!$E$3)+(J105*'Points System'!$E$4)+(K105*'Points System'!$E$5)+(L105*'Points System'!$E$7)+(M105*'Points System'!$E$8)+(N105*'Points System'!$E$10)+(P105*'Points System'!$E$9)+(Q105*'Points System'!$E$17)+(R105*'Points System'!$E$11)+(S105*'Points System'!$E$12)+(T105*'Points System'!$E$16)+(U105*'Points System'!$E$13) -> 349.9325 | D105: =IF(AND(ABS(E105-F105)<3,F105>9),C105/F105,0) -> 15.55255556 | E105: 23 | F105: 22.5 | G105: 123.45 | H105: 8.17 | I105: 6.33 | J105: 0 | K105: 0 | L105: 140.17 | M105: 52.5 | N105: 107 | O105: 52 | P105: 53.5 | Q105: 14.83 | R105: 0 | S105: 11.21 | T105: 10 | U105: 0 | V105: 3.9 | W105: 1.29 | X105: 10.22 | Y105: 3.83 | Z105: AL | AA105: 657624 | AB105: =IF(ISNA(VLOOKUP(A105,Rankings!$B$2:$H$659,7,FALSE)),"-",VLOOKUP(A105,Rankings!$B$2:$H$659,7,FALSE)) -> 0
A106: Vince Velasquez | B106: SP | C106: =(G106*'Points System'!$E$6)+(H106*'Points System'!$E$2)+(I106*'Points System'!$E$3)+(J106*'Points System'!$E$4)+(K106*'Points System'!$E$5)+(L106*'Points System'!$E$7)+(M106*'Points System'!$E$8)+(N106*'Points System'!$E$10)+(P106*'Points System'!$E$9)+(Q106*'Points System'!$E$17)+(R106*'Points System'!$E$11)+(S106*'Points System'!$E$12)+(T106*'Points System'!$E$16)+(U106*'Points System'!$E$13) -> 348.1475 | D106: =IF(AND(ABS(E106-F106)<3,F106>9),C106/F106,0) -> 13.71739559 | E106: 25.54 | F106: 25.38 | G106: 132.33 | H106: 8.44 | I106: 8.79 | J106: 0 | K106: 0 | L106: 142.19 | M106: 51.67 | N106: 116.67 | O106: 62.5 | P106: 64.93 | Q106: 20.09 | R106: 0 | S106: 10.2 | T106: 8 | U106: 0 | V106: 4.42 | W106: 1.27 | X106: 9.67 | Y106: 3.51 | Z106: NL | AA106: 592826 | AB106: =IF(ISNA(VLOOKUP(A106,Rankings!$B$2:$H$659,7,FALSE)),"-",VLOOKUP(A106,Rankings!$B$2:$H$659,7,FALSE)) -> 0
A107: Dereck Rodriguez | B107: SP | C107: =(G107*'Points System'!$E$6)+(H107*'Points System'!$E$2)+(I107*'Points System'!$E$3)+(J107*'Points System'!$E$4)+(K107*'Points System'!$E$5)+(L107*'Points System'!$E$7)+(M107*'Points System'!$E$8)+(N107*'Points System'!$E$10)+(P107*'Points System'!$E$9)+(Q107*'Points System'!$E$17)+(R107*'Points System'!$E$11)+(S107*'Points System'!$E$12)+(T107*'Points System'!$E$16)+(U107*'Points System'!$E$13) -> 347.2375 | D107: =IF(AND(ABS(E107-F107)<3,F107>9),C107/F107,0) -> 13.68154058 | E107: 25.62 | F107: 25.38 | G107: 147.61 | H107: 7.75 | I107: 8.14 | J107: 0 | K107: 0 | L107: 114.63 | M107: 46.6 | N107: 132.87 | O107: 68 | P107: 65.21 | Q107: 18.45 | R107: 0 | S107: 15.2 | T107: 1 | U107: 0.17 | V107: 3.98 | W107: 1.22 | X107: 6.99 | Y107: 2.84 | Z107: NL | AA107: 605446 | AB107: =IF(ISNA(VLOOKUP(A107,Rankings!$B$2:$H$659,7,FALSE)),"-",VLOOKUP(A107,Rankings!$B$2:$H$659,7,FALSE)) -> 0
A108: Jose Alvarado | B108: RP | C108: =(G108*'Points System'!$E$6)+(H108*'Points System'!$E$2)+(I108*'Points System'!$E$3)+(J108*'Points System'!$E$4)+(K108*'Points System'!$E$5)+(L108*'Points System'!$E$7)+(M108*'Points System'!$E$8)+(N108*'Points System'!$E$10)+(P108*'Points System'!$E$9)+(Q108*'Points System'!$E$17)+(R108*'Points System'!$E$11)+(S108*'Points System'!$E$12)+(T108*'Points System'!$E$16)+(U108*'Points System'!$E$13) -> 345.5625 | D108: =IF(AND(ABS(E108-F108)<3,F108>9),C108/F108,0) -> 0 | E108: 63.77 | F108: 0 | G108: 60.68 | H108: 2.88 | I108: 3.21 | J108: 25.2 | K108: 5 | L108: 74.81 | M108: 29.93 | N108: 42.4 | O108: 24 | P108: 20.29 | Q108: 4 | R108: 8.25 | S108: 0 | T108: 2 | U108: 0 | V108: 3.01 | W108: 1.19 | X108: 11.1 | Y108: 4.44 | Z108: AL | AA108: 621237 | AB108: =IF(ISNA(VLOOKUP(A108,Rankings!$B$2:$H$659,7,FALSE)),"-",VLOOKUP(A108,Rankings!$B$2:$H$659,7,FALSE)) -> 0
A109: Anthony DeSclafani | B109: SP | C109: =(G109*'Points System'!$E$6)+(H109*'Points System'!$E$2)+(I109*'Points System'!$E$3)+(J109*'Points System'!$E$4)+(K109*'Points System'!$E$5)+(L109*'Points System'!$E$7)+(M109*'Points System'!$E$8)+(N109*'Points System'!$E$10)+(P109*'Points System'!$E$9)+(Q109*'Points System'!$E$17)+(R109*'Points System'!$E$11)+(S109*'Points System'!$E$12)+(T109*'Points System'!$E$16)+(U109*'Points System'!$E$13) -> 345.3975 | D109: =IF(AND(ABS(E109-F109)<3,F109>9),C109/F109,0) -> 13.77183014 | E109: 25.08 | F109: 25.08 | G109: 140.65 | H109: 8.47 | I109: 9.31 | J109: 0 | K109: 0 | L109: 129.07 | M109: 39.14 | N109: 133.64 | O109: 63 | P109: 69.38 | Q109: 22.6 | R109: 0 | S109: 10.25 | T109: 6 | U109: 0 | V109: 4.44 | W109: 1.23 | X109: 8.26 | Y109: 2.5 | Z109: NL | AA109: 543101 | AB109: =IF(ISNA(VLOOKUP(A109,Rankings!$B$2:$H$659,7,FALSE)),"-",VLOOKUP(A109,Rankings!$B$2:$H$659,7,FALSE)) -> 0
A110: Tyler Anderson | B110: SP | C110: =(G110*'Points System'!$E$6)+(H110*'Points System'!$E$2)+(I110*'Points System'!$E$3)+(J110*'Points System'!$E$4)+(K110*'Points System'!$E$5)+(L110*'Points System'!$E$7)+(M110*'Points System'!$E$8)+(N110*'Points System'!$E$10)+(P110*'Points System'!$E$9)+(Q110*'Points System'!$E$17)+(R110*'Points System'!$E$11)+(S110*'Points System'!$E$12)+(T110*'Points System'!$E$16)+(U110*'Points System'!$E$13) -> 344.7375 | D110: =IF(AND(ABS(E110-F110)<3,F110>9),C110/F110,0) -> 12.07909951 | E110: 28.69 | F110: 28.54 | G110: 148.54 | H110: 8.38 | I110: 9.36 | J110: 0 | K110: 0 | L110: 137.19 | M110: 52.73 | N110: 148.33 | O110: 84 | P110: 74.79 | Q110: 24.91 | R110: 0 | S110: 13.4 | T110: 9.5 | U110: 0 | V110: 4.53 | W110: 1.35 | X110: 8.31 | Y110: 3.19 | Z110: NL | AA110: 542881 | AB110: =IF(ISNA(VLOOKUP(A110,Rankings!$B$2:$H$659,7,FALSE)),"-",VLOOKUP(A110,Rankings!$B$2:$H$659,7,FALSE)) -> 0
A111: Zach Eflin | B111: SP/RP | C111: =(G111*'Points System'!$E$6)+(H111*'Points System'!$E$2)+(I111*'Points System'!$E$3)+(J111*'Points System'!$E$4)+(K111*'Points System'!$E$5)+(L111*'Points System'!$E$7)+(M111*'Points System'!$E$8)+(N111*'Points System'!$E$10)+(P111*'Points System'!$E$9)+(Q111*'Points System'!$E$17)+(R111*'Points System'!$E$11)+(S111*'Points System'!$E$12)+(T111*'Points System'!$E$16)+(U111*'Points System'!$E$13) -> 344.3875 | D111: =IF(AND(ABS(E111-F111)<3,F111>9),C111/F111,0) -> 13.54789536 | E111: 25.5 | F111: 25.42 | G111: 138.39 | H111: 9.47 | I111: 9 | J111: 0 | K111: 0 | L111: 122.67 | M111: 39 | N111: 129.71 | O111: 66 | P111: 67.23 | Q111: 21.3 | R111: 0 | S111: 11.5 | T111: 7 | U111: 0 | V111: 4.37 | W111: 1.22 | X111: 7.98 | Y111: 2.54 | Z111: NL | AA111: 621107 | AB111: =IF(ISNA(VLOOKUP(A111,Rankings!$B$2:$H$659,7,FALSE)),"-",VLOOKUP(A111,Rankings!$B$2:$H$659,7,FALSE)) -> 0
A112: Mike Leake | B112: SP | C112: =(G112*'Points System'!$E$6)+(H112*'Points System'!$E$2)+(I112*'Points System'!$E$3)+(J112*'Points System'!$E$4)+(K112*'Points System'!$E$5)+(L112*'Points System'!$E$7)+(M112*'Points System'!$E$8)+(N112*'Points System'!$E$10)+(P112*'Points System'!$E$9)+(Q112*'Points System'!$E$17)+(R112*'Points System'!$E$11)+(S112*'Points System'!$E$12)+(T112*'Points System'!$E$16)+(U112*'Points System'!$E$13) -> 341.42 | D112: =IF(AND(ABS(E112-F112)<3,F112>9),C112/F112,0) -> 11.0958726 | E112: 30.77 | F112: 30.77 | G112: 169.97 | H112: 9.4 | I112: 11.54 | J112: 0 | K112: 0 | L112: 112.2 | M112: 37.64 | N112: 187.57 | O112: 91 | P112: 82.23 | Q112: 25.09 | R112: 0 | S112: 16.2 | T112: 3 | U112: 0 | V112: 4.35 | W112: 1.32 | X112: 5.94 | Y112: 1.99 | Z112: AL | AA112: 502190 | AB112: =IF(ISNA(VLOOKUP(A112,Rankings!$B$2:$H$659,7,FALSE)),"-",VLOOKUP(A112,Rankings!$B$2:$H$659,7,FALSE)) -> 0
A113: Josh Hader | B113: RP | C113: =(G113*'Points System'!$E$6)+(H113*'Points System'!$E$2)+(I113*'Points System'!$E$3)+(J113*'Points System'!$E$4)+(K113*'Points System'!$E$5)+(L113*'Points System'!$E$7)+(M113*'Points System'!$E$8)+(N113*'Points System'!$E$10)+(P113*'Points System'!$E$9)+(Q113*'Points System'!$E$17)+(R113*'Points System'!$E$11)+(S113*'Points System'!$E$12)+(T113*'Points System'!$E$16)+(U113*'Points System'!$E$13) -> 341.05 | D113: =IF(AND(ABS(E113-F113)<3,F113>9),C113/F113,0) -> 0 | E113: 64.29 | F113: 0 | G113: 77.26 | H113: 4.53 | I113: 2.73 | J113: 7.56 | K113: 3.75 | L113: 122.76 | M113: 32.44 | N113: 43.94 | O113: 27 | P113: 23 | Q113: 8.42 | R113: 22 | S113: 0 | T113: 0 | U113: 0 | V113: 2.68 | W113: 0.99 | X113: 14.3 | Y113: 3.78 | Z113: NL | AA113: 623352 | AB113: =IF(ISNA(VLOOKUP(A113,Rankings!$B$2:$H$659,7,FALSE)),"-",VLOOKUP(A113,Rankings!$B$2:$H$659,7,FALSE)) -> 0
A114: CC Sabathia | B114: SP | C114: =(G114*'Points System'!$E$6)+(H114*'Points System'!$E$2)+(I114*'Points System'!$E$3)+(J114*'Points System'!$E$4)+(K114*'Points System'!$E$5)+(L114*'Points System'!$E$7)+(M114*'Points System'!$E$8)+(N114*'Points System'!$E$10)+(P114*'Points System'!$E$9)+(Q114*'Points System'!$E$17)+(R114*'Points System'!$E$11)+(S114*'Points System'!$E$12)+(T114*'Points System'!$E$16)+(U114*'Points System'!$E$13) -> 340.895 | D114: =IF(AND(ABS(E114-F114)<3,F114>9),C114/F114,0) -> 14.20395833 | E114: 24 | F114: 24 | G114: 134.6 | H114: 9.12 | I114: 6.87 | J114: 0 | K114: 0 | L114: 116.94 | M114: 45.25 | N114: 123.13 | O114: 66.5 | P114: 61.07 | Q114: 18.25 | R114: 0 | S114: 11 | T114: 3 | U114: 0 | V114: 4.08 | W114: 1.25 | X114: 7.82 | Y114: 3.03 | Z114: AL | AA114: 282332 | AB114: =IF(ISNA(VLOOKUP(A114,Rankings!$B$2:$H$659,7,FALSE)),"-",VLOOKUP(A114,Rankings!$B$2:$H$659,7,FALSE)) -> 0
